Workbook

Sheet Table of Contents
C3: Sheet Tab | D3: Description | E3: Author
B4: 1 | C4: Table of Contents
B5: 2 | C5: Master Scenario
B6: 3 | C6: Summary
B7: 4 | C7: Historic Financials
B8: 5 | C8: Assumptions
B9: 6 | C9: Sateri Model
B10: 7 | C10: Valuation and Ratios
B11: 8 | C11: LBO Model
B12: 9 | C12: Model Verification
B13: 10 | C13: Scenario Graph
B14: 11 | C14: Long-term Analysis
B15: 12 | C15: Simple Model
B16: 13 | C16: Cash Graph
B17: 14 | C17: Sensitivity Graph
B18: 15 | C18: Simple Scenario
B19: 16 | C19: doid stock price
B20: 17 | C20: Doid BS
B21: 18 | C21: Doid IS
B22: 19 | C22: Value Driver
B23: 20 | C23: Stock Price Graph
B24: 21 | C24: Beta Analysis
B25: 22 | C25: Credit Spread
B26: 23 | C26: Value Line
B27: 24 | C27: Back up Data
B29: File Name: | D29: C:\Users\Elvis Presley\Documents\Singapore Valuation Class Final.xlsm
B31: Colour Codes
B33: Last Save Date | D33: 2012-08-16T13:14:30
B34: Last Save By | D34: Elvis Presley

Sheet Master Scenario
C3: Valuation Date | E3: =Assumptions!E5 -> 2012
C4: Terminal Date | E4: =Assumptions!E6 -> 2021
B6: Scenario Num | C6: 1
T7: 2012 | U7: =T7+1 -> 2013 | V7: 2014 | W7: 2015 | X7: 2016 | Y7: 2017 | Z7: 2018 | AA7: 2019
P8: EBITDA | Q8: EV | R8: Value/Share | S8: EV/EBITDA | T8: ROIC | U8: ROIC | V8: ROIC | W8: ROIC | X8: ROIC | Y8: ROIC | Z8: ROIC | AA8: ROIC
C9: Growth | E9: Price | G9: CGS | I9: S&D Cost | J9: Cap Exp | K9: Inv | L9: A/R | M9: Beta A | N9: Term Gr | P9: ='Valuation and Ratios'!E110 -> 292768 | Q9: ='Valuation and Ratios'!E94 -> 3111112.021 | R9: ='Valuation and Ratios'!E108 -> 0.9057099393 | S9: ='Valuation and Ratios'!E111 -> 10.62654396 | T9: ='Valuation and Ratios'!J52 -> 0.09139322988 | U9: ='Valuation and Ratios'!K52 -> 0.100858252 | V9: ='Valuation and Ratios'!L52 -> 0.1137105825 | W9: ='Valuation and Ratios'!M52 -> 0.1205989443 | X9: ='Valuation and Ratios'!N52 -> 0.1272369752 | Y9: ='Valuation and Ratios'!O52 -> 0.1321293371 | Z9: ='Valuation and Ratios'!P52 -> 0.1377597369 | AA9: ='Valuation and Ratios'!Q52 -> 0.1431346899
B10: Base Case | C10: 1 | D10: =INDEX(Assumptions!$D$14:$D$16,'Master Scenario'!C10) -> Base Demand | E10: 1 | F10: =INDEX(Assumptions!$D$26:$D$29,'Master Scenario'!E10) -> Base Price Case | G10: 1 | H10: =INDEX(Assumptions!$D$43:$D$45,'Master Scenario'!G10) -> Base CGS Cost | I10: 0.1025 | J10: 2.5 | K10: 0.48 | L10: 0.2 | M10: 0.5 | N10: 0.02 | O10: 1 | P10: 292768 | Q10: 3111112.021 | R10: 0.9057099393 | S10: 10.62654396 | T10: 0.09139322988 | U10: 0.100858252 | V10: 0.1137105825 | W10: 0.1205989443 | X10: 0.1272369752 | Y10: 0.1321293371 | Z10: 0.1377597369 | AA10: 0.1431346899
B11: Low Case | C11: 2 | D11: =INDEX(Assumptions!$D$14:$D$16,'Master Scenario'!C11) -> Low Demand Growth | E11: 2 | F11: =INDEX(Assumptions!$D$26:$D$29,'Master Scenario'!E11) -> Low Price Case | G11: 2 | H11: =INDEX(Assumptions!$D$43:$D$45,'Master Scenario'!G11) -> High CGS Cost | I11: 0.11 | J11: 3 | K11: 0.6 | L11: 0.3 | M11: 0.6 | N11: 0 | O11: 2 | P11: 292768 | Q11: 948737.909 | R11: 0.2296662442 | S11: 3.240579261 | T11: 0.08306899336 | U11: 0.06650752238 | V11: 0.05310345126 | W11: 0.03504663007 | X11: 0.03510701531 | Y11: 0.03356510279 | Z11: 0.03139493245 | AA11: 0.02852110234
B12: High Case | C12: 3 | D12: =INDEX(Assumptions!$D$14:$D$16,'Master Scenario'!C12) -> High Demand Growth | E12: 3 | F12: =INDEX(Assumptions!$D$26:$D$29,'Master Scenario'!E12) -> Stress Case | G12: 3 | H12: =INDEX(Assumptions!$D$43:$D$45,'Master Scenario'!G12) -> Low CGS Cost | I12: 0.1 | J12: 2.8 | K12: 0.2 | L12: 0.15 | M12: 0.4 | N12: 0.03 | O12: 3 | P12: 292768 | Q12: 3395521.873 | R12: 0.9946277106 | S12: 11.59799525 | T12: 0.04828331897 | U12: 0.070997649 | V12: 0.08664673241 | W12: 0.09225923872 | X12: 0.09605457593 | Y12: 0.1002403065 | Z12: 0.1039644648 | AA12: 0.1073128242
B13: Growth Sensitivity | C13: =C11 -> 2 | D13: =INDEX(Assumptions!$D$14:$D$16,'Master Scenario'!C13) -> Low Demand Growth | E13: 1 | F13: =INDEX(Assumptions!$D$26:$D$29,'Master Scenario'!E13) -> Base Price Case | G13: 1 | H13: =INDEX(Assumptions!$D$43:$D$45,'Master Scenario'!G13) -> Base CGS Cost | I13: 0.1025 | J13: =J10 -> 2.5 | K13: 0.48 | L13: 0.2 | M13: 0.5 | N13: 0.02 | O13: 4 | P13: 292768 | Q13: 2881966.772 | R13: 0.8340700691 | S13: 9.843858524 | T13: 0.08883351067 | U13: 0.09239438942 | V13: 0.106496392 | W13: 0.1177702713 | X13: 0.1261260195 | Y13: 0.1329372244 | Z13: 0.1393687676 | AA13: 0.1454211331
B14: Price Sensitivity | C14: 1 | D14: =INDEX(Assumptions!$D$14:$D$16,'Master Scenario'!C14) -> Base Demand | E14: 2 | F14: =INDEX(Assumptions!$D$26:$D$29,'Master Scenario'!E14) -> Low Price Case | G14: 1 | H14: =INDEX(Assumptions!$D$43:$D$45,'Master Scenario'!G14) -> Base CGS Cost | I14: 0.1025 | J14: =$J$10 -> 2.5 | K14: 0.48 | L14: 0.2 | M14: 0.5 | N14: 0.02 | O14: 5 | P14: 292768 | Q14: 1476498.821 | R14: 0.3946651846 | S14: 5.043238405 | T14: 0.09264556685 | U14: 0.08544944762 | V14: 0.07227496472 | W14: 0.05239009682 | X14: 0.05231830811 | Y14: 0.05048361718 | Z14: 0.04868795546 | AA14: 0.04629078053
B15: CGS Sensitivity | C15: 1 | D15: =INDEX(Assumptions!$D$14:$D$16,'Master Scenario'!C15) -> Base Demand | E15: 1 | F15: =INDEX(Assumptions!$D$26:$D$29,'Master Scenario'!E15) -> Base Price Case | G15: 2 | H15: =INDEX(Assumptions!$D$43:$D$45,'Master Scenario'!G15) -> High CGS Cost | I15: 0.1025 | J15: =$J$10 -> 2.5 | K15: 0.48 | L15: 0.2 | M15: 0.5 | N15: 0.02 | O15: 6 | P15: 292768 | Q15: 2906896.209 | R15: 0.8418639972 | S15: 9.929009349 | T15: 0.08944325231 | U15: 0.09649921962 | V15: 0.1066951908 | W15: 0.1108451123 | X15: 0.1170989659 | Y15: 0.1216737658 | Z15: 0.1269284898 | AA15: 0.1319199961
B16: S&D Sensitvity | C16: 1 | D16: =INDEX(Assumptions!$D$14:$D$16,'Master Scenario'!C16) -> Base Demand | E16: 1 | F16: =INDEX(Assumptions!$D$26:$D$29,'Master Scenario'!E16) -> Base Price Case | G16: 1 | H16: =INDEX(Assumptions!$D$43:$D$45,'Master Scenario'!G16) -> Base CGS Cost | I16: =I11 -> 0.11 | J16: =$J$10 -> 2.5 | K16: 0.48 | L16: 0.2 | M16: 0.5 | N16: 0.02 | O16: 7 | P16: 292768 | Q16: 3056971.383 | R16: 0.8887834339 | S16: 10.4416172 | T16: 0.08924797539 | U16: 0.09852662445 | V16: 0.1112748559 | W16: 0.1181235123 | X16: 0.1247206224 | Y16: 0.1295866525 | Z16: 0.1351790138 | AA16: 0.1405166103
B17: Cap Exp Sensitivity | C17: 1 | D17: =INDEX(Assumptions!$D$14:$D$16,'Master Scenario'!C17) -> Base Demand | E17: 1 | F17: =INDEX(Assumptions!$D$26:$D$29,'Master Scenario'!E17) -> Base Price Case | G17: 1 | H17: =INDEX(Assumptions!$D$43:$D$45,'Master Scenario'!G17) -> Base CGS Cost | I17: 0.1025 | J17: =J11 -> 3 | K17: 0.48 | L17: 0.2 | M17: 0.5 | N17: 0.02 | O17: 8 | P17: 292768 | Q17: 3010052.051 | R17: 0.8741145943 | S17: 10.28135606 | T17: 0.09139322988 | U17: 0.1007185237 | V17: 0.1126199725 | W17: 0.1177095762 | X17: 0.1226437007 | Y17: 0.1259527505 | Z17: 0.1301444652 | AA17: 0.1340810785
B18: Inv Sensitivity | C18: 1 | D18: =INDEX(Assumptions!$D$14:$D$16,'Master Scenario'!C18) -> Base Demand | E18: 1 | F18: =INDEX(Assumptions!$D$26:$D$29,'Master Scenario'!E18) -> Base Price Case | G18: 1 | H18: =INDEX(Assumptions!$D$43:$D$45,'Master Scenario'!G18) -> Base CGS Cost | I18: 0.1025 | J18: =$J$10 -> 2.5 | K18: =K11 -> 0.6 | L18: 0.2 | M18: 0.5 | N18: 0.02 | O18: 9 | P18: 292768 | Q18: 3010464.235 | R18: 0.8742434594 | S18: 10.28276395 | T18: 0.09020403187 | U18: 0.09811050084 | V18: 0.1104083535 | W18: 0.1169642991 | X18: 0.1232653309 | Y18: 0.1278637309 | Z18: 0.1331607856 | AA18: 0.1381959144
B19: A/R Sensitivity | C19: 1 | D19: =INDEX(Assumptions!$D$14:$D$16,'Master Scenario'!C19) -> Base Demand | E19: 1 | F19: =INDEX(Assumptions!$D$26:$D$29,'Master Scenario'!E19) -> Base Price Case | G19: 1 | H19: =INDEX(Assumptions!$D$43:$D$45,'Master Scenario'!G19) -> Base CGS Cost | I19: 0.1025 | J19: =$J$10 -> 2.5 | K19: 0.48 | L19: =L11 -> 0.3 | M19: 0.5 | N19: 0.02 | O19: 10 | P19: 292768 | Q19: 2949589.843 | R19: 0.8552117162 | S19: 10.07483688 | T19: 0.08933481091 | U19: 0.09619762521 | V19: 0.1081670706 | W19: 0.1145020774 | X19: 0.1205798199 | Y19: 0.1249847821 | Z19: 0.1300627616 | AA19: 0.134875422
B20: Beta Sensitivity | C20: 1 | D20: =INDEX(Assumptions!$D$14:$D$16,'Master Scenario'!C20) -> Base Demand | E20: 1 | F20: =INDEX(Assumptions!$D$26:$D$29,'Master Scenario'!E20) -> Base Price Case | G20: 1 | H20: =INDEX(Assumptions!$D$43:$D$45,'Master Scenario'!G20) -> Base CGS Cost | I20: 0.1025 | J20: =$J$10 -> 2.5 | K20: 0.48 | L20: 0.2 | M20: =M11 -> 0.6 | N20: 0.02 | O20: 11 | P20: 292768 | Q20: 2830739.439 | R20: 0.8180543781 | S20: 9.668882663 | T20: 0.09139322988 | U20: 0.100858252 | V20: 0.1137105825 | W20: 0.1205989443 | X20: 0.1272369752 | Y20: 0.1321293371 | Z20: 0.1377597369 | AA20: 0.1431346899
B21: Terminal Growth | C21: 1 | D21: =INDEX(Assumptions!$D$14:$D$16,'Master Scenario'!C21) -> Base Demand | E21: 1 | F21: =INDEX(Assumptions!$D$26:$D$29,'Master Scenario'!E21) -> Base Price Case | G21: 1 | H21: =INDEX(Assumptions!$D$43:$D$45,'Master Scenario'!G21) -> Base CGS Cost | I21: 0.1025 | J21: =$J$10 -> 2.5 | K21: 0.48 | L21: 0.2 | M21: 0.5 | N21: =N11 -> 0 | O21: 12 | P21: 292768 | Q21: 2702518.421 | R21: 0.7779674151 | S21: 9.230921484 | T21: 0.09139322988 | U21: 0.100858252 | V21: 0.1137105825 | W21: 0.1205989443 | X21: 0.1272369752 | Y21: 0.1321293371 | Z21: 0.1377597369 | AA21: 0.1431346899
B23: =INDEX(B10:B21,$C$6) -> Base Case | C23: =INDEX(C10:C21,$C$6) -> 1 | D23: Base Demand | E23: 1 | F23: Base Price Case | G23: 1 | H23: Base CGS Cost | I23: 0.1025 | J23: 2.5 | K23: 0.48 | L23: 0.2 | M23: 0.5 | N23: 0.02
C27: Value/Share
B28: Growth Sensitivity | C28: =$R$10-R13 -> 0.07163987021
B29: Price Sensitivity | C29: =$R$10-R14 -> 0.5110447547
B30: CGS Sensitivity | C30: 0.06384594206
B31: S&D Sensitvity | C31: 0.01692650532
B32: Cap Exp Sensitivity | C32: 0.03159534499
B33: Inv Sensitivity | C33: 0.03146647988
B34: A/R Sensitivity | C34: 0.05049822311
B35: Beta Sensitivity | C35: 0.08765556117
B36: =B21 -> Terminal Growth | C36: 0.1277425242

Sheet Summary
A3: Valuation
B5: Growth Rate
C6: Enterprise Value | E6: ='Valuation and Ratios'!E94 -> 3111112.021
C7: EBITDA | E7: ='Valuation and Ratios'!E110 -> 292768
C8: Implied EV/EBITDA | E8: ='Valuation and Ratios'!E111 -> 10.62654396
C9: Equity Value per Share | E9: ='Valuation and Ratios'!E108 -> 0.9057099393
B11: Value Driver
C12: Enterprise Value | E12: ='Valuation and Ratios'!E125 -> 3928131.224
C13: Implied EV/EBITDA | E13: =E12/E7 -> 13.41721508
C14: Equity Value | E14: =E9 -> 0.9057099393
B16: Computed EV/EBITDA Ratio
C17: Enterprise Value | E17: ='Valuation and Ratios'!E143 -> 3406780.005
C18: Implied EV/EBITDA | E18: =E17/E7 -> 11.63644936
C19: Equity Value | E19: ='Valuation and Ratios'!E149 -> 0.9981474481
B21: Equity Cash Flow
C22: Equity Value per Share | E22: ='Valuation and Ratios'!E169 -> 0.9903638585

Sheet Historic Financials
D1: ='Model Verification'!E11 -> Model OK
A2: SATERI HOLDINGS | E2: 2007 | F2: =E2+1 -> 2008 | G2: 2009 | H2: 2010 | I2: 2011 | J2: 2012 | K2: 2013 | L2: 2014 | M2: 2015 | N2: 2016 | O2: 2017 | P2: 2018 | Q2: 2019 | R2: 2020 | S2: 2021 | T2: 2022
B4: Production and Capacity
C5: DWP | E5: 2007 | F5: 2008 | G5: 2009 | H5: 2010 | I5: 2011
D6: Production | E6: 115249 | F6: 210092 | G6: 367306 | H6: 432328 | I6: 413990
D7: Sales | E7: 115249 | F7: 210092 | G7: 367306 | H7: 391346 | I7: 256627
D8: Revenue | E8: 106864 | F8: 257355 | G8: 424392 | H8: 605813 | I8: 443525
D9: Gross Profit | H9: 342525 | I9: 206165
D10: Capacity | E10: 115000 | F10: 465000 | G10: 465000 | H10: 465000 | I10: 465000
D11: Price | E11: =E8/E6 -> 0.927244488 | F11: =F8/F6 -> 1.224963349 | G11: =G8/G6 -> 1.155418098 | H11: =H8/H6 -> 1.401280972 | I11: =I8/I6 -> 1.071342303
C13: VSF
D14: Production | E14: 68740 | F14: 61233 | G14: 66551 | H14: 79890 | I14: 140576
D15: Sales | E15: 68740 | F15: 61233 | G15: 66551 | H15: 77468 | I15: 140260
D16: Revenue | E16: 165303 | F16: 124904 | G16: 127606 | H16: 195853 | I16: 363049
D17: Gross Profit | H17: 56883 | I17: 85195
D18: Capacity | E18: 60000 | F18: 60000 | G18: 60000 | H18: 120000 | I18: 160000
D19: Price | E19: =E16/E15 -> 2.404757056 | F19: =F16/F15 -> 2.039815132 | G19: =G16/G15 -> 1.917416718 | H19: =H16/H15 -> 2.528179377 | I19: =I16/I15 -> 2.588400114
C21: Total
D22: Production | E22: =E6+E14 -> 183989 | F22: 271325 | G22: 433857 | H22: 512218 | I22: 554566
D23: Sales | E23: 183989 | F23: 271325 | G23: 433857 | H23: 468814 | I23: 396887
D24: Revenue | E24: 272167 | F24: 382259 | G24: 551998 | H24: 801666 | I24: 806574
D25: Gross Profit | H25: =H9+H17 -> 399408 | I25: =I9+I17 -> 291360
D26: Capacity | E26: =E18+E10 -> 175000 | F26: =F18+F10 -> 525000 | G26: =G18+G10 -> 525000 | H26: =H18+H10 -> 585000 | I26: =I18+I10 -> 625000
D27: Average Price | E27: =E24/E22 -> 1.479256912 | F27: =F24/F22 -> 1.408860223 | G27: =G24/G22 -> 1.272304008 | H27: =H24/H22 -> 1.565087521 | I27: =I24/I22 -> 1.45442382
D28: Other Revenue | E28: =E44-E24 -> 0 | F28: =F44-F24 -> 0 | G28: =G44-G24 -> 0 | H28: =H44-H24 -> 121591 | I28: =I44-I24 -> 0
D30: New Capacity | F30: =F26-E26 -> 350000 | G30: =G26-F26 -> 0 | H30: =H26-G26 -> 60000 | I30: =I26-H26 -> 40000
D31: Capital Expenditure | E31: =-E172 -> 495804 | F31: =-F172 -> 298874 | G31: =-G172 -> 120788 | H31: =-H172 -> 61805 | I31: =-I172 -> 136810
D32: Cap Exp/New Capacity | F32: =(E31+F31)/F30 -> 2.270508571 | H32: =(G31+H31)/H30 -> 3.043216667 | I32: =I31/I30 -> 3.42025
D34: Forestry Expenditure | E34: =-E174 -> 39542 | F34: =-F174 -> 41452 | G34: =-G174 -> 24444 | H34: =-H174 -> 37881 | I34: =-I174 -> 41608 | N34: Tons | O34: Cost 000's
D35: Expenditure per Production | E35: =E34/E22 -> 0.2149150221 | F35: =F34/F22 -> 0.1527761909 | G35: =G34/G22 -> 0.05634114466 | H35: =H34/H22 -> 0.07395483954 | I35: =I34/I22 -> 0.07502803994 | L35: Sateri Fujian | N35: 200000 | O35: 435000 | P35: =O35/N35 -> 2.175
L36: Bahia | N36: 65000 | O36: 250000 | P36: =O36/N36 -> 3.846153846
C37: Capacity | L37: Bahia | N37: 20000 | O37: 20000 | P37: =O37/N37 -> 1
D38: Opening | I38: =I40-I39 -> 595000
D39: Addition | I39: 50000
D40: Total | I40: =485000+160000 -> 645000
B43: Profit and Loss
C44: Revenue | E44: 272167 | F44: 382259 | G44: 551998 | H44: 923257 | I44: 806574
C45: Cost of sales | E45: =E46-E44 -> -165616 | F45: =F46-F44 -> -303966 | G45: =G46-G44 -> -341891 | H45: -466534 | I45: -483501
D46: Gross profit | E46: 106551 | F46: 78293 | G46: 210107 | H46: =SUM(H44:H45) -> 456723 | I46: =SUM(I44:I45) -> 323073
C47: Selling and distribution expenses | E47: -13669 | F47: -28486 | G47: -43776 | H47: -58033 | I47: -51816
C48: Administrative expenses | E48: -43315 | F48: -44573 | G48: -41209 | H48: -72965 | I48: -86105
C49: Other income and gains/(losses) | E49: 9889 | F49: 32880 | G49: -1995 | H49: -489 | I49: 17223
C50: Share of Result of Associate | E50: 4025 | F50: -5421
C51: Commission income from a related party | H51: 801 | I51: 3880
C52: Finance costs | E52: -11895 | F52: -22808 | G52: -36414 | H52: -31077 | I52: -42267
C53: Changes in fair value of derivative financial instruments | E53: 13572 | F53: -21223 | G53: 1832 | H53: 21521 | I53: -30712
C54: Gain on settlement of derivative financial instruments | E54: 42546 | F54: 4290 | G54: 18391 | H54: 5392 | I54: 12161
C55: (Decrease)/increase in fair value of
C56: forestation and reforestation assets | F56: -4945 | G56: 23246 | H56: 12704 | I56: -8349
C57: Reversal of impairment loss in respect of property,
C58: plant and equipment | G58: -20013 | H58: 0 | I58: 6762
C59: Recovery of loss recognized in respect of property,
C60: plant and equipment | H60: 12236 | I60: 0
C61: Imputed interest expense on advance from a related party | G61: -5755 | H61: -4316 | I61: 0
C62: Listing expenses | H62: -10215 | I62: 0
D63: Profit before tax | E63: =SUM(E46:E60) -> 107704 | F63: =SUM(F46:F60) -> -11993 | G63: =SUM(G46:G61) -> 104414 | H63: =SUM(H46:H62) -> 332282 | I63: =SUM(I46:I62) -> 143850
C64: Income tax credit/(expense) | E64: =E65-E63 -> -4205 | F64: =F65-F63 -> 2532 | G64: =G65-G63 -> 3016 | H64: -4192 | I64: 6675
D65: Profit for the year | E65: 103499 | F65: -9461 | G65: 107430 | H65: =SUM(H63:H64) -> 328090 | I65: =SUM(I63:I64) -> 150525
D66: Profit for the year attributable to:
C67: Owners of the Company | E67: 94966 | F67: -3979 | G67: 106867 | H67: 323881 | I67: 154713
C68: Non-controlling interests | E68: 8533 | F68: -5482 | G68: 563 | H68: 4209 | I68: -4188
E69: 103499 | F69: -9461 | G69: 107430 | H69: 328090 | I69: 150525
C70: Earnings per share
C71: — basic (US$) | E71: 0.03 | F71: 0 | G71: 0.04 | H71: 0.11 | I71: 0.05
C72: — diluted (US$) | H72: 0.11 | I72: 0.05
C73: Implied Shares | E73: =IF(E71,E67/E71) -> 3165533.333 | F73: =IF(F71,F67/F71) -> FALSE | G73: =IF(G71,G67/G71) -> 2671675 | H73: =IF(H71,H67/H71) -> 2944372.727 | I73: =IF(I71,I67/I71) -> 3094260
C74: Other comprehensive income/(expense)
C75: Exchange differences arising on translation
C76: of foreign operations | H76: 5278 | I76: 10699
C77: (Loss)/gain on cash flow hedge | H77: 4346 | I77: -7767
H78: 9624 | I78: 2932
C79: Total comprehensive income for the year | E79: 111195 | F79: -655 | G79: 106837 | H79: 337714 | I79: 153457
C80: Total comprehensive income attributable to:
C81: Owners of the Company | E81: 101044 | F81: 4729 | G81: 105883 | H81: 333195 | I81: 158283
C82: Non-controlling interests | H82: 4519 | I82: -4826
H83: 337714 | I83: 153457
B84: Balance Sheet
E85: 2007 | F85: 2008 | G85: 2009 | H85: 2010 | I85: 2011
C86: Non-current assets
D87: Forestation and reforestation assets | E87: 104426 | F87: 138544 | G87: 177691 | H87: 192192 | I87: 187797
D88: Property, plant and equipment | E88: 1048045 | F88: 1350787 | G88: 1376386 | H88: 1384070 | I88: 1455966
D89: Prepaid lease payments — non-current portion | H89: 7340 | I89: 29199
D90: Investment properties | H90: 1880 | I90: 1867
D91: Intangible assets | H91: 775 | I91: 675
D92: Derivative financial instruments | H92: 4346 | I92: 0
D93: Other long-term assets | E93: 34559 | F93: 25537 | G93: 42767 | H93: 50913 | I93: 69265
D94: Deferred tax assets | E94: 21612 | F94: 77883 | G94: 102745 | H94: 111576 | I94: 105496
D95: Total Non-Current Assets | E95: =SUM(E87:E94) -> 1208642 | F95: =SUM(F87:F94) -> 1592751 | G95: =SUM(G87:G94) -> 1699589 | H95: =SUM(H87:H94) -> 1753092 | I95: =SUM(I87:I94) -> 1850265
C97: Current assets
D98: Inventories | E98: 42434 | F98: 68935 | G98: 53177 | H98: 88636 | I98: 180590
D99: Trade, bills and other receivables | E99: 312365 | F99: 250600 | G99: 107402 | H99: 108736 | I99: 153232
D100: Bills receivables discounted | E100: 2206 | F100: 59223 | G100: 132231 | H100: 39452 | I100: 8119
D101: Derivative financial instruments | H101: 21521 | I101: 0
D102: Prepaid lease payments — current portion | E102: 22670 | F102: 20 | G102: 5293 | H102: 153 | I102: 612
D103: Pledged bank deposits | H103: 8071 | I103: 5294
D104: Bank balances and cash | E104: 60044 | F104: 74956 | G104: 108807 | H104: 427794 | I104: 323705
D105: Total Current Assets | E105: =SUM(E98:E104) -> 439719 | F105: =SUM(F98:F104) -> 453734 | G105: =SUM(G98:G104) -> 406910 | H105: =SUM(H98:H104) -> 694363 | I105: =SUM(I98:I104) -> 671552
D107: Total Assets | E107: =E105+E95 -> 1648361 | F107: =F105+F95 -> 2046485 | G107: =G105+G95 -> 2106499 | H107: =H105+H95 -> 2447455 | I107: =I105+I95 -> 2521817
C109: Current liabilities
D110: Trade and other payables | E110: 132322 | F110: 126998 | G110: 77314 | H110: 156136 | I110: 136574
D111: Advance drawn on bills receivables | E111: 2206 | F111: 59223 | G111: 132231 | H111: 39452 | I111: 8119
D112: Derivative financial instruments | H112: 0 | I112: 30712
D113: Income tax payable | E113: 31252 | F113: 49823 | G113: 44756 | H113: 28424 | I113: 31079
D114: Bank borrowings — due within one year | E114: 82167 | F114: 153480 | G114: 177119 | H114: 153816 | I114: 198403
D115: Obligations under finance leases
D116: — due within one year | H116: 2165 | I116: 1170
D117: Total Current Liabilities | E117: =SUM(E110:E116) -> 247947 | F117: =SUM(F110:F116) -> 389524 | G117: =SUM(G110:G116) -> 431420 | H117: =SUM(H110:H116) -> 379993 | I117: =SUM(I110:I116) -> 406057
C119: Non-current liabilities
D120: Bank borrowings — due after one | E120: 316323 | F120: 310802 | G120: 277777 | H120: 510483 | I120: 379970
D121: Derivative financial instruments | H121: 0 | I121: 3421
D122: Deferred tax liabilities | E122: 2088 | F122: 54105 | G122: 68209 | H122: 71623 | I122: 55245
D123: Obligations under finance leases — due after one year | E123: 3072 | F123: 213778 | G123: 143559 | H123: 1646 | I123: 589
D124: Total Non-Current Liabilities | E124: =SUM(E120:E123) -> 321483 | F124: =SUM(F120:F123) -> 578685 | G124: =SUM(G120:G123) -> 489545 | H124: =SUM(H120:H123) -> 583752 | I124: =SUM(I120:I123) -> 439225
C126: Capital and reserves
D127: Share capital | E127: 409009 | F127: 409009 | G127: 409009 | H127: 168441 | I127: 170794
D128: Share premium and reserves | E128: 634736 | F128: 639465 | G128: 745348 | H128: 1279573 | I128: 1474871
D129: Equity attributable to owners of the Company | E129: 1043745 | F129: 1048474 | G129: 1154357 | H129: 1448014 | I129: 1645665
D130: Non-controlling interests | E130: 35186 | F130: 29802 | G130: 31177 | H130: 35696 | I130: 30870
D131: Total Equity | E131: 1078931 | F131: 1078276 | G131: 1185534 | H131: =H129+H130 -> 1483710 | I131: =I129+I130 -> 1676535
D132: Equity and Liabilities | E132: =E131+E117+E124 -> 1648361 | F132: =F131+F117+F124 -> 2046485 | G132: =G131+G117+G124 -> 2106499 | H132: =H131+H117+H124 -> 2447455 | I132: =I131+I117+I124 -> 2521817
D133: Test | E133: =E132=E107 -> TRUE | F133: =F132=F107 -> TRUE | G133: =G132=G107 -> TRUE | H133: =H132=H107 -> TRUE | I133: =I132=I107 -> TRUE
D134: Aggregate Test for Balance Sheet | E134: =AND(E133:T133) -> TRUE
B135: Cash Flow Statement
C136: OPERATING ACTIVITIES | E136: 2007 | F136: 2008 | G136: 2009 | H136: 2010 | I136: 2011
C137: Profit before tax
D138: Adjustments for:
D139: Amortization of intangible assets | H139: 100 | I139: 100
D140: Release of prepaid lease payments | H140: 20 | I140: 551
D141: Depreciation of property, plant and equipment | E141: 16427 | F141: 28509 | G141: 62743 | H141: 66078 | I141: 69962
D142: Depletion charge on forestation and reforestation assets | E142: 7158 | F142: 7334 | G142: 8543 | H142: 36084 | I142: 37654
D143: Depreciation of investment properties | H143: 104 | I143: 109
D144: Loss on disposal of property, plant and equipment | H144: 327 | I144: 130
D145: Gain on settlement of derivative fi nancial instruments | H145: -5392 | I145: -12161
D146: Recovery of loss recognized in respect of property,
D147: plant and equipment | H147: -12236 | I147: 0
D148: Reversal of impairment loss in respect of property,
D149: plant and equipment | H149: 0 | I149: -6762
D150: Impairment loss on inventories | H150: 1017 | I150: 529
D151: Impairment loss recognized in respect of other receivables | H151: 1772 | I151: 0
D152: Decrease/(increase) in fair value of forestation and
D153: reforestation assets | H153: -12704 | I153: 8349
D154: Changes in fair value of derivative fi nancial instruments | H154: -21521 | I154: 30712
D155: Awarded shares compensation expense | H155: 197 | I155: 1778
D156: Interest income | H156: -416 | I156: -2673
D157: Finance costs | H157: 31077 | I157: 42267
D158: Imputed interest expense on advance from a related | H158: 4316 | I158: 0
D159: Operating cash fl ows before movements in working capital | H159: 421105 | I159: 314395
D160: Increase in inventories | H160: -36476 | I160: -92483
D161: Increase in trade, bills and other receivables | H161: -15843 | I161: -44496
D162: (Decrease)/increase in trade and other payables | H162: 85280 | I162: -7484
D163: Change in derivative fi nancial instruments | H163: -4469 | I163: 33682
D164: Increase in value-added-tax recoverable included in
D165: other long-term assets | H165: -5405 | I165: -17792
D166: Purchase of shares for the purpose of
D167: awarded shares compensation scheme | H167: 0 | I167: -959
D168: Net cash generated from operations | H168: 444192 | I168: 184863
D169: Income taxes paid | H169: -2093 | I169: -968
D170: NET CASH FROM OPERATING ACTIVITIES | H170: 442099 | I170: 183895
C171: INVESTING ACTIVITIES
D172: Purchase of property, plant and equipment | E172: -495804 | F172: -298874 | G172: -120788 | H172: -61805 | I172: -136810
D173: Placement of pledged bank | H173: -135436 | I173: -1059990
D174: Additions of forestation and reforestation assets | E174: -39542 | F174: -41452 | G174: -24444 | H174: -37881 | I174: -41608
D175: Purchase of prepaid lease payments | H175: -6576 | I175: -17994
D176: Additions of unlisted investments (included in other
D177: long-term | H177: -3409 | I177: -3580
D178: Compensation received for recovery of loss recognized
D179: in respect of property, plant and equipment | H179: 12236 | I179: 0
D180: Withdrawal of pledged bank deposits | H180: 176784 | I180: 1063125
D181: Interest received | H181: 416 | I181: 2673
D182: Proceeds from disposal of property, plant and | H182: 3016 | I182: 21
D183: Advance to a related party 42(b) | H183: -205610 | I183: 0
D184: Deposit paid for acquisition of prepaid lease payment
D185: (included in other long-term assets) | H185: -3020 | I185: 0
D186: Disposal of a subsidiary | H186: -149 | I186: 0
D187: Acquisition of subsidiaries | H187: 3 | I187: 0
D188: NET CASH USED IN INVESTING ACTIVITIES | H188: -261431 | I188: -194163
C189: FINANCING ACTIVITIES
D190: Repayments of bank borrowings | H190: -408627 | I190: -236669
D191: Interest paid | H191: -35159 | I191: -37903
D192: Repayments of obligations under fi nance leases | H192: -2230 | I192: -2052
D193: New bank borrowings raised | H193: 619671 | I193: 141906
D194: Proceeds from issue of | H194: 414001 | I194: 38549
D195: Redemption of preference shares 42(b) | H195: -395226 | I195: 0
D196: NET CASH (USED IN)/FROM FINANCING ACTIVITIES | H196: 192430 | I196: -96169
D197: NET (DECREASE)/INCREASE IN CASH AND
D198: CASH EQUIVALENTS | H198: 373098 | I198: -106437
D199: EFFECT OF FOREIGN EXCHANGE RATE CHANGES | H199: -4692 | I199: 2348
D200: CASH AND CASH EQUIVALENTS AT BEGINNING
D201: OF THE YEAR | H201: 59388 | I201: 427794
D202: CASH AND CASH EQUIVALENTS AT END OF THE
D203: represented by bank balances and cash | H203: 427794 | I203: 323705
C205: Cost of Goods Sold
D206: Wood | H206: 100353 | I206: 109537
D207: Pulp | H207: 80218 | I207: 111371
D208: Chemicals | H208: 74602 | I208: 59386
D209: Conversion | H209: 139301 | I209: 102762
D210: Labor | H210: 30822 | I210: 23112
D211: Depreciation | H211: 58205 | I211: 60366
H212: 483501 | I212: 466534

Sheet Assumptions
D1: ='Model Verification'!E11 -> Model OK
B2: SATERI HOLDINGS | E2: 2007 | F2: =E2+1 -> 2008 | G2: 2009 | H2: 2010 | I2: 2011 | J2: 2012 | K2: 2013 | L2: 2014 | M2: 2015 | N2: 2016 | O2: 2017 | P2: 2018 | Q2: 2019 | R2: 2020 | S2: 2021 | T2: 2022
B4: Final Historic Year | E4: 2011
B5: Valuation Year | E5: 2012
B6: Stable Year | E6: 2021
A8: Assumptions
B10: Production and Capacity
C11: Demand Growth
D12: Demand Scenario Number | E12: ='Master Scenario'!C23 -> 1
D14: Base Demand | F14: ='Historic Financials'!F22/'Historic Financials'!E22-1 -> 0.4746805516 | G14: ='Historic Financials'!G22/'Historic Financials'!F22-1 -> 0.5990306828 | H14: ='Historic Financials'!H22/'Historic Financials'!G22-1 -> 0.1806148109 | I14: ='Historic Financials'!I22/'Historic Financials'!H22-1 -> 0.08267573572 | J14: 0.07 | K14: 0.07 | L14: 0.065 | M14: 0.06 | N14: 0.06 | O14: 0.05 | P14: 0.05 | Q14: 0.05 | R14: 0.05 | S14: 0.05 | T14: 0.05
D15: Low Demand Growth | F15: =F14 -> 0.4746805516 | G15: 0.5990306828 | H15: 0.1806148109 | I15: 0.08267573572 | J15: 0.05 | K15: 0.02 | L15: 0.04 | M15: 0.03 | N15: 0.03 | O15: 0.03 | P15: 0.03 | Q15: 0.03 | R15: 0.03 | S15: 0.03 | T15: 0.03
D16: High Demand Growth | F16: 0.4746805516 | G16: 0.5990306828 | H16: 0.1806148109 | I16: 0.08267573572 | J16: 0.08 | K16: 0.08 | L16: 0.08 | M16: 0.08 | N16: 0.07 | O16: 0.07 | P16: 0.07 | Q16: 0.07 | R16: 0.07 | S16: 0.07 | T16: 0.07
D18: =INDEX(D14:D16,$E$12) -> Base Demand | F18: =INDEX(F14:F16,$E$12) -> 0.4746805516 | G18: 0.5990306828 | H18: 0.1806148109 | I18: 0.08267573572 | J18: 0.07 | K18: 0.07 | L18: 0.065 | M18: 0.06 | N18: 0.06 | O18: 0.05 | P18: 0.05 | Q18: 0.05 | R18: 0.05 | S18: 0.05 | T18: 0.05
C20: Existing Production Capacity | E20: ='Historic Financials'!E26 -> 175000 | F20: ='Historic Financials'!F26 -> 525000 | G20: ='Historic Financials'!G26 -> 525000 | H20: ='Historic Financials'!H26 -> 585000 | I20: ='Historic Financials'!I26 -> 625000
B22: Revenues
C23: Weighted Average Price per Ton
D24: Price Scenario Number | E24: ='Master Scenario'!E23 -> 1
D26: Base Price Case | E26: ='Historic Financials'!E27 -> 1.479256912 | F26: ='Historic Financials'!F27 -> 1.408860223 | G26: ='Historic Financials'!G27 -> 1.272304008 | H26: ='Historic Financials'!H27 -> 1.565087521 | I26: ='Historic Financials'!I27 -> 1.45442382 | J26: 1.45 | K26: 1.45 | L26: =K26*1.02 -> 1.479 | M26: 1.50858 | N26: 1.5387516 | O26: 1.569526632 | P26: 1.600917165 | Q26: 1.632935508 | R26: 1.665594218 | S26: 1.698906102 | T26: 1.732884225
D27: Low Price Case | E27: =E26 -> 1.479256912 | F27: 1.408860223 | G27: 1.272304008 | H27: 1.565087521 | I27: 1.45442382 | J27: =I27 -> 1.45442382 | K27: 1.4 | L27: 1.35 | M27: 1.3 | N27: =M27*1.01 -> 1.313 | O27: 1.32613 | P27: 1.3393913 | Q27: 1.352785213 | R27: 1.366313065 | S27: 1.379976196 | T27: 1.393775958
D28: Stress Case | E28: 1.479256912 | F28: 1.408860223 | G28: 1.272304008 | H28: 1.565087521 | I28: 1.45442382 | J28: =G28 -> 1.272304008 | K28: =J28*1.02 -> 1.297750088 | L28: 1.32370509 | M28: 1.350179192 | N28: 1.377182776 | O28: 1.404726431 | P28: 1.43282096 | Q28: 1.461477379 | R28: 1.490706926 | S28: 1.520521065 | T28: 1.550931486
D29: High Price Case | E29: =E27 -> 1.479256912 | F29: =F27 -> 1.408860223 | G29: =G27 -> 1.272304008 | H29: =H27 -> 1.565087521 | I29: =I27 -> 1.45442382 | J29: =I29*1.02 -> 1.483512296 | K29: =J29*1.02 -> 1.513182542 | L29: 1.543446193 | M29: 1.574315117 | N29: 1.605801419 | O29: 1.637917447 | P29: 1.670675796 | Q29: 1.704089312 | R29: 1.738171099 | S29: 1.772934521 | T29: 1.808393211
D31: =INDEX(D26:D29,$E$24) -> Base Price Case | E31: 1.479256912 | F31: 1.408860223 | G31: 1.272304008 | H31: 1.565087521 | I31: 1.45442382 | J31: 1.45 | K31: 1.45 | L31: 1.479 | M31: 1.50858 | N31: 1.5387516 | O31: 1.569526632 | P31: 1.600917165 | Q31: 1.632935508 | R31: 1.665594218 | S31: 1.698906102 | T31: 1.732884225
B33: Operating Costs
C34: CGS with Depreciation | E34: =-'Historic Financials'!E45 -> 165616 | F34: =-'Historic Financials'!F45 -> 303966 | G34: =-'Historic Financials'!G45 -> 341891 | H34: =-'Historic Financials'!H45 -> 466534 | I34: =-'Historic Financials'!I45 -> 483501
C35: Depreciation Expense | E35: ='Historic Financials'!E141+'Historic Financials'!E142 -> 23585 | F35: ='Historic Financials'!F141+'Historic Financials'!F142 -> 35843 | G35: ='Historic Financials'!G141+'Historic Financials'!G142 -> 71286 | H35: ='Historic Financials'!H141+'Historic Financials'!H142 -> 102162 | I35: ='Historic Financials'!I141+'Historic Financials'!I142 -> 107616
C36: CGS without Depreciation | E36: =E34-E35 -> 142031 | F36: =F34-F35 -> 268123 | G36: =G34-G35 -> 270605 | H36: =H34-H35 -> 364372 | I36: =I34-I35 -> 375885
C38: Total Production | E38: ='Historic Financials'!E22 -> 183989 | F38: ='Historic Financials'!F22 -> 271325 | G38: ='Historic Financials'!G22 -> 433857 | H38: ='Historic Financials'!H22 -> 512218 | I38: ='Historic Financials'!I22 -> 554566
C40: CGS per Ton
D41: CGS Scenario | E41: ='Master Scenario'!G23 -> 1
D43: Base CGS Cost | E43: =E36/E38 -> 0.7719537581 | F43: =F36/F38 -> 0.9881986547 | G43: =G36/G38 -> 0.6237193361 | H43: =H36/H38 -> 0.7113611782 | I43: =I36/I38 -> 0.6778002979 | J43: =I43*1.02 -> 0.6913563038 | K43: 0.7051834299 | L43: 0.7192870985 | M43: 0.7336728405 | N43: 0.7483462973 | O43: 0.7633132233 | P43: 0.7785794877 | Q43: 0.7941510775 | R43: 0.810034099 | S43: 0.826234781 | T43: 0.8427594766
D44: High CGS Cost | E44: =E43 -> 0.7719537581 | F44: 0.9881986547 | G44: 0.6237193361 | H44: 0.7113611782 | I44: 0.6778002979 | J44: =I44*1.03 -> 0.6981343068 | K44: =J44*1.03 -> 0.719078336 | L44: =K44*1.03 -> 0.7406506861 | M44: =L44*1.03 -> 0.7628702067 | N44: =M44*1.02 -> 0.7781276108 | O44: 0.793690163 | P44: 0.8095639663 | Q44: 0.8257552456 | R44: 0.8422703505 | S44: 0.8591157576 | T44: 0.8762980727
D45: Low CGS Cost | E45: 0.7719537581 | F45: 0.9881986547 | G45: 0.6237193361 | H45: 0.7113611782 | I45: 0.6778002979 | J45: =I45 -> 0.6778002979 | K45: =J45 -> 0.6778002979 | L45: =K45 -> 0.6778002979 | M45: =L45*1.02 -> 0.6913563038 | N45: 0.7051834299 | O45: 0.7192870985 | P45: 0.7336728405 | Q45: 0.7483462973 | R45: 0.7633132233 | S45: 0.7785794877 | T45: 0.7941510775
D47: =INDEX(D43:D45,$E$41) -> Base CGS Cost | E47: 0.7719537581 | F47: 0.9881986547 | G47: 0.6237193361 | H47: 0.7113611782 | I47: 0.6778002979 | J47: 0.6913563038 | K47: 0.7051834299 | L47: 0.7192870985 | M47: 0.7336728405 | N47: 0.7483462973 | O47: 0.7633132233 | P47: 0.7785794877 | Q47: 0.7941510775 | R47: 0.810034099 | S47: 0.826234781 | T47: 0.8427594766
C49: Selling and Distribuion per Ton | E49: =-'Historic Financials'!E47/E38 -> 0.07429248488 | F49: =-'Historic Financials'!F47/F38 -> 0.1049884824 | G49: =-'Historic Financials'!G47/G38 -> 0.1008996052 | H49: =-'Historic Financials'!H47/H38 -> 0.1132974632 | I49: =-'Historic Financials'!I47/I38 -> 0.09343522683 | J49: ='Master Scenario'!I23 -> 0.1025 | K49: =J49 -> 0.1025 | L49: 0.1025 | M49: 0.1025 | N49: 0.1025 | O49: 0.1025 | P49: 0.1025 | Q49: 0.1025 | R49: 0.1025 | S49: 0.1025 | T49: 0.1025
C51: Administrative Expense Growth | F51: =-'Historic Financials'!F48/-'Historic Financials'!E48-1 -> 0.02904305668 | G51: =-'Historic Financials'!G48/-'Historic Financials'!F48-1 -> -0.07547169811 | H51: =-'Historic Financials'!H48/-'Historic Financials'!G48-1 -> 0.7706083623 | I51: =-'Historic Financials'!I48/-'Historic Financials'!H48-1 -> 0.1800863428 | J51: =J18 -> 0.07 | K51: 0.07 | L51: 0.065 | M51: 0.06 | N51: 0.06 | O51: 0.05 | P51: 0.05 | Q51: 0.05 | R51: 0.05 | S51: 0.05 | T51: 0.05
B53: Capital Expenditures
C54: Capital Expenditure per Ton of New Capacity | F54: ='Historic Financials'!F32 -> 2.270508571 | G54: ='Historic Financials'!G32 -> 0 | H54: ='Historic Financials'!H32 -> 3.043216667 | I54: ='Historic Financials'!I32 -> 3.42025 | J54: ='Master Scenario'!J23 -> 2.5 | K54: =J54*1.02 -> 2.55 | L54: 2.601 | M54: 2.65302 | N54: 2.7060804 | O54: 2.760202008 | P54: 2.815406048 | Q54: 2.871714169 | R54: 2.929148453 | S54: 2.987731422 | T54: 3.04748605
C56: Forestery Expenditures per ton of Production | E56: =IF('Sateri Model'!E3,'Historic Financials'!E35,D56*1.03) -> 0.2149150221 | F56: =IF('Sateri Model'!F3,'Historic Financials'!F35,E56*1.03) -> 0.1527761909 | G56: =IF('Sateri Model'!G3,'Historic Financials'!G35,F56*1.03) -> 0.05634114466 | H56: =IF('Sateri Model'!H3,'Historic Financials'!H35,G56*1.03) -> 0.07395483954 | I56: =IF('Sateri Model'!I3,'Historic Financials'!I35,H56*1.03) -> 0.07502803994 | J56: =IF('Sateri Model'!J3,'Historic Financials'!J35,I56*1.03) -> 0.07727888114 | K56: =IF('Sateri Model'!K3,'Historic Financials'!K35,J56*1.03) -> 0.07959724758 | L56: =IF('Sateri Model'!L3,'Historic Financials'!L35,K56*1.03) -> 0.081985165 | M56: =IF('Sateri Model'!M3,'Historic Financials'!M35,L56*1.03) -> 0.08444471995 | N56: =IF('Sateri Model'!N3,'Historic Financials'!N35,M56*1.03) -> 0.08697806155 | O56: =IF('Sateri Model'!O3,'Historic Financials'!O35,N56*1.03) -> 0.0895874034 | P56: =IF('Sateri Model'!P3,'Historic Financials'!P35,O56*1.03) -> 0.0922750255 | Q56: =IF('Sateri Model'!Q3,'Historic Financials'!Q35,P56*1.03) -> 0.09504327627 | R56: =IF('Sateri Model'!R3,'Historic Financials'!R35,Q56*1.03) -> 0.09789457456 | S56: =IF('Sateri Model'!S3,'Historic Financials'!S35,R56*1.03) -> 0.1008314118 | T56: =IF('Sateri Model'!T3,'Historic Financials'!T35,S56*1.03) -> 0.1038563541
B58: Working Capital Ratios
C59: Inventories to CGS | E59: =IF('Sateri Model'!E3,'Historic Financials'!E98/E36,D59) -> 0.2987657624 | F59: =IF('Sateri Model'!F3,'Historic Financials'!F98/F36,E59) -> 0.2571021509 | G59: =IF('Sateri Model'!G3,'Historic Financials'!G98/G36,F59) -> 0.1965115205 | H59: =IF('Sateri Model'!H3,'Historic Financials'!H98/H36,G59) -> 0.2432568913 | I59: =IF('Sateri Model'!I3,'Historic Financials'!I98/I36,H59) -> 0.4804394961 | J59: ='Master Scenario'!K23 -> 0.48 | K59: =IF('Sateri Model'!K3,'Historic Financials'!K98/K36,J59) -> 0.48 | L59: =IF('Sateri Model'!L3,'Historic Financials'!L98/L36,K59) -> 0.48 | M59: =IF('Sateri Model'!M3,'Historic Financials'!M98/M36,L59) -> 0.48 | N59: =IF('Sateri Model'!N3,'Historic Financials'!N98/N36,M59) -> 0.48 | O59: =IF('Sateri Model'!O3,'Historic Financials'!O98/O36,N59) -> 0.48 | P59: =IF('Sateri Model'!P3,'Historic Financials'!P98/P36,O59) -> 0.48 | Q59: =IF('Sateri Model'!Q3,'Historic Financials'!Q98/Q36,P59) -> 0.48 | R59: =IF('Sateri Model'!R3,'Historic Financials'!R98/R36,Q59) -> 0.48 | S59: =IF('Sateri Model'!S3,'Historic Financials'!S98/S36,R59) -> 0.48 | T59: =IF('Sateri Model'!T3,'Historic Financials'!T98/T36,S59) -> 0.48
C60: Accounts Receivable to Revenues | E60: =IF('Sateri Model'!E3,('Historic Financials'!E99+'Historic Financials'!E100)/'Historic Financials'!E44,D60) -> 1.155801401 | F60: =IF('Sateri Model'!F3,('Historic Financials'!F99+'Historic Financials'!F100)/'Historic Financials'!F44,E60) -> 0.8105054426 | G60: =IF('Sateri Model'!G3,('Historic Financials'!G99+'Historic Financials'!G100)/'Historic Financials'!G44,F60) -> 0.4341193265 | H60: =IF('Sateri Model'!H3,('Historic Financials'!H99+'Historic Financials'!H100)/'Historic Financials'!H44,G60) -> 0.160505688 | I60: =IF('Sateri Model'!I3,('Historic Financials'!I99+'Historic Financials'!I100)/'Historic Financials'!I44,H60) -> 0.2000448812 | J60: ='Master Scenario'!L23 -> 0.2 | K60: =IF('Sateri Model'!K3,('Historic Financials'!K99+'Historic Financials'!K100)/'Historic Financials'!K44,J60) -> 0.2 | L60: =IF('Sateri Model'!L3,('Historic Financials'!L99+'Historic Financials'!L100)/'Historic Financials'!L44,K60) -> 0.2 | M60: =IF('Sateri Model'!M3,('Historic Financials'!M99+'Historic Financials'!M100)/'Historic Financials'!M44,L60) -> 0.2 | N60: =IF('Sateri Model'!N3,('Historic Financials'!N99+'Historic Financials'!N100)/'Historic Financials'!N44,M60) -> 0.2 | O60: =IF('Sateri Model'!O3,('Historic Financials'!O99+'Historic Financials'!O100)/'Historic Financials'!O44,N60) -> 0.2 | P60: =IF('Sateri Model'!P3,('Historic Financials'!P99+'Historic Financials'!P100)/'Historic Financials'!P44,O60) -> 0.2 | Q60: =IF('Sateri Model'!Q3,('Historic Financials'!Q99+'Historic Financials'!Q100)/'Historic Financials'!Q44,P60) -> 0.2 | R60: =IF('Sateri Model'!R3,('Historic Financials'!R99+'Historic Financials'!R100)/'Historic Financials'!R44,Q60) -> 0.2 | S60: =IF('Sateri Model'!S3,('Historic Financials'!S99+'Historic Financials'!S100)/'Historic Financials'!S44,R60) -> 0.2 | T60: =IF('Sateri Model'!T3,('Historic Financials'!T99+'Historic Financials'!T100)/'Historic Financials'!T44,S60) -> 0.2
C61: Accounts Payable to CGS | E61: =IF('Sateri Model'!E3,'Historic Financials'!E110/E36,D61) -> 0.9316416839 | F61: =IF('Sateri Model'!F3,'Historic Financials'!F110/F36,E61) -> 0.4736557475 | G61: =IF('Sateri Model'!G3,'Historic Financials'!G110/G36,F61) -> 0.2857079507 | H61: =IF('Sateri Model'!H3,'Historic Financials'!H110/H36,G61) -> 0.4285071301 | I61: =IF('Sateri Model'!I3,'Historic Financials'!I110/I36,H61) -> 0.3633398513 | J61: =IF('Sateri Model'!J3,'Historic Financials'!J110/J36,I61) -> 0.3633398513 | K61: =IF('Sateri Model'!K3,'Historic Financials'!K110/K36,J61) -> 0.3633398513 | L61: =IF('Sateri Model'!L3,'Historic Financials'!L110/L36,K61) -> 0.3633398513 | M61: =IF('Sateri Model'!M3,'Historic Financials'!M110/M36,L61) -> 0.3633398513 | N61: =IF('Sateri Model'!N3,'Historic Financials'!N110/N36,M61) -> 0.3633398513 | O61: =IF('Sateri Model'!O3,'Historic Financials'!O110/O36,N61) -> 0.3633398513 | P61: =IF('Sateri Model'!P3,'Historic Financials'!P110/P36,O61) -> 0.3633398513 | Q61: =IF('Sateri Model'!Q3,'Historic Financials'!Q110/Q36,P61) -> 0.3633398513 | R61: =IF('Sateri Model'!R3,'Historic Financials'!R110/R36,Q61) -> 0.3633398513 | S61: =IF('Sateri Model'!S3,'Historic Financials'!S110/S36,R61) -> 0.3633398513 | T61: =IF('Sateri Model'!T3,'Historic Financials'!T110/T36,S61) -> 0.3633398513
C62: Other Current Liabilities | E62: =IF('Sateri Model'!E3,'Historic Financials'!E111+'Historic Financials'!E113,D62) -> 33458 | F62: =IF('Sateri Model'!F3,'Historic Financials'!F111+'Historic Financials'!F113,E62) -> 109046 | G62: =IF('Sateri Model'!G3,'Historic Financials'!G111+'Historic Financials'!G113,F62) -> 176987 | H62: =IF('Sateri Model'!H3,'Historic Financials'!H111+'Historic Financials'!H113,G62) -> 67876 | I62: =IF('Sateri Model'!I3,'Historic Financials'!I111+'Historic Financials'!I113,H62) -> 39198 | J62: =IF('Sateri Model'!J3,'Historic Financials'!J111+'Historic Financials'!J113,I62) -> 39198 | K62: =IF('Sateri Model'!K3,'Historic Financials'!K111+'Historic Financials'!K113,J62) -> 39198 | L62: =IF('Sateri Model'!L3,'Historic Financials'!L111+'Historic Financials'!L113,K62) -> 39198 | M62: =IF('Sateri Model'!M3,'Historic Financials'!M111+'Historic Financials'!M113,L62) -> 39198 | N62: =IF('Sateri Model'!N3,'Historic Financials'!N111+'Historic Financials'!N113,M62) -> 39198 | O62: =IF('Sateri Model'!O3,'Historic Financials'!O111+'Historic Financials'!O113,N62) -> 39198 | P62: =IF('Sateri Model'!P3,'Historic Financials'!P111+'Historic Financials'!P113,O62) -> 39198 | Q62: =IF('Sateri Model'!Q3,'Historic Financials'!Q111+'Historic Financials'!Q113,P62) -> 39198 | R62: =IF('Sateri Model'!R3,'Historic Financials'!R111+'Historic Financials'!R113,Q62) -> 39198 | S62: =IF('Sateri Model'!S3,'Historic Financials'!S111+'Historic Financials'!S113,R62) -> 39198 | T62: =IF('Sateri Model'!T3,'Historic Financials'!T111+'Historic Financials'!T113,S62) -> 39198
B64: Depreciation and Depletion Assumptions
C65: Deprecaition Rate on Net Plant for Existing Asset | E65: =IF('Sateri Model'!E3,'Historic Financials'!E141/'Historic Financials'!E88,D65) -> 0.0156739453 | F65: =IF('Sateri Model'!F3,'Historic Financials'!F141/'Historic Financials'!F88,E65) -> 0.02110547407 | G65: =IF('Sateri Model'!G3,'Historic Financials'!G141/'Historic Financials'!G88,F65) -> 0.04558532272 | H65: =IF('Sateri Model'!H3,'Historic Financials'!H141/'Historic Financials'!H88,G65) -> 0.04774180497 | I65: =IF('Sateri Model'!I3,'Historic Financials'!I141/'Historic Financials'!I88,H65) -> 0.04805194627 | J65: =IF('Sateri Model'!J3,'Historic Financials'!J141/'Historic Financials'!J88,I65) -> 0.04805194627 | K65: =IF('Sateri Model'!K3,'Historic Financials'!K141/'Historic Financials'!K88,J65) -> 0.04805194627 | L65: =IF('Sateri Model'!L3,'Historic Financials'!L141/'Historic Financials'!L88,K65) -> 0.04805194627 | M65: =IF('Sateri Model'!M3,'Historic Financials'!M141/'Historic Financials'!M88,L65) -> 0.04805194627 | N65: =IF('Sateri Model'!N3,'Historic Financials'!N141/'Historic Financials'!N88,M65) -> 0.04805194627 | O65: =IF('Sateri Model'!O3,'Historic Financials'!O141/'Historic Financials'!O88,N65) -> 0.04805194627 | P65: =IF('Sateri Model'!P3,'Historic Financials'!P141/'Historic Financials'!P88,O65) -> 0.04805194627 | Q65: =IF('Sateri Model'!Q3,'Historic Financials'!Q141/'Historic Financials'!Q88,P65) -> 0.04805194627 | R65: =IF('Sateri Model'!R3,'Historic Financials'!R141/'Historic Financials'!R88,Q65) -> 0.04805194627 | S65: =IF('Sateri Model'!S3,'Historic Financials'!S141/'Historic Financials'!S88,R65) -> 0.04805194627 | T65: =IF('Sateri Model'!T3,'Historic Financials'!T141/'Historic Financials'!T88,S65) -> 0.04805194627
C66: Depreciation Life | E66: 18 | F66: 18 | G66: 18 | H66: 18 | I66: 18 | J66: 18 | K66: 18 | L66: 18 | M66: 18 | N66: 18 | O66: 18 | P66: 18 | Q66: 18 | R66: 18 | S66: 18 | T66: 18
C67: Depreciation Rate on New Plant | E67: =1/E66 -> 0.05555555556 | F67: 0.05555555556 | G67: 0.05555555556 | H67: 0.05555555556 | I67: 0.05555555556 | J67: 0.05555555556 | K67: 0.05555555556 | L67: 0.05555555556 | M67: 0.05555555556 | N67: 0.05555555556 | O67: 0.05555555556 | P67: 0.05555555556 | Q67: 0.05555555556 | R67: 0.05555555556 | S67: 0.05555555556 | T67: 0.05555555556
C69: Depletion Rate on Existing Forestry | E69: =IF('Sateri Model'!E3,'Historic Financials'!E142/'Historic Financials'!E87,D69) -> 0.06854614751 | F69: =IF('Sateri Model'!F3,'Historic Financials'!F142/'Historic Financials'!F87,E69) -> 0.0529362513 | G69: =IF('Sateri Model'!G3,'Historic Financials'!G142/'Historic Financials'!G87,F69) -> 0.048077843 | H69: =IF('Sateri Model'!H3,'Historic Financials'!H142/'Historic Financials'!H87,G69) -> 0.1877497502 | I69: =IF('Sateri Model'!I3,'Historic Financials'!I142/'Historic Financials'!I87,H69) -> 0.2005037354 | J69: =IF('Sateri Model'!J3,'Historic Financials'!J142/'Historic Financials'!J87,I69) -> 0.2005037354 | K69: =IF('Sateri Model'!K3,'Historic Financials'!K142/'Historic Financials'!K87,J69) -> 0.2005037354 | L69: =IF('Sateri Model'!L3,'Historic Financials'!L142/'Historic Financials'!L87,K69) -> 0.2005037354 | M69: =IF('Sateri Model'!M3,'Historic Financials'!M142/'Historic Financials'!M87,L69) -> 0.2005037354 | N69: =IF('Sateri Model'!N3,'Historic Financials'!N142/'Historic Financials'!N87,M69) -> 0.2005037354 | O69: =IF('Sateri Model'!O3,'Historic Financials'!O142/'Historic Financials'!O87,N69) -> 0.2005037354 | P69: =IF('Sateri Model'!P3,'Historic Financials'!P142/'Historic Financials'!P87,O69) -> 0.2005037354 | Q69: =IF('Sateri Model'!Q3,'Historic Financials'!Q142/'Historic Financials'!Q87,P69) -> 0.2005037354 | R69: =IF('Sateri Model'!R3,'Historic Financials'!R142/'Historic Financials'!R87,Q69) -> 0.2005037354 | S69: =IF('Sateri Model'!S3,'Historic Financials'!S142/'Historic Financials'!S87,R69) -> 0.2005037354 | T69: =IF('Sateri Model'!T3,'Historic Financials'!T142/'Historic Financials'!T87,S69) -> 0.2005037354
C70: Lifetime of New Forestery | E70: 7 | F70: 7 | G70: 7 | H70: 7 | I70: 7 | J70: 7 | K70: 7 | L70: 7 | M70: 7 | N70: 7 | O70: 7 | P70: 7 | Q70: 7 | R70: 7 | S70: 7 | T70: 7
C71: Depletion Rate on New Forestry Expenditures | E71: =1/E70 -> 0.1428571429 | F71: 0.1428571429 | G71: 0.1428571429 | H71: 0.1428571429 | I71: 0.1428571429 | J71: 0.1428571429 | K71: 0.1428571429 | L71: 0.1428571429 | M71: 0.1428571429 | N71: 0.1428571429 | O71: 0.1428571429 | P71: 0.1428571429 | Q71: 0.1428571429 | R71: 0.1428571429 | S71: 0.1428571429 | T71: 0.1428571429
C73: Income Tax Rate | E73: =IF('Sateri Model'!E3,-'Historic Financials'!E64/'Historic Financials'!E63) -> 0.03904218971 | F73: =IF('Sateri Model'!F3,-'Historic Financials'!F64/'Historic Financials'!F63) -> 0.2111231552 | G73: =IF('Sateri Model'!G3,-'Historic Financials'!G64/'Historic Financials'!G63) -> -0.02888501542 | H73: =IF('Sateri Model'!H3,-'Historic Financials'!H64/'Historic Financials'!H63) -> 0.0126157902 | I73: =IF('Sateri Model'!I3,-'Historic Financials'!I64/'Historic Financials'!I63) -> -0.04640250261 | J73: =J74 -> 0.1 | K73: 0.1 | L73: 0.1 | M73: 0.1 | N73: 0.1 | O73: 0.1 | P73: 0.1 | Q73: 0.1 | R73: 0.1 | S73: 0.1 | T73: 0.1
C74: Overall Tax Rate | E74: 0.1 | F74: 0.1 | G74: 0.1 | H74: 0.1 | I74: 0.1 | J74: 0.1 | K74: 0.1 | L74: 0.1 | M74: 0.1 | N74: 0.1 | O74: 0.1 | P74: 0.1 | Q74: 0.1 | R74: 0.1 | S74: 0.1 | T74: 0.1
B76: Financing Assumptions
C78: Interest Rate on New Debt | E78: 0.0525 | F78: 0.0525 | G78: 0.0525 | H78: 0.0525 | I78: 0.0525 | J78: 0.0525 | K78: 0.0525 | L78: 0.0525 | M78: 0.0525 | N78: 0.0525 | O78: 0.0525 | P78: 0.0525 | Q78: 0.0525 | R78: 0.0525 | S78: 0.0525 | T78: 0.0525
C79: Interest Income Rate | E79: 0.005 | F79: 0.005 | G79: 0.005 | H79: 0.005 | I79: 0.005 | J79: 0.005 | K79: 0.005 | L79: 0.005 | M79: 0.005 | N79: 0.005 | O79: 0.005 | P79: 0.005 | Q79: 0.005 | R79: 0.005 | S79: 0.005 | T79: 0.005
C81: Exiting Long-term Debt Interest Rate | E81: 0.05 | F81: 0.05 | G81: 0.05 | H81: 0.05 | I81: 0.05 | J81: 0.05 | K81: 0.05 | L81: 0.05 | M81: 0.05 | N81: 0.05 | O81: 0.05 | P81: 0.05 | Q81: 0.05 | R81: 0.05 | S81: 0.05 | T81: 0.05
C82: Repayment of Exiting Debt | J82: 0.25 | K82: 0.25 | L82: 0.25 | M82: 0.25
C84: Dividend Payout Ratio | J84: 0.05 | K84: 0.05 | L84: 0.05 | M84: 0.05 | N84: 0.05 | O84: 0.05 | P84: 0.05 | Q84: 0.05 | R84: 0.05 | S84: 0.05 | T84: 0.05
C86: Target Debt to Capital Ratio | J86: 0.3 | K86: 0.3 | L86: 0.3 | M86: 0.3 | N86: 0.3 | O86: 0.3 | P86: 0.3 | Q86: 0.3 | R86: 0.3 | S86: 0.3 | T86: 0.3
B89: Valuation Assumptions
C90: Unlevered Beta | E90: ='Master Scenario'!M23 -> 0.5
C91: Target Debt to Capital Ratio | E91: 0.45
C92: Levered Beta | E92: =E90*(1/(1-E91)) -> 0.9090909091
C94: EMRP | E94: 0.06
C95: Risk Free Rate | E95: 0.04
C97: Cost of Equity | E97: =E95+E94*E92 -> 0.09454545455
C99: Credit Spread | E99: 0.02
C100: Cost of Debt | E100: =E95+E99 -> 0.06
C102: WACC | E102: =E91*E100*(1-E74)+(1-E91)*E97 -> 0.0763
C104: Terminal Growth Rate | E104: ='Master Scenario'!N23 -> 0.02
C106: ROIC/WACC Spread | E106: 0.01
C108: Stable ROIC | E108: =E102+E106 -> 0.0863
C110: Theoretical EV/EBITDA | E110: ='Long-term Analysis'!G123 -> 6.781030623
C112: Stable Ratio of Cap Exp to Depreciation | E112: ='Long-term Analysis'!D74 -> 1.308756526
C114: Stable Ratio of WC Changes to EBITDA | E114: ='Long-term Analysis'!E170 -> 0.01564989204
C116: Stable Ratio of Deferred Taxes to Capital Expenditures

Sheet Sateri Model
D1: ='Model Verification'!E11 -> Model OK
B2: SATERI HOLDINGS | E2: 2007 | F2: =E2+1 -> 2008 | G2: 2009 | H2: 2010 | I2: 2011 | J2: 2012 | K2: 2013 | L2: =K2+1 -> 2014 | M2: 2015 | N2: 2016 | O2: 2017 | P2: 2018 | Q2: 2019 | R2: 2020 | S2: 2021 | T2: 2022
B3: Historic Period Switch | E3: =E2<=Assumptions!$E$4 -> TRUE | F3: =F2<=Assumptions!$E$4 -> TRUE | G3: =G2<=Assumptions!$E$4 -> TRUE | H3: =H2<=Assumptions!$E$4 -> TRUE | I3: =I2<=Assumptions!$E$4 -> TRUE | J3: =J2<=Assumptions!$E$4 -> FALSE | K3: =K2<=Assumptions!$E$4 -> FALSE | L3: =L2<=Assumptions!$E$4 -> FALSE | M3: =M2<=Assumptions!$E$4 -> FALSE | N3: =N2<=Assumptions!$E$4 -> FALSE | O3: =O2<=Assumptions!$E$4 -> FALSE | P3: =P2<=Assumptions!$E$4 -> FALSE | Q3: =Q2<=Assumptions!$E$4 -> FALSE | R3: =R2<=Assumptions!$E$4 -> FALSE | S3: =S2<=Assumptions!$E$4 -> FALSE | T3: =T2<=Assumptions!$E$4 -> FALSE
A5: Operating Analysis
B6: Demand Growth
C7: Demand Growth | F7: =Assumptions!F18 -> 0.4746805516 | G7: =Assumptions!G18 -> 0.5990306828 | H7: =Assumptions!H18 -> 0.1806148109 | I7: =Assumptions!I18 -> 0.08267573572 | J7: =Assumptions!J18 -> 0.07 | K7: =Assumptions!K18 -> 0.07 | L7: =Assumptions!L18 -> 0.065 | M7: =Assumptions!M18 -> 0.06 | N7: =Assumptions!N18 -> 0.06 | O7: =Assumptions!O18 -> 0.05 | P7: =Assumptions!P18 -> 0.05 | Q7: =Assumptions!Q18 -> 0.05 | R7: =Assumptions!R18 -> 0.05 | S7: =Assumptions!S18 -> 0.05 | T7: =Assumptions!T18 -> 0.05
C8: Total Sales in Tons | E8: ='Historic Financials'!E22 -> 183989 | F8: =E8*(1+F7) -> 271325 | G8: =F8*(1+G7) -> 433857 | H8: 512218 | I8: 554566 | J8: 593385.62 | K8: 634922.6134 | L8: 676192.5833 | M8: 716764.1383 | N8: 759769.9866 | O8: 797758.4859 | P8: 837646.4102 | Q8: 879528.7307 | R8: 923505.1672 | S8: 969680.4256 | T8: 1018164.447
B10: Demand Minus Opening Capacity | F10: =F8-F13 -> 96325 | G10: =G8-G13 -> -91143 | H10: -12782 | I10: -30434 | J10: -31614.38 | K10: 9922.6134 | L10: 41192.58327 | M10: 39764.13827 | N10: 42769.98656 | O10: 37758.48589 | P10: 39646.41019 | Q10: 41528.7307 | R10: 43505.16723 | S10: 45680.42559 | T10: 48164.44687
B12: Capacity
C13: Opening Balance | F13: =E15 -> 175000 | G13: =F15 -> 525000 | H13: 525000 | I13: 585000 | J13: 625000 | K13: 625000 | L13: 635000 | M13: 677000 | N13: 717000 | O13: 760000 | P13: 798000 | Q13: 838000 | R13: 880000 | S13: 924000 | T13: 970000
C14: Add: New Capacity Required to Meet Demand | F14: =IF(F3,F15-F13,ROUNDUP(MAX(F10,0),-3)) -> 350000 | G14: 0 | H14: 60000 | I14: 40000 | J14: 0 | K14: 10000 | L14: 42000 | M14: 40000 | N14: 43000 | O14: 38000 | P14: 40000 | Q14: 42000 | R14: 44000 | S14: 46000 | T14: 49000
C15: Closing Balance | E15: =IF(E3,'Historic Financials'!E26,E13+E14) -> 175000 | F15: =IF(F3,'Historic Financials'!F26,F13+F14) -> 525000 | G15: =IF(G3,'Historic Financials'!G26,G13+G14) -> 525000 | H15: =IF(H3,'Historic Financials'!H26,H13+H14) -> 585000 | I15: =IF(I3,'Historic Financials'!I26,I13+I14) -> 625000 | J15: =IF(J3,'Historic Financials'!J26,J13+J14) -> 625000 | K15: =IF(K3,'Historic Financials'!K26,K13+K14) -> 635000 | L15: =IF(L3,'Historic Financials'!L26,L13+L14) -> 677000 | M15: =IF(M3,'Historic Financials'!M26,M13+M14) -> 717000 | N15: =IF(N3,'Historic Financials'!N26,N13+N14) -> 760000 | O15: =IF(O3,'Historic Financials'!O26,O13+O14) -> 798000 | P15: =IF(P3,'Historic Financials'!P26,P13+P14) -> 838000 | Q15: =IF(Q3,'Historic Financials'!Q26,Q13+Q14) -> 880000 | R15: =IF(R3,'Historic Financials'!R26,R13+R14) -> 924000 | S15: =IF(S3,'Historic Financials'!S26,S13+S14) -> 970000 | T15: =IF(T3,'Historic Financials'!T26,T13+T14) -> 1019000
B17: Revenues
C18: Price | E18: =Assumptions!E31 -> 1.479256912 | F18: =Assumptions!F31 -> 1.408860223 | G18: =Assumptions!G31 -> 1.272304008 | H18: =Assumptions!H31 -> 1.565087521 | I18: =Assumptions!I31 -> 1.45442382 | J18: =Assumptions!J31 -> 1.45 | K18: =Assumptions!K31 -> 1.45 | L18: =Assumptions!L31 -> 1.479 | M18: =Assumptions!M31 -> 1.50858 | N18: =Assumptions!N31 -> 1.5387516 | O18: =Assumptions!O31 -> 1.569526632 | P18: =Assumptions!P31 -> 1.600917165 | Q18: =Assumptions!Q31 -> 1.632935508 | R18: =Assumptions!R31 -> 1.665594218 | S18: =Assumptions!S31 -> 1.698906102 | T18: =Assumptions!T31 -> 1.732884225
C19: Production | E19: =E8 -> 183989 | F19: =F8 -> 271325 | G19: 433857 | H19: 512218 | I19: 554566 | J19: 593385.62 | K19: 634922.6134 | L19: 676192.5833 | M19: 716764.1383 | N19: 759769.9866 | O19: 797758.4859 | P19: 837646.4102 | Q19: 879528.7307 | R19: 923505.1672 | S19: 969680.4256 | T19: 1018164.447
C20: Revenues | E20: =E18*E19 -> 272167 | F20: =F18*F19 -> 382259 | G20: 551998 | H20: 801666 | I20: 806574 | J20: 860409.149 | K20: 920637.7894 | L20: 1000088.831 | M20: 1081296.044 | N20: 1169097.282 | O20: 1252103.19 | P20: 1341002.516 | Q20: 1436213.695 | R20: 1538184.867 | S20: 1647395.992 | T20: 1764361.108
C21: Plus: Other Revenues | E21: ='Historic Financials'!E28 -> 0 | F21: ='Historic Financials'!F28 -> 0 | G21: ='Historic Financials'!G28 -> 0 | H21: ='Historic Financials'!H28 -> 121591 | I21: ='Historic Financials'!I28 -> 0 | J21: ='Historic Financials'!J28 -> 0 | K21: ='Historic Financials'!K28 -> 0 | L21: ='Historic Financials'!L28 -> 0 | M21: ='Historic Financials'!M28 -> 0 | N21: ='Historic Financials'!N28 -> 0 | O21: ='Historic Financials'!O28 -> 0 | P21: ='Historic Financials'!P28 -> 0 | Q21: ='Historic Financials'!Q28 -> 0 | R21: ='Historic Financials'!R28 -> 0 | S21: ='Historic Financials'!S28 -> 0 | T21: ='Historic Financials'!T28 -> 0
C22: Total Revenue | E22: =E20+E21 -> 272167 | F22: =F20+F21 -> 382259 | G22: 551998 | H22: 923257 | I22: 806574 | J22: 860409.149 | K22: 920637.7894 | L22: 1000088.831 | M22: 1081296.044 | N22: 1169097.282 | O22: 1252103.19 | P22: 1341002.516 | Q22: 1436213.695 | R22: 1538184.867 | S22: 1647395.992 | T22: 1764361.108
C24: Cost of Goods Sold/Ton | E24: =Assumptions!E47 -> 0.7719537581 | F24: =Assumptions!F47 -> 0.9881986547 | G24: =Assumptions!G47 -> 0.6237193361 | H24: =Assumptions!H47 -> 0.7113611782 | I24: =Assumptions!I47 -> 0.6778002979 | J24: =Assumptions!J47 -> 0.6913563038 | K24: =Assumptions!K47 -> 0.7051834299 | L24: =Assumptions!L47 -> 0.7192870985 | M24: =Assumptions!M47 -> 0.7336728405 | N24: =Assumptions!N47 -> 0.7483462973 | O24: =Assumptions!O47 -> 0.7633132233 | P24: =Assumptions!P47 -> 0.7785794877 | Q24: =Assumptions!Q47 -> 0.7941510775 | R24: =Assumptions!R47 -> 0.810034099 | S24: =Assumptions!S47 -> 0.826234781 | T24: =Assumptions!T47 -> 0.8427594766
C25: Production | E25: =E19 -> 183989 | F25: =F19 -> 271325 | G25: 433857 | H25: 512218 | I25: 554566 | J25: 593385.62 | K25: 634922.6134 | L25: 676192.5833 | M25: 716764.1383 | N25: 759769.9866 | O25: 797758.4859 | P25: 837646.4102 | Q25: 879528.7307 | R25: 923505.1672 | S25: 969680.4256 | T25: 1018164.447
C26: Cost of Goods Sold | E26: =E24*E25 -> 142031 | F26: =F24*F25 -> 268123 | G26: 270605 | H26: 364372 | I26: 375885 | J26: 410240.889 | K26: 447736.9063 | L26: 486376.6013 | M26: 525870.3813 | N26: 568571.0562 | O26: 608939.6012 | P26: 652174.3129 | Q26: 698478.6891 | R26: 748070.6761 | S26: 801183.6941 | T26: 858067.7364
C28: Selling and Distbution Cost per Ton | E28: =Assumptions!E49 -> 0.07429248488 | F28: =Assumptions!F49 -> 0.1049884824 | G28: =Assumptions!G49 -> 0.1008996052 | H28: =Assumptions!H49 -> 0.1132974632 | I28: =Assumptions!I49 -> 0.09343522683 | J28: =Assumptions!J49 -> 0.1025 | K28: =Assumptions!K49 -> 0.1025 | L28: =Assumptions!L49 -> 0.1025 | M28: =Assumptions!M49 -> 0.1025 | N28: =Assumptions!N49 -> 0.1025 | O28: =Assumptions!O49 -> 0.1025 | P28: =Assumptions!P49 -> 0.1025 | Q28: =Assumptions!Q49 -> 0.1025 | R28: =Assumptions!R49 -> 0.1025 | S28: =Assumptions!S49 -> 0.1025 | T28: =Assumptions!T49 -> 0.1025
C29: Total Selling and Distribution Cost | E29: =E28*E25 -> 13669 | F29: =F28*F25 -> 28486 | G29: 43776 | H29: 58033 | I29: 51816 | J29: 60822.02605 | K29: 65079.56787 | L29: 69309.73979 | M29: 73468.32417 | N29: 77876.42362 | O29: 81770.2448 | P29: 85858.75704 | Q29: 90151.6949 | R29: 94659.27964 | S29: 99392.24362 | T29: 104361.8558
C31: Administrative Cost Growth | E31: =Assumptions!E51 -> 0 | F31: =Assumptions!F51 -> 0.02904305668 | G31: =Assumptions!G51 -> -0.07547169811 | H31: =Assumptions!H51 -> 0.7706083623 | I31: =Assumptions!I51 -> 0.1800863428 | J31: =Assumptions!J51 -> 0.07 | K31: =Assumptions!K51 -> 0.07 | L31: =Assumptions!L51 -> 0.065 | M31: =Assumptions!M51 -> 0.06 | N31: =Assumptions!N51 -> 0.06 | O31: =Assumptions!O51 -> 0.05 | P31: =Assumptions!P51 -> 0.05 | Q31: =Assumptions!Q51 -> 0.05 | R31: =Assumptions!R51 -> 0.05 | S31: =Assumptions!S51 -> 0.05 | T31: =Assumptions!T51 -> 0.05
C32: Total Administrative Cost | E32: =-'Historic Financials'!E48 -> 43315 | F32: =E32*(1+F31) -> 44573 | G32: =F32*(1+G31) -> 41209 | H32: 72965 | I32: 86105 | J32: 92132.35 | K32: 98581.6145 | L32: 104989.4194 | M32: 111288.7846 | N32: 117966.1117 | O32: 123864.4173 | P32: 130057.6381 | Q32: 136560.52 | R32: 143388.546 | S32: 150557.9733 | T32: 158085.872
C34: Total Operating Expenses | E34: =E26+E29+E32 -> 199015 | F34: =F26+F29+F32 -> 341182 | G34: 355590 | H34: 495370 | I34: 513806 | J34: 563195.265 | K34: 611398.0886 | L34: 660675.7605 | M34: 710627.4901 | N34: 764413.5916 | O34: 814574.2633 | P34: 868090.7081 | Q34: 925190.9041 | R34: 986118.5018 | S34: 1051133.911 | T34: 1120515.464
C36: EBITDA | E36: =E22-E34 -> 73152 | F36: =F22-F34 -> 41077 | G36: 196408 | H36: 427887 | I36: 292768 | J36: 297213.884 | K36: 309239.7008 | L36: 339413.0702 | M36: 370668.5536 | N36: 404683.6909 | O36: 437528.9262 | P36: 472911.8079 | Q36: 511022.7905 | R36: 552066.3652 | S36: 596262.0814 | T36: 643845.6438
B38: Expenditures for New Capacity
C39: Capital Expenditures per Ton of New Capacity | E39: =Assumptions!E54 -> 0 | F39: =Assumptions!F54 -> 2.270508571 | G39: =Assumptions!G54 -> 0 | H39: =Assumptions!H54 -> 3.043216667 | I39: =Assumptions!I54 -> 3.42025 | J39: =Assumptions!J54 -> 2.5 | K39: =Assumptions!K54 -> 2.55 | L39: =Assumptions!L54 -> 2.601 | M39: =Assumptions!M54 -> 2.65302 | N39: =Assumptions!N54 -> 2.7060804 | O39: =Assumptions!O54 -> 2.760202008 | P39: =Assumptions!P54 -> 2.815406048 | Q39: =Assumptions!Q54 -> 2.871714169 | R39: =Assumptions!R54 -> 2.929148453 | S39: =Assumptions!S54 -> 2.987731422 | T39: =Assumptions!T54 -> 3.04748605
C40: New Capacity Added in Tons | E40: =E14 -> 0 | F40: =F14 -> 350000 | G40: 0 | H40: 60000 | I40: 40000 | J40: 0 | K40: 10000 | L40: 42000 | M40: 40000 | N40: 43000 | O40: 38000 | P40: 40000 | Q40: 42000 | R40: 44000 | S40: 46000 | T40: 49000
C41: Total Capital Expenditures | E41: =IF(E3,'Historic Financials'!E31,E39*E40) -> 495804 | F41: =IF(F3,'Historic Financials'!F31,F39*F40) -> 298874 | G41: =IF(G3,'Historic Financials'!G31,G39*G40) -> 120788 | H41: =IF(H3,'Historic Financials'!H31,H39*H40) -> 61805 | I41: =IF(I3,'Historic Financials'!I31,I39*I40) -> 136810 | J41: =IF(J3,'Historic Financials'!J31,J39*J40) -> 0 | K41: =IF(K3,'Historic Financials'!K31,K39*K40) -> 25500 | L41: =IF(L3,'Historic Financials'!L31,L39*L40) -> 109242 | M41: =IF(M3,'Historic Financials'!M31,M39*M40) -> 106120.8 | N41: =IF(N3,'Historic Financials'!N31,N39*N40) -> 116361.4572 | O41: =IF(O3,'Historic Financials'!O31,O39*O40) -> 104887.6763 | P41: =IF(P3,'Historic Financials'!P31,P39*P40) -> 112616.2419 | Q41: =IF(Q3,'Historic Financials'!Q31,Q39*Q40) -> 120611.9951 | R41: =IF(R3,'Historic Financials'!R31,R39*R40) -> 128882.5319 | S41: =IF(S3,'Historic Financials'!S31,S39*S40) -> 137435.6454 | T41: =IF(T3,'Historic Financials'!T31,T39*T40) -> 149326.8164
B43: Forestery Expenditures
C44: Expenditure per Ton of Production | E44: =Assumptions!E56 -> 0.2149150221 | F44: =Assumptions!F56 -> 0.1527761909 | G44: =Assumptions!G56 -> 0.05634114466 | H44: =Assumptions!H56 -> 0.07395483954 | I44: =Assumptions!I56 -> 0.07502803994 | J44: =Assumptions!J56 -> 0.07727888114 | K44: =Assumptions!K56 -> 0.07959724758 | L44: =Assumptions!L56 -> 0.081985165 | M44: =Assumptions!M56 -> 0.08444471995 | N44: =Assumptions!N56 -> 0.08697806155 | O44: =Assumptions!O56 -> 0.0895874034 | P44: =Assumptions!P56 -> 0.0922750255 | Q44: =Assumptions!Q56 -> 0.09504327627 | R44: =Assumptions!R56 -> 0.09789457456 | S44: =Assumptions!S56 -> 0.1008314118 | T44: =Assumptions!T56 -> 0.1038563541
C45: Total Production | E45: =E25 -> 183989 | F45: =F25 -> 271325 | G45: 433857 | H45: 512218 | I45: 554566 | J45: 593385.62 | K45: 634922.6134 | L45: 676192.5833 | M45: 716764.1383 | N45: 759769.9866 | O45: 797758.4859 | P45: 837646.4102 | Q45: 879528.7307 | R45: 923505.1672 | S45: 969680.4256 | T45: 1018164.447
C46: Total Expenditure | E46: =E44*E45 -> 39542 | F46: =F44*F45 -> 41452 | G46: 24444 | H46: 37881 | I46: 41608 | J46: 45856.1768 | K46: 50538.09245 | L46: 55437.76051 | M46: 60526.94693 | N46: 66083.32066 | O46: 71469.11129 | P46: 77293.84386 | Q46: 83593.29214 | R46: 90406.14545 | S46: 97774.2463 | T46: 105742.8474
C48: Total Capital Expenditure incl Forestry | E48: =E46+E41 -> 535346 | F48: =F46+F41 -> 340326 | G48: 145232 | H48: 99686 | I48: 178418 | J48: 45856.1768 | K48: 76038.09245 | L48: 164679.7605 | M48: 166647.7469 | N48: 182444.7779 | O48: 176356.7876 | P48: 189910.0858 | Q48: 204205.2872 | R48: 219288.6774 | S48: 235209.8917 | T48: 255069.6638
A50: Working Capital Section
B52: Total Cost of Goods Sold | E52: =E26 -> 142031 | F52: =F26 -> 268123 | G52: 270605 | H52: 364372 | I52: 375885 | J52: 410240.889 | K52: 447736.9063 | L52: 486376.6013 | M52: 525870.3813 | N52: 568571.0562 | O52: 608939.6012 | P52: 652174.3129 | Q52: 698478.6891 | R52: 748070.6761 | S52: 801183.6941 | T52: 858067.7364
B53: Inventories as Pct of CGS | E53: =Assumptions!E59 -> 0.2987657624 | F53: =Assumptions!F59 -> 0.2571021509 | G53: =Assumptions!G59 -> 0.1965115205 | H53: =Assumptions!H59 -> 0.2432568913 | I53: =Assumptions!I59 -> 0.4804394961 | J53: =Assumptions!J59 -> 0.48 | K53: =Assumptions!K59 -> 0.48 | L53: =Assumptions!L59 -> 0.48 | M53: =Assumptions!M59 -> 0.48 | N53: =Assumptions!N59 -> 0.48 | O53: =Assumptions!O59 -> 0.48 | P53: =Assumptions!P59 -> 0.48 | Q53: =Assumptions!Q59 -> 0.48 | R53: =Assumptions!R59 -> 0.48 | S53: =Assumptions!S59 -> 0.48 | T53: =Assumptions!T59 -> 0.48
C54: Total Inventories | E54: =E52*E53 -> 42434 | F54: =F52*F53 -> 68935 | G54: 53177 | H54: 88636 | I54: 180590 | J54: 196915.6267 | K54: 214913.715 | L54: 233460.7686 | M54: 252417.783 | N54: 272914.107 | O54: 292291.0086 | P54: 313043.6702 | Q54: 335269.7708 | R54: 359073.9245 | S54: 384568.1732 | T54: 411872.5135
B56: Total Revenues | E56: =E22 -> 272167 | F56: =F22 -> 382259 | G56: 551998 | H56: 923257 | I56: 806574 | J56: 860409.149 | K56: 920637.7894 | L56: 1000088.831 | M56: 1081296.044 | N56: 1169097.282 | O56: 1252103.19 | P56: 1341002.516 | Q56: 1436213.695 | R56: 1538184.867 | S56: 1647395.992 | T56: 1764361.108
B57: A/R as Pct of Revenues | E57: =Assumptions!E60 -> 1.155801401 | F57: =Assumptions!F60 -> 0.8105054426 | G57: =Assumptions!G60 -> 0.4341193265 | H57: =Assumptions!H60 -> 0.160505688 | I57: =Assumptions!I60 -> 0.2000448812 | J57: =Assumptions!J60 -> 0.2 | K57: =Assumptions!K60 -> 0.2 | L57: =Assumptions!L60 -> 0.2 | M57: =Assumptions!M60 -> 0.2 | N57: =Assumptions!N60 -> 0.2 | O57: =Assumptions!O60 -> 0.2 | P57: =Assumptions!P60 -> 0.2 | Q57: =Assumptions!Q60 -> 0.2 | R57: =Assumptions!R60 -> 0.2 | S57: =Assumptions!S60 -> 0.2 | T57: =Assumptions!T60 -> 0.2
C58: Total A/R | E58: =E56*E57 -> 314571 | F58: =F56*F57 -> 309823 | G58: 239633 | H58: 148188 | I58: 161351 | J58: 172081.8298 | K58: 184127.5579 | L58: 200017.7661 | M58: 216259.2087 | N58: 233819.4565 | O58: 250420.6379 | P58: 268200.5032 | Q58: 287242.7389 | R58: 307636.9734 | S58: 329479.1985 | T58: 352872.2216
B60: A/P as Pct of CGS | E60: =Assumptions!E61 -> 0.9316416839 | F60: =Assumptions!F61 -> 0.4736557475 | G60: =Assumptions!G61 -> 0.2857079507 | H60: =Assumptions!H61 -> 0.4285071301 | I60: =Assumptions!I61 -> 0.3633398513 | J60: =Assumptions!J61 -> 0.3633398513 | K60: =Assumptions!K61 -> 0.3633398513 | L60: =Assumptions!L61 -> 0.3633398513 | M60: =Assumptions!M61 -> 0.3633398513 | N60: =Assumptions!N61 -> 0.3633398513 | O60: =Assumptions!O61 -> 0.3633398513 | P60: =Assumptions!P61 -> 0.3633398513 | Q60: =Assumptions!Q61 -> 0.3633398513 | R60: =Assumptions!R61 -> 0.3633398513 | S60: =Assumptions!S61 -> 0.3633398513 | T60: =Assumptions!T61 -> 0.3633398513
C61: Total A/P | E61: =E60*E52 -> 132322 | F61: =F60*F52 -> 126998 | G61: 77314 | H61: 156136 | I61: 136574 | J61: 149056.8636 | K61: 162680.6609 | L61: 176720.002 | M61: 191069.6661 | N61: 206584.523 | O61: 221252.0242 | P61: 236960.9179 | Q61: 253785.143 | R61: 271803.8882 | S61: 291101.9643 | T61: 311770.2037
C63: Other Current Liabilities | E63: =Assumptions!E62 -> 33458 | F63: =Assumptions!F62 -> 109046 | G63: =Assumptions!G62 -> 176987 | H63: =Assumptions!H62 -> 67876 | I63: =Assumptions!I62 -> 39198 | J63: =Assumptions!J62 -> 39198 | K63: =Assumptions!K62 -> 39198 | L63: =Assumptions!L62 -> 39198 | M63: =Assumptions!M62 -> 39198 | N63: =Assumptions!N62 -> 39198 | O63: =Assumptions!O62 -> 39198 | P63: =Assumptions!P62 -> 39198 | Q63: =Assumptions!Q62 -> 39198 | R63: =Assumptions!R62 -> 39198 | S63: =Assumptions!S62 -> 39198 | T63: =Assumptions!T62 -> 39198
B65: Total Current Assests (Excluding Cash and Investments) | E65: =E54+E58 -> 357005 | F65: =F54+F58 -> 378758 | G65: 292810 | H65: 236824 | I65: 341941 | J65: 368997.4565 | K65: 399041.2729 | L65: 433478.5347 | M65: 468676.9918 | N65: 506733.5635 | O65: 542711.6465 | P65: 581244.1734 | Q65: 622512.5097 | R65: 666710.8979 | S65: 714047.3717 | T65: 764744.735
B66: Total Current Liabilities (Excluding Debt) | E66: =E61+E63 -> 165780 | F66: =F61+F63 -> 236044 | G66: 254301 | H66: 224012 | I66: 175772 | J66: 188254.8636 | K66: 201878.6609 | L66: 215918.002 | M66: 230267.6661 | N66: 245782.523 | O66: 260450.0242 | P66: 276158.9179 | Q66: 292983.143 | R66: 311001.8882 | S66: 330299.9643 | T66: 350968.2037
B67: Working Capital | E67: =E65-E66 -> 191225 | F67: =F65-F66 -> 142714 | G67: 38509 | H67: 12812 | I67: 166169 | J67: 180742.5929 | K67: 197162.612 | L67: 217560.5328 | M67: 238409.3256 | N67: 260951.0405 | O67: 282261.6223 | P67: 305085.2555 | Q67: 329529.3667 | R67: 355709.0097 | S67: 383747.4074 | T67: 413776.5313
E68: =IF(E3,('Historic Financials'!E98+'Historic Financials'!E99+'Historic Financials'!E100-'Historic Financials'!E110-'Historic Financials'!E111-'Historic Financials'!E113)=E67,TRUE) -> TRUE | F68: =IF(F3,('Historic Financials'!F98+'Historic Financials'!F99+'Historic Financials'!F100-'Historic Financials'!F110-'Historic Financials'!F111-'Historic Financials'!F113)=F67,TRUE) -> TRUE | G68: =IF(G3,('Historic Financials'!G98+'Historic Financials'!G99+'Historic Financials'!G100-'Historic Financials'!G110-'Historic Financials'!G111-'Historic Financials'!G113)=G67,TRUE) -> TRUE | H68: =IF(H3,('Historic Financials'!H98+'Historic Financials'!H99+'Historic Financials'!H100-'Historic Financials'!H110-'Historic Financials'!H111-'Historic Financials'!H113)=H67,TRUE) -> TRUE | I68: =IF(I3,('Historic Financials'!I98+'Historic Financials'!I99+'Historic Financials'!I100-'Historic Financials'!I110-'Historic Financials'!I111-'Historic Financials'!I113)=I67,TRUE) -> TRUE | J68: =IF(J3,('Historic Financials'!J98+'Historic Financials'!J99+'Historic Financials'!J100-'Historic Financials'!J110-'Historic Financials'!J111-'Historic Financials'!J113)=J67,TRUE) -> TRUE | K68: =IF(K3,('Historic Financials'!K98+'Historic Financials'!K99+'Historic Financials'!K100-'Historic Financials'!K110-'Historic Financials'!K111-'Historic Financials'!K113)=K67,TRUE) -> TRUE | L68: =IF(L3,('Historic Financials'!L98+'Historic Financials'!L99+'Historic Financials'!L100-'Historic Financials'!L110-'Historic Financials'!L111-'Historic Financials'!L113)=L67,TRUE) -> TRUE | M68: =IF(M3,('Historic Financials'!M98+'Historic Financials'!M99+'Historic Financials'!M100-'Historic Financials'!M110-'Historic Financials'!M111-'Historic Financials'!M113)=M67,TRUE) -> TRUE | N68: =IF(N3,('Historic Financials'!N98+'Historic Financials'!N99+'Historic Financials'!N100-'Historic Financials'!N110-'Historic Financials'!N111-'Historic Financials'!N113)=N67,TRUE) -> TRUE | O68: =IF(O3,('Historic Financials'!O98+'Historic Financials'!O99+'Historic Financials'!O100-'Historic Financials'!O110-'Historic Financials'!O111-'Historic Financials'!O113)=O67,TRUE) -> TRUE | P68: =IF(P3,('Historic Financials'!P98+'Historic Financials'!P99+'Historic Financials'!P100-'Historic Financials'!P110-'Historic Financials'!P111-'Historic Financials'!P113)=P67,TRUE) -> TRUE | Q68: =IF(Q3,('Historic Financials'!Q98+'Historic Financials'!Q99+'Historic Financials'!Q100-'Historic Financials'!Q110-'Historic Financials'!Q111-'Historic Financials'!Q113)=Q67,TRUE) -> TRUE | R68: =IF(R3,('Historic Financials'!R98+'Historic Financials'!R99+'Historic Financials'!R100-'Historic Financials'!R110-'Historic Financials'!R111-'Historic Financials'!R113)=R67,TRUE) -> TRUE | S68: =IF(S3,('Historic Financials'!S98+'Historic Financials'!S99+'Historic Financials'!S100-'Historic Financials'!S110-'Historic Financials'!S111-'Historic Financials'!S113)=S67,TRUE) -> TRUE | T68: =IF(T3,('Historic Financials'!T98+'Historic Financials'!T99+'Historic Financials'!T100-'Historic Financials'!T110-'Historic Financials'!T111-'Historic Financials'!T113)=T67,TRUE) -> TRUE
B69: Change in Working Capital | F69: =F67-E67 -> -48511 | G69: =G67-F67 -> -104205 | H69: -25697 | I69: 153357 | J69: 14573.59292 | K69: 16420.01904 | L69: 20397.92081 | M69: 20848.79286 | N69: 22541.71484 | O69: 21310.58187 | P69: 22823.63319 | Q69: 24444.11114 | R69: 26179.64303 | S69: 28038.39769 | T69: 30029.12392
A71: Depreciation Section
C72: Net Plant Balance - Existing Plant
D73: Opening Balance | F73: =E75 -> 1048045 | G73: =F75 -> 1350787 | H73: 1376386 | I73: 1384070 | J73: 1455966 | K73: 1386004 | L73: 1319403.81 | M73: 1256003.889 | N73: 1195650.458 | O73: 1138197.126 | P73: 1083504.539 | Q73: 1031440.037 | R73: 981877.336 | S73: 934696.219 | T73: 889782.2465
D74: Less: Depreciation | F74: =IF(F3,F75-F73,F78) -> 302742 | G74: 25599 | H74: 7684 | I74: 71896 | J74: 69962 | K74: 66600.18974 | L74: 63399.921 | M74: 60353.4314 | N74: 57453.33156 | O74: 54692.58716 | P74: 52064.5019 | Q74: 49562.70125 | R74: 47181.11699 | S74: 44913.97249 | T74: 42755.7687
D75: Closing Balance | E75: =IF(E3,'Historic Financials'!E88,E73-E74) -> 1048045 | F75: =IF(F3,'Historic Financials'!F88,F73-F74) -> 1350787 | G75: =IF(G3,'Historic Financials'!G88,G73-G74) -> 1376386 | H75: =IF(H3,'Historic Financials'!H88,H73-H74) -> 1384070 | I75: =IF(I3,'Historic Financials'!I88,I73-I74) -> 1455966 | J75: =IF(J3,'Historic Financials'!J88,J73-J74) -> 1386004 | K75: =IF(K3,'Historic Financials'!K88,K73-K74) -> 1319403.81 | L75: =IF(L3,'Historic Financials'!L88,L73-L74) -> 1256003.889 | M75: =IF(M3,'Historic Financials'!M88,M73-M74) -> 1195650.458 | N75: =IF(N3,'Historic Financials'!N88,N73-N74) -> 1138197.126 | O75: =IF(O3,'Historic Financials'!O88,O73-O74) -> 1083504.539 | P75: =IF(P3,'Historic Financials'!P88,P73-P74) -> 1031440.037 | Q75: =IF(Q3,'Historic Financials'!Q88,Q73-Q74) -> 981877.336 | R75: =IF(R3,'Historic Financials'!R88,R73-R74) -> 934696.219 | S75: =IF(S3,'Historic Financials'!S88,S73-S74) -> 889782.2465 | T75: =IF(T3,'Historic Financials'!T88,T73-T74) -> 847026.4778
D77: Net Plant Depreciation Rate | E77: =Assumptions!E65 -> 0.0156739453 | F77: =Assumptions!F65 -> 0.02110547407 | G77: =Assumptions!G65 -> 0.04558532272 | H77: =Assumptions!H65 -> 0.04774180497 | I77: =Assumptions!I65 -> 0.04805194627 | J77: =Assumptions!J65 -> 0.04805194627 | K77: =Assumptions!K65 -> 0.04805194627 | L77: =Assumptions!L65 -> 0.04805194627 | M77: =Assumptions!M65 -> 0.04805194627 | N77: =Assumptions!N65 -> 0.04805194627 | O77: =Assumptions!O65 -> 0.04805194627 | P77: =Assumptions!P65 -> 0.04805194627 | Q77: =Assumptions!Q65 -> 0.04805194627 | R77: =Assumptions!R65 -> 0.04805194627 | S77: =Assumptions!S65 -> 0.04805194627 | T77: =Assumptions!T65 -> 0.04805194627
D78: Depreciation on Net Plant | E78: =IF(E3,'Historic Financials'!E141,E77*'Historic Financials'!E29) -> 16427 | F78: =IF(F3,'Historic Financials'!F141,F77*'Historic Financials'!F29) -> 28509 | G78: =IF(G3,'Historic Financials'!G141,G77*'Historic Financials'!G29) -> 62743 | H78: =IF(H3,'Historic Financials'!H141,H77*'Historic Financials'!H29) -> 66078 | I78: =IF(I3,'Historic Financials'!I141,I77*'Historic Financials'!I29) -> 69962 | J78: =IF(J3,'Historic Financials'!J141,J77*J73) -> 69962 | K78: =IF(K3,'Historic Financials'!K141,K77*K73) -> 66600.18974 | L78: =IF(L3,'Historic Financials'!L141,L77*L73) -> 63399.921 | M78: =IF(M3,'Historic Financials'!M141,M77*M73) -> 60353.4314 | N78: =IF(N3,'Historic Financials'!N141,N77*N73) -> 57453.33156 | O78: =IF(O3,'Historic Financials'!O141,O77*O73) -> 54692.58716 | P78: =IF(P3,'Historic Financials'!P141,P77*P73) -> 52064.5019 | Q78: =IF(Q3,'Historic Financials'!Q141,Q77*Q73) -> 49562.70125 | R78: =IF(R3,'Historic Financials'!R141,R77*R73) -> 47181.11699 | S78: =IF(S3,'Historic Financials'!S141,S77*S73) -> 44913.97249 | T78: =IF(T3,'Historic Financials'!T141,T77*T73) -> 42755.7687
C80: New Plant
D81: Opening Balance | E81: 0 | F81: =E84 -> 0 | G81: =F84 -> 0 | H81: 0 | I81: 0 | J81: 0 | K81: 0 | L81: 25500 | M81: 134742 | N81: 240862.8 | O81: 357224.2572 | P81: 462111.9335 | Q81: 574728.1754 | R81: 695340.1705 | S81: 824222.7024 | T81: 961658.3478
D82: Add: Capital Expenditures | E82: =NOT(E3)*E41 -> 0 | F82: 0 | G82: 0 | H82: 0 | I82: 0 | J82: 0 | K82: 25500 | L82: 109242 | M82: 106120.8 | N82: 116361.4572 | O82: 104887.6763 | P82: 112616.2419 | Q82: 120611.9951 | R82: 128882.5319 | S82: 137435.6454 | T82: 149326.8164
D83: Less: Retirements
D84: Closing Balance | E84: =E81+E82-E83 -> 0 | F84: =F81+F82-F83 -> 0 | G84: 0 | H84: 0 | I84: 0 | J84: 0 | K84: 25500 | L84: 134742 | M84: 240862.8 | N84: 357224.2572 | O84: 462111.9335 | P84: 574728.1754 | Q84: 695340.1705 | R84: 824222.7024 | S84: 961658.3478 | T84: 1110985.164
D86: Depreciation Rate | E86: =Assumptions!E67 -> 0.05555555556 | F86: =Assumptions!F67 -> 0.05555555556 | G86: =Assumptions!G67 -> 0.05555555556 | H86: =Assumptions!H67 -> 0.05555555556 | I86: =Assumptions!I67 -> 0.05555555556 | J86: =Assumptions!J67 -> 0.05555555556 | K86: =Assumptions!K67 -> 0.05555555556 | L86: =Assumptions!L67 -> 0.05555555556 | M86: =Assumptions!M67 -> 0.05555555556 | N86: =Assumptions!N67 -> 0.05555555556 | O86: =Assumptions!O67 -> 0.05555555556 | P86: =Assumptions!P67 -> 0.05555555556 | Q86: =Assumptions!Q67 -> 0.05555555556 | R86: =Assumptions!R67 -> 0.05555555556 | S86: =Assumptions!S67 -> 0.05555555556 | T86: =Assumptions!T67 -> 0.05555555556
D87: Depreciation Expense on New Plant | E87: =E86*E81 -> 0 | F87: =F86*F81 -> 0 | G87: 0 | H87: 0 | I87: 0 | J87: 0 | K87: 0 | L87: 1416.666667 | M87: 7485.666667 | N87: 13381.26667 | O87: 19845.79207 | P87: 25672.88519 | Q87: 31929.34308 | R87: 38630.00947 | S87: 45790.15014 | T87: 53425.46377
D89: Accumulated Depreciation | F89: =E89+F87 -> 0 | G89: =F89+G87 -> 0 | H89: 0 | I89: 0 | J89: 0 | K89: 0 | L89: 1416.666667 | M89: 8902.333333 | N89: 22283.6 | O89: 42129.39207 | P89: 67802.27726 | Q89: 99731.62034 | R89: 138361.6298 | S89: 184151.78 | T89: 237577.2437
D90: Net Plant | E90: =E84-E89 -> 0 | F90: =F84-F89 -> 0 | G90: 0 | H90: 0 | I90: 0 | J90: 0 | K90: 25500 | L90: 133325.3333 | M90: 231960.4667 | N90: 334940.6572 | O90: 419982.5414 | P90: 506925.8982 | Q90: 595608.5502 | R90: 685861.0726 | S90: 777506.5679 | T90: 873407.9206
C92: Forestry - Existing
D93: Opening Balance | F93: =E95 -> 104426 | G93: =F95 -> 138544 | H93: 177691 | I93: 192192 | J93: 187797 | K93: 150143 | L93: 120038.7677 | M93: 95970.54634 | N93: 76728.09331 | O93: 61343.82399 | P93: 49044.15814 | Q93: 39210.62123 | R93: 31348.74521 | S93: 25063.20469 | T93: 20037.93853
D94: Less: Depletion | F94: =F98 -> 7334 | G94: =G98 -> 8543 | H94: 36084 | I94: 37654 | J94: 37654 | K94: 30104.23235 | L94: 24068.22131 | M94: 19242.45303 | N94: 15384.26932 | O94: 12299.66586 | P94: 9833.536907 | Q94: 7861.876025 | R94: 6285.540514 | S94: 5025.266162 | T94: 4017.681525
D95: Closing Balance | E95: =IF(E3,'Historic Financials'!E87,E93-E94) -> 104426 | F95: =IF(F3,'Historic Financials'!F87,F93-F94) -> 138544 | G95: =IF(G3,'Historic Financials'!G87,G93-G94) -> 177691 | H95: =IF(H3,'Historic Financials'!H87,H93-H94) -> 192192 | I95: =IF(I3,'Historic Financials'!I87,I93-I94) -> 187797 | J95: =IF(J3,'Historic Financials'!J87,J93-J94) -> 150143 | K95: =IF(K3,'Historic Financials'!K87,K93-K94) -> 120038.7677 | L95: =IF(L3,'Historic Financials'!L87,L93-L94) -> 95970.54634 | M95: =IF(M3,'Historic Financials'!M87,M93-M94) -> 76728.09331 | N95: =IF(N3,'Historic Financials'!N87,N93-N94) -> 61343.82399 | O95: =IF(O3,'Historic Financials'!O87,O93-O94) -> 49044.15814 | P95: =IF(P3,'Historic Financials'!P87,P93-P94) -> 39210.62123 | Q95: =IF(Q3,'Historic Financials'!Q87,Q93-Q94) -> 31348.74521 | R95: =IF(R3,'Historic Financials'!R87,R93-R94) -> 25063.20469 | S95: =IF(S3,'Historic Financials'!S87,S93-S94) -> 20037.93853 | T95: =IF(T3,'Historic Financials'!T87,T93-T94) -> 16020.257
D97: Depletion Rate | E97: =Assumptions!E69 -> 0.06854614751 | F97: =Assumptions!F69 -> 0.0529362513 | G97: =Assumptions!G69 -> 0.048077843 | H97: =Assumptions!H69 -> 0.1877497502 | I97: =Assumptions!I69 -> 0.2005037354 | J97: =Assumptions!J69 -> 0.2005037354 | K97: =Assumptions!K69 -> 0.2005037354 | L97: =Assumptions!L69 -> 0.2005037354 | M97: =Assumptions!M69 -> 0.2005037354 | N97: =Assumptions!N69 -> 0.2005037354 | O97: =Assumptions!O69 -> 0.2005037354 | P97: =Assumptions!P69 -> 0.2005037354 | Q97: =Assumptions!Q69 -> 0.2005037354 | R97: =Assumptions!R69 -> 0.2005037354 | S97: =Assumptions!S69 -> 0.2005037354 | T97: =Assumptions!T69 -> 0.2005037354
D98: Depletion Amount | E98: =IF(E3,'Historic Financials'!E142,E97*E93) -> 7158 | F98: =IF(F3,'Historic Financials'!F142,F97*F93) -> 7334 | G98: =IF(G3,'Historic Financials'!G142,G97*G93) -> 8543 | H98: =IF(H3,'Historic Financials'!H142,H97*H93) -> 36084 | I98: =IF(I3,'Historic Financials'!I142,I97*I93) -> 37654 | J98: =IF(J3,'Historic Financials'!J142,J97*J93) -> 37654 | K98: =IF(K3,'Historic Financials'!K142,K97*K93) -> 30104.23235 | L98: =IF(L3,'Historic Financials'!L142,L97*L93) -> 24068.22131 | M98: =IF(M3,'Historic Financials'!M142,M97*M93) -> 19242.45303 | N98: =IF(N3,'Historic Financials'!N142,N97*N93) -> 15384.26932 | O98: =IF(O3,'Historic Financials'!O142,O97*O93) -> 12299.66586 | P98: =IF(P3,'Historic Financials'!P142,P97*P93) -> 9833.536907 | Q98: =IF(Q3,'Historic Financials'!Q142,Q97*Q93) -> 7861.876025 | R98: =IF(R3,'Historic Financials'!R142,R97*R93) -> 6285.540514 | S98: =IF(S3,'Historic Financials'!S142,S97*S93) -> 5025.266162 | T98: =IF(T3,'Historic Financials'!T142,T97*T93) -> 4017.681525
C100: Forestry - New
D101: Opening Balance | F101: =E104 -> 0 | G101: =F104 -> 0 | H101: 0 | I101: 0 | J101: 0 | K101: 45856.1768 | L101: 96394.26925 | M101: 151832.0298 | N101: 212358.9767 | O101: 278442.2974 | P101: 349911.4086 | Q101: 427205.2525 | R101: 510798.5446 | S101: 601204.6901 | T101: 698978.9364
D102: Add: Capital Expenditures | F102: =NOT(F3)*F46 -> 0 | G102: 0 | H102: 0 | I102: 0 | J102: 45856.1768 | K102: 50538.09245 | L102: 55437.76051 | M102: 60526.94693 | N102: 66083.32066 | O102: 71469.11129 | P102: 77293.84386 | Q102: 83593.29214 | R102: 90406.14545 | S102: 97774.2463 | T102: 105742.8474
D103: Less: Retirements
D104: Closing Balance | F104: =F101+F102-F103 -> 0 | G104: =G101+G102-G103 -> 0 | H104: 0 | I104: 0 | J104: 45856.1768 | K104: 96394.26925 | L104: 151832.0298 | M104: 212358.9767 | N104: 278442.2974 | O104: 349911.4086 | P104: 427205.2525 | Q104: 510798.5446 | R104: 601204.6901 | S104: 698978.9364 | T104: 804721.7838
D106: Depletion Rate - New Expenditures | E106: =Assumptions!E71 -> 0.1428571429 | F106: =Assumptions!F71 -> 0.1428571429 | G106: =Assumptions!G71 -> 0.1428571429 | H106: =Assumptions!H71 -> 0.1428571429 | I106: =Assumptions!I71 -> 0.1428571429 | J106: =Assumptions!J71 -> 0.1428571429 | K106: =Assumptions!K71 -> 0.1428571429 | L106: =Assumptions!L71 -> 0.1428571429 | M106: =Assumptions!M71 -> 0.1428571429 | N106: =Assumptions!N71 -> 0.1428571429 | O106: =Assumptions!O71 -> 0.1428571429 | P106: =Assumptions!P71 -> 0.1428571429 | Q106: =Assumptions!Q71 -> 0.1428571429 | R106: =Assumptions!R71 -> 0.1428571429 | S106: =Assumptions!S71 -> 0.1428571429 | T106: =Assumptions!T71 -> 0.1428571429
D107: Depletion Expense | E107: =E106*E101 -> 0 | F107: =F106*F101 -> 0 | G107: 0 | H107: 0 | I107: 0 | J107: 0 | K107: 6550.8824 | L107: 13770.60989 | M107: 21690.28997 | N107: 30336.99667 | O107: 39777.47105 | P107: 49987.34409 | Q107: 61029.32179 | R107: 72971.22066 | S107: 85886.3843 | T107: 99854.13377
D109: Accumulated Depletion | F109: =E109+F107 -> 0 | G109: =F109+G107 -> 0 | H109: 0 | I109: 0 | J109: 0 | K109: 6550.8824 | L109: 20321.49229 | M109: 42011.78226 | N109: 72348.77893 | O109: 112126.25 | P109: 162113.5941 | Q109: 223142.9159 | R109: 296114.1365 | S109: 382000.5208 | T109: 481854.6546
D110: Net Forestery Investment - New | F110: =F104-F109 -> 0 | G110: =G104-G109 -> 0 | H110: 0 | I110: 0 | J110: 45856.1768 | K110: 89843.38685 | L110: 131510.5375 | M110: 170347.1944 | N110: 206093.5184 | O110: 237785.1587 | P110: 265091.6584 | Q110: 287655.6288 | R110: 305090.5536 | S110: 316978.4156 | T110: 322867.1292
C112: Totals
D113: Total Net Plant | E113: =E75+E90 -> 1048045 | F113: =F75+F90 -> 1350787 | G113: 1376386 | H113: 1384070 | I113: 1455966 | J113: 1386004 | K113: 1344903.81 | L113: 1389329.223 | M113: 1427610.925 | N113: 1473137.784 | O113: 1503487.081 | P113: 1538365.935 | Q113: 1577485.886 | R113: 1620557.292 | S113: 1667288.814 | T113: 1720434.398
D114: Total Net Forestry Investment | E114: =E95+E110 -> 104426 | F114: =F95+F110 -> 138544 | G114: 177691 | H114: 192192 | I114: 187797 | J114: 195999.1768 | K114: 209882.1545 | L114: 227481.0838 | M114: 247075.2877 | N114: 267437.3424 | O114: 286829.3168 | P114: 304302.2797 | Q114: 319004.374 | R114: 330153.7583 | S114: 337016.3541 | T114: 338887.3862
D115: Total Depreciation Expense | E115: =E78+E87 -> 16427 | F115: =F78+F87 -> 28509 | G115: 62743 | H115: 66078 | I115: 69962 | J115: 69962 | K115: 66600.18974 | L115: 64816.58766 | M115: 67839.09807 | N115: 70834.59822 | O115: 74538.37922 | P115: 77737.38709 | Q115: 81492.04433 | R115: 85811.12647 | S115: 90704.12263 | T115: 96181.23247
D116: Total Depletion Expense | E116: =E98+E107 -> 7158 | F116: =F98+F107 -> 7334 | G116: 8543 | H116: 36084 | I116: 37654 | J116: 37654 | K116: 36655.11475 | L116: 37838.8312 | M116: 40932.743 | N116: 45721.26599 | O116: 52077.13691 | P116: 59820.881 | Q116: 68891.19781 | R116: 79256.76118 | S116: 90911.65046 | T116: 103871.8153
D117: Test | E117: =IF(E3,('Historic Financials'!E87+'Historic Financials'!E88=E113+E114),TRUE) -> TRUE | F117: =IF(F3,('Historic Financials'!F87+'Historic Financials'!F88=F113+F114),TRUE) -> TRUE | G117: =IF(G3,('Historic Financials'!G87+'Historic Financials'!G88=G113+G114),TRUE) -> TRUE | H117: =IF(H3,('Historic Financials'!H87+'Historic Financials'!H88=H113+H114),TRUE) -> TRUE | I117: =IF(I3,('Historic Financials'!I87+'Historic Financials'!I88=I113+I114),TRUE) -> TRUE | J117: =IF(J3,('Historic Financials'!J87+'Historic Financials'!J88=J113+J114),TRUE) -> TRUE | K117: =IF(K3,('Historic Financials'!K87+'Historic Financials'!K88=K113+K114),TRUE) -> TRUE | L117: =IF(L3,('Historic Financials'!L87+'Historic Financials'!L88=L113+L114),TRUE) -> TRUE | M117: =IF(M3,('Historic Financials'!M87+'Historic Financials'!M88=M113+M114),TRUE) -> TRUE | N117: =IF(N3,('Historic Financials'!N87+'Historic Financials'!N88=N113+N114),TRUE) -> TRUE | O117: =IF(O3,('Historic Financials'!O87+'Historic Financials'!O88=O113+O114),TRUE) -> TRUE | P117: =IF(P3,('Historic Financials'!P87+'Historic Financials'!P88=P113+P114),TRUE) -> TRUE | Q117: =IF(Q3,('Historic Financials'!Q87+'Historic Financials'!Q88=Q113+Q114),TRUE) -> TRUE | R117: =IF(R3,('Historic Financials'!R87+'Historic Financials'!R88=R113+R114),TRUE) -> TRUE | S117: =IF(S3,('Historic Financials'!S87+'Historic Financials'!S88=S113+S114),TRUE) -> TRUE | T117: =IF(T3,('Historic Financials'!T87+'Historic Financials'!T88=T113+T114),TRUE) -> TRUE
C119: Other Assets
D120: Pre-paid Lease Assets (Long-and Short-term) | E120: =IF(E3,'Historic Financials'!E102+'Historic Financials'!E89,D120) -> 22670 | F120: =IF(F3,'Historic Financials'!F102+'Historic Financials'!F89,E120) -> 20 | G120: =IF(G3,'Historic Financials'!G102+'Historic Financials'!G89,F120) -> 5293 | H120: =IF(H3,'Historic Financials'!H102+'Historic Financials'!H89,G120) -> 7493 | I120: =IF(I3,'Historic Financials'!I102+'Historic Financials'!I89,H120) -> 29811 | J120: =IF(J3,'Historic Financials'!J102+'Historic Financials'!J89,I120) -> 29811 | K120: =IF(K3,'Historic Financials'!K102+'Historic Financials'!K89,J120) -> 29811 | L120: =IF(L3,'Historic Financials'!L102+'Historic Financials'!L89,K120) -> 29811 | M120: =IF(M3,'Historic Financials'!M102+'Historic Financials'!M89,L120) -> 29811 | N120: =IF(N3,'Historic Financials'!N102+'Historic Financials'!N89,M120) -> 29811 | O120: =IF(O3,'Historic Financials'!O102+'Historic Financials'!O89,N120) -> 29811 | P120: =IF(P3,'Historic Financials'!P102+'Historic Financials'!P89,O120) -> 29811 | Q120: =IF(Q3,'Historic Financials'!Q102+'Historic Financials'!Q89,P120) -> 29811 | R120: =IF(R3,'Historic Financials'!R102+'Historic Financials'!R89,Q120) -> 29811 | S120: =IF(S3,'Historic Financials'!S102+'Historic Financials'!S89,R120) -> 29811 | T120: =IF(T3,'Historic Financials'!T102+'Historic Financials'!T89,S120) -> 29811
D121: Derivative Assets (Long and Short-term) | E121: =IF(E3,'Historic Financials'!E92+'Historic Financials'!E101,D121) -> 0 | F121: =IF(F3,'Historic Financials'!F92+'Historic Financials'!F101,E121) -> 0 | G121: =IF(G3,'Historic Financials'!G92+'Historic Financials'!G101,F121) -> 0 | H121: =IF(H3,'Historic Financials'!H92+'Historic Financials'!H101,G121) -> 25867 | I121: =IF(I3,'Historic Financials'!I92+'Historic Financials'!I101,H121) -> 0 | J121: =IF(J3,'Historic Financials'!J92+'Historic Financials'!J101,I121) -> 0 | K121: =IF(K3,'Historic Financials'!K92+'Historic Financials'!K101,J121) -> 0 | L121: =IF(L3,'Historic Financials'!L92+'Historic Financials'!L101,K121) -> 0 | M121: =IF(M3,'Historic Financials'!M92+'Historic Financials'!M101,L121) -> 0 | N121: =IF(N3,'Historic Financials'!N92+'Historic Financials'!N101,M121) -> 0 | O121: =IF(O3,'Historic Financials'!O92+'Historic Financials'!O101,N121) -> 0 | P121: =IF(P3,'Historic Financials'!P92+'Historic Financials'!P101,O121) -> 0 | Q121: =IF(Q3,'Historic Financials'!Q92+'Historic Financials'!Q101,P121) -> 0 | R121: =IF(R3,'Historic Financials'!R92+'Historic Financials'!R101,Q121) -> 0 | S121: =IF(S3,'Historic Financials'!S92+'Historic Financials'!S101,R121) -> 0 | T121: =IF(T3,'Historic Financials'!T92+'Historic Financials'!T101,S121) -> 0
D122: Investment and Other | E122: =IF(E3,'Historic Financials'!E90+'Historic Financials'!E93,D122) -> 34559 | F122: =IF(F3,'Historic Financials'!F90+'Historic Financials'!F93,E122) -> 25537 | G122: =IF(G3,'Historic Financials'!G90+'Historic Financials'!G93,F122) -> 42767 | H122: =IF(H3,'Historic Financials'!H90+'Historic Financials'!H93,G122) -> 52793 | I122: =IF(I3,'Historic Financials'!I90+'Historic Financials'!I93,H122) -> 71132 | J122: =IF(J3,'Historic Financials'!J90+'Historic Financials'!J93,I122) -> 71132 | K122: =IF(K3,'Historic Financials'!K90+'Historic Financials'!K93,J122) -> 71132 | L122: =IF(L3,'Historic Financials'!L90+'Historic Financials'!L93,K122) -> 71132 | M122: =IF(M3,'Historic Financials'!M90+'Historic Financials'!M93,L122) -> 71132 | N122: =IF(N3,'Historic Financials'!N90+'Historic Financials'!N93,M122) -> 71132 | O122: =IF(O3,'Historic Financials'!O90+'Historic Financials'!O93,N122) -> 71132 | P122: =IF(P3,'Historic Financials'!P90+'Historic Financials'!P93,O122) -> 71132 | Q122: =IF(Q3,'Historic Financials'!Q90+'Historic Financials'!Q93,P122) -> 71132 | R122: =IF(R3,'Historic Financials'!R90+'Historic Financials'!R93,Q122) -> 71132 | S122: =IF(S3,'Historic Financials'!S90+'Historic Financials'!S93,R122) -> 71132 | T122: =IF(T3,'Historic Financials'!T90+'Historic Financials'!T93,S122) -> 71132
D123: Deferred Tax Assets | E123: =IF(E3,'Historic Financials'!E94,D123) -> 21612 | F123: =IF(F3,'Historic Financials'!F94,E123) -> 77883 | G123: =IF(G3,'Historic Financials'!G94,F123) -> 102745 | H123: =IF(H3,'Historic Financials'!H94,G123) -> 111576 | I123: =IF(I3,'Historic Financials'!I94,H123) -> 105496 | J123: =IF(J3,'Historic Financials'!J94,I123) -> 105496 | K123: =IF(K3,'Historic Financials'!K94,J123) -> 105496 | L123: =IF(L3,'Historic Financials'!L94,K123) -> 105496 | M123: =IF(M3,'Historic Financials'!M94,L123) -> 105496 | N123: =IF(N3,'Historic Financials'!N94,M123) -> 105496 | O123: =IF(O3,'Historic Financials'!O94,N123) -> 105496 | P123: =IF(P3,'Historic Financials'!P94,O123) -> 105496 | Q123: =IF(Q3,'Historic Financials'!Q94,P123) -> 105496 | R123: =IF(R3,'Historic Financials'!R94,Q123) -> 105496 | S123: =IF(S3,'Historic Financials'!S94,R123) -> 105496 | T123: =IF(T3,'Historic Financials'!T94,S123) -> 105496
D124: Cash Investment | E124: =IF(E3,'Historic Financials'!E103+'Historic Financials'!E104,D124) -> 60044 | F124: =IF(F3,'Historic Financials'!F103+'Historic Financials'!F104,E124) -> 74956 | G124: =IF(G3,'Historic Financials'!G103+'Historic Financials'!G104,F124) -> 108807 | H124: =IF(H3,'Historic Financials'!H103+'Historic Financials'!H104,G124) -> 435865 | I124: =IF(I3,'Historic Financials'!I103+'Historic Financials'!I104,H124) -> 328999 | J124: =IF(J3,'Historic Financials'!J103+'Historic Financials'!J104,I124) -> 328999 | K124: =IF(K3,'Historic Financials'!K103+'Historic Financials'!K104,J124) -> 328999 | L124: =IF(L3,'Historic Financials'!L103+'Historic Financials'!L104,K124) -> 328999 | M124: =IF(M3,'Historic Financials'!M103+'Historic Financials'!M104,L124) -> 328999 | N124: =IF(N3,'Historic Financials'!N103+'Historic Financials'!N104,M124) -> 328999 | O124: =IF(O3,'Historic Financials'!O103+'Historic Financials'!O104,N124) -> 328999 | P124: =IF(P3,'Historic Financials'!P103+'Historic Financials'!P104,O124) -> 328999 | Q124: =IF(Q3,'Historic Financials'!Q103+'Historic Financials'!Q104,P124) -> 328999 | R124: =IF(R3,'Historic Financials'!R103+'Historic Financials'!R104,Q124) -> 328999 | S124: =IF(S3,'Historic Financials'!S103+'Historic Financials'!S104,R124) -> 328999 | T124: =IF(T3,'Historic Financials'!T103+'Historic Financials'!T104,S124) -> 328999
D125: Intangible Assets | E125: =IF(E3,'Historic Financials'!E91,D125) -> 0 | F125: =IF(F3,'Historic Financials'!F91,E125) -> 0 | G125: =IF(G3,'Historic Financials'!G91,F125) -> 0 | H125: =IF(H3,'Historic Financials'!H91,G125) -> 775 | I125: =IF(I3,'Historic Financials'!I91,H125) -> 675 | J125: =IF(J3,'Historic Financials'!J91,I125) -> 675 | K125: =IF(K3,'Historic Financials'!K91,J125) -> 675 | L125: =IF(L3,'Historic Financials'!L91,K125) -> 675 | M125: =IF(M3,'Historic Financials'!M91,L125) -> 675 | N125: =IF(N3,'Historic Financials'!N91,M125) -> 675 | O125: =IF(O3,'Historic Financials'!O91,N125) -> 675 | P125: =IF(P3,'Historic Financials'!P91,O125) -> 675 | Q125: =IF(Q3,'Historic Financials'!Q91,P125) -> 675 | R125: =IF(R3,'Historic Financials'!R91,Q125) -> 675 | S125: =IF(S3,'Historic Financials'!S91,R125) -> 675 | T125: =IF(T3,'Historic Financials'!T91,S125) -> 675
D126: Assets Test | E126: =IF(E3,E113+E114+E120+E121+E122+E123+E124+E65='Historic Financials'!E107,TRUE) -> TRUE | F126: =IF(F3,F113+F114+F120+F121+F122+F123+F124+F65='Historic Financials'!F107,TRUE) -> TRUE | G126: =IF(G3,G113+G114+G120+G121+G122+G123+G124+G65='Historic Financials'!G107,TRUE) -> TRUE | H126: =IF(H3,H113+H114+H120+H121+H122+H123+H124+H65='Historic Financials'!H107,TRUE) -> FALSE | I126: =IF(I3,I113+I114+I120+I121+I122+I123+I124+I65='Historic Financials'!I107,TRUE) -> FALSE | J126: =IF(J3,J113+J114+J120+J121+J122+J123+J124+J65='Historic Financials'!J107,TRUE) -> TRUE | K126: =IF(K3,K113+K114+K120+K121+K122+K123+K124+K65='Historic Financials'!K107,TRUE) -> TRUE | L126: =IF(L3,L113+L114+L120+L121+L122+L123+L124+L65='Historic Financials'!L107,TRUE) -> TRUE | M126: =IF(M3,M113+M114+M120+M121+M122+M123+M124+M65='Historic Financials'!M107,TRUE) -> TRUE | N126: =IF(N3,N113+N114+N120+N121+N122+N123+N124+N65='Historic Financials'!N107,TRUE) -> TRUE | O126: =IF(O3,O113+O114+O120+O121+O122+O123+O124+O65='Historic Financials'!O107,TRUE) -> TRUE | P126: =IF(P3,P113+P114+P120+P121+P122+P123+P124+P65='Historic Financials'!P107,TRUE) -> TRUE | Q126: =IF(Q3,Q113+Q114+Q120+Q121+Q122+Q123+Q124+Q65='Historic Financials'!Q107,TRUE) -> TRUE | R126: =IF(R3,R113+R114+R120+R121+R122+R123+R124+R65='Historic Financials'!R107,TRUE) -> TRUE | S126: =IF(S3,S113+S114+S120+S121+S122+S123+S124+S65='Historic Financials'!S107,TRUE) -> TRUE | T126: =IF(T3,T113+T114+T120+T121+T122+T123+T124+T65='Historic Financials'!T107,TRUE) -> TRUE
C128: Other Liabilities and Equity
D129: Derivative Liabilities | E129: =IF(E3,'Historic Financials'!E112+'Historic Financials'!E121,D129) -> 0 | F129: =IF(F3,'Historic Financials'!F112+'Historic Financials'!F121,E129) -> 0 | G129: =IF(G3,'Historic Financials'!G112+'Historic Financials'!G121,F129) -> 0 | H129: =IF(H3,'Historic Financials'!H112+'Historic Financials'!H121,G129) -> 0 | I129: =IF(I3,'Historic Financials'!I112+'Historic Financials'!I121,H129) -> 34133 | J129: =IF(J3,'Historic Financials'!J112+'Historic Financials'!J121,I129) -> 34133 | K129: =IF(K3,'Historic Financials'!K112+'Historic Financials'!K121,J129) -> 34133 | L129: =IF(L3,'Historic Financials'!L112+'Historic Financials'!L121,K129) -> 34133 | M129: =IF(M3,'Historic Financials'!M112+'Historic Financials'!M121,L129) -> 34133 | N129: =IF(N3,'Historic Financials'!N112+'Historic Financials'!N121,M129) -> 34133 | O129: =IF(O3,'Historic Financials'!O112+'Historic Financials'!O121,N129) -> 34133 | P129: =IF(P3,'Historic Financials'!P112+'Historic Financials'!P121,O129) -> 34133 | Q129: =IF(Q3,'Historic Financials'!Q112+'Historic Financials'!Q121,P129) -> 34133 | R129: =IF(R3,'Historic Financials'!R112+'Historic Financials'!R121,Q129) -> 34133 | S129: =IF(S3,'Historic Financials'!S112+'Historic Financials'!S121,R129) -> 34133 | T129: =IF(T3,'Historic Financials'!T112+'Historic Financials'!T121,S129) -> 34133
D130: Deferred Taxes | E130: =IF(E3,'Historic Financials'!E122,D130) -> 2088 | F130: =IF(F3,'Historic Financials'!F122,E130) -> 54105 | G130: =IF(G3,'Historic Financials'!G122,F130) -> 68209 | H130: =IF(H3,'Historic Financials'!H122,G130) -> 71623 | I130: =IF(I3,'Historic Financials'!I122,H130) -> 55245 | J130: =IF(J3,'Historic Financials'!J122,I130) -> 55245 | K130: =IF(K3,'Historic Financials'!K122,J130) -> 55245 | L130: =IF(L3,'Historic Financials'!L122,K130) -> 55245 | M130: =IF(M3,'Historic Financials'!M122,L130) -> 55245 | N130: =IF(N3,'Historic Financials'!N122,M130) -> 55245 | O130: =IF(O3,'Historic Financials'!O122,N130) -> 55245 | P130: =IF(P3,'Historic Financials'!P122,O130) -> 55245 | Q130: =IF(Q3,'Historic Financials'!Q122,P130) -> 55245 | R130: =IF(R3,'Historic Financials'!R122,Q130) -> 55245 | S130: =IF(S3,'Historic Financials'!S122,R130) -> 55245 | T130: =IF(T3,'Historic Financials'!T122,S130) -> 55245
D131: Short-term Debt | E131: =IF(E3,'Historic Financials'!E114,D131) -> 82167 | F131: =IF(F3,'Historic Financials'!F114,E131) -> 153480 | G131: =IF(G3,'Historic Financials'!G114,F131) -> 177119 | H131: =IF(H3,'Historic Financials'!H114,G131) -> 153816 | I131: =IF(I3,'Historic Financials'!I114,H131) -> 198403 | J131: =IF(J3,'Historic Financials'!J114,I131) -> 198403 | K131: =IF(K3,'Historic Financials'!K114,J131) -> 198403 | L131: =IF(L3,'Historic Financials'!L114,K131) -> 198403 | M131: =IF(M3,'Historic Financials'!M114,L131) -> 198403 | N131: =IF(N3,'Historic Financials'!N114,M131) -> 198403 | O131: =IF(O3,'Historic Financials'!O114,N131) -> 198403 | P131: =IF(P3,'Historic Financials'!P114,O131) -> 198403 | Q131: =IF(Q3,'Historic Financials'!Q114,P131) -> 198403 | R131: =IF(R3,'Historic Financials'!R114,Q131) -> 198403 | S131: =IF(S3,'Historic Financials'!S114,R131) -> 198403 | T131: =IF(T3,'Historic Financials'!T114,S131) -> 198403
D132: Long-term Debt and Leases | E132: =IF(E3,'Historic Financials'!E120+'Historic Financials'!E123+'Historic Financials'!E116,D132) -> 319395 | F132: =IF(F3,'Historic Financials'!F120+'Historic Financials'!F123+'Historic Financials'!F116,E132) -> 524580 | G132: =IF(G3,'Historic Financials'!G120+'Historic Financials'!G123+'Historic Financials'!G116,F132) -> 421336 | H132: =IF(H3,'Historic Financials'!H120+'Historic Financials'!H123+'Historic Financials'!H116,G132) -> 514294 | I132: =IF(I3,'Historic Financials'!I120+'Historic Financials'!I123+'Historic Financials'!I116,H132) -> 381729 | J132: =IF(J3,'Historic Financials'!J120+'Historic Financials'!J123+'Historic Financials'!J116,I132) -> 381729 | K132: =IF(K3,'Historic Financials'!K120+'Historic Financials'!K123+'Historic Financials'!K116,J132) -> 381729 | L132: =IF(L3,'Historic Financials'!L120+'Historic Financials'!L123+'Historic Financials'!L116,K132) -> 381729 | M132: =IF(M3,'Historic Financials'!M120+'Historic Financials'!M123+'Historic Financials'!M116,L132) -> 381729 | N132: =IF(N3,'Historic Financials'!N120+'Historic Financials'!N123+'Historic Financials'!N116,M132) -> 381729 | O132: =IF(O3,'Historic Financials'!O120+'Historic Financials'!O123+'Historic Financials'!O116,N132) -> 381729 | P132: =IF(P3,'Historic Financials'!P120+'Historic Financials'!P123+'Historic Financials'!P116,O132) -> 381729 | Q132: =IF(Q3,'Historic Financials'!Q120+'Historic Financials'!Q123+'Historic Financials'!Q116,P132) -> 381729 | R132: =IF(R3,'Historic Financials'!R120+'Historic Financials'!R123+'Historic Financials'!R116,Q132) -> 381729 | S132: =IF(S3,'Historic Financials'!S120+'Historic Financials'!S123+'Historic Financials'!S116,R132) -> 381729 | T132: =IF(T3,'Historic Financials'!T120+'Historic Financials'!T123+'Historic Financials'!T116,S132) -> 381729
D133: Common Equity | E133: =IF(E3,'Historic Financials'!E129,D133) -> 1043745 | F133: =IF(F3,'Historic Financials'!F129,E133) -> 1048474 | G133: =IF(G3,'Historic Financials'!G129,F133) -> 1154357 | H133: =IF(H3,'Historic Financials'!H129,G133) -> 1448014 | I133: =IF(I3,'Historic Financials'!I129,H133) -> 1645665 | J133: =IF(J3,'Historic Financials'!J129,I133) -> 1645665 | K133: =IF(K3,'Historic Financials'!K129,J133) -> 1645665 | L133: =IF(L3,'Historic Financials'!L129,K133) -> 1645665 | M133: =IF(M3,'Historic Financials'!M129,L133) -> 1645665 | N133: =IF(N3,'Historic Financials'!N129,M133) -> 1645665 | O133: =IF(O3,'Historic Financials'!O129,N133) -> 1645665 | P133: =IF(P3,'Historic Financials'!P129,O133) -> 1645665 | Q133: =IF(Q3,'Historic Financials'!Q129,P133) -> 1645665 | R133: =IF(R3,'Historic Financials'!R129,Q133) -> 1645665 | S133: =IF(S3,'Historic Financials'!S129,R133) -> 1645665 | T133: =IF(T3,'Historic Financials'!T129,S133) -> 1645665
D134: Minority Equity | E134: =IF(E3,'Historic Financials'!E130,D134) -> 35186 | F134: =IF(F3,'Historic Financials'!F130,E134) -> 29802 | G134: =IF(G3,'Historic Financials'!G130,F134) -> 31177 | H134: =IF(H3,'Historic Financials'!H130,G134) -> 35696 | I134: =IF(I3,'Historic Financials'!I130,H134) -> 30870 | J134: =IF(J3,'Historic Financials'!J130,I134) -> 30870 | K134: =IF(K3,'Historic Financials'!K130,J134) -> 30870 | L134: =IF(L3,'Historic Financials'!L130,K134) -> 30870 | M134: =IF(M3,'Historic Financials'!M130,L134) -> 30870 | N134: =IF(N3,'Historic Financials'!N130,M134) -> 30870 | O134: =IF(O3,'Historic Financials'!O130,N134) -> 30870 | P134: =IF(P3,'Historic Financials'!P130,O134) -> 30870 | Q134: =IF(Q3,'Historic Financials'!Q130,P134) -> 30870 | R134: =IF(R3,'Historic Financials'!R130,Q134) -> 30870 | S134: =IF(S3,'Historic Financials'!S130,R134) -> 30870 | T134: =IF(T3,'Historic Financials'!T130,S134) -> 30870
A136: Debt Schedule
B138: Exiting Long-term Debt
C139: Debt Outstanding at Last Balance Sheet | E139: =SUMIF(2:2,Assumptions!E4,143:143) -> 381729
C141: Opening Balance | F141: =E143 -> 319395 | G141: =F143 -> 524580 | H141: 421336 | I141: 514294 | J141: 381729 | K141: 286296.75 | L141: 190864.5 | M141: 95432.25 | N141: 0 | O141: 0 | P141: 0 | Q141: 0 | R141: 0 | S141: 0 | T141: 0
C142: Less: Repayments of Debt | F142: =IF(F3,F143-F141,$E$139*Assumptions!F82) -> 205185 | G142: =IF(G3,G143-G141,$E$139*Assumptions!G82) -> -103244 | H142: =IF(H3,H143-H141,$E$139*Assumptions!H82) -> 92958 | I142: =IF(I3,I143-I141,$E$139*Assumptions!I82) -> -132565 | J142: =IF(J3,J143-J141,$E$139*Assumptions!J82) -> 95432.25 | K142: =IF(K3,K143-K141,$E$139*Assumptions!K82) -> 95432.25 | L142: =IF(L3,L143-L141,$E$139*Assumptions!L82) -> 95432.25 | M142: =IF(M3,M143-M141,$E$139*Assumptions!M82) -> 95432.25 | N142: =IF(N3,N143-N141,$E$139*Assumptions!N82) -> 0 | O142: =IF(O3,O143-O141,$E$139*Assumptions!O82) -> 0 | P142: =IF(P3,P143-P141,$E$139*Assumptions!P82) -> 0 | Q142: =IF(Q3,Q143-Q141,$E$139*Assumptions!Q82) -> 0 | R142: =IF(R3,R143-R141,$E$139*Assumptions!R82) -> 0 | S142: =IF(S3,S143-S141,$E$139*Assumptions!S82) -> 0 | T142: =IF(T3,T143-T141,$E$139*Assumptions!T82) -> 0
C143: Closing Balance | E143: =IF(E3,E132,E141-E142) -> 319395 | F143: 524580 | G143: 421336 | H143: 514294 | I143: 381729 | J143: 286296.75 | K143: 190864.5 | L143: 95432.25 | M143: 0 | N143: 0 | O143: 0 | P143: 0 | Q143: 0 | R143: 0 | S143: 0 | T143: 0
C145: Interest Rate | E145: =IF(E3,E146/E143,Assumptions!E81) -> 0.0372422862 | F145: =IF(F3,F146/F143,Assumptions!F81) -> 0.0434785924 | G145: =IF(G3,G146/G143,Assumptions!G81) -> 0.08642508592 | H145: =IF(H3,H146/H143,Assumptions!H81) -> 0.06042652646 | I145: =IF(I3,I146/I143,Assumptions!I81) -> 0.1107251479 | J145: =IF(J3,J146/J143,Assumptions!J81) -> 0.05 | K145: =IF(K3,K146/K143,Assumptions!K81) -> 0.05 | L145: =IF(L3,L146/L143,Assumptions!L81) -> 0.05 | M145: =IF(M3,M146/M143,Assumptions!M81) -> 0.05 | N145: =IF(N3,N146/N143,Assumptions!N81) -> 0.05 | O145: =IF(O3,O146/O143,Assumptions!O81) -> 0.05 | P145: =IF(P3,P146/P143,Assumptions!P81) -> 0.05 | Q145: =IF(Q3,Q146/Q143,Assumptions!Q81) -> 0.05 | R145: =IF(R3,R146/R143,Assumptions!R81) -> 0.05 | S145: =IF(S3,S146/S143,Assumptions!S81) -> 0.05 | T145: =IF(T3,T146/T143,Assumptions!T81) -> 0.05
C146: Interest Expense | E146: =IF(E3,-E167,E145*AVERAGE(E143,E141)) -> 11895 | F146: 22808 | G146: 36414 | H146: 31077 | I146: 42267 | J146: 16700.64375 | K146: 11929.03125 | L146: 7157.41875 | M146: 2385.80625 | N146: 0 | O146: 0 | P146: 0 | Q146: 0 | R146: 0 | S146: 0 | T146: 0
B148: Cash Minus Short-term Debt
C149: Opening Balance | F149: =E151 -> -22123 | G149: =F151 -> -78524 | H149: -68312 | I149: 282049 | J149: 130596 | K149: -177233.0909 | L149: -277671.1947 | M149: -388589.0542 | N149: -496639.5214 | O149: -479126.0551 | P149: -456002.0004 | Q149: -430031.8925 | R149: -400644.4093 | S149: -367277.9104 | T149: -329373.1435
C150: Add: Net Cash Flow (Last Line on Cash Flow Statement) | F150: =F219 -> -448740 | G150: =G219 -> 223232 | H150: 225182 | I150: 75189 | J150: -307829.0909 | K150: -100438.1038 | L150: -110917.8595 | M150: -108050.4672 | N150: 17513.46626 | O150: 23124.05477 | P150: 25970.10792 | Q150: 29387.48311 | R150: 33366.49895 | S150: 37904.76693 | T150: 42689.12998
C151: Closing Balance | E151: =IF(E3,E153-E154,E149+E150) -> -22123 | F151: -78524 | G151: -68312 | H151: 282049 | I151: 130596 | J151: -177233.0909 | K151: -277671.1947 | L151: -388589.0542 | M151: -496639.5214 | N151: -479126.0551 | O151: -456002.0004 | P151: -430031.8925 | Q151: -400644.4093 | R151: -367277.9104 | S151: -329373.1435 | T151: -286684.0135
C153: Cash Balance | E153: =IF(E3,E124,MAX(E151,0)) -> 60044 | F153: 74956 | G153: 108807 | H153: 435865 | I153: 328999 | J153: 0 | K153: 0 | L153: 0 | M153: 0 | N153: 0 | O153: 0 | P153: 0 | Q153: 0 | R153: 0 | S153: 0 | T153: 0
C154: Short-term or New Debt Balance | E154: =IF(E3,E131,MAX(-E151,0)) -> 82167 | F154: 153480 | G154: 177119 | H154: 153816 | I154: 198403 | J154: 177233.0909 | K154: 277671.1947 | L154: 388589.0542 | M154: 496639.5214 | N154: 479126.0551 | O154: 456002.0004 | P154: 430031.8925 | Q154: 400644.4093 | R154: 367277.9104 | S154: 329373.1435 | T154: 286684.0135
C156: Interest Rate on Cash Balance | E156: =IF(E3,0,Assumptions!E79) -> 0 | F156: =IF(F3,0,Assumptions!F79) -> 0 | G156: =IF(G3,0,Assumptions!G79) -> 0 | H156: =IF(H3,0,Assumptions!H79) -> 0 | I156: =IF(I3,0,Assumptions!I79) -> 0 | J156: =IF(J3,0,Assumptions!J79) -> 0.005 | K156: =IF(K3,0,Assumptions!K79) -> 0.005 | L156: =IF(L3,0,Assumptions!L79) -> 0.005 | M156: =IF(M3,0,Assumptions!M79) -> 0.005 | N156: =IF(N3,0,Assumptions!N79) -> 0.005 | O156: =IF(O3,0,Assumptions!O79) -> 0.005 | P156: =IF(P3,0,Assumptions!P79) -> 0.005 | Q156: =IF(Q3,0,Assumptions!Q79) -> 0.005 | R156: =IF(R3,0,Assumptions!R79) -> 0.005 | S156: =IF(S3,0,Assumptions!S79) -> 0.005 | T156: =IF(T3,0,Assumptions!T79) -> 0.005
C157: Interest Income | F157: =F156*E153 -> 0 | G157: =G156*F153 -> 0 | H157: 0 | I157: 0 | J157: 1644.995 | K157: 0 | L157: 0 | M157: 0 | N157: 0 | O157: 0 | P157: 0 | Q157: 0 | R157: 0 | S157: 0 | T157: 0
C159: Interest Rate on Short-term Debt | E159: =IF(E3,0,Assumptions!E78) -> 0 | F159: =IF(F3,0,Assumptions!F78) -> 0 | G159: =IF(G3,0,Assumptions!G78) -> 0 | H159: =IF(H3,0,Assumptions!H78) -> 0 | I159: =IF(I3,0,Assumptions!I78) -> 0 | J159: =IF(J3,0,Assumptions!J78) -> 0.0525 | K159: =IF(K3,0,Assumptions!K78) -> 0.0525 | L159: =IF(L3,0,Assumptions!L78) -> 0.0525 | M159: =IF(M3,0,Assumptions!M78) -> 0.0525 | N159: =IF(N3,0,Assumptions!N78) -> 0.0525 | O159: =IF(O3,0,Assumptions!O78) -> 0.0525 | P159: =IF(P3,0,Assumptions!P78) -> 0.0525 | Q159: =IF(Q3,0,Assumptions!Q78) -> 0.0525 | R159: =IF(R3,0,Assumptions!R78) -> 0.0525 | S159: =IF(S3,0,Assumptions!S78) -> 0.0525 | T159: =IF(T3,0,Assumptions!T78) -> 0.0525
C160: Interest Expense on Short-term Debt | F160: =F159*E154 -> 0 | G160: =G159*F154 -> 0 | H160: 0 | I160: 0 | J160: 10416.1575 | K160: 9304.737273 | L160: 14577.73772 | M160: 20400.92535 | N160: 26073.57487 | O160: 25154.1179 | P160: 23940.10502 | Q160: 22576.67435 | R160: 21033.83149 | S160: 19282.0903 | T160: 17292.09003
A162: Other Income and Expense
C164: Associates and Other Incocome | E164: =IF(E3,'Historic Financials'!E49+'Historic Financials'!E50,D164) -> 13914 | F164: =IF(F3,'Historic Financials'!F49+'Historic Financials'!F50,E164) -> 27459 | G164: =IF(G3,'Historic Financials'!G49+'Historic Financials'!G50,F164) -> -1995 | H164: =IF(H3,'Historic Financials'!H49+'Historic Financials'!H50,G164) -> -489 | I164: =IF(I3,'Historic Financials'!I49+'Historic Financials'!I50,H164) -> 17223 | J164: =IF(J3,'Historic Financials'!J49+'Historic Financials'!J50,I164) -> 17223 | K164: =IF(K3,'Historic Financials'!K49+'Historic Financials'!K50,J164) -> 17223 | L164: =IF(L3,'Historic Financials'!L49+'Historic Financials'!L50,K164) -> 17223 | M164: =IF(M3,'Historic Financials'!M49+'Historic Financials'!M50,L164) -> 17223 | N164: =IF(N3,'Historic Financials'!N49+'Historic Financials'!N50,M164) -> 17223 | O164: =IF(O3,'Historic Financials'!O49+'Historic Financials'!O50,N164) -> 17223 | P164: =IF(P3,'Historic Financials'!P49+'Historic Financials'!P50,O164) -> 17223 | Q164: =IF(Q3,'Historic Financials'!Q49+'Historic Financials'!Q50,P164) -> 17223 | R164: =IF(R3,'Historic Financials'!R49+'Historic Financials'!R50,Q164) -> 17223 | S164: =IF(S3,'Historic Financials'!S49+'Historic Financials'!S50,R164) -> 17223 | T164: =IF(T3,'Historic Financials'!T49+'Historic Financials'!T50,S164) -> 17223
C165: Misc Income (Expenses) | E165: =IF(E3,'Historic Financials'!E51+'Historic Financials'!E61+'Historic Financials'!E62,0) -> 0 | F165: =IF(F3,'Historic Financials'!F51+'Historic Financials'!F61+'Historic Financials'!F62,0) -> 0 | G165: =IF(G3,'Historic Financials'!G51+'Historic Financials'!G61+'Historic Financials'!G62,0) -> -5755 | H165: =IF(H3,'Historic Financials'!H51+'Historic Financials'!H61+'Historic Financials'!H62,0) -> -13730 | I165: =IF(I3,'Historic Financials'!I51+'Historic Financials'!I61+'Historic Financials'!I62,0) -> 3880 | J165: =IF(J3,'Historic Financials'!J51+'Historic Financials'!J61+'Historic Financials'!J62,0) -> 0 | K165: =IF(K3,'Historic Financials'!K51+'Historic Financials'!K61+'Historic Financials'!K62,0) -> 0 | L165: =IF(L3,'Historic Financials'!L51+'Historic Financials'!L61+'Historic Financials'!L62,0) -> 0 | M165: =IF(M3,'Historic Financials'!M51+'Historic Financials'!M61+'Historic Financials'!M62,0) -> 0 | N165: =IF(N3,'Historic Financials'!N51+'Historic Financials'!N61+'Historic Financials'!N62,0) -> 0 | O165: =IF(O3,'Historic Financials'!O51+'Historic Financials'!O61+'Historic Financials'!O62,0) -> 0 | P165: =IF(P3,'Historic Financials'!P51+'Historic Financials'!P61+'Historic Financials'!P62,0) -> 0 | Q165: =IF(Q3,'Historic Financials'!Q51+'Historic Financials'!Q61+'Historic Financials'!Q62,0) -> 0 | R165: =IF(R3,'Historic Financials'!R51+'Historic Financials'!R61+'Historic Financials'!R62,0) -> 0 | S165: =IF(S3,'Historic Financials'!S51+'Historic Financials'!S61+'Historic Financials'!S62,0) -> 0 | T165: =IF(T3,'Historic Financials'!T51+'Historic Financials'!T61+'Historic Financials'!T62,0) -> 0
C166: Change in Value of Derivatives | E166: =IF(E3,'Historic Financials'!E53+'Historic Financials'!E54,0) -> 56118 | F166: =IF(F3,'Historic Financials'!F53+'Historic Financials'!F54,0) -> -16933 | G166: =IF(G3,'Historic Financials'!G53+'Historic Financials'!G54,0) -> 20223 | H166: =IF(H3,'Historic Financials'!H53+'Historic Financials'!H54,0) -> 26913 | I166: =IF(I3,'Historic Financials'!I53+'Historic Financials'!I54,0) -> -18551 | J166: =IF(J3,'Historic Financials'!J53+'Historic Financials'!J54,0) -> 0 | K166: =IF(K3,'Historic Financials'!K53+'Historic Financials'!K54,0) -> 0 | L166: =IF(L3,'Historic Financials'!L53+'Historic Financials'!L54,0) -> 0 | M166: =IF(M3,'Historic Financials'!M53+'Historic Financials'!M54,0) -> 0 | N166: =IF(N3,'Historic Financials'!N53+'Historic Financials'!N54,0) -> 0 | O166: =IF(O3,'Historic Financials'!O53+'Historic Financials'!O54,0) -> 0 | P166: =IF(P3,'Historic Financials'!P53+'Historic Financials'!P54,0) -> 0 | Q166: =IF(Q3,'Historic Financials'!Q53+'Historic Financials'!Q54,0) -> 0 | R166: =IF(R3,'Historic Financials'!R53+'Historic Financials'!R54,0) -> 0 | S166: =IF(S3,'Historic Financials'!S53+'Historic Financials'!S54,0) -> 0 | T166: =IF(T3,'Historic Financials'!T53+'Historic Financials'!T54,0) -> 0
C167: Finance Expenses | E167: =IF(E3,'Historic Financials'!E52,0) -> -11895 | F167: =IF(F3,'Historic Financials'!F52,0) -> -22808 | G167: =IF(G3,'Historic Financials'!G52,0) -> -36414 | H167: =IF(H3,'Historic Financials'!H52,0) -> -31077 | I167: =IF(I3,'Historic Financials'!I52,0) -> -42267 | J167: =IF(J3,'Historic Financials'!J52,0) -> 0 | K167: =IF(K3,'Historic Financials'!K52,0) -> 0 | L167: =IF(L3,'Historic Financials'!L52,0) -> 0 | M167: =IF(M3,'Historic Financials'!M52,0) -> 0 | N167: =IF(N3,'Historic Financials'!N52,0) -> 0 | O167: =IF(O3,'Historic Financials'!O52,0) -> 0 | P167: =IF(P3,'Historic Financials'!P52,0) -> 0 | Q167: =IF(Q3,'Historic Financials'!Q52,0) -> 0 | R167: =IF(R3,'Historic Financials'!R52,0) -> 0 | S167: =IF(S3,'Historic Financials'!S52,0) -> 0 | T167: =IF(T3,'Historic Financials'!T52,0) -> 0
C168: Net Impariment Cost | E168: =IF(E3,'Historic Financials'!E56+'Historic Financials'!E58+'Historic Financials'!E60,0) -> 0 | F168: =IF(F3,'Historic Financials'!F56+'Historic Financials'!F58+'Historic Financials'!F60,0) -> -4945 | G168: =IF(G3,'Historic Financials'!G56+'Historic Financials'!G58+'Historic Financials'!G60,0) -> 3233 | H168: =IF(H3,'Historic Financials'!H56+'Historic Financials'!H58+'Historic Financials'!H60,0) -> 24940 | I168: =IF(I3,'Historic Financials'!I56+'Historic Financials'!I58+'Historic Financials'!I60,0) -> -1587 | J168: =IF(J3,'Historic Financials'!J56+'Historic Financials'!J58+'Historic Financials'!J60,0) -> 0 | K168: =IF(K3,'Historic Financials'!K56+'Historic Financials'!K58+'Historic Financials'!K60,0) -> 0 | L168: =IF(L3,'Historic Financials'!L56+'Historic Financials'!L58+'Historic Financials'!L60,0) -> 0 | M168: =IF(M3,'Historic Financials'!M56+'Historic Financials'!M58+'Historic Financials'!M60,0) -> 0 | N168: =IF(N3,'Historic Financials'!N56+'Historic Financials'!N58+'Historic Financials'!N60,0) -> 0 | O168: =IF(O3,'Historic Financials'!O56+'Historic Financials'!O58+'Historic Financials'!O60,0) -> 0 | P168: =IF(P3,'Historic Financials'!P56+'Historic Financials'!P58+'Historic Financials'!P60,0) -> 0 | Q168: =IF(Q3,'Historic Financials'!Q56+'Historic Financials'!Q58+'Historic Financials'!Q60,0) -> 0 | R168: =IF(R3,'Historic Financials'!R56+'Historic Financials'!R58+'Historic Financials'!R60,0) -> 0 | S168: =IF(S3,'Historic Financials'!S56+'Historic Financials'!S58+'Historic Financials'!S60,0) -> 0 | T168: =IF(T3,'Historic Financials'!T56+'Historic Financials'!T58+'Historic Financials'!T60,0) -> 0
A170: Profit and Loss Statement
C172: Revenues | E172: =E22 -> 272167 | F172: =F22 -> 382259 | G172: 551998 | H172: 923257 | I172: 806574 | J172: 860409.149 | K172: 920637.7894 | L172: 1000088.831 | M172: 1081296.044 | N172: 1169097.282 | O172: 1252103.19 | P172: 1341002.516 | Q172: 1436213.695 | R172: 1538184.867 | S172: 1647395.992 | T172: 1764361.108
C173: Less: Operating Expese | E173: =E34 -> 199015 | F173: =F34 -> 341182 | G173: 355590 | H173: 495370 | I173: 513806 | J173: 563195.265 | K173: 611398.0886 | L173: 660675.7605 | M173: 710627.4901 | N173: 764413.5916 | O173: 814574.2633 | P173: 868090.7081 | Q173: 925190.9041 | R173: 986118.5018 | S173: 1051133.911 | T173: 1120515.464
D174: EBITDA | E174: =E172-E173 -> 73152 | F174: =F172-F173 -> 41077 | G174: 196408 | H174: 427887 | I174: 292768 | J174: 297213.884 | K174: 309239.7008 | L174: 339413.0702 | M174: 370668.5536 | N174: 404683.6909 | O174: 437528.9262 | P174: 472911.8079 | Q174: 511022.7905 | R174: 552066.3652 | S174: 596262.0814 | T174: 643845.6438
C175: Less: Depreciation | E175: =E115 -> 16427 | F175: =F115 -> 28509 | G175: 62743 | H175: 66078 | I175: 69962 | J175: 69962 | K175: 66600.18974 | L175: 64816.58766 | M175: 67839.09807 | N175: 70834.59822 | O175: 74538.37922 | P175: 77737.38709 | Q175: 81492.04433 | R175: 85811.12647 | S175: 90704.12263 | T175: 96181.23247
C176: Less: Depletion | E176: =E116 -> 7158 | F176: =F116 -> 7334 | G176: 8543 | H176: 36084 | I176: 37654 | J176: 37654 | K176: 36655.11475 | L176: 37838.8312 | M176: 40932.743 | N176: 45721.26599 | O176: 52077.13691 | P176: 59820.881 | Q176: 68891.19781 | R176: 79256.76118 | S176: 90911.65046 | T176: 103871.8153
D177: EBIT | E177: =E174-E175-E176 -> 49567 | F177: =F174-F175-F176 -> 5234 | G177: 125122 | H177: 325725 | I177: 185152 | J177: 189597.884 | K177: 205984.3963 | L177: 236757.6513 | M177: 261896.7126 | N177: 288127.8267 | O177: 310913.4101 | P177: 335353.5398 | Q177: 360639.5484 | R177: 386998.4775 | S177: 414646.3083 | T177: 443792.596
C178: Associates and Other | E178: =E164 -> 13914 | F178: 27459 | G178: -1995 | H178: -489 | I178: 17223 | J178: 17223 | K178: 17223 | L178: 17223 | M178: 17223 | N178: 17223 | O178: 17223 | P178: 17223 | Q178: 17223 | R178: 17223 | S178: 17223 | T178: 17223
C179: Misc Income | E179: =E165 -> 0 | F179: 0 | G179: -5755 | H179: -13730 | I179: 3880 | J179: 0 | K179: 0 | L179: 0 | M179: 0 | N179: 0 | O179: 0 | P179: 0 | Q179: 0 | R179: 0 | S179: 0 | T179: 0
C180: Change in Value of Derivatives | E180: =E166 -> 56118 | F180: -16933 | G180: 20223 | H180: 26913 | I180: -18551 | J180: 0 | K180: 0 | L180: 0 | M180: 0 | N180: 0 | O180: 0 | P180: 0 | Q180: 0 | R180: 0 | S180: 0 | T180: 0
C181: Net Impairment Cost | E181: =E168 -> 0 | F181: -4945 | G181: 3233 | H181: 24940 | I181: -1587 | J181: 0 | K181: 0 | L181: 0 | M181: 0 | N181: 0 | O181: 0 | P181: 0 | Q181: 0 | R181: 0 | S181: 0 | T181: 0
C182: Less: Long-term Interest Expense | E182: =E146 -> 11895 | F182: =F146 -> 22808 | G182: 36414 | H182: 31077 | I182: 42267 | J182: 16700.64375 | K182: 11929.03125 | L182: 7157.41875 | M182: 2385.80625 | N182: 0 | O182: 0 | P182: 0 | Q182: 0 | R182: 0 | S182: 0 | T182: 0
C183: Less: Short-term Interest Expense | E183: =E160 -> 0 | F183: =F160 -> 0 | G183: 0 | H183: 0 | I183: 0 | J183: 10416.1575 | K183: 9304.737273 | L183: 14577.73772 | M183: 20400.92535 | N183: 26073.57487 | O183: 25154.1179 | P183: 23940.10502 | Q183: 22576.67435 | R183: 21033.83149 | S183: 19282.0903 | T183: 17292.09003
C184: Add: Interest Income | E184: =E157 -> 0 | F184: =F157 -> 0 | G184: 0 | H184: 0 | I184: 0 | J184: 1644.995 | K184: 0 | L184: 0 | M184: 0 | N184: 0 | O184: 0 | P184: 0 | Q184: 0 | R184: 0 | S184: 0 | T184: 0
D185: EBT | E185: =E177-E182-E183+E184+E178+E179+E180+E181 -> 107704 | F185: =F177-F182-F183+F184+F178+F179+F180+F181 -> -11993 | G185: 104414 | H185: 332282 | I185: 143850 | J185: 181349.0777 | K185: 201973.6278 | L185: 232245.4948 | M185: 256332.981 | N185: 279277.2518 | O185: 302982.2922 | P185: 328636.4347 | Q185: 355285.874 | R185: 383187.646 | S185: 412587.218 | T185: 443723.506
C186: Less: Income Taxes | E186: =E185*Assumptions!E73 -> 4205 | F186: =F185*Assumptions!F73 -> -2532 | G186: =G185*Assumptions!G73 -> -3016 | H186: =H185*Assumptions!H73 -> 4192 | I186: =I185*Assumptions!I73 -> -6675 | J186: =J185*Assumptions!J73 -> 18134.90777 | K186: =K185*Assumptions!K73 -> 20197.36278 | L186: =L185*Assumptions!L73 -> 23224.54948 | M186: =M185*Assumptions!M73 -> 25633.2981 | N186: =N185*Assumptions!N73 -> 27927.72518 | O186: =O185*Assumptions!O73 -> 30298.22922 | P186: =P185*Assumptions!P73 -> 32863.64347 | Q186: =Q185*Assumptions!Q73 -> 35528.5874 | R186: =R185*Assumptions!R73 -> 38318.7646 | S186: =S185*Assumptions!S73 -> 41258.7218 | T186: =T185*Assumptions!T73 -> 44372.3506
D187: Earnings | E187: =E185-E186 -> 103499 | F187: =F185-F186 -> -9461 | G187: 107430 | H187: 328090 | I187: 150525 | J187: 163214.1699 | K187: 181776.265 | L187: 209020.9453 | M187: 230699.6829 | N187: 251349.5266 | O187: 272684.063 | P187: 295772.7913 | Q187: 319757.2866 | R187: 344868.8814 | S187: 371328.4962 | T187: 399351.1554
D189: Historic Earnings | E189: ='Historic Financials'!E65 -> 103499 | F189: ='Historic Financials'!F65 -> -9461 | G189: ='Historic Financials'!G65 -> 107430 | H189: ='Historic Financials'!H65 -> 328090 | I189: ='Historic Financials'!I65 -> 150525 | J189: ='Historic Financials'!J65 -> 0 | K189: ='Historic Financials'!K65 -> 0 | L189: ='Historic Financials'!L65 -> 0 | M189: ='Historic Financials'!M65 -> 0 | N189: ='Historic Financials'!N65 -> 0 | O189: ='Historic Financials'!O65 -> 0 | P189: ='Historic Financials'!P65 -> 0 | Q189: ='Historic Financials'!Q65 -> 0 | R189: ='Historic Financials'!R65 -> 0 | S189: ='Historic Financials'!S65 -> 0 | T189: ='Historic Financials'!T65 -> 0
D190: Difference | E190: =E187-E189 -> 0 | F190: =F187-F189 -> 0 | G190: 0 | H190: 0 | I190: 0 | J190: 163214.1699 | K190: 181776.265 | L190: 209020.9453 | M190: 230699.6829 | N190: 251349.5266 | O190: 272684.063 | P190: 295772.7913 | Q190: 319757.2866 | R190: 344868.8814 | S190: 371328.4962 | T190: 399351.1554
D191: Test | E191: =IF(E3,E190=0,TRUE) -> TRUE | F191: TRUE | G191: TRUE | H191: TRUE | I191: TRUE | J191: TRUE | K191: TRUE | L191: TRUE | M191: TRUE | N191: TRUE | O191: TRUE | P191: TRUE | Q191: TRUE | R191: TRUE | S191: TRUE | T191: TRUE
C193: Shares
D194: Opening Balance | F194: =E196 -> 3165533.333 | G194: =F196 -> FALSE | H194: 2671675 | I194: 2944372.727 | J194: 3094260 | K194: 2439193.696 | L194: 2228419.553 | M194: 2111471.905 | N194: 1994733.511 | O194: 1906882.301 | P194: 1810801.872 | Q194: 1719050.12 | R194: 1631188.463 | S194: 1546894.705 | T194: 1465929.964
D195: Add: Equity Issues/Price | F195: =IF(F202,F218/F202) -> 0 | G195: =IF(G202,G218/G202) -> FALSE | H195: 0 | I195: 0 | J195: -655066.3044 | K195: -210774.1421 | L195: -116947.6488 | M195: -116738.3939 | N195: -87851.21029 | O195: -96080.42879 | P195: -91751.75175 | Q195: -87861.65692 | R195: -84293.7577 | S195: -80964.74184 | T195: -76978.91216
D196: Closing Balance | E196: =IF(E3,'Historic Financials'!E73,E194+E195) -> 3165533.333 | F196: =IF(F3,'Historic Financials'!F73,F194+F195) -> FALSE | G196: =IF(G3,'Historic Financials'!G73,G194+G195) -> 2671675 | H196: =IF(H3,'Historic Financials'!H73,H194+H195) -> 2944372.727 | I196: =IF(I3,'Historic Financials'!I73,I194+I195) -> 3094260 | J196: =IF(J3,'Historic Financials'!J73,J194+J195) -> 2439193.696 | K196: =IF(K3,'Historic Financials'!K73,K194+K195) -> 2228419.553 | L196: =IF(L3,'Historic Financials'!L73,L194+L195) -> 2111471.905 | M196: =IF(M3,'Historic Financials'!M73,M194+M195) -> 1994733.511 | N196: =IF(N3,'Historic Financials'!N73,N194+N195) -> 1906882.301 | O196: =IF(O3,'Historic Financials'!O73,O194+O195) -> 1810801.872 | P196: =IF(P3,'Historic Financials'!P73,P194+P195) -> 1719050.12 | Q196: =IF(Q3,'Historic Financials'!Q73,Q194+Q195) -> 1631188.463 | R196: =IF(R3,'Historic Financials'!R73,R194+R195) -> 1546894.705 | S196: =IF(S3,'Historic Financials'!S73,S194+S195) -> 1465929.964 | T196: =IF(T3,'Historic Financials'!T73,T194+T195) -> 1388951.051
D199: EPS | E199: =IF(E194,E187/E194,0) -> 0 | F199: =IF(F194,F187/F194,0) -> -0.00298875387 | G199: 0 | H199: 0.1228031104 | I199: 0.0511229433 | J199: 0.0527474 | K199: 0.07452309562 | L199: 0.09379784207 | M199: 0.1092601244 | N199: 0.1260065694 | O199: 0.1429999444 | P199: 0.1633380194 | Q199: 0.1860081233 | R199: 0.2114218493 | S199: 0.2400476871 | T199: 0.2724217154
D201: PE | E201: 12 | F201: 12 | G201: 12 | H201: 12 | I201: 12 | J201: 12 | K201: 12 | L201: 12 | M201: 12 | N201: 12 | O201: 12 | P201: 12 | Q201: 12 | R201: 12 | S201: 12 | T201: 12
D202: Target Price | E202: =E201*E199 -> 0 | F202: =F201*F199 -> -0.03586504644 | G202: 0 | H202: 1.473637325 | I202: 0.6134753196 | J202: 0.6329688 | K202: 0.8942771475 | L202: 1.125574105 | M202: 1.311121492 | N202: 1.512078833 | O202: 1.715999333 | P202: 1.960056233 | Q202: 2.232097479 | R202: 2.537062192 | S202: 2.880572245 | T202: 3.269060585
A204: Cash Flow Statement
C205: EBITDA | E205: =E174 -> 73152 | F205: =F174 -> 41077 | G205: 196408 | H205: 427887 | I205: 292768 | J205: 297213.884 | K205: 309239.7008 | L205: 339413.0702 | M205: 370668.5536 | N205: 404683.6909 | O205: 437528.9262 | P205: 472911.8079 | Q205: 511022.7905 | R205: 552066.3652 | S205: 596262.0814 | T205: 643845.6438
C206: Less: WC Changes | E206: =E69 -> 0 | F206: =F69 -> -48511 | G206: -104205 | H206: -25697 | I206: 153357 | J206: 14573.59292 | K206: 16420.01904 | L206: 20397.92081 | M206: 20848.79286 | N206: 22541.71484 | O206: 21310.58187 | P206: 22823.63319 | Q206: 24444.11114 | R206: 26179.64303 | S206: 28038.39769 | T206: 30029.12392
C207: Less: Income Taxes | E207: =E186 -> 4205 | F207: =F186 -> -2532 | G207: -3016 | H207: 4192 | I207: -6675 | J207: 18134.90777 | K207: 20197.36278 | L207: 23224.54948 | M207: 25633.2981 | N207: 27927.72518 | O207: 30298.22922 | P207: 32863.64347 | Q207: 35528.5874 | R207: 38318.7646 | S207: 41258.7218 | T207: 44372.3506
C208: Add: Other Income | E208: =E178 -> 13914 | F208: =F178 -> 27459 | G208: -1995 | H208: -489 | I208: 17223 | J208: 17223 | K208: 17223 | L208: 17223 | M208: 17223 | N208: 17223 | O208: 17223 | P208: 17223 | Q208: 17223 | R208: 17223 | S208: 17223 | T208: 17223
D209: Operating Cash Flow | E209: =E205-E206-E207+E208 -> 82861 | F209: =F205-F206-F207+F208 -> 119579 | G209: 301634 | H209: 448903 | I209: 163309 | J209: 281728.3833 | K209: 289845.319 | L209: 313013.5999 | M209: 341409.4627 | N209: 371437.2509 | O209: 403143.1151 | P209: 434447.5312 | Q209: 468273.092 | R209: 504790.9575 | S209: 544187.9619 | T209: 586667.1692
C210: Less: Capital Expenditures | E210: =E41 -> 495804 | F210: =F41 -> 298874 | G210: 120788 | H210: 61805 | I210: 136810 | J210: 0 | K210: 25500 | L210: 109242 | M210: 106120.8 | N210: 116361.4572 | O210: 104887.6763 | P210: 112616.2419 | Q210: 120611.9951 | R210: 128882.5319 | S210: 137435.6454 | T210: 149326.8164
C211: Less: Forestry Expenditures | E211: =E46 -> 39542 | F211: =F46 -> 41452 | G211: 24444 | H211: 37881 | I211: 41608 | J211: 45856.1768 | K211: 50538.09245 | L211: 55437.76051 | M211: 60526.94693 | N211: 66083.32066 | O211: 71469.11129 | P211: 77293.84386 | Q211: 83593.29214 | R211: 90406.14545 | S211: 97774.2463 | T211: 105742.8474
D212: Cash Flow Before Financing | E212: =E209-E210-E211 -> -452485 | F212: =F209-F210-F211 -> -220747 | G212: 156402 | H212: 349217 | I212: -15109 | J212: 235872.2065 | K212: 213807.2265 | L212: 148333.8394 | M212: 174761.7158 | N212: 188992.473 | O212: 226786.3275 | P212: 244537.4454 | Q212: 264067.8047 | R212: 285502.2802 | S212: 308978.0702 | T212: 331597.5054
C213: Less: Interest Expense on Long-term | E213: =E182 -> 11895 | F213: =F182 -> 22808 | G213: 36414 | H213: 31077 | I213: 42267 | J213: 16700.64375 | K213: 11929.03125 | L213: 7157.41875 | M213: 2385.80625 | N213: 0 | O213: 0 | P213: 0 | Q213: 0 | R213: 0 | S213: 0 | T213: 0
C214: Less: Interest Expense on Short-term | E214: =E183 -> 0 | F214: =F183 -> 0 | G214: 0 | H214: 0 | I214: 0 | J214: 10416.1575 | K214: 9304.737273 | L214: 14577.73772 | M214: 20400.92535 | N214: 26073.57487 | O214: 25154.1179 | P214: 23940.10502 | Q214: 22576.67435 | R214: 21033.83149 | S214: 19282.0903 | T214: 17292.09003
C215: Add: Interest Income | E215: =E184 -> 0 | F215: =F184 -> 0 | G215: 0 | H215: 0 | I215: 0 | J215: 1644.995 | K215: 0 | L215: 0 | M215: 0 | N215: 0 | O215: 0 | P215: 0 | Q215: 0 | R215: 0 | S215: 0 | T215: 0
C216: Less: Repayment of Long-term Debt | E216: =E142 -> 0 | F216: =F142 -> 205185 | G216: -103244 | H216: 92958 | I216: -132565 | J216: 95432.25 | K216: 95432.25 | L216: 95432.25 | M216: 95432.25 | N216: 0 | O216: 0 | P216: 0 | Q216: 0 | R216: 0 | S216: 0 | T216: 0
C217: Less: Dividends | E217: =IF(E3,0,E187*Assumptions!E84) -> 0 | F217: =IF(F3,0,F187*Assumptions!F84) -> 0 | G217: =IF(G3,0,G187*Assumptions!G84) -> 0 | H217: =IF(H3,0,H187*Assumptions!H84) -> 0 | I217: =IF(I3,0,I187*Assumptions!I84) -> 0 | J217: =IF(J3,0,J187*Assumptions!J84) -> 8160.708497 | K217: =IF(K3,0,K187*Assumptions!K84) -> 9088.813251 | L217: =IF(L3,0,L187*Assumptions!L84) -> 10451.04727 | M217: =IF(M3,0,M187*Assumptions!M84) -> 11534.98414 | N217: =IF(N3,0,N187*Assumptions!N84) -> 12567.47633 | O217: =IF(O3,0,O187*Assumptions!O84) -> 13634.20315 | P217: =IF(P3,0,P187*Assumptions!P84) -> 14788.63956 | Q217: =IF(Q3,0,Q187*Assumptions!Q84) -> 15987.86433 | R217: =IF(R3,0,R187*Assumptions!R84) -> 17243.44407 | S217: =IF(S3,0,S187*Assumptions!S84) -> 18566.42481 | T217: =IF(T3,0,T187*Assumptions!T84) -> 19967.55777
C218: Add: New Equity Issue | J218: -414636.5326 | K218: -188490.4986 | L218: -131633.2451 | M218: -153058.2172 | N218: -132837.9556 | O218: -164873.9517 | P218: -179838.5929 | Q218: -196115.7829 | R218: -213858.5057 | S218: -233224.7882 | T218: -251648.7276
D219: Net Cash Flow | E219: =E212-E213-E214+E215-E216-E217+E218 -> -464380 | F219: =F212-F213-F214+F215-F216-F217+F218 -> -448740 | G219: 223232 | H219: 225182 | I219: 75189 | J219: -307829.0909 | K219: -100438.1038 | L219: -110917.8595 | M219: -108050.4672 | N219: 17513.46626 | O219: 23124.05477 | P219: 25970.10792 | Q219: 29387.48311 | R219: 33366.49895 | S219: 37904.76693 | T219: 42689.12998
A221: Balance Sheet
B223: Equity Balance
C224: Opening Balance | F224: =E228 -> 1078931 | G224: =F228 -> 1078276 | H224: 1185534 | I224: 1483710 | J224: 1676535 | K224: 1416951.929 | L224: 1401148.882 | M224: 1468085.535 | N224: 1534192.017 | O224: 1640136.111 | P224: 1734312.019 | Q224: 1835457.578 | R224: 1943111.218 | S224: 2056878.149 | T224: 2176415.432
C225: Add: Net Income | F225: =F187 -> -9461 | G225: =G187 -> 107430 | H225: 328090 | I225: 150525 | J225: 163214.1699 | K225: 181776.265 | L225: 209020.9453 | M225: 230699.6829 | N225: 251349.5266 | O225: 272684.063 | P225: 295772.7913 | Q225: 319757.2866 | R225: 344868.8814 | S225: 371328.4962 | T225: 399351.1554
C226: Less: Dividends | F226: =F217 -> 0 | G226: =G217 -> 0 | H226: 0 | I226: 0 | J226: 8160.708497 | K226: 9088.813251 | L226: 10451.04727 | M226: 11534.98414 | N226: 12567.47633 | O226: 13634.20315 | P226: 14788.63956 | Q226: 15987.86433 | R226: 17243.44407 | S226: 18566.42481 | T226: 19967.55777
C227: Add: New Equity Issue | F227: =F218 -> 0 | G227: =G218 -> 0 | H227: 0 | I227: 0 | J227: =J218 -> -414636.5326 | K227: =K218 -> -188490.4986 | L227: -131633.2451 | M227: -153058.2172 | N227: -132837.9556 | O227: -164873.9517 | P227: -179838.5929 | Q227: -196115.7829 | R227: -213858.5057 | S227: -233224.7882 | T227: -251648.7276
C228: Closing Balance | E228: =IF(E3,E133+E134,E224+E225-E226+E227) -> 1078931 | F228: 1078276 | G228: 1185534 | H228: 1483710 | I228: 1676535 | J228: 1416951.929 | K228: 1401148.882 | L228: 1468085.535 | M228: 1534192.017 | N228: 1640136.111 | O228: 1734312.019 | P228: 1835457.578 | Q228: 1943111.218 | R228: 2056878.149 | S228: 2176415.432 | T228: 2304150.302
B230: Balance Sheet
C231: Current Assets
D232: Cash Balance | E232: =E153 -> 60044 | F232: =F153 -> 74956 | G232: =G153 -> 108807 | H232: 435865 | I232: 328999 | J232: 0 | K232: 0 | L232: 0 | M232: 0 | N232: 0 | O232: 0 | P232: 0 | Q232: 0 | R232: 0 | S232: 0 | T232: 0
D233: Other Current Assets | E233: =E65 -> 357005 | F233: =F65 -> 378758 | G233: =G65 -> 292810 | H233: 236824 | I233: 341941 | J233: 368997.4565 | K233: 399041.2729 | L233: 433478.5347 | M233: 468676.9918 | N233: 506733.5635 | O233: 542711.6465 | P233: 581244.1734 | Q233: 622512.5097 | R233: 666710.8979 | S233: 714047.3717 | T233: 764744.735
D234: Total Current Assets | E234: =SUM(E232:E233) -> 417049 | F234: =SUM(F232:F233) -> 453714 | G234: =SUM(G232:G233) -> 401617 | H234: 672689 | I234: 670940 | J234: 368997.4565 | K234: 399041.2729 | L234: 433478.5347 | M234: 468676.9918 | N234: 506733.5635 | O234: 542711.6465 | P234: 581244.1734 | Q234: 622512.5097 | R234: 666710.8979 | S234: 714047.3717 | T234: 764744.735
C236: Long-term and Other Assets
D237: Net Plant Assets | E237: =E113 -> 1048045 | F237: =F113 -> 1350787 | G237: =G113 -> 1376386 | H237: 1384070 | I237: 1455966 | J237: 1386004 | K237: 1344903.81 | L237: 1389329.223 | M237: 1427610.925 | N237: 1473137.784 | O237: 1503487.081 | P237: 1538365.935 | Q237: 1577485.886 | R237: 1620557.292 | S237: 1667288.814 | T237: 1720434.398
D238: Forestry Assets | E238: =E114 -> 104426 | F238: =F114 -> 138544 | G238: =G114 -> 177691 | H238: 192192 | I238: 187797 | J238: 195999.1768 | K238: 209882.1545 | L238: 227481.0838 | M238: 247075.2877 | N238: 267437.3424 | O238: 286829.3168 | P238: 304302.2797 | Q238: 319004.374 | R238: 330153.7583 | S238: 337016.3541 | T238: 338887.3862
D239: Derivative Assets | E239: =E121 -> 0 | F239: =F121 -> 0 | G239: =G121 -> 0 | H239: 25867 | I239: 0 | J239: 0 | K239: 0 | L239: 0 | M239: 0 | N239: 0 | O239: 0 | P239: 0 | Q239: 0 | R239: 0 | S239: 0 | T239: 0
D240: Other Assets (Associates) | E240: =E122 -> 34559 | F240: =F122 -> 25537 | G240: =G122 -> 42767 | H240: 52793 | I240: 71132 | J240: 71132 | K240: 71132 | L240: 71132 | M240: 71132 | N240: 71132 | O240: 71132 | P240: 71132 | Q240: 71132 | R240: 71132 | S240: 71132 | T240: 71132
D241: Pre-paid Lease Assets | E241: =E120 -> 22670 | F241: =F120 -> 20 | G241: =G120 -> 5293 | H241: 7493 | I241: 29811 | J241: 29811 | K241: 29811 | L241: 29811 | M241: 29811 | N241: 29811 | O241: 29811 | P241: 29811 | Q241: 29811 | R241: 29811 | S241: 29811 | T241: 29811
D242: Deferred Tax Assets | E242: =E123 -> 21612 | F242: =F123 -> 77883 | G242: =G123 -> 102745 | H242: 111576 | I242: 105496 | J242: 105496 | K242: 105496 | L242: 105496 | M242: 105496 | N242: 105496 | O242: 105496 | P242: 105496 | Q242: 105496 | R242: 105496 | S242: 105496 | T242: 105496
D243: Intangible Assets | E243: =E125 -> 0 | F243: =F125 -> 0 | G243: =G125 -> 0 | H243: 775 | I243: 675 | J243: 675 | K243: 675 | L243: 675 | M243: 675 | N243: 675 | O243: 675 | P243: 675 | Q243: 675 | R243: 675 | S243: 675 | T243: 675
D244: Total Other Assets | E244: =SUM(E237:E243) -> 1231312 | F244: =SUM(F237:F243) -> 1592771 | G244: =SUM(G237:G243) -> 1704882 | H244: 1774766 | I244: 1850877 | J244: 1789117.177 | K244: 1761899.965 | L244: 1823924.306 | M244: 1881800.212 | N244: 1947689.126 | O244: 1997430.397 | P244: 2049782.215 | Q244: 2103604.26 | R244: 2157825.05 | S244: 2211419.169 | T244: 2266435.785
D246: Total Assets | E246: =E234+E244 -> 1648361 | F246: =F234+F244 -> 2046485 | G246: =G234+G244 -> 2106499 | H246: 2447455 | I246: 2521817 | J246: 2158114.633 | K246: 2160941.238 | L246: 2257402.841 | M246: 2350477.204 | N246: 2454422.689 | O246: 2540142.044 | P246: 2631026.388 | Q246: 2726116.77 | R246: 2824535.948 | S246: 2925466.54 | T246: 3031180.52
D247: Historic Assets | E247: ='Historic Financials'!E107 -> 1648361 | F247: ='Historic Financials'!F107 -> 2046485 | G247: ='Historic Financials'!G107 -> 2106499 | H247: ='Historic Financials'!H107 -> 2447455 | I247: ='Historic Financials'!I107 -> 2521817 | J247: ='Historic Financials'!J107 -> 0 | K247: ='Historic Financials'!K107 -> 0 | L247: ='Historic Financials'!L107 -> 0 | M247: ='Historic Financials'!M107 -> 0 | N247: ='Historic Financials'!N107 -> 0 | O247: ='Historic Financials'!O107 -> 0 | P247: ='Historic Financials'!P107 -> 0 | Q247: ='Historic Financials'!Q107 -> 0 | R247: ='Historic Financials'!R107 -> 0 | S247: ='Historic Financials'!S107 -> 0 | T247: ='Historic Financials'!T107 -> 0
D248: Test | E248: =E246=E247 -> TRUE | F248: =F246=F247 -> TRUE | G248: =G246=G247 -> TRUE | H248: TRUE | I248: TRUE | J248: FALSE | K248: FALSE | L248: FALSE | M248: FALSE | N248: FALSE | O248: FALSE | P248: FALSE | Q248: FALSE | R248: FALSE | S248: FALSE | T248: FALSE
C250: Current Liabilities
D251: Short-term Debt | E251: =E154 -> 82167 | F251: =F154 -> 153480 | G251: =G154 -> 177119 | H251: 153816 | I251: 198403 | J251: 177233.0909 | K251: 277671.1947 | L251: 388589.0542 | M251: 496639.5214 | N251: 479126.0551 | O251: 456002.0004 | P251: 430031.8925 | Q251: 400644.4093 | R251: 367277.9104 | S251: 329373.1435 | T251: 286684.0135
D252: Other Current Liabilities | E252: =E66 -> 165780 | F252: =F66 -> 236044 | G252: =G66 -> 254301 | H252: 224012 | I252: 175772 | J252: 188254.8636 | K252: 201878.6609 | L252: 215918.002 | M252: 230267.6661 | N252: 245782.523 | O252: 260450.0242 | P252: 276158.9179 | Q252: 292983.143 | R252: 311001.8882 | S252: 330299.9643 | T252: 350968.2037
D253: Total Current Liabilities | E253: =SUM(E251:E252) -> 247947 | F253: =SUM(F251:F252) -> 389524 | G253: =SUM(G251:G252) -> 431420 | H253: 377828 | I253: 374175 | J253: 365487.9545 | K253: 479549.8557 | L253: 604507.0562 | M253: 726907.1875 | N253: 724908.5782 | O253: 716452.0245 | P253: 706190.8103 | Q253: 693627.5524 | R253: 678279.7986 | S253: 659673.1077 | T253: 637652.2172
D255: Long-term Debt | E255: =E143 -> 319395 | F255: =F143 -> 524580 | G255: =G143 -> 421336 | H255: 514294 | I255: 381729 | J255: 286296.75 | K255: 190864.5 | L255: 95432.25 | M255: 0 | N255: 0 | O255: 0 | P255: 0 | Q255: 0 | R255: 0 | S255: 0 | T255: 0
D256: Deferred Taxes | E256: =E130 -> 2088 | F256: =F130 -> 54105 | G256: =G130 -> 68209 | H256: 71623 | I256: 55245 | J256: 55245 | K256: 55245 | L256: 55245 | M256: 55245 | N256: 55245 | O256: 55245 | P256: 55245 | Q256: 55245 | R256: 55245 | S256: 55245 | T256: 55245
... 10 more rows

Sheet Valuation and Ratios
D1: ='Model Verification'!E11 -> Model OK
A2: SATERI HOLDINGS | E2: 2007 | F2: =E2+1 -> 2008 | G2: 2009 | H2: 2010 | I2: 2011 | J2: 2012 | K2: 2013 | L2: 2014 | M2: 2015 | N2: 2016 | O2: 2017 | P2: 2018 | Q2: 2019 | R2: 2020 | S2: 2021 | T2: 2022
A5: Financial Statistics
B7: EBITDA Margin
C8: EBITDA | E8: ='Sateri Model'!E36 -> 73152 | F8: ='Sateri Model'!F36 -> 41077 | G8: ='Sateri Model'!G36 -> 196408 | H8: ='Sateri Model'!H36 -> 427887 | I8: ='Sateri Model'!I36 -> 292768 | J8: ='Sateri Model'!J36 -> 297213.884 | K8: ='Sateri Model'!K36 -> 309239.7008 | L8: ='Sateri Model'!L36 -> 339413.0702 | M8: ='Sateri Model'!M36 -> 370668.5536 | N8: ='Sateri Model'!N36 -> 404683.6909 | O8: ='Sateri Model'!O36 -> 437528.9262 | P8: ='Sateri Model'!P36 -> 472911.8079 | Q8: ='Sateri Model'!Q36 -> 511022.7905 | R8: ='Sateri Model'!R36 -> 552066.3652 | S8: ='Sateri Model'!S36 -> 596262.0814 | T8: ='Sateri Model'!T36 -> 643845.6438
C9: Revenues | E9: ='Sateri Model'!E22 -> 272167 | F9: ='Sateri Model'!F22 -> 382259 | G9: ='Sateri Model'!G22 -> 551998 | H9: ='Sateri Model'!H22 -> 923257 | I9: ='Sateri Model'!I22 -> 806574 | J9: ='Sateri Model'!J22 -> 860409.149 | K9: ='Sateri Model'!K22 -> 920637.7894 | L9: ='Sateri Model'!L22 -> 1000088.831 | M9: ='Sateri Model'!M22 -> 1081296.044 | N9: ='Sateri Model'!N22 -> 1169097.282 | O9: ='Sateri Model'!O22 -> 1252103.19 | P9: ='Sateri Model'!P22 -> 1341002.516 | Q9: ='Sateri Model'!Q22 -> 1436213.695 | R9: ='Sateri Model'!R22 -> 1538184.867 | S9: ='Sateri Model'!S22 -> 1647395.992 | T9: ='Sateri Model'!T22 -> 1764361.108
E10: =IF('Sateri Model'!E$3,'Sateri Model'!E$2&" Act",'Sateri Model'!E$2&" Est") -> 2007 Act | F10: =IF('Sateri Model'!F$3,'Sateri Model'!F$2&" Act",'Sateri Model'!F$2&" Est") -> 2008 Act | G10: =IF('Sateri Model'!G$3,'Sateri Model'!G$2&" Act",'Sateri Model'!G$2&" Est") -> 2009 Act | H10: =IF('Sateri Model'!H$3,'Sateri Model'!H$2&" Act",'Sateri Model'!H$2&" Est") -> 2010 Act | I10: =IF('Sateri Model'!I$3,'Sateri Model'!I$2&" Act",'Sateri Model'!I$2&" Est") -> 2011 Act | J10: =IF('Sateri Model'!J$3,'Sateri Model'!J$2&" Act",'Sateri Model'!J$2&" Est") -> 2012 Est | K10: =IF('Sateri Model'!K$3,'Sateri Model'!K$2&" Act",'Sateri Model'!K$2&" Est") -> 2013 Est | L10: =IF('Sateri Model'!L$3,'Sateri Model'!L$2&" Act",'Sateri Model'!L$2&" Est") -> 2014 Est | M10: =IF('Sateri Model'!M$3,'Sateri Model'!M$2&" Act",'Sateri Model'!M$2&" Est") -> 2015 Est | N10: =IF('Sateri Model'!N$3,'Sateri Model'!N$2&" Act",'Sateri Model'!N$2&" Est") -> 2016 Est | O10: =IF('Sateri Model'!O$3,'Sateri Model'!O$2&" Act",'Sateri Model'!O$2&" Est") -> 2017 Est | P10: =IF('Sateri Model'!P$3,'Sateri Model'!P$2&" Act",'Sateri Model'!P$2&" Est") -> 2018 Est | Q10: =IF('Sateri Model'!Q$3,'Sateri Model'!Q$2&" Act",'Sateri Model'!Q$2&" Est") -> 2019 Est | R10: =IF('Sateri Model'!R$3,'Sateri Model'!R$2&" Act",'Sateri Model'!R$2&" Est") -> 2020 Est | S10: =IF('Sateri Model'!S$3,'Sateri Model'!S$2&" Act",'Sateri Model'!S$2&" Est") -> 2021 Est | T10: =IF('Sateri Model'!T$3,'Sateri Model'!T$2&" Act",'Sateri Model'!T$2&" Est") -> 2022 Est
D11: Margin | E11: =E8/E9 -> 0.2687761558 | F11: 0.1074585556 | G11: 0.3558128834 | H11: 0.4634538379 | I11: 0.3629772346 | J11: 0.345433198 | K11: 0.335897249 | L11: 0.3393829226 | M11: 0.3428002496 | N11: 0.3461505702 | O11: 0.3494351982 | P11: 0.3526554218 | Q11: 0.3558125037 | R11: 0.3589076821 | S11: 0.3619421706 | T11: 0.3649171595
B13: Return on Equity
C14: Net Income to Majority | E14: ='Sateri Model'!E187 -> 103499 | F14: ='Sateri Model'!F187 -> -9461 | G14: ='Sateri Model'!G187 -> 107430 | H14: ='Sateri Model'!H187 -> 328090 | I14: ='Sateri Model'!I187 -> 150525 | J14: ='Sateri Model'!J187 -> 163214.1699 | K14: ='Sateri Model'!K187 -> 181776.265 | L14: ='Sateri Model'!L187 -> 209020.9453 | M14: ='Sateri Model'!M187 -> 230699.6829 | N14: ='Sateri Model'!N187 -> 251349.5266 | O14: ='Sateri Model'!O187 -> 272684.063 | P14: ='Sateri Model'!P187 -> 295772.7913 | Q14: ='Sateri Model'!Q187 -> 319757.2866 | R14: ='Sateri Model'!R187 -> 344868.8814 | S14: ='Sateri Model'!S187 -> 371328.4962 | T14: ='Sateri Model'!T187 -> 399351.1554
C15: Majority Equity | E15: ='Sateri Model'!E228 -> 1078931 | F15: ='Sateri Model'!F228 -> 1078276 | G15: ='Sateri Model'!G228 -> 1185534 | H15: ='Sateri Model'!H228 -> 1483710 | I15: ='Sateri Model'!I228 -> 1676535 | J15: ='Sateri Model'!J228 -> 1416951.929 | K15: ='Sateri Model'!K228 -> 1401148.882 | L15: ='Sateri Model'!L228 -> 1468085.535 | M15: ='Sateri Model'!M228 -> 1534192.017 | N15: ='Sateri Model'!N228 -> 1640136.111 | O15: ='Sateri Model'!O228 -> 1734312.019 | P15: ='Sateri Model'!P228 -> 1835457.578 | Q15: ='Sateri Model'!Q228 -> 1943111.218 | R15: ='Sateri Model'!R228 -> 2056878.149 | S15: ='Sateri Model'!S228 -> 2176415.432 | T15: ='Sateri Model'!T228 -> 2304150.302
C16: Average Equity | E16: =AVERAGE(E15,D15) -> 1078931 | F16: =AVERAGE(F15,E15) -> 1078603.5 | G16: 1131905 | H16: 1334622 | I16: 1580122.5 | J16: 1546743.464 | K16: 1409050.405 | L16: 1434617.208 | M16: 1501138.776 | N16: 1587164.064 | O16: 1687224.065 | P16: 1784884.799 | Q16: 1889284.398 | R16: 1999994.683 | S16: 2116646.791 | T16: 2240282.867
D17: ROE | E17: =E14/E16 -> 0.09592735773 | F17: =F14/F16 -> -0.008771527257 | G17: 0.09491079198 | H17: 0.2458299054 | I17: 0.09526160155 | J17: 0.1055211635 | K17: 0.1290062189 | L17: 0.1456980609 | M17: 0.1536831149 | N17: 0.1583639224 | O17: 0.1616169829 | P17: 0.1657097374 | Q17: 0.1692478311 | R17: 0.1724348991 | S17: 0.175432433 | T17: 0.1782592552
B19: Return on Invested Capital
C20: Invested Capital
D21: Common Equity (Majoity Equity) | E21: ='Sateri Model'!E133 -> 1043745 | F21: ='Sateri Model'!F133 -> 1048474 | G21: ='Sateri Model'!G133 -> 1154357 | H21: ='Sateri Model'!H133 -> 1448014 | I21: ='Sateri Model'!I133 -> 1645665 | J21: ='Sateri Model'!J133 -> 1645665 | K21: ='Sateri Model'!K133 -> 1645665 | L21: ='Sateri Model'!L133 -> 1645665 | M21: ='Sateri Model'!M133 -> 1645665 | N21: ='Sateri Model'!N133 -> 1645665 | O21: ='Sateri Model'!O133 -> 1645665 | P21: ='Sateri Model'!P133 -> 1645665 | Q21: ='Sateri Model'!Q133 -> 1645665 | R21: ='Sateri Model'!R133 -> 1645665 | S21: ='Sateri Model'!S133 -> 1645665 | T21: ='Sateri Model'!T133 -> 1645665
D22: Minority Equity | E22: ='Sateri Model'!E134 -> 35186 | F22: ='Sateri Model'!F134 -> 29802 | G22: ='Sateri Model'!G134 -> 31177 | H22: ='Sateri Model'!H134 -> 35696 | I22: ='Sateri Model'!I134 -> 30870 | J22: ='Sateri Model'!J134 -> 30870 | K22: ='Sateri Model'!K134 -> 30870 | L22: ='Sateri Model'!L134 -> 30870 | M22: ='Sateri Model'!M134 -> 30870 | N22: ='Sateri Model'!N134 -> 30870 | O22: ='Sateri Model'!O134 -> 30870 | P22: ='Sateri Model'!P134 -> 30870 | Q22: ='Sateri Model'!Q134 -> 30870 | R22: ='Sateri Model'!R134 -> 30870 | S22: ='Sateri Model'!S134 -> 30870 | T22: ='Sateri Model'!T134 -> 30870
D23: Long-term Debt | E23: ='Sateri Model'!E132 -> 319395 | F23: ='Sateri Model'!F132 -> 524580 | G23: ='Sateri Model'!G132 -> 421336 | H23: ='Sateri Model'!H132 -> 514294 | I23: ='Sateri Model'!I132 -> 381729 | J23: ='Sateri Model'!J132 -> 381729 | K23: ='Sateri Model'!K132 -> 381729 | L23: ='Sateri Model'!L132 -> 381729 | M23: ='Sateri Model'!M132 -> 381729 | N23: ='Sateri Model'!N132 -> 381729 | O23: ='Sateri Model'!O132 -> 381729 | P23: ='Sateri Model'!P132 -> 381729 | Q23: ='Sateri Model'!Q132 -> 381729 | R23: ='Sateri Model'!R132 -> 381729 | S23: ='Sateri Model'!S132 -> 381729 | T23: ='Sateri Model'!T132 -> 381729
D24: Short-term Debt | E24: ='Sateri Model'!E131 -> 82167 | F24: ='Sateri Model'!F131 -> 153480 | G24: ='Sateri Model'!G131 -> 177119 | H24: ='Sateri Model'!H131 -> 153816 | I24: ='Sateri Model'!I131 -> 198403 | J24: ='Sateri Model'!J131 -> 198403 | K24: ='Sateri Model'!K131 -> 198403 | L24: ='Sateri Model'!L131 -> 198403 | M24: ='Sateri Model'!M131 -> 198403 | N24: ='Sateri Model'!N131 -> 198403 | O24: ='Sateri Model'!O131 -> 198403 | P24: ='Sateri Model'!P131 -> 198403 | Q24: ='Sateri Model'!Q131 -> 198403 | R24: ='Sateri Model'!R131 -> 198403 | S24: ='Sateri Model'!S131 -> 198403 | T24: ='Sateri Model'!T131 -> 198403
D25: Unfunded Pensions
D26: Less: Cash Investment | E26: =-'Sateri Model'!E124 -> -60044 | F26: =-'Sateri Model'!F124 -> -74956 | G26: =-'Sateri Model'!G124 -> -108807 | H26: =-'Sateri Model'!H124 -> -435865 | I26: =-'Sateri Model'!I124 -> -328999 | J26: =-'Sateri Model'!J124 -> -328999 | K26: =-'Sateri Model'!K124 -> -328999 | L26: =-'Sateri Model'!L124 -> -328999 | M26: =-'Sateri Model'!M124 -> -328999 | N26: =-'Sateri Model'!N124 -> -328999 | O26: =-'Sateri Model'!O124 -> -328999 | P26: =-'Sateri Model'!P124 -> -328999 | Q26: =-'Sateri Model'!Q124 -> -328999 | R26: =-'Sateri Model'!R124 -> -328999 | S26: =-'Sateri Model'!S124 -> -328999 | T26: =-'Sateri Model'!T124 -> -328999
D27: Less: Other Assets Not Earning EBTDA | E27: =-'Sateri Model'!E122 -> -34559 | F27: =-'Sateri Model'!F122 -> -25537 | G27: =-'Sateri Model'!G122 -> -42767 | H27: =-'Sateri Model'!H122 -> -52793 | I27: =-'Sateri Model'!I122 -> -71132 | J27: =-'Sateri Model'!J122 -> -71132 | K27: =-'Sateri Model'!K122 -> -71132 | L27: =-'Sateri Model'!L122 -> -71132 | M27: =-'Sateri Model'!M122 -> -71132 | N27: =-'Sateri Model'!N122 -> -71132 | O27: =-'Sateri Model'!O122 -> -71132 | P27: =-'Sateri Model'!P122 -> -71132 | Q27: =-'Sateri Model'!Q122 -> -71132 | R27: =-'Sateri Model'!R122 -> -71132 | S27: =-'Sateri Model'!S122 -> -71132 | T27: =-'Sateri Model'!T122 -> -71132
D28: Less: Derivative Assets | E28: =-'Sateri Model'!E121 -> 0 | F28: =-'Sateri Model'!F121 -> 0 | G28: =-'Sateri Model'!G121 -> 0 | H28: =-'Sateri Model'!H121 -> -25867 | I28: =-'Sateri Model'!I121 -> 0 | J28: =-'Sateri Model'!J121 -> 0 | K28: =-'Sateri Model'!K121 -> 0 | L28: =-'Sateri Model'!L121 -> 0 | M28: =-'Sateri Model'!M121 -> 0 | N28: =-'Sateri Model'!N121 -> 0 | O28: =-'Sateri Model'!O121 -> 0 | P28: =-'Sateri Model'!P121 -> 0 | Q28: =-'Sateri Model'!Q121 -> 0 | R28: =-'Sateri Model'!R121 -> 0 | S28: =-'Sateri Model'!S121 -> 0 | T28: =-'Sateri Model'!T121 -> 0
D29: Add: Derivative Liabilities | E29: ='Sateri Model'!E129 -> 0 | F29: ='Sateri Model'!F129 -> 0 | G29: ='Sateri Model'!G129 -> 0 | H29: ='Sateri Model'!H129 -> 0 | I29: ='Sateri Model'!I129 -> 34133 | J29: ='Sateri Model'!J129 -> 34133 | K29: ='Sateri Model'!K129 -> 34133 | L29: ='Sateri Model'!L129 -> 34133 | M29: ='Sateri Model'!M129 -> 34133 | N29: ='Sateri Model'!N129 -> 34133 | O29: ='Sateri Model'!O129 -> 34133 | P29: ='Sateri Model'!P129 -> 34133 | Q29: ='Sateri Model'!Q129 -> 34133 | R29: ='Sateri Model'!R129 -> 34133 | S29: ='Sateri Model'!S129 -> 34133 | T29: ='Sateri Model'!T129 -> 34133
D30: Total Invested Capital | E30: =SUM(E21:E29) -> 1385890 | F30: 1655843 | G30: 1632415 | H30: 1637295 | I30: 1890669 | J30: 1890669 | K30: 1890669 | L30: 1890669 | M30: 1890669 | N30: 1890669 | O30: 1890669 | P30: 1890669 | Q30: 1890669 | R30: 1890669 | S30: 1890669 | T30: 1890669
D32: Current Assets Needed for EBITDA | E32: ='Sateri Model'!E65 -> 357005 | F32: ='Sateri Model'!F65 -> 378758 | G32: ='Sateri Model'!G65 -> 292810 | H32: ='Sateri Model'!H65 -> 236824 | I32: ='Sateri Model'!I65 -> 341941 | J32: ='Sateri Model'!J65 -> 368997.4565 | K32: ='Sateri Model'!K65 -> 399041.2729 | L32: ='Sateri Model'!L65 -> 433478.5347 | M32: ='Sateri Model'!M65 -> 468676.9918 | N32: ='Sateri Model'!N65 -> 506733.5635 | O32: ='Sateri Model'!O65 -> 542711.6465 | P32: ='Sateri Model'!P65 -> 581244.1734 | Q32: ='Sateri Model'!Q65 -> 622512.5097 | R32: ='Sateri Model'!R65 -> 666710.8979 | S32: ='Sateri Model'!S65 -> 714047.3717 | T32: ='Sateri Model'!T65 -> 764744.735
D33: Less: Current Liabilities funding EBITDA | E33: =-'Sateri Model'!E66 -> -165780 | F33: =-'Sateri Model'!F66 -> -236044 | G33: =-'Sateri Model'!G66 -> -254301 | H33: =-'Sateri Model'!H66 -> -224012 | I33: =-'Sateri Model'!I66 -> -175772 | J33: =-'Sateri Model'!J66 -> -188254.8636 | K33: =-'Sateri Model'!K66 -> -201878.6609 | L33: =-'Sateri Model'!L66 -> -215918.002 | M33: =-'Sateri Model'!M66 -> -230267.6661 | N33: =-'Sateri Model'!N66 -> -245782.523 | O33: =-'Sateri Model'!O66 -> -260450.0242 | P33: =-'Sateri Model'!P66 -> -276158.9179 | Q33: =-'Sateri Model'!Q66 -> -292983.143 | R33: =-'Sateri Model'!R66 -> -311001.8882 | S33: =-'Sateri Model'!S66 -> -330299.9643 | T33: =-'Sateri Model'!T66 -> -350968.2037
D34: Add: Net Plant | E34: ='Sateri Model'!E113 -> 1048045 | F34: ='Sateri Model'!F113 -> 1350787 | G34: ='Sateri Model'!G113 -> 1376386 | H34: ='Sateri Model'!H113 -> 1384070 | I34: ='Sateri Model'!I113 -> 1455966 | J34: ='Sateri Model'!J113 -> 1386004 | K34: ='Sateri Model'!K113 -> 1344903.81 | L34: ='Sateri Model'!L113 -> 1389329.223 | M34: ='Sateri Model'!M113 -> 1427610.925 | N34: ='Sateri Model'!N113 -> 1473137.784 | O34: ='Sateri Model'!O113 -> 1503487.081 | P34: ='Sateri Model'!P113 -> 1538365.935 | Q34: ='Sateri Model'!Q113 -> 1577485.886 | R34: ='Sateri Model'!R113 -> 1620557.292 | S34: ='Sateri Model'!S113 -> 1667288.814 | T34: ='Sateri Model'!T113 -> 1720434.398
D35: Add: Forestry Assets | E35: ='Sateri Model'!E114 -> 104426 | F35: ='Sateri Model'!F114 -> 138544 | G35: ='Sateri Model'!G114 -> 177691 | H35: ='Sateri Model'!H114 -> 192192 | I35: ='Sateri Model'!I114 -> 187797 | J35: ='Sateri Model'!J114 -> 195999.1768 | K35: ='Sateri Model'!K114 -> 209882.1545 | L35: ='Sateri Model'!L114 -> 227481.0838 | M35: ='Sateri Model'!M114 -> 247075.2877 | N35: ='Sateri Model'!N114 -> 267437.3424 | O35: ='Sateri Model'!O114 -> 286829.3168 | P35: ='Sateri Model'!P114 -> 304302.2797 | Q35: ='Sateri Model'!Q114 -> 319004.374 | R35: ='Sateri Model'!R114 -> 330153.7583 | S35: ='Sateri Model'!S114 -> 337016.3541 | T35: ='Sateri Model'!T114 -> 338887.3862
D36: Add: Deferred Tax Assets | E36: ='Sateri Model'!E123 -> 21612 | F36: ='Sateri Model'!F123 -> 77883 | G36: ='Sateri Model'!G123 -> 102745 | H36: ='Sateri Model'!H123 -> 111576 | I36: ='Sateri Model'!I123 -> 105496 | J36: ='Sateri Model'!J123 -> 105496 | K36: ='Sateri Model'!K123 -> 105496 | L36: ='Sateri Model'!L123 -> 105496 | M36: ='Sateri Model'!M123 -> 105496 | N36: ='Sateri Model'!N123 -> 105496 | O36: ='Sateri Model'!O123 -> 105496 | P36: ='Sateri Model'!P123 -> 105496 | Q36: ='Sateri Model'!Q123 -> 105496 | R36: ='Sateri Model'!R123 -> 105496 | S36: ='Sateri Model'!S123 -> 105496 | T36: ='Sateri Model'!T123 -> 105496
D37: Less: Deferred Tax Liabilities | E37: =-'Sateri Model'!E130 -> -2088 | F37: =-'Sateri Model'!F130 -> -54105 | G37: =-'Sateri Model'!G130 -> -68209 | H37: =-'Sateri Model'!H130 -> -71623 | I37: =-'Sateri Model'!I130 -> -55245 | J37: =-'Sateri Model'!J130 -> -55245 | K37: =-'Sateri Model'!K130 -> -55245 | L37: =-'Sateri Model'!L130 -> -55245 | M37: =-'Sateri Model'!M130 -> -55245 | N37: =-'Sateri Model'!N130 -> -55245 | O37: =-'Sateri Model'!O130 -> -55245 | P37: =-'Sateri Model'!P130 -> -55245 | Q37: =-'Sateri Model'!Q130 -> -55245 | R37: =-'Sateri Model'!R130 -> -55245 | S37: =-'Sateri Model'!S130 -> -55245 | T37: =-'Sateri Model'!T130 -> -55245
D38: Add: Pre-paid Assets | E38: ='Sateri Model'!E120 -> 22670 | F38: ='Sateri Model'!F120 -> 20 | G38: ='Sateri Model'!G120 -> 5293 | H38: ='Sateri Model'!H120 -> 7493 | I38: ='Sateri Model'!I120 -> 29811 | J38: ='Sateri Model'!J120 -> 29811 | K38: ='Sateri Model'!K120 -> 29811 | L38: ='Sateri Model'!L120 -> 29811 | M38: ='Sateri Model'!M120 -> 29811 | N38: ='Sateri Model'!N120 -> 29811 | O38: ='Sateri Model'!O120 -> 29811 | P38: ='Sateri Model'!P120 -> 29811 | Q38: ='Sateri Model'!Q120 -> 29811 | R38: ='Sateri Model'!R120 -> 29811 | S38: ='Sateri Model'!S120 -> 29811 | T38: ='Sateri Model'!T120 -> 29811
D39: Add: Intangible Assets | E39: ='Sateri Model'!E125 -> 0 | F39: ='Sateri Model'!F125 -> 0 | G39: ='Sateri Model'!G125 -> 0 | H39: ='Sateri Model'!H125 -> 775 | I39: ='Sateri Model'!I125 -> 675 | J39: ='Sateri Model'!J125 -> 675 | K39: ='Sateri Model'!K125 -> 675 | L39: ='Sateri Model'!L125 -> 675 | M39: ='Sateri Model'!M125 -> 675 | N39: ='Sateri Model'!N125 -> 675 | O39: ='Sateri Model'!O125 -> 675 | P39: ='Sateri Model'!P125 -> 675 | Q39: ='Sateri Model'!Q125 -> 675 | R39: ='Sateri Model'!R125 -> 675 | S39: ='Sateri Model'!S125 -> 675 | T39: ='Sateri Model'!T125 -> 675
D40: Total Invested Capital | E40: =SUM(E32:E39) -> 1385890 | F40: 1655843 | G40: 1632415 | H40: 1637295 | I40: 1890669 | J40: 1843482.77 | K40: 1832685.577 | L40: 1915107.839 | M40: 1993832.538 | N40: 2082263.166 | O40: 2153315.02 | P40: 2228490.471 | Q40: 2306756.627 | R40: 2387157.06 | S40: 2468789.576 | T40: 2553835.316
D42: Difference | E42: =E30-E40 -> 0 | F42: 0 | G42: 0 | H42: 0 | I42: 0 | J42: 47186.23028 | K42: 57983.42328 | L42: -24438.83919 | M42: -103163.5379 | N42: -191594.1664 | O42: -262646.0197 | P42: -337821.4706 | Q42: -416087.6269 | R42: -496488.0596 | S42: -578120.5759 | T42: -663166.3159
D43: Test | E43: =IF('Sateri Model'!E3,E42=0,TRUE) -> TRUE | F43: =IF('Sateri Model'!F3,F42=0,TRUE) -> TRUE | G43: =IF('Sateri Model'!G3,G42=0,TRUE) -> TRUE | H43: =IF('Sateri Model'!H3,H42=0,TRUE) -> TRUE | I43: =IF('Sateri Model'!I3,I42=0,TRUE) -> TRUE | J43: =IF('Sateri Model'!J3,J42=0,TRUE) -> TRUE | K43: =IF('Sateri Model'!K3,K42=0,TRUE) -> TRUE | L43: =IF('Sateri Model'!L3,L42=0,TRUE) -> TRUE | M43: =IF('Sateri Model'!M3,M42=0,TRUE) -> TRUE | N43: =IF('Sateri Model'!N3,N42=0,TRUE) -> TRUE | O43: =IF('Sateri Model'!O3,O42=0,TRUE) -> TRUE | P43: =IF('Sateri Model'!P3,P42=0,TRUE) -> TRUE | Q43: =IF('Sateri Model'!Q3,Q42=0,TRUE) -> TRUE | R43: =IF('Sateri Model'!R3,R42=0,TRUE) -> TRUE | S43: =IF('Sateri Model'!S3,S42=0,TRUE) -> TRUE | T43: =IF('Sateri Model'!T3,T42=0,TRUE) -> TRUE
D44: Aggregate Test for Invested Capital | E44: =AND(E43:T43) -> TRUE
D46: EBIT | E46: ='Sateri Model'!E36-'Sateri Model'!E115-'Sateri Model'!E116 -> 49567 | F46: ='Sateri Model'!F36-'Sateri Model'!F115-'Sateri Model'!F116 -> 5234 | G46: ='Sateri Model'!G36-'Sateri Model'!G115-'Sateri Model'!G116 -> 125122 | H46: ='Sateri Model'!H36-'Sateri Model'!H115-'Sateri Model'!H116 -> 325725 | I46: ='Sateri Model'!I36-'Sateri Model'!I115-'Sateri Model'!I116 -> 185152 | J46: ='Sateri Model'!J36-'Sateri Model'!J115-'Sateri Model'!J116 -> 189597.884 | K46: ='Sateri Model'!K36-'Sateri Model'!K115-'Sateri Model'!K116 -> 205984.3963 | L46: ='Sateri Model'!L36-'Sateri Model'!L115-'Sateri Model'!L116 -> 236757.6513 | M46: ='Sateri Model'!M36-'Sateri Model'!M115-'Sateri Model'!M116 -> 261896.7126 | N46: ='Sateri Model'!N36-'Sateri Model'!N115-'Sateri Model'!N116 -> 288127.8267 | O46: ='Sateri Model'!O36-'Sateri Model'!O115-'Sateri Model'!O116 -> 310913.4101 | P46: ='Sateri Model'!P36-'Sateri Model'!P115-'Sateri Model'!P116 -> 335353.5398 | Q46: ='Sateri Model'!Q36-'Sateri Model'!Q115-'Sateri Model'!Q116 -> 360639.5484 | R46: ='Sateri Model'!R36-'Sateri Model'!R115-'Sateri Model'!R116 -> 386998.4775 | S46: ='Sateri Model'!S36-'Sateri Model'!S115-'Sateri Model'!S116 -> 414646.3083 | T46: ='Sateri Model'!T36-'Sateri Model'!T115-'Sateri Model'!T116 -> 443792.596
D48: NOPLAT Net Operating Profit Less Adjusted Taxes | E48: =E46*(1-Assumptions!E74) -> 44610.3 | F48: =F46*(1-Assumptions!F74) -> 4710.6 | G48: =G46*(1-Assumptions!G74) -> 112609.8 | H48: =H46*(1-Assumptions!H74) -> 293152.5 | I48: =I46*(1-Assumptions!I74) -> 166636.8 | J48: =J46*(1-Assumptions!J74) -> 170638.0956 | K48: =K46*(1-Assumptions!K74) -> 185385.9567 | L48: =L46*(1-Assumptions!L74) -> 213081.8862 | M48: =M46*(1-Assumptions!M74) -> 235707.0413 | N48: =N46*(1-Assumptions!N74) -> 259315.044 | O48: =O46*(1-Assumptions!O74) -> 279822.0691 | P48: =P46*(1-Assumptions!P74) -> 301818.1858 | Q48: =Q46*(1-Assumptions!Q74) -> 324575.5935 | R48: =R46*(1-Assumptions!R74) -> 348298.6298 | S48: =S46*(1-Assumptions!S74) -> 373181.6775 | T48: =T46*(1-Assumptions!T74) -> 399413.3364
D49: EBIT x (1-tax rate)
E51: =IF('Sateri Model'!E$3,'Sateri Model'!E$2&" Act",'Sateri Model'!E$2&" Est") -> 2007 Act | F51: =IF('Sateri Model'!F$3,'Sateri Model'!F$2&" Act",'Sateri Model'!F$2&" Est") -> 2008 Act | G51: =IF('Sateri Model'!G$3,'Sateri Model'!G$2&" Act",'Sateri Model'!G$2&" Est") -> 2009 Act | H51: =IF('Sateri Model'!H$3,'Sateri Model'!H$2&" Act",'Sateri Model'!H$2&" Est") -> 2010 Act | I51: =IF('Sateri Model'!I$3,'Sateri Model'!I$2&" Act",'Sateri Model'!I$2&" Est") -> 2011 Act | J51: =IF('Sateri Model'!J$3,'Sateri Model'!J$2&" Act",'Sateri Model'!J$2&" Est") -> 2012 Est | K51: =IF('Sateri Model'!K$3,'Sateri Model'!K$2&" Act",'Sateri Model'!K$2&" Est") -> 2013 Est | L51: =IF('Sateri Model'!L$3,'Sateri Model'!L$2&" Act",'Sateri Model'!L$2&" Est") -> 2014 Est | M51: =IF('Sateri Model'!M$3,'Sateri Model'!M$2&" Act",'Sateri Model'!M$2&" Est") -> 2015 Est | N51: =IF('Sateri Model'!N$3,'Sateri Model'!N$2&" Act",'Sateri Model'!N$2&" Est") -> 2016 Est | O51: =IF('Sateri Model'!O$3,'Sateri Model'!O$2&" Act",'Sateri Model'!O$2&" Est") -> 2017 Est | P51: =IF('Sateri Model'!P$3,'Sateri Model'!P$2&" Act",'Sateri Model'!P$2&" Est") -> 2018 Est | Q51: =IF('Sateri Model'!Q$3,'Sateri Model'!Q$2&" Act",'Sateri Model'!Q$2&" Est") -> 2019 Est | R51: =IF('Sateri Model'!R$3,'Sateri Model'!R$2&" Act",'Sateri Model'!R$2&" Est") -> 2020 Est | S51: =IF('Sateri Model'!S$3,'Sateri Model'!S$2&" Act",'Sateri Model'!S$2&" Est") -> 2021 Est | T51: =IF('Sateri Model'!T$3,'Sateri Model'!T$2&" Act",'Sateri Model'!T$2&" Est") -> 2022 Est
D52: ROIC | E52: =E48/AVERAGE(E40,D40) -> 0.03218891831 | F52: 0.003097313275 | G52: 0.06849207088 | H52: 0.1793140676 | I52: 0.09446627006 | J52: 0.09139322988 | K52: 0.100858252 | L52: 0.1137105825 | M52: 0.1205989443 | N52: 0.1272369752 | O52: 0.1321293371 | P52: 0.1377597369 | Q52: 0.1431346899 | R52: 0.1484043606 | S52: 0.1537008973 | T52: 0.1590456564
A54: Valuation Section
B55: Year | E55: =E2 -> 2007 | F55: =F2 -> 2008 | G55: 2009 | H55: 2010 | I55: 2011 | J55: 2012 | K55: 2013 | L55: 2014 | M55: 2015 | N55: 2016 | O55: 2017 | P55: 2018 | Q55: 2019 | R55: 2020 | S55: 2021 | T55: 2022
B56: Historic Period Switch | E56: ='Sateri Model'!E3 -> TRUE | F56: ='Sateri Model'!F3 -> TRUE | G56: ='Sateri Model'!G3 -> TRUE | H56: ='Sateri Model'!H3 -> TRUE | I56: ='Sateri Model'!I3 -> TRUE | J56: ='Sateri Model'!J3 -> FALSE | K56: ='Sateri Model'!K3 -> FALSE | L56: ='Sateri Model'!L3 -> FALSE | M56: ='Sateri Model'!M3 -> FALSE | N56: ='Sateri Model'!N3 -> FALSE | O56: ='Sateri Model'!O3 -> FALSE | P56: ='Sateri Model'!P3 -> FALSE | Q56: ='Sateri Model'!Q3 -> FALSE | R56: ='Sateri Model'!R3 -> FALSE | S56: ='Sateri Model'!S3 -> FALSE | T56: ='Sateri Model'!T3 -> FALSE
B57: Explicit Period Switch | E57: =AND('Sateri Model'!E2>=Assumptions!$E$5,'Sateri Model'!E2<=Assumptions!$E$6) -> FALSE | F57: =AND('Sateri Model'!F2>=Assumptions!$E$5,'Sateri Model'!F2<=Assumptions!$E$6) -> FALSE | G57: =AND('Sateri Model'!G2>=Assumptions!$E$5,'Sateri Model'!G2<=Assumptions!$E$6) -> FALSE | H57: =AND('Sateri Model'!H2>=Assumptions!$E$5,'Sateri Model'!H2<=Assumptions!$E$6) -> FALSE | I57: =AND('Sateri Model'!I2>=Assumptions!$E$5,'Sateri Model'!I2<=Assumptions!$E$6) -> FALSE | J57: =AND('Sateri Model'!J2>=Assumptions!$E$5,'Sateri Model'!J2<=Assumptions!$E$6) -> TRUE | K57: =AND('Sateri Model'!K2>=Assumptions!$E$5,'Sateri Model'!K2<=Assumptions!$E$6) -> TRUE | L57: =AND('Sateri Model'!L2>=Assumptions!$E$5,'Sateri Model'!L2<=Assumptions!$E$6) -> TRUE | M57: =AND('Sateri Model'!M2>=Assumptions!$E$5,'Sateri Model'!M2<=Assumptions!$E$6) -> TRUE | N57: =AND('Sateri Model'!N2>=Assumptions!$E$5,'Sateri Model'!N2<=Assumptions!$E$6) -> TRUE | O57: =AND('Sateri Model'!O2>=Assumptions!$E$5,'Sateri Model'!O2<=Assumptions!$E$6) -> TRUE | P57: =AND('Sateri Model'!P2>=Assumptions!$E$5,'Sateri Model'!P2<=Assumptions!$E$6) -> TRUE | Q57: =AND('Sateri Model'!Q2>=Assumptions!$E$5,'Sateri Model'!Q2<=Assumptions!$E$6) -> TRUE | R57: =AND('Sateri Model'!R2>=Assumptions!$E$5,'Sateri Model'!R2<=Assumptions!$E$6) -> TRUE | S57: =AND('Sateri Model'!S2>=Assumptions!$E$5,'Sateri Model'!S2<=Assumptions!$E$6) -> TRUE | T57: =AND('Sateri Model'!T2>=Assumptions!$E$5,'Sateri Model'!T2<=Assumptions!$E$6) -> FALSE
B58: Teminal Period Switch | E58: ='Sateri Model'!E2=Assumptions!$E$6 -> FALSE | F58: ='Sateri Model'!F2=Assumptions!$E$6 -> FALSE | G58: ='Sateri Model'!G2=Assumptions!$E$6 -> FALSE | H58: ='Sateri Model'!H2=Assumptions!$E$6 -> FALSE | I58: ='Sateri Model'!I2=Assumptions!$E$6 -> FALSE | J58: ='Sateri Model'!J2=Assumptions!$E$6 -> FALSE | K58: ='Sateri Model'!K2=Assumptions!$E$6 -> FALSE | L58: ='Sateri Model'!L2=Assumptions!$E$6 -> FALSE | M58: ='Sateri Model'!M2=Assumptions!$E$6 -> FALSE | N58: ='Sateri Model'!N2=Assumptions!$E$6 -> FALSE | O58: ='Sateri Model'!O2=Assumptions!$E$6 -> FALSE | P58: ='Sateri Model'!P2=Assumptions!$E$6 -> FALSE | Q58: ='Sateri Model'!Q2=Assumptions!$E$6 -> FALSE | R58: ='Sateri Model'!R2=Assumptions!$E$6 -> FALSE | S58: ='Sateri Model'!S2=Assumptions!$E$6 -> TRUE | T58: ='Sateri Model'!T2=Assumptions!$E$6 -> FALSE
B59: Valuation Period Switch | E59: ='Sateri Model'!E2=Assumptions!$E$5-1 -> FALSE | F59: ='Sateri Model'!F2=Assumptions!$E$5-1 -> FALSE | G59: ='Sateri Model'!G2=Assumptions!$E$5-1 -> FALSE | H59: ='Sateri Model'!H2=Assumptions!$E$5-1 -> FALSE | I59: ='Sateri Model'!I2=Assumptions!$E$5-1 -> TRUE | J59: ='Sateri Model'!J2=Assumptions!$E$5-1 -> FALSE | K59: ='Sateri Model'!K2=Assumptions!$E$5-1 -> FALSE | L59: ='Sateri Model'!L2=Assumptions!$E$5-1 -> FALSE | M59: ='Sateri Model'!M2=Assumptions!$E$5-1 -> FALSE | N59: ='Sateri Model'!N2=Assumptions!$E$5-1 -> FALSE | O59: ='Sateri Model'!O2=Assumptions!$E$5-1 -> FALSE | P59: ='Sateri Model'!P2=Assumptions!$E$5-1 -> FALSE | Q59: ='Sateri Model'!Q2=Assumptions!$E$5-1 -> FALSE | R59: ='Sateri Model'!R2=Assumptions!$E$5-1 -> FALSE | S59: ='Sateri Model'!S2=Assumptions!$E$5-1 -> FALSE | T59: ='Sateri Model'!T2=Assumptions!$E$5-1 -> FALSE
B61: Stable Values in Terminal Period
C62: EBITDA | E62: =E8 -> 73152 | F62: 41077 | G62: 196408 | H62: 427887 | I62: 292768 | J62: 297213.884 | K62: 309239.7008 | L62: 339413.0702 | M62: 370668.5536 | N62: 404683.6909 | O62: 437528.9262 | P62: 472911.8079 | Q62: 511022.7905 | R62: 552066.3652 | S62: 596262.0814 | T62: 643845.6438
C63: Stable Ratio of Working Capial to EBITDA | E63: ='Long-term Analysis'!$E$170 -> 0.01564989204 | F63: ='Long-term Analysis'!$E$170 -> 0.01564989204 | G63: ='Long-term Analysis'!$E$170 -> 0.01564989204 | H63: ='Long-term Analysis'!$E$170 -> 0.01564989204 | I63: ='Long-term Analysis'!$E$170 -> 0.01564989204 | J63: ='Long-term Analysis'!$E$170 -> 0.01564989204 | K63: ='Long-term Analysis'!$E$170 -> 0.01564989204 | L63: ='Long-term Analysis'!$E$170 -> 0.01564989204 | M63: ='Long-term Analysis'!$E$170 -> 0.01564989204 | N63: ='Long-term Analysis'!$E$170 -> 0.01564989204 | O63: ='Long-term Analysis'!$E$170 -> 0.01564989204 | P63: ='Long-term Analysis'!$E$170 -> 0.01564989204 | Q63: ='Long-term Analysis'!$E$170 -> 0.01564989204 | R63: ='Long-term Analysis'!$E$170 -> 0.01564989204 | S63: ='Long-term Analysis'!$E$170 -> 0.01564989204 | T63: ='Long-term Analysis'!$E$170 -> 0.01564989204
C64: Stable Working Capital Change | E64: =E63*E58*E62 -> 0 | F64: 0 | G64: 0 | H64: 0 | I64: 0 | J64: 0 | K64: 0 | L64: 0 | M64: 0 | N64: 0 | O64: 0 | P64: 0 | Q64: 0 | R64: 0 | S64: 9331.437203 | T64: 0
C66: Stable Ratio of Depreciation to EBITDA | E66: ='Long-term Analysis'!$D$149 -> 0.4591686631 | F66: ='Long-term Analysis'!$D$149 -> 0.4591686631 | G66: ='Long-term Analysis'!$D$149 -> 0.4591686631 | H66: ='Long-term Analysis'!$D$149 -> 0.4591686631 | I66: ='Long-term Analysis'!$D$149 -> 0.4591686631 | J66: ='Long-term Analysis'!$D$149 -> 0.4591686631 | K66: ='Long-term Analysis'!$D$149 -> 0.4591686631 | L66: ='Long-term Analysis'!$D$149 -> 0.4591686631 | M66: ='Long-term Analysis'!$D$149 -> 0.4591686631 | N66: ='Long-term Analysis'!$D$149 -> 0.4591686631 | O66: ='Long-term Analysis'!$D$149 -> 0.4591686631 | P66: ='Long-term Analysis'!$D$149 -> 0.4591686631 | Q66: ='Long-term Analysis'!$D$149 -> 0.4591686631 | R66: ='Long-term Analysis'!$D$149 -> 0.4591686631 | S66: ='Long-term Analysis'!$D$149 -> 0.4591686631 | T66: ='Long-term Analysis'!$D$149 -> 0.4591686631
C67: Stable Depreciation | E67: =E66*E62*E58 -> 0 | F67: =F66*F62*F58 -> 0 | G67: 0 | H67: 0 | I67: 0 | J67: 0 | K67: 0 | L67: 0 | M67: 0 | N67: 0 | O67: 0 | P67: 0 | Q67: 0 | R67: 0 | S67: 273784.8628 | T67: 0
C69: Stable Level of Capital Expenditure to Depreciation | E69: ='Long-term Analysis'!$D$74 -> 1.308756526 | F69: ='Long-term Analysis'!$D$74 -> 1.308756526 | G69: ='Long-term Analysis'!$D$74 -> 1.308756526 | H69: ='Long-term Analysis'!$D$74 -> 1.308756526 | I69: ='Long-term Analysis'!$D$74 -> 1.308756526 | J69: ='Long-term Analysis'!$D$74 -> 1.308756526 | K69: ='Long-term Analysis'!$D$74 -> 1.308756526 | L69: ='Long-term Analysis'!$D$74 -> 1.308756526 | M69: ='Long-term Analysis'!$D$74 -> 1.308756526 | N69: ='Long-term Analysis'!$D$74 -> 1.308756526 | O69: ='Long-term Analysis'!$D$74 -> 1.308756526 | P69: ='Long-term Analysis'!$D$74 -> 1.308756526 | Q69: ='Long-term Analysis'!$D$74 -> 1.308756526 | R69: ='Long-term Analysis'!$D$74 -> 1.308756526 | S69: ='Long-term Analysis'!$D$74 -> 1.308756526 | T69: ='Long-term Analysis'!$D$74 -> 1.308756526
C70: Capital Expenditures in Terminal Period | E70: =E69*E67 -> 0 | F70: 0 | G70: 0 | H70: 0 | I70: 0 | J70: 0 | K70: 0 | L70: 0 | M70: 0 | N70: 0 | O70: 0 | P70: 0 | Q70: 0 | R70: 0 | S70: 358317.7259 | T70: 0
C72: Deferred Taxes to Capital Expendtitures | E72: ='Long-term Analysis'!$D$76 -> 0.008893622371 | F72: ='Long-term Analysis'!$D$76 -> 0.008893622371 | G72: ='Long-term Analysis'!$D$76 -> 0.008893622371 | H72: ='Long-term Analysis'!$D$76 -> 0.008893622371 | I72: ='Long-term Analysis'!$D$76 -> 0.008893622371 | J72: ='Long-term Analysis'!$D$76 -> 0.008893622371 | K72: ='Long-term Analysis'!$D$76 -> 0.008893622371 | L72: ='Long-term Analysis'!$D$76 -> 0.008893622371 | M72: ='Long-term Analysis'!$D$76 -> 0.008893622371 | N72: ='Long-term Analysis'!$D$76 -> 0.008893622371 | O72: ='Long-term Analysis'!$D$76 -> 0.008893622371 | P72: ='Long-term Analysis'!$D$76 -> 0.008893622371 | Q72: ='Long-term Analysis'!$D$76 -> 0.008893622371 | R72: ='Long-term Analysis'!$D$76 -> 0.008893622371 | S72: ='Long-term Analysis'!$D$76 -> 0.008893622371 | T72: ='Long-term Analysis'!$D$76 -> 0.008893622371
C73: Deferred Tax Change | E73: =E72*E70 -> 0 | F73: =F72*F70 -> 0 | G73: 0 | H73: 0 | I73: 0 | J73: 0 | K73: 0 | L73: 0 | M73: 0 | N73: 0 | O73: 0 | P73: 0 | Q73: 0 | R73: 0 | S73: 3186.742543 | T73: 0
A75: Method 1: Basic Growth Rate
B76: Free Cash Flow
C77: EBITDA | E77: =E8*E57 -> 0 | F77: 0 | G77: 0 | H77: 0 | I77: 0 | J77: 297213.884 | K77: 309239.7008 | L77: 339413.0702 | M77: 370668.5536 | N77: 404683.6909 | O77: 437528.9262 | P77: 472911.8079 | Q77: 511022.7905 | R77: 552066.3652 | S77: 596262.0814 | T77: 0
C78: Less: Capital Expenditures | E78: =IF(E58,E70,'Sateri Model'!E210+'Sateri Model'!E211)*'Valuation and Ratios'!E57 -> 0 | F78: =IF(F58,F70,'Sateri Model'!F210+'Sateri Model'!F211)*'Valuation and Ratios'!F57 -> 0 | G78: =IF(G58,G70,'Sateri Model'!G210+'Sateri Model'!G211)*'Valuation and Ratios'!G57 -> 0 | H78: =IF(H58,H70,'Sateri Model'!H210+'Sateri Model'!H211)*'Valuation and Ratios'!H57 -> 0 | I78: =IF(I58,I70,'Sateri Model'!I210+'Sateri Model'!I211)*'Valuation and Ratios'!I57 -> 0 | J78: =IF(J58,J70,'Sateri Model'!J210+'Sateri Model'!J211)*'Valuation and Ratios'!J57 -> 45856.1768 | K78: =IF(K58,K70,'Sateri Model'!K210+'Sateri Model'!K211)*'Valuation and Ratios'!K57 -> 76038.09245 | L78: =IF(L58,L70,'Sateri Model'!L210+'Sateri Model'!L211)*'Valuation and Ratios'!L57 -> 164679.7605 | M78: =IF(M58,M70,'Sateri Model'!M210+'Sateri Model'!M211)*'Valuation and Ratios'!M57 -> 166647.7469 | N78: =IF(N58,N70,'Sateri Model'!N210+'Sateri Model'!N211)*'Valuation and Ratios'!N57 -> 182444.7779 | O78: =IF(O58,O70,'Sateri Model'!O210+'Sateri Model'!O211)*'Valuation and Ratios'!O57 -> 176356.7876 | P78: =IF(P58,P70,'Sateri Model'!P210+'Sateri Model'!P211)*'Valuation and Ratios'!P57 -> 189910.0858 | Q78: =IF(Q58,Q70,'Sateri Model'!Q210+'Sateri Model'!Q211)*'Valuation and Ratios'!Q57 -> 204205.2872 | R78: =IF(R58,R70,'Sateri Model'!R210+'Sateri Model'!R211)*'Valuation and Ratios'!R57 -> 219288.6774 | S78: =IF(S58,S70,'Sateri Model'!S210+'Sateri Model'!S211)*'Valuation and Ratios'!S57 -> 358317.7259 | T78: =IF(T58,T70,'Sateri Model'!T210+'Sateri Model'!T211)*'Valuation and Ratios'!T57 -> 0
C79: Less: Changes in Working Capital | E79: =IF(E58,E64,'Sateri Model'!E206)*'Valuation and Ratios'!E57 -> 0 | F79: =IF(F58,F64,'Sateri Model'!F206)*'Valuation and Ratios'!F57 -> 0 | G79: =IF(G58,G64,'Sateri Model'!G206)*'Valuation and Ratios'!G57 -> 0 | H79: =IF(H58,H64,'Sateri Model'!H206)*'Valuation and Ratios'!H57 -> 0 | I79: =IF(I58,I64,'Sateri Model'!I206)*'Valuation and Ratios'!I57 -> 0 | J79: =IF(J58,J64,'Sateri Model'!J206)*'Valuation and Ratios'!J57 -> 14573.59292 | K79: =IF(K58,K64,'Sateri Model'!K206)*'Valuation and Ratios'!K57 -> 16420.01904 | L79: =IF(L58,L64,'Sateri Model'!L206)*'Valuation and Ratios'!L57 -> 20397.92081 | M79: =IF(M58,M64,'Sateri Model'!M206)*'Valuation and Ratios'!M57 -> 20848.79286 | N79: =IF(N58,N64,'Sateri Model'!N206)*'Valuation and Ratios'!N57 -> 22541.71484 | O79: =IF(O58,O64,'Sateri Model'!O206)*'Valuation and Ratios'!O57 -> 21310.58187 | P79: =IF(P58,P64,'Sateri Model'!P206)*'Valuation and Ratios'!P57 -> 22823.63319 | Q79: =IF(Q58,Q64,'Sateri Model'!Q206)*'Valuation and Ratios'!Q57 -> 24444.11114 | R79: =IF(R58,R64,'Sateri Model'!R206)*'Valuation and Ratios'!R57 -> 26179.64303 | S79: =IF(S58,S64,'Sateri Model'!S206)*'Valuation and Ratios'!S57 -> 9331.437203 | T79: =IF(T58,T64,'Sateri Model'!T206)*'Valuation and Ratios'!T57 -> 0
C80: Less: EBIT x Tax Rate | E80: =E46*Assumptions!E74*E57 -> 0 | F80: =F46*Assumptions!F74*F57 -> 0 | G80: =G46*Assumptions!G74*G57 -> 0 | H80: =H46*Assumptions!H74*H57 -> 0 | I80: =I46*Assumptions!I74*I57 -> 0 | J80: =J46*Assumptions!J74*J57 -> 18959.7884 | K80: =K46*Assumptions!K74*K57 -> 20598.43963 | L80: =L46*Assumptions!L74*L57 -> 23675.76513 | M80: =M46*Assumptions!M74*M57 -> 26189.67126 | N80: =N46*Assumptions!N74*N57 -> 28812.78267 | O80: =O46*Assumptions!O74*O57 -> 31091.34101 | P80: =P46*Assumptions!P74*P57 -> 33535.35398 | Q80: =Q46*Assumptions!Q74*Q57 -> 36063.95484 | R80: =R46*Assumptions!R74*R57 -> 38699.84775 | S80: =S46*Assumptions!S74*S57 -> 41464.63083 | T80: =T46*Assumptions!T74*T57 -> 0
C81: Add: Change in Deferred Tax | E81: =E73 -> 0 | F81: =F73 -> 0 | G81: 0 | H81: 0 | I81: 0 | J81: 0 | K81: 0 | L81: 0 | M81: 0 | N81: 0 | O81: 0 | P81: 0 | Q81: 0 | R81: 0 | S81: 3186.742543 | T81: 0
D82: Free Cash Flow | E82: =E77-E78-E79-E80+E81 -> 0 | F82: 0 | G82: 0 | H82: 0 | I82: 0 | J82: 217824.3258 | K82: 196183.1497 | L82: 130659.6237 | M82: 156982.3426 | N82: 170884.4155 | O82: 208770.2157 | P82: 226642.7349 | Q82: 246309.4373 | R82: 267898.197 | S82: 190335.03 | T82: 0
C84: Terminal Value from TV = FCF x (1+g)/(WACC-g) | E84: =E82*(1+Assumptions!$E$104)/(Assumptions!$E$102-Assumptions!$E$104)*E58 -> 0 | F84: =F82*(1+Assumptions!$E$104)/(Assumptions!$E$102-Assumptions!$E$104)*F58 -> 0 | G84: =G82*(1+Assumptions!$E$104)/(Assumptions!$E$102-Assumptions!$E$104)*G58 -> 0 | H84: =H82*(1+Assumptions!$E$104)/(Assumptions!$E$102-Assumptions!$E$104)*H58 -> 0 | I84: =I82*(1+Assumptions!$E$104)/(Assumptions!$E$102-Assumptions!$E$104)*I58 -> 0 | J84: =J82*(1+Assumptions!$E$104)/(Assumptions!$E$102-Assumptions!$E$104)*J58 -> 0 | K84: =K82*(1+Assumptions!$E$104)/(Assumptions!$E$102-Assumptions!$E$104)*K58 -> 0 | L84: =L82*(1+Assumptions!$E$104)/(Assumptions!$E$102-Assumptions!$E$104)*L58 -> 0 | M84: =M82*(1+Assumptions!$E$104)/(Assumptions!$E$102-Assumptions!$E$104)*M58 -> 0 | N84: =N82*(1+Assumptions!$E$104)/(Assumptions!$E$102-Assumptions!$E$104)*N58 -> 0 | O84: =O82*(1+Assumptions!$E$104)/(Assumptions!$E$102-Assumptions!$E$104)*O58 -> 0 | P84: =P82*(1+Assumptions!$E$104)/(Assumptions!$E$102-Assumptions!$E$104)*P58 -> 0 | Q84: =Q82*(1+Assumptions!$E$104)/(Assumptions!$E$102-Assumptions!$E$104)*Q58 -> 0 | R84: =R82*(1+Assumptions!$E$104)/(Assumptions!$E$102-Assumptions!$E$104)*R58 -> 0 | S84: =S82*(1+Assumptions!$E$104)/(Assumptions!$E$102-Assumptions!$E$104)*S58 -> 3448343.35 | T84: =T82*(1+Assumptions!$E$104)/(Assumptions!$E$102-Assumptions!$E$104)*T58 -> 0
I85: 1 | J85: 2 | K85: 3
C86: WACC | E86: =Assumptions!$E$102 -> 0.0763 | F86: =Assumptions!$E$102 -> 0.0763 | G86: =Assumptions!$E$102 -> 0.0763 | H86: =Assumptions!$E$102 -> 0.0763 | I86: =Assumptions!$E$102 -> 0.0763 | J86: =Assumptions!$E$102 -> 0.0763 | K86: =Assumptions!$E$102 -> 0.0763 | L86: =Assumptions!$E$102 -> 0.0763 | M86: =Assumptions!$E$102 -> 0.0763 | N86: =Assumptions!$E$102 -> 0.0763 | O86: =Assumptions!$E$102 -> 0.0763 | P86: =Assumptions!$E$102 -> 0.0763 | Q86: =Assumptions!$E$102 -> 0.0763 | R86: =Assumptions!$E$102 -> 0.0763 | S86: =Assumptions!$E$102 -> 0.0763 | T86: =Assumptions!$E$102 -> 0.0763
C87: Accumulated WACC Index | E87: 1 | F87: =E87*(1+F86*F57) -> 1 | G87: 1 | H87: 1 | I87: 1 | J87: 1.0763 | K87: 1.15842169 | L87: 1.246809265 | M87: 1.341940812 | N87: 1.444330896 | O87: 1.554533343 | P87: 1.673144237 | Q87: 1.800805143 | R87: 1.938206575 | S87: 2.086091737 | T87: 2.086091737
C88: Mid Year Factor | F88: =AVERAGE(F87,E87) -> 1 | G88: 1 | H88: 1 | I88: 1 | J88: 1.03815 | K88: 1.117360845 | L88: 1.202615477 | M88: 1.294375038 | N88: 1.393135854 | O88: 1.499432119 | P88: 1.61383879 | Q88: 1.73697469 | R88: 1.869505859 | S88: 2.012149156 | T88: 2.086091737
C89: PV Factor | F89: =1/F88 -> 1 | G89: 1 | H89: 1 | I89: 1 | J89: 0.9632519385 | K89: 0.8949660304 | L89: 0.8315209797 | M89: 0.772573613 | N89: 0.717805085 | O89: 0.6669191536 | P89: 0.6196405775 | Q89: 0.5757136277 | R89: 0.534900704 | S89: 0.4969810499 | T89: 0.4793653042
C91: PV of Free Cash Flow | E91: =SUMPRODUCT(E82:T82*E89:T89) -> 1397350.723
C92: PV of Terminal Value | E92: =SUMPRODUCT(E84:T84*E89:T89) -> 1713761.299
C94: Total Enterprise Value | E94: =SUM(E91:E93) -> 3111112.021
E96: Mkt Value | F96: Book Value
C97: Less: Short-term Debt at Market Value | E97: =F97 -> -198403 | F97: =-SUMIF($59:$59,TRUE,'Sateri Model'!131:131) -> -198403
C98: Less: Long-term Debt at Market Value | E98: =F98 -> -381729 | F98: =-SUMIF($59:$59,TRUE,'Sateri Model'!132:132) -> -381729
C99: Less: Unfunded Pensions
C100: Add: Investment in Associates at Market Value | E100: =F100 -> 71132 | F100: =SUMIF($59:$59,TRUE,'Sateri Model'!122:122) -> 71132
C101: Add: Cash | E101: =F101 -> 328999 | F101: =SUMIF($59:$59,TRUE,'Sateri Model'!124:124) -> 328999
C102: Add: Derivative Assets | E102: =F102 -> 0 | F102: =SUMIF($59:$59,TRUE,'Sateri Model'!121:121) -> 0
C103: Less: Derivative Liabilitiies | E103: =F103 -> -34133 | F103: =-SUMIF($59:$59,TRUE,'Sateri Model'!129:129) -> -34133
D104: Value to Majority and Minority | E104: =SUM(E94:E103) -> 2896978.021
C105: Percent to Majority | E105: ='Sateri Model'!E133/('Sateri Model'!E133+'Sateri Model'!E134) -> 0.9673880906
D106: Value of Majorty Shares | E106: =E104*E105 -> 2802502.037
C107: Divided by Number of Shares | E107: =SUMIF($59:$59,TRUE,'Historic Financials'!73:73) -> 3094260
D108: Value per Share | E108: =E106/E107 -> 0.9057099393 | F108: =E108*7.7 -> 6.973966532
C110: EBITDA in Valuation Year | E110: =SUMIF($59:$59,TRUE,8:8) -> 292768
C111: Implied EV/EBITDA | E111: =E94/E110 -> 10.62654396
B114: Method 2: Value using Driver Formula
C116: Free Cash Flow | E116: =E82 -> 0 | F116: 0 | G116: 0 | H116: 0 | I116: 0 | J116: 217824.3258 | K116: 196183.1497 | L116: 130659.6237 | M116: 156982.3426 | N116: 170884.4155 | O116: 208770.2157 | P116: 226642.7349 | Q116: 246309.4373 | R116: 267898.197 | S116: 190335.03 | T116: 0
C118: NOPLAT | E118: =E48 -> 44610.3 | F118: 4710.6 | G118: 112609.8 | H118: 293152.5 | I118: 166636.8 | J118: 170638.0956 | K118: 185385.9567 | L118: 213081.8862 | M118: 235707.0413 | N118: 259315.044 | O118: 279822.0691 | P118: 301818.1858 | Q118: 324575.5935 | R118: 348298.6298 | S118: 373181.6775 | T118: 399413.3364
C119: Multiplier: (1-g/ROIC)/(WACC-g) | E119: =(1-Assumptions!E104/Assumptions!E108)/(Assumptions!E102-Assumptions!E104) -> 13.64565346 | F119: =E119 -> 13.64565346 | G119: 13.64565346 | H119: 13.64565346 | I119: 13.64565346 | J119: 13.64565346 | K119: 13.64565346 | L119: 13.64565346 | M119: 13.64565346 | N119: 13.64565346 | O119: 13.64565346 | P119: 13.64565346 | Q119: 13.64565346 | R119: 13.64565346 | S119: 13.64565346 | T119: 13.64565346
C120: Add: Terminal Value using (1-g/ROIC)/(WACC-g) | E120: =E118*E119*E58 -> 0 | F120: 0 | G120: 0 | H120: 0 | I120: 0 | J120: 0 | K120: 0 | L120: 0 | M120: 0 | N120: 0 | O120: 0 | P120: 0 | Q120: 0 | R120: 0 | S120: 5092307.848 | T120: 0
C122: PV of Free Cash Flow | E122: =E91 -> 1397350.723
C123: PV of Terminal Cash Flow | E123: =SUMPRODUCT(E120:T120*E89:T89) -> 2530780.501
C125: Enterprise Value | E125: =E122+E123 -> 3928131.224
C126: Less: Bridge of EV versus Equity | E126: =SUM(E97:E103) -> -214134
C127: Total Equity Value | E127: =E125+E126 -> 3713997.224
C128: Pct to Majority | E128: =E105 -> 0.9673880906
C129: Equity Value for Majority | E129: =E127*E128 -> 3592876.683
C130: Divided by Shares | E130: =E107 -> 3094260
C131: Equity Value per Share | E131: =E129/E130 -> 1.161142465
B133: Method 3: Value using EV/EBITDA formula
C135: Free Cash Flow | E135: =E82 -> 0 | F135: =F82 -> 0 | G135: 0 | H135: 0 | I135: 0 | J135: 217824.3258 | K135: 196183.1497 | L135: 130659.6237 | M135: 156982.3426 | N135: 170884.4155 | O135: 208770.2157 | P135: 226642.7349 | Q135: 246309.4373 | R135: 267898.197 | S135: 190335.03 | T135: 0
C137: EV/EBiTDA Ratio | E137: =Assumptions!$E$110 -> 6.781030623 | F137: =Assumptions!$E$110 -> 6.781030623 | G137: =Assumptions!$E$110 -> 6.781030623 | H137: =Assumptions!$E$110 -> 6.781030623 | I137: =Assumptions!$E$110 -> 6.781030623 | J137: =Assumptions!$E$110 -> 6.781030623 | K137: =Assumptions!$E$110 -> 6.781030623 | L137: =Assumptions!$E$110 -> 6.781030623 | M137: =Assumptions!$E$110 -> 6.781030623 | N137: =Assumptions!$E$110 -> 6.781030623 | O137: =Assumptions!$E$110 -> 6.781030623 | P137: =Assumptions!$E$110 -> 6.781030623 | Q137: =Assumptions!$E$110 -> 6.781030623 | R137: =Assumptions!$E$110 -> 6.781030623 | S137: =Assumptions!$E$110 -> 6.781030623 | T137: =Assumptions!$E$110 -> 6.781030623
C138: Add: Terminal Value from theoretical EV/EBITDA | E138: =E137*E77*E58 -> 0 | F138: =F137*F77*F58 -> 0 | G138: 0 | H138: 0 | I138: 0 | J138: 0 | K138: 0 | L138: 0 | M138: 0 | N138: 0 | O138: 0 | P138: 0 | Q138: 0 | R138: 0 | S138: 4043271.434 | T138: 0
C140: PV of Free Cash Flow | E140: =E122 -> 1397350.723
C141: PV of Terminal Cash Flow | E141: =SUMPRODUCT(E138:T138*E89:T89) -> 2009429.282
C143: Enterprise Value | E143: =E140+E141 -> 3406780.005
C144: Less: Bridge of EV versus Equity | E144: =E126 -> -214134
C145: Total Equity Value | E145: =SUM(E143:E144) -> 3192646.005
C146: Pct to Majority | E146: =E128 -> 0.9673880906
C147: Equity Value for Majority | E147: =E145*E146 -> 3088527.723
C148: Divided by Shares | E148: =E130 -> 3094260
C149: Equity Value per Share | E149: =E147/E148 -> 0.9981474481
B151: Method 4: Equity Cash Flow
C152: Dividends | E152: ='Sateri Model'!E217*'Valuation and Ratios'!E57 -> 0 | F152: ='Sateri Model'!F217*'Valuation and Ratios'!F57 -> 0 | G152: ='Sateri Model'!G217*'Valuation and Ratios'!G57 -> 0 | H152: ='Sateri Model'!H217*'Valuation and Ratios'!H57 -> 0 | I152: ='Sateri Model'!I217*'Valuation and Ratios'!I57 -> 0 | J152: ='Sateri Model'!J217*'Valuation and Ratios'!J57 -> 8160.708497 | K152: ='Sateri Model'!K217*'Valuation and Ratios'!K57 -> 9088.813251 | L152: ='Sateri Model'!L217*'Valuation and Ratios'!L57 -> 10451.04727 | M152: ='Sateri Model'!M217*'Valuation and Ratios'!M57 -> 11534.98414 | N152: ='Sateri Model'!N217*'Valuation and Ratios'!N57 -> 12567.47633 | O152: ='Sateri Model'!O217*'Valuation and Ratios'!O57 -> 13634.20315 | P152: ='Sateri Model'!P217*'Valuation and Ratios'!P57 -> 14788.63956 | Q152: ='Sateri Model'!Q217*'Valuation and Ratios'!Q57 -> 15987.86433 | R152: ='Sateri Model'!R217*'Valuation and Ratios'!R57 -> 17243.44407 | S152: ='Sateri Model'!S217*'Valuation and Ratios'!S57 -> 18566.42481 | T152: ='Sateri Model'!T217*'Valuation and Ratios'!T57 -> 0
C153: Less: New Issuances of Equity | E153: =-'Sateri Model'!E218*'Valuation and Ratios'!E57 -> 0 | F153: =-'Sateri Model'!F218*'Valuation and Ratios'!F57 -> 0 | G153: =-'Sateri Model'!G218*'Valuation and Ratios'!G57 -> 0 | H153: =-'Sateri Model'!H218*'Valuation and Ratios'!H57 -> 0 | I153: =-'Sateri Model'!I218*'Valuation and Ratios'!I57 -> 0 | J153: =-'Sateri Model'!J218*'Valuation and Ratios'!J57 -> 414636.5326 | K153: =-'Sateri Model'!K218*'Valuation and Ratios'!K57 -> 188490.4986 | L153: =-'Sateri Model'!L218*'Valuation and Ratios'!L57 -> 131633.2451 | M153: =-'Sateri Model'!M218*'Valuation and Ratios'!M57 -> 153058.2172 | N153: =-'Sateri Model'!N218*'Valuation and Ratios'!N57 -> 132837.9556 | O153: =-'Sateri Model'!O218*'Valuation and Ratios'!O57 -> 164873.9517 | P153: =-'Sateri Model'!P218*'Valuation and Ratios'!P57 -> 179838.5929 | Q153: =-'Sateri Model'!Q218*'Valuation and Ratios'!Q57 -> 196115.7829 | R153: =-'Sateri Model'!R218*'Valuation and Ratios'!R57 -> 213858.5057 | S153: =-'Sateri Model'!S218*'Valuation and Ratios'!S57 -> 233224.7882 | T153: =-'Sateri Model'!T218*'Valuation and Ratios'!T57 -> 0
C154: Total Equity Cash Flow | E154: =SUM(E152:E153) -> 0 | F154: =SUM(F152:F153) -> 0 | G154: 0 | H154: 0 | I154: 0 | J154: 422797.2411 | K154: 197579.3118 | L154: 142084.2924 | M154: 164593.2013 | N154: 145405.4319 | O154: 178508.1548 | P154: 194627.2325 | Q154: 212103.6473 | R154: 231101.9497 | S154: 251791.213 | T154: 0
C156: ROE in Terminal Year | E156: =E17 -> 0.09592735773 | F156: =F17 -> -0.008771527257 | G156: 0.09491079198 | H156: 0.2458299054 | I156: 0.09526160155 | J156: 0.1055211635 | K156: 0.1290062189 | L156: 0.1456980609 | M156: 0.1536831149 | N156: 0.1583639224 | O156: 0.1616169829 | P156: 0.1657097374 | Q156: 0.1692478311 | R156: 0.1724348991 | S156: 0.175432433 | T156: 0.1782592552
C157: Predicted P/E Ratio from Terminal ROE | E157: ='Long-term Analysis'!$G$34 -> 10.30575644 | F157: ='Long-term Analysis'!$G$34 -> 10.30575644 | G157: ='Long-term Analysis'!$G$34 -> 10.30575644 | H157: ='Long-term Analysis'!$G$34 -> 10.30575644 | I157: ='Long-term Analysis'!$G$34 -> 10.30575644 | J157: ='Long-term Analysis'!$G$34 -> 10.30575644 | K157: ='Long-term Analysis'!$G$34 -> 10.30575644 | L157: ='Long-term Analysis'!$G$34 -> 10.30575644 | M157: ='Long-term Analysis'!$G$34 -> 10.30575644 | N157: ='Long-term Analysis'!$G$34 -> 10.30575644 | O157: ='Long-term Analysis'!$G$34 -> 10.30575644 | P157: ='Long-term Analysis'!$G$34 -> 10.30575644 | Q157: ='Long-term Analysis'!$G$34 -> 10.30575644 | R157: ='Long-term Analysis'!$G$34 -> 10.30575644 | S157: ='Long-term Analysis'!$G$34 -> 10.30575644 | T157: ='Long-term Analysis'!$G$34 -> 10.30575644
C158: Add Terminal Value using P/E or M/B Ratio | E158: =E157*'Sateri Model'!E187*'Valuation and Ratios'!E58 -> 0 | F158: =F157*'Sateri Model'!F187*'Valuation and Ratios'!F58 -> 0 | G158: =G157*'Sateri Model'!G187*'Valuation and Ratios'!G58 -> 0 | H158: =H157*'Sateri Model'!H187*'Valuation and Ratios'!H58 -> 0 | I158: =I157*'Sateri Model'!I187*'Valuation and Ratios'!I58 -> 0 | J158: =J157*'Sateri Model'!J187*'Valuation and Ratios'!J58 -> 0 | K158: =K157*'Sateri Model'!K187*'Valuation and Ratios'!K58 -> 0 | L158: =L157*'Sateri Model'!L187*'Valuation and Ratios'!L58 -> 0 | M158: =M157*'Sateri Model'!M187*'Valuation and Ratios'!M58 -> 0 | N158: =N157*'Sateri Model'!N187*'Valuation and Ratios'!N58 -> 0 | O158: =O157*'Sateri Model'!O187*'Valuation and Ratios'!O58 -> 0 | P158: =P157*'Sateri Model'!P187*'Valuation and Ratios'!P58 -> 0 | Q158: =Q157*'Sateri Model'!Q187*'Valuation and Ratios'!Q58 -> 0 | R158: =R157*'Sateri Model'!R187*'Valuation and Ratios'!R58 -> 0 | S158: =S157*'Sateri Model'!S187*'Valuation and Ratios'!S58 -> 3826821.043 | T158: =T157*'Sateri Model'!T187*'Valuation and Ratios'!T58 -> 0
C159: Total Equity Cash Flow including Terminal | E159: =E158+E154 -> 0 | F159: =F158+F154 -> 0 | G159: 0 | H159: 0 | I159: 0 | J159: 422797.2411 | K159: 197579.3118 | L159: 142084.2924 | M159: 164593.2013 | N159: 145405.4319 | O159: 178508.1548 | P159: 194627.2325 | Q159: 212103.6473 | R159: 231101.9497 | S159: 4078612.256 | T159: 0
C161: Equity Discount Rate | E161: =Assumptions!$E$97 -> 0.09454545455 | F161: =Assumptions!$E$97 -> 0.09454545455 | G161: =Assumptions!$E$97 -> 0.09454545455 | H161: =Assumptions!$E$97 -> 0.09454545455 | I161: =Assumptions!$E$97 -> 0.09454545455 | J161: =Assumptions!$E$97 -> 0.09454545455 | K161: =Assumptions!$E$97 -> 0.09454545455 | L161: =Assumptions!$E$97 -> 0.09454545455 | M161: =Assumptions!$E$97 -> 0.09454545455 | N161: =Assumptions!$E$97 -> 0.09454545455 | O161: =Assumptions!$E$97 -> 0.09454545455 | P161: =Assumptions!$E$97 -> 0.09454545455 | Q161: =Assumptions!$E$97 -> 0.09454545455 | R161: =Assumptions!$E$97 -> 0.09454545455 | S161: =Assumptions!$E$97 -> 0.09454545455 | T161: =Assumptions!$E$97 -> 0.09454545455
C162: Accumulated Index | E162: 1 | F162: =E162*(1+F161*F57) -> 1 | G162: 1 | H162: 1 | I162: 1 | J162: 1.094545455 | K162: 1.198029752 | L162: 1.31129802 | M162: 1.435275287 | N162: 1.570974041 | O162: 1.719502496 | P162: 1.882073641 | Q162: 2.060015149 | R162: 2.254780218 | S162: 2.467959438 | T162: 2.467959438
C163: Lagged Index | F163: =E162 -> 1 | G163: =F162 -> 1 | H163: 1 | I163: 1 | J163: 1 | K163: 1.094545455 | L163: 1.198029752 | M163: 1.31129802 | N163: 1.435275287 | O163: 1.570974041 | P163: 1.719502496 | Q163: 1.882073641 | R163: 2.060015149 | S163: 2.254780218 | T163: 2.467959438
C164: Mid Year | E164: =AVERAGE(E162:E163) -> 1 | F164: =AVERAGE(F162:F163) -> 1 | G164: 1 | H164: 1 | I164: 1 | J164: 1.047272727 | K164: 1.146287603 | L164: 1.254663886 | M164: 1.373286653 | N164: 1.503124664 | O164: 1.645238269 | P164: 1.800788069 | Q164: 1.971044395 | R164: 2.157397683 | S164: 2.361369828 | T164: 2.467959438
C165: Discount Factor | E165: =1/E164 -> 1 | F165: =1/F164 -> 1 | G165: 1 | H165: 1 | I165: 1 | J165: 0.9548611111 | K165: 0.8723814138 | L165: 0.7970262086 | M165: 0.7281800909 | N165: 0.665280814 | O165: 0.6078146972 | P165: 0.555312431 | Q165: 0.5073452442 | R165: 0.4635214025 | S165: 0.423483009 | T165: 0.4051930451
C167: Total Equity Cash Flow including Terminal Value | E167: =SUMPRODUCT(E165:T165*E159:T159) -> 3064443.273
C168: Number of Shares | E168: =E130 -> 3094260
C169: Value per Share | E169: =E167/E168 -> 0.9903638585

Sheet Model Verification
C4: Historic Balance Sheet | D4: ='Historic Financials'!E134 -> TRUE | E4: =IF(D4,"",C4) -> 
C5: Income Statement Reconciles | D5: TRUE | E5: =IF(D5,"",C5) -> 
C6: Balance Sheet Reconciles | D6: TRUE
C7: Invested Capital Test | D7: ='Valuation and Ratios'!E44 -> TRUE
C8: Future Balance Sheet Balances | D8: ='Sateri Model'!E266 -> TRUE
C10: Aggregate Test | D10: =AND(D4:D8) -> TRUE | E10: =E4&E5&E6&E7&E8 -> 
E11: =IF(E10="","Model OK",E10) -> Model OK

Sheet LBO Model
B1: Date | E1: =E8-1 -> 2011 | F1: =E1+1 -> 2012 | G1: =F1+1 -> 2013 | H1: 2014 | I1: 2015 | J1: 2016 | K1: 2017 | L1: 2018 | M1: 2019 | N1: 2020 | O1: 2021 | P1: 2022 | Q1: 2023 | R1: 2024 | S1: 2025 | T1: 2026 | U1: 2027 | V1: 2028 | W1: 2029 | X1: 2030 | Y1: 2031 | Z1: 2032
B2: Match of Date Column | E2: =MATCH(E1,'Sateri Model'!2:2) -> 9 | F2: =MATCH(F1,'Sateri Model'!2:2) -> 10 | G2: =MATCH(G1,'Sateri Model'!2:2) -> 11 | H2: =MATCH(H1,'Sateri Model'!2:2) -> 12 | I2: =MATCH(I1,'Sateri Model'!2:2) -> 13 | J2: =MATCH(J1,'Sateri Model'!2:2) -> 14 | K2: =MATCH(K1,'Sateri Model'!2:2) -> 15 | L2: =MATCH(L1,'Sateri Model'!2:2) -> 16 | M2: =MATCH(M1,'Sateri Model'!2:2) -> 17 | N2: =MATCH(N1,'Sateri Model'!2:2) -> 18 | O2: =MATCH(O1,'Sateri Model'!2:2) -> 19 | P2: =MATCH(P1,'Sateri Model'!2:2) -> 20 | Q2: =MATCH(Q1,'Sateri Model'!2:2) -> 20 | R2: =MATCH(R1,'Sateri Model'!2:2) -> 20 | S2: =MATCH(S1,'Sateri Model'!2:2) -> 20 | T2: =MATCH(T1,'Sateri Model'!2:2) -> 20 | U2: =MATCH(U1,'Sateri Model'!2:2) -> 20 | V2: =MATCH(V1,'Sateri Model'!2:2) -> 20 | W2: =MATCH(W1,'Sateri Model'!2:2) -> 20 | X2: =MATCH(X1,'Sateri Model'!2:2) -> 20 | Y2: =MATCH(Y1,'Sateri Model'!2:2) -> 20 | Z2: =MATCH(Z1,'Sateri Model'!2:2) -> 20
A4: LBO Assumptions for Valuation using Equity Cash Flow
I5: =E12 -> 0.1588351209
B6: Transaction Assumptions | H6: 1 | I6: 0.05889798807
H7: 2 | I7: 0.1187652956
D8: Purchase Date | E8: 2012 | H8: 3 | I8: 0.1443518263
H9: 4 | I9: 0.1544005562
D10: Entry EV/EBITDA Multiple | E10: 7.447656952 | H10: 5 | I10: 0.1582256339
D11: Target Equity IRR | E11: 0.15 | H11: 6 | I11: 0.1588351209
D12: Earned Equity IRR | E12: =E88 -> 0.1588351209 | H12: 7 | I12: 0.1582721918
D13: Difference | E13: =E11-E12 -> -0.008835120886 | H13: 8 | I13: 0.1578875768
D14: Holding Period | E14: =I20 -> 6 | H14: 9 | I14: 0.1576226627
D15: Exit EV/EBITDA Multiple | E15: 7 | H15: 10 | I15: 0.1574429793
H16: 11 | I16: 0.1572729004
B17: Financing Assumptions | H17: 12 | I17: 0.1515029926
D19: Debt to EBIDA | E19: 3.09 | H19: Max IRR | I19: =MAX(I6:I17) -> 0.1588351209
D20: Interest Rate | E20: 0.0525 | H20: Match | I20: =MATCH(I19,I6:I17,0) -> 6
D21: Cash Sweep Pct | E21: 1
B23: EBITDA | E23: =INDEX('Sateri Model'!36:36,'LBO Model'!E2) -> 292768 | F23: =INDEX('Sateri Model'!36:36,'LBO Model'!F2) -> 297213.884 | G23: =INDEX('Sateri Model'!36:36,'LBO Model'!G2) -> 309239.7008 | H23: =INDEX('Sateri Model'!36:36,'LBO Model'!H2) -> 339413.0702 | I23: =INDEX('Sateri Model'!36:36,'LBO Model'!I2) -> 370668.5536 | J23: =INDEX('Sateri Model'!36:36,'LBO Model'!J2) -> 404683.6909 | K23: =INDEX('Sateri Model'!36:36,'LBO Model'!K2) -> 437528.9262 | L23: =INDEX('Sateri Model'!36:36,'LBO Model'!L2) -> 472911.8079 | M23: =INDEX('Sateri Model'!36:36,'LBO Model'!M2) -> 511022.7905 | N23: =INDEX('Sateri Model'!36:36,'LBO Model'!N2) -> 552066.3652 | O23: =INDEX('Sateri Model'!36:36,'LBO Model'!O2) -> 596262.0814 | P23: =INDEX('Sateri Model'!36:36,'LBO Model'!P2) -> 643845.6438 | Q23: =INDEX('Sateri Model'!36:36,'LBO Model'!Q2) -> 643845.6438 | R23: =INDEX('Sateri Model'!36:36,'LBO Model'!R2) -> 643845.6438 | S23: =INDEX('Sateri Model'!36:36,'LBO Model'!S2) -> 643845.6438 | T23: =INDEX('Sateri Model'!36:36,'LBO Model'!T2) -> 643845.6438 | U23: =INDEX('Sateri Model'!36:36,'LBO Model'!U2) -> 643845.6438 | V23: =INDEX('Sateri Model'!36:36,'LBO Model'!V2) -> 643845.6438 | W23: =INDEX('Sateri Model'!36:36,'LBO Model'!W2) -> 643845.6438 | X23: =INDEX('Sateri Model'!36:36,'LBO Model'!X2) -> 643845.6438 | Y23: =INDEX('Sateri Model'!36:36,'LBO Model'!Y2) -> 643845.6438 | Z23: =INDEX('Sateri Model'!36:36,'LBO Model'!Z2) -> 643845.6438
B25: Sources and Uses of Funds
C26: Uses
D27: Purchase Price of Company | E27: =E23*E10 -> 2180435.63
C29: Souces of Funds
D30: Debt | E30: =E23*E19 -> 904653.12
D31: Equity | E31: =E27-E30 -> 1275782.51
D32: Total | E32: =SUM(E30:E31) -> 2180435.63
B34: Debt Schedule
C35: Opening Balance | F35: =E37 -> 904653.12 | G35: =F37 -> 729573.6541 | H35: 567862.8596 | I35: 464034.756 | J35: 328978.0556 | K35: 173637.8532 | L35: 0 | M35: 0 | N35: 0 | O35: 0 | P35: 0 | Q35: 0 | R35: 0 | S35: 0 | T35: 0 | U35: 0 | V35: 0 | W35: 0 | X35: 0 | Y35: 0 | Z35: 0
C36: Less: Repayment | F36: =F84 -> 175079.4659 | G36: =G84 -> 161710.7945 | H36: 103828.1036 | I36: 135056.7004 | J36: 155340.2024 | K36: 173637.8532 | L36: 0 | M36: 0 | N36: 0 | O36: 0 | P36: 0 | Q36: 0 | R36: 0 | S36: 0 | T36: 0 | U36: 0 | V36: 0 | W36: 0 | X36: 0 | Y36: 0 | Z36: 0
C37: Closing Balance | E37: =E30 -> 904653.12 | F37: =F35-F36 -> 729573.6541 | G37: =G35-G36 -> 567862.8596 | H37: 464034.756 | I37: 328978.0556 | J37: 173637.8532 | K37: 0 | L37: 0 | M37: 0 | N37: 0 | O37: 0 | P37: 0 | Q37: 0 | R37: 0 | S37: 0 | T37: 0 | U37: 0 | V37: 0 | W37: 0 | X37: 0 | Y37: 0 | Z37: 0
C39: Interest Rate | F39: =$E$20 -> 0.0525 | G39: =$E$20 -> 0.0525 | H39: 0.0525 | I39: 0.0525 | J39: 0.0525 | K39: 0.0525 | L39: 0.0525 | M39: 0.0525 | N39: 0.0525 | O39: 0.0525 | P39: 0.0525 | Q39: 0.0525 | R39: 0.0525 | S39: 0.0525 | T39: 0.0525 | U39: 0.0525 | V39: 0.0525 | W39: 0.0525 | X39: 0.0525 | Y39: 0.0525 | Z39: 0.0525
C40: Interest Expense | F40: =F39*F35 -> 47494.2888 | G40: =G39*G35 -> 38302.61684 | H40: 29812.80013 | I40: 24361.82469 | J40: 17271.34792 | K40: 9115.987292 | L40: 0 | M40: 0 | N40: 0 | O40: 0 | P40: 0 | Q40: 0 | R40: 0 | S40: 0 | T40: 0 | U40: 0 | V40: 0 | W40: 0 | X40: 0 | Y40: 0 | Z40: 0
A42: Operating Analysis
B43: Period of Analysis | E43: 0 | F43: 1 | G43: 2 | H43: 3 | I43: 4 | J43: 5 | K43: 6 | L43: 7 | M43: 8 | N43: 9 | O43: 10 | P43: 11 | Q43: 12 | R43: 13 | S43: 14 | T43: 15 | U43: 16 | V43: 17 | W43: 18 | X43: 19 | Y43: 20 | Z43: 21
B44: Holding Period Switch | F44: =F43<=$E$14 -> TRUE | G44: =G43<=$E$14 -> TRUE | H44: TRUE | I44: TRUE | J44: TRUE | K44: TRUE | L44: FALSE | M44: FALSE | N44: FALSE | O44: FALSE | P44: FALSE | Q44: FALSE | R44: FALSE | S44: FALSE | T44: FALSE | U44: FALSE | V44: FALSE | W44: FALSE | X44: FALSE | Y44: FALSE | Z44: FALSE
B45: Terminal Period Switch | F45: =F43=$E$14 -> FALSE | G45: =G43=$E$14 -> FALSE | H45: FALSE | I45: FALSE | J45: FALSE | K45: TRUE | L45: FALSE | M45: FALSE | N45: FALSE | O45: FALSE | P45: FALSE | Q45: FALSE | R45: FALSE | S45: FALSE | T45: FALSE | U45: FALSE | V45: FALSE | W45: FALSE | X45: FALSE | Y45: FALSE | Z45: FALSE
B47: EBITDA | F47: =F44*F23 -> 297213.884 | G47: =G44*G23 -> 309239.7008 | H47: 339413.0702 | I47: 370668.5536 | J47: 404683.6909 | K47: 437528.9262 | L47: 0 | M47: 0 | N47: 0 | O47: 0 | P47: 0 | Q47: 0 | R47: 0 | S47: 0 | T47: 0 | U47: 0 | V47: 0 | W47: 0 | X47: 0 | Y47: 0 | Z47: 0
B48: Capital Expenditures | F48: =INDEX('Sateri Model'!48:48,'LBO Model'!F2)*'LBO Model'!F44 -> 45856.1768 | G48: =INDEX('Sateri Model'!48:48,'LBO Model'!G2)*'LBO Model'!G44 -> 76038.09245 | H48: =INDEX('Sateri Model'!48:48,'LBO Model'!H2)*'LBO Model'!H44 -> 164679.7605 | I48: =INDEX('Sateri Model'!48:48,'LBO Model'!I2)*'LBO Model'!I44 -> 166647.7469 | J48: =INDEX('Sateri Model'!48:48,'LBO Model'!J2)*'LBO Model'!J44 -> 182444.7779 | K48: =INDEX('Sateri Model'!48:48,'LBO Model'!K2)*'LBO Model'!K44 -> 176356.7876 | L48: =INDEX('Sateri Model'!48:48,'LBO Model'!L2)*'LBO Model'!L44 -> 0 | M48: =INDEX('Sateri Model'!48:48,'LBO Model'!M2)*'LBO Model'!M44 -> 0 | N48: =INDEX('Sateri Model'!48:48,'LBO Model'!N2)*'LBO Model'!N44 -> 0 | O48: =INDEX('Sateri Model'!48:48,'LBO Model'!O2)*'LBO Model'!O44 -> 0 | P48: =INDEX('Sateri Model'!48:48,'LBO Model'!P2)*'LBO Model'!P44 -> 0 | Q48: =INDEX('Sateri Model'!48:48,'LBO Model'!Q2)*'LBO Model'!Q44 -> 0 | R48: =INDEX('Sateri Model'!48:48,'LBO Model'!R2)*'LBO Model'!R44 -> 0 | S48: =INDEX('Sateri Model'!48:48,'LBO Model'!S2)*'LBO Model'!S44 -> 0 | T48: =INDEX('Sateri Model'!48:48,'LBO Model'!T2)*'LBO Model'!T44 -> 0 | U48: =INDEX('Sateri Model'!48:48,'LBO Model'!U2)*'LBO Model'!U44 -> 0 | V48: =INDEX('Sateri Model'!48:48,'LBO Model'!V2)*'LBO Model'!V44 -> 0 | W48: =INDEX('Sateri Model'!48:48,'LBO Model'!W2)*'LBO Model'!W44 -> 0 | X48: =INDEX('Sateri Model'!48:48,'LBO Model'!X2)*'LBO Model'!X44 -> 0 | Y48: =INDEX('Sateri Model'!48:48,'LBO Model'!Y2)*'LBO Model'!Y44 -> 0 | Z48: =INDEX('Sateri Model'!48:48,'LBO Model'!Z2)*'LBO Model'!Z44 -> 0
B50: Terminal EV/EBITDA | F50: =$E$15 -> 7 | G50: =$E$15 -> 7 | H50: 7 | I50: 7 | J50: 7 | K50: 7 | L50: 7 | M50: 7 | N50: 7 | O50: 7 | P50: 7 | Q50: 7 | R50: 7 | S50: 7 | T50: 7 | U50: 7 | V50: 7 | W50: 7 | X50: 7 | Y50: 7 | Z50: 7
B51: Exit Proceeds | F51: =F50*F47*F45 -> 0 | G51: =G50*G47*G45 -> 0 | H51: 0 | I51: 0 | J51: 0 | K51: 3062702.483 | L51: 0 | M51: 0 | N51: 0 | O51: 0 | P51: 0 | Q51: 0 | R51: 0 | S51: 0 | T51: 0 | U51: 0 | V51: 0 | W51: 0 | X51: 0 | Y51: 0 | Z51: 0
A53: Depreciation Section
B55: Depreciation | F55: =INDEX('Sateri Model'!115:115,'LBO Model'!F$2)*'LBO Model'!F$44 -> 69962 | G55: =INDEX('Sateri Model'!115:115,'LBO Model'!G2)*'LBO Model'!G44 -> 66600.18974 | H55: =INDEX('Sateri Model'!115:115,'LBO Model'!H2)*'LBO Model'!H44 -> 64816.58766 | I55: =INDEX('Sateri Model'!115:115,'LBO Model'!I2)*'LBO Model'!I44 -> 67839.09807 | J55: =INDEX('Sateri Model'!115:115,'LBO Model'!J2)*'LBO Model'!J44 -> 70834.59822 | K55: =INDEX('Sateri Model'!115:115,'LBO Model'!K2)*'LBO Model'!K44 -> 74538.37922 | L55: =INDEX('Sateri Model'!115:115,'LBO Model'!L2)*'LBO Model'!L44 -> 0 | M55: =INDEX('Sateri Model'!115:115,'LBO Model'!M2)*'LBO Model'!M44 -> 0 | N55: =INDEX('Sateri Model'!115:115,'LBO Model'!N2)*'LBO Model'!N44 -> 0 | O55: =INDEX('Sateri Model'!115:115,'LBO Model'!O2)*'LBO Model'!O44 -> 0 | P55: =INDEX('Sateri Model'!115:115,'LBO Model'!P2)*'LBO Model'!P44 -> 0 | Q55: =INDEX('Sateri Model'!115:115,'LBO Model'!Q2)*'LBO Model'!Q44 -> 0 | R55: =INDEX('Sateri Model'!115:115,'LBO Model'!R2)*'LBO Model'!R44 -> 0 | S55: =INDEX('Sateri Model'!115:115,'LBO Model'!S2)*'LBO Model'!S44 -> 0 | T55: =INDEX('Sateri Model'!115:115,'LBO Model'!T2)*'LBO Model'!T44 -> 0 | U55: =INDEX('Sateri Model'!115:115,'LBO Model'!U2)*'LBO Model'!U44 -> 0 | V55: =INDEX('Sateri Model'!115:115,'LBO Model'!V2)*'LBO Model'!V44 -> 0 | W55: =INDEX('Sateri Model'!115:115,'LBO Model'!W2)*'LBO Model'!W44 -> 0 | X55: =INDEX('Sateri Model'!115:115,'LBO Model'!X2)*'LBO Model'!X44 -> 0 | Y55: =INDEX('Sateri Model'!115:115,'LBO Model'!Y2)*'LBO Model'!Y44 -> 0 | Z55: =INDEX('Sateri Model'!115:115,'LBO Model'!Z2)*'LBO Model'!Z44 -> 0
B56: Depletion | F56: =INDEX('Sateri Model'!116:116,'LBO Model'!F$2)*'LBO Model'!F$44 -> 37654 | G56: =INDEX('Sateri Model'!116:116,'LBO Model'!G$2)*'LBO Model'!G$44 -> 36655.11475 | H56: =INDEX('Sateri Model'!116:116,'LBO Model'!H$2)*'LBO Model'!H$44 -> 37838.8312 | I56: =INDEX('Sateri Model'!116:116,'LBO Model'!I$2)*'LBO Model'!I$44 -> 40932.743 | J56: =INDEX('Sateri Model'!116:116,'LBO Model'!J$2)*'LBO Model'!J$44 -> 45721.26599 | K56: =INDEX('Sateri Model'!116:116,'LBO Model'!K$2)*'LBO Model'!K$44 -> 52077.13691 | L56: =INDEX('Sateri Model'!116:116,'LBO Model'!L$2)*'LBO Model'!L$44 -> 0 | M56: =INDEX('Sateri Model'!116:116,'LBO Model'!M$2)*'LBO Model'!M$44 -> 0 | N56: =INDEX('Sateri Model'!116:116,'LBO Model'!N$2)*'LBO Model'!N$44 -> 0 | O56: =INDEX('Sateri Model'!116:116,'LBO Model'!O$2)*'LBO Model'!O$44 -> 0 | P56: =INDEX('Sateri Model'!116:116,'LBO Model'!P$2)*'LBO Model'!P$44 -> 0 | Q56: =INDEX('Sateri Model'!116:116,'LBO Model'!Q$2)*'LBO Model'!Q$44 -> 0 | R56: =INDEX('Sateri Model'!116:116,'LBO Model'!R$2)*'LBO Model'!R$44 -> 0 | S56: =INDEX('Sateri Model'!116:116,'LBO Model'!S$2)*'LBO Model'!S$44 -> 0 | T56: =INDEX('Sateri Model'!116:116,'LBO Model'!T$2)*'LBO Model'!T$44 -> 0 | U56: =INDEX('Sateri Model'!116:116,'LBO Model'!U$2)*'LBO Model'!U$44 -> 0 | V56: =INDEX('Sateri Model'!116:116,'LBO Model'!V$2)*'LBO Model'!V$44 -> 0 | W56: =INDEX('Sateri Model'!116:116,'LBO Model'!W$2)*'LBO Model'!W$44 -> 0 | X56: =INDEX('Sateri Model'!116:116,'LBO Model'!X$2)*'LBO Model'!X$44 -> 0 | Y56: =INDEX('Sateri Model'!116:116,'LBO Model'!Y$2)*'LBO Model'!Y$44 -> 0 | Z56: =INDEX('Sateri Model'!116:116,'LBO Model'!Z$2)*'LBO Model'!Z$44 -> 0
A58: Working Capital Section
B60: Change in Working Capital | F60: =INDEX('Sateri Model'!69:69,'LBO Model'!F2)*'LBO Model'!F44 -> 14573.59292 | G60: =INDEX('Sateri Model'!69:69,'LBO Model'!G2)*'LBO Model'!G44 -> 16420.01904 | H60: =INDEX('Sateri Model'!69:69,'LBO Model'!H2)*'LBO Model'!H44 -> 20397.92081 | I60: =INDEX('Sateri Model'!69:69,'LBO Model'!I2)*'LBO Model'!I44 -> 20848.79286 | J60: =INDEX('Sateri Model'!69:69,'LBO Model'!J2)*'LBO Model'!J44 -> 22541.71484 | K60: =INDEX('Sateri Model'!69:69,'LBO Model'!K2)*'LBO Model'!K44 -> 21310.58187 | L60: =INDEX('Sateri Model'!69:69,'LBO Model'!L2)*'LBO Model'!L44 -> 0 | M60: =INDEX('Sateri Model'!69:69,'LBO Model'!M2)*'LBO Model'!M44 -> 0 | N60: =INDEX('Sateri Model'!69:69,'LBO Model'!N2)*'LBO Model'!N44 -> 0 | O60: =INDEX('Sateri Model'!69:69,'LBO Model'!O2)*'LBO Model'!O44 -> 0 | P60: =INDEX('Sateri Model'!69:69,'LBO Model'!P2)*'LBO Model'!P44 -> 0 | Q60: =INDEX('Sateri Model'!69:69,'LBO Model'!Q2)*'LBO Model'!Q44 -> 0 | R60: =INDEX('Sateri Model'!69:69,'LBO Model'!R2)*'LBO Model'!R44 -> 0 | S60: =INDEX('Sateri Model'!69:69,'LBO Model'!S2)*'LBO Model'!S44 -> 0 | T60: =INDEX('Sateri Model'!69:69,'LBO Model'!T2)*'LBO Model'!T44 -> 0 | U60: =INDEX('Sateri Model'!69:69,'LBO Model'!U2)*'LBO Model'!U44 -> 0 | V60: =INDEX('Sateri Model'!69:69,'LBO Model'!V2)*'LBO Model'!V44 -> 0 | W60: =INDEX('Sateri Model'!69:69,'LBO Model'!W2)*'LBO Model'!W44 -> 0 | X60: =INDEX('Sateri Model'!69:69,'LBO Model'!X2)*'LBO Model'!X44 -> 0 | Y60: =INDEX('Sateri Model'!69:69,'LBO Model'!Y2)*'LBO Model'!Y44 -> 0 | Z60: =INDEX('Sateri Model'!69:69,'LBO Model'!Z2)*'LBO Model'!Z44 -> 0
A63: Profit and Loss
B64: Income Tax Rate | F64: =Assumptions!E74 -> 0.1 | G64: =F64 -> 0.1 | H64: =G64 -> 0.1 | I64: 0.1 | J64: 0.1 | K64: 0.1 | L64: 0.1 | M64: 0.1 | N64: 0.1 | O64: 0.1 | P64: 0.1 | Q64: 0.1 | R64: 0.1 | S64: 0.1 | T64: 0.1 | U64: 0.1 | V64: 0.1 | W64: 0.1 | X64: 0.1 | Y64: 0.1 | Z64: 0.1
B66: EBITDA | F66: =F47 -> 297213.884 | G66: =G47 -> 309239.7008 | H66: 339413.0702 | I66: 370668.5536 | J66: 404683.6909 | K66: 437528.9262 | L66: 0 | M66: 0 | N66: 0 | O66: 0 | P66: 0 | Q66: 0 | R66: 0 | S66: 0 | T66: 0 | U66: 0 | V66: 0 | W66: 0 | X66: 0 | Y66: 0 | Z66: 0
B67: Less: Depreciation and Depletion | F67: =F55+F56 -> 107616 | G67: =G55+G56 -> 103255.3045 | H67: 102655.4189 | I67: 108771.8411 | J67: 116555.8642 | K67: 126615.5161 | L67: 0 | M67: 0 | N67: 0 | O67: 0 | P67: 0 | Q67: 0 | R67: 0 | S67: 0 | T67: 0 | U67: 0 | V67: 0 | W67: 0 | X67: 0 | Y67: 0 | Z67: 0
C68: EBIT | F68: =F66-F67 -> 189597.884 | G68: =G66-G67 -> 205984.3963 | H68: 236757.6513 | I68: 261896.7126 | J68: 288127.8267 | K68: 310913.4101 | L68: 0 | M68: 0 | N68: 0 | O68: 0 | P68: 0 | Q68: 0 | R68: 0 | S68: 0 | T68: 0 | U68: 0 | V68: 0 | W68: 0 | X68: 0 | Y68: 0 | Z68: 0
B69: Less: Interest | F69: =F40 -> 47494.2888 | G69: =G40 -> 38302.61684 | H69: 29812.80013 | I69: 24361.82469 | J69: 17271.34792 | K69: 9115.987292 | L69: 0 | M69: 0 | N69: 0 | O69: 0 | P69: 0 | Q69: 0 | R69: 0 | S69: 0 | T69: 0 | U69: 0 | V69: 0 | W69: 0 | X69: 0 | Y69: 0 | Z69: 0
C70: EBT | F70: =F68-F69 -> 142103.5952 | G70: =G68-G69 -> 167681.7795 | H70: 206944.8512 | I70: 237534.8879 | J70: 270856.4788 | K70: 301797.4228 | L70: 0 | M70: 0 | N70: 0 | O70: 0 | P70: 0 | Q70: 0 | R70: 0 | S70: 0 | T70: 0 | U70: 0 | V70: 0 | W70: 0 | X70: 0 | Y70: 0 | Z70: 0
B71: Less: Taxes | F71: =F70*F64 -> 14210.35952 | G71: =G70*G64 -> 16768.17795 | H71: 20694.48512 | I71: 23753.48879 | J71: 27085.64788 | K71: 30179.74228 | L71: 0 | M71: 0 | N71: 0 | O71: 0 | P71: 0 | Q71: 0 | R71: 0 | S71: 0 | T71: 0 | U71: 0 | V71: 0 | W71: 0 | X71: 0 | Y71: 0 | Z71: 0
C72: Earnings | F72: =F70-F71 -> 127893.2356 | G72: =G70-G71 -> 150913.6015 | H72: 186250.3661 | I72: 213781.3991 | J72: 243770.8309 | K72: 271617.6805 | L72: 0 | M72: 0 | N72: 0 | O72: 0 | P72: 0 | Q72: 0 | R72: 0 | S72: 0 | T72: 0 | U72: 0 | V72: 0 | W72: 0 | X72: 0 | Y72: 0 | Z72: 0
A74: Cash Flow Statement
B75: EBITDA | F75: =F66 -> 297213.884 | G75: =G66 -> 309239.7008 | H75: 339413.0702 | I75: 370668.5536 | J75: 404683.6909 | K75: 437528.9262 | L75: 0 | M75: 0 | N75: 0 | O75: 0 | P75: 0 | Q75: 0 | R75: 0 | S75: 0 | T75: 0 | U75: 0 | V75: 0 | W75: 0 | X75: 0 | Y75: 0 | Z75: 0
B76: Less: WC Change | F76: =F60 -> 14573.59292 | G76: =G60 -> 16420.01904 | H76: 20397.92081 | I76: 20848.79286 | J76: 22541.71484 | K76: 21310.58187 | L76: 0 | M76: 0 | N76: 0 | O76: 0 | P76: 0 | Q76: 0 | R76: 0 | S76: 0 | T76: 0 | U76: 0 | V76: 0 | W76: 0 | X76: 0 | Y76: 0 | Z76: 0
B77: Less: Taxes | F77: =F71 -> 14210.35952 | G77: =G71 -> 16768.17795 | H77: 20694.48512 | I77: 23753.48879 | J77: 27085.64788 | K77: 30179.74228 | L77: 0 | M77: 0 | N77: 0 | O77: 0 | P77: 0 | Q77: 0 | R77: 0 | S77: 0 | T77: 0 | U77: 0 | V77: 0 | W77: 0 | X77: 0 | Y77: 0 | Z77: 0
C78: Cash Flow from Operations | F78: =F75-F76-F77 -> 268429.9315 | G78: =G75-G76-G77 -> 276051.5038 | H78: 298320.6642 | I78: 326066.272 | J78: 355056.3282 | K78: 386038.602 | L78: 0 | M78: 0 | N78: 0 | O78: 0 | P78: 0 | Q78: 0 | R78: 0 | S78: 0 | T78: 0 | U78: 0 | V78: 0 | W78: 0 | X78: 0 | Y78: 0 | Z78: 0
B79: Less: Capital Expenditures | F79: =F48 -> 45856.1768 | G79: =G48 -> 76038.09245 | H79: 164679.7605 | I79: 166647.7469 | J79: 182444.7779 | K79: 176356.7876 | L79: 0 | M79: 0 | N79: 0 | O79: 0 | P79: 0 | Q79: 0 | R79: 0 | S79: 0 | T79: 0 | U79: 0 | V79: 0 | W79: 0 | X79: 0 | Y79: 0 | Z79: 0
B80: Add: Terminal Proceeds | F80: =F51 -> 0 | G80: =G51 -> 0 | H80: 0 | I80: 0 | J80: 0 | K80: 3062702.483 | L80: 0 | M80: 0 | N80: 0 | O80: 0 | P80: 0 | Q80: 0 | R80: 0 | S80: 0 | T80: 0 | U80: 0 | V80: 0 | W80: 0 | X80: 0 | Y80: 0 | Z80: 0
C81: Cash Flow Before Debt Service | F81: =F78-F79+F80 -> 222573.7547 | G81: =G78-G79+G80 -> 200013.4114 | H81: 133640.9037 | I81: 159418.5251 | J81: 172611.5503 | K81: 3272384.298 | L81: 0 | M81: 0 | N81: 0 | O81: 0 | P81: 0 | Q81: 0 | R81: 0 | S81: 0 | T81: 0 | U81: 0 | V81: 0 | W81: 0 | X81: 0 | Y81: 0 | Z81: 0
B82: Less: Interest Expense | F82: =F69 -> 47494.2888 | G82: =G69 -> 38302.61684 | H82: 29812.80013 | I82: 24361.82469 | J82: 17271.34792 | K82: 9115.987292 | L82: 0 | M82: 0 | N82: 0 | O82: 0 | P82: 0 | Q82: 0 | R82: 0 | S82: 0 | T82: 0 | U82: 0 | V82: 0 | W82: 0 | X82: 0 | Y82: 0 | Z82: 0
C83: Cash Flow Before Sweep | F83: =F81-F82 -> 175079.4659 | G83: =G81-G82 -> 161710.7945 | H83: 103828.1036 | I83: 135056.7004 | J83: 155340.2024 | K83: 3263268.311 | L83: 0 | M83: 0 | N83: 0 | O83: 0 | P83: 0 | Q83: 0 | R83: 0 | S83: 0 | T83: 0 | U83: 0 | V83: 0 | W83: 0 | X83: 0 | Y83: 0 | Z83: 0
B84: Less: Cash Flow paid to bank with sweep | F84: =MIN(F83,F35) -> 175079.4659 | G84: =MIN(G83,G35) -> 161710.7945 | H84: 103828.1036 | I84: 135056.7004 | J84: 155340.2024 | K84: 173637.8532 | L84: 0 | M84: 0 | N84: 0 | O84: 0 | P84: 0 | Q84: 0 | R84: 0 | S84: 0 | T84: 0 | U84: 0 | V84: 0 | W84: 0 | X84: 0 | Y84: 0 | Z84: 0
C85: Dividends | F85: =F83-F84 -> 0 | G85: =G83-G84 -> 0 | H85: 0 | I85: 0 | J85: 0 | K85: 3089630.457 | L85: 0 | M85: 0 | N85: 0 | O85: 0 | P85: 0 | Q85: 0 | R85: 0 | S85: 0 | T85: 0 | U85: 0 | V85: 0 | W85: 0 | X85: 0 | Y85: 0 | Z85: 0
B87: Equity Cash Flow | E87: =-E31 -> -1275782.51 | F87: =F85 -> 0 | G87: =G85 -> 0 | H87: 0 | I87: 0 | J87: 0 | K87: 3089630.457 | L87: 0 | M87: 0 | N87: 0 | O87: 0 | P87: 0 | Q87: 0 | R87: 0 | S87: 0 | T87: 0 | U87: 0 | V87: 0 | W87: 0 | X87: 0 | Y87: 0 | Z87: 0
B88: Equity IRR Earned | E88: =IRR(E87:Z87) -> 0.1588351209

Sheet Long-term Analysis
A2: Growth Rate Analysis
C4: Population Growth | D4: 0.02
C5: Productivity Growth | D5: 0.005 | F5: Years to | G5: 0.5 | H5: =MATCH(G5,D18:KR18) -> 22
C6: Total Growth | D6: =(1+D4)*(1+D5)-1 -> 0.0251
C8: Mining Industry
C9: Percent of GDP | D9: 0.04
C10: Mining Industry Growth | D10: 0.15
C12: Year | D12: 0 | E12: =D12+1 -> 1 | F12: =E12+1 -> 2 | G12: 3 | H12: 4 | I12: 5 | J12: 6 | K12: 7 | L12: 8 | M12: 9 | N12: 10 | O12: 11 | P12: 12 | Q12: 13 | R12: 14 | S12: 15 | T12: 16 | U12: 17 | V12: 18 | W12: 19 | X12: 20 | Y12: 21 | Z12: 22 | AA12: 23 | AB12: 24 | AC12: 25 | AD12: 26 | AE12: 27 | AF12: 28 | AG12: 29 | AH12: 30 | AI12: 31 | AJ12: 32 | AK12: 33 | AL12: 34 | AM12: 35 | AN12: 36 | AO12: 37 | AP12: 38 | AQ12: 39 | AR12: 40 | AS12: 41 | AT12: 42 | AU12: 43 | AV12: 44 | AW12: 45 | AX12: 46 | AY12: 47 | AZ12: 48 | BA12: 49 | BB12: 50 | BC12: 51 | BD12: 52 | BE12: 53 | BF12: 54 | BG12: 55 | BH12: 56 | BI12: 57 | BJ12: 58 | BK12: 59 | BL12: 60 | BM12: 61 | BN12: 62 | BO12: 63 | BP12: 64 | BQ12: 65 | BR12: =BQ12+1 -> 66 | BS12: 67 | BT12: 68 | BU12: 69 | BV12: 70 | BW12: 71 | BX12: 72 | BY12: 73 | BZ12: 74 | CA12: 75 | CB12: 76 | CC12: 77 | CD12: 78 | CE12: 79 | CF12: 80 | CG12: 81 | CH12: 82 | CI12: 83 | CJ12: 84 | CK12: 85 | CL12: 86 | CM12: 87 | CN12: 88 | CO12: 89 | CP12: 90 | CQ12: 91 | CR12: 92 | CS12: 93 | CT12: 94 | CU12: 95 | CV12: 96 | CW12: 97 | CX12: 98 | CY12: 99 | CZ12: 100 | DA12: 101 | DB12: 102 | DC12: 103 | DD12: 104 | DE12: 105 | DF12: 106 | DG12: 107 | DH12: 108 | DI12: 109 | DJ12: 110 | DK12: 111 | DL12: 112 | DM12: 113 | DN12: 114 | DO12: 115 | DP12: 116 | DQ12: 117 | DR12: 118 | DS12: 119 | DT12: 120 | DU12: 121 | DV12: 122 | DW12: 123 | DX12: 124 | DY12: 125 | DZ12: 126 | EA12: 127 | EB12: 128 | EC12: 129 | ED12: =EC12+1 -> 130 | EE12: 131 | EF12: 132 | EG12: 133 | EH12: 134 | EI12: 135 | EJ12: 136 | EK12: 137 | EL12: 138 | EM12: 139 | EN12: 140 | EO12: 141 | EP12: 142 | EQ12: 143 | ER12: 144 | ES12: 145 | ET12: 146 | EU12: 147 | EV12: 148 | EW12: 149 | EX12: 150 | EY12: 151 | EZ12: 152 | FA12: 153 | FB12: 154 | FC12: 155 | FD12: 156 | FE12: 157 | FF12: 158 | FG12: 159 | FH12: 160 | FI12: 161 | FJ12: 162 | FK12: 163 | FL12: 164 | FM12: 165 | FN12: 166 | FO12: 167 | FP12: 168 | FQ12: 169 | FR12: 170 | FS12: 171 | FT12: 172 | FU12: 173 | FV12: 174 | FW12: 175 | FX12: 176 | FY12: 177 | FZ12: 178 | GA12: 179 | GB12: 180 | GC12: 181 | GD12: 182 | GE12: 183 | GF12: 184 | GG12: 185 | GH12: 186 | GI12: 187 | GJ12: 188 | GK12: 189 | GL12: 190 | GM12: 191 | GN12: 192 | GO12: 193 | GP12: =GO12+1 -> 194 | GQ12: 195 | GR12: 196 | GS12: 197 | GT12: 198 | GU12: 199 | GV12: 200 | GW12: 201 | GX12: 202 | GY12: 203 | GZ12: 204 | HA12: 205 | HB12: 206 | HC12: 207 | HD12: 208 | HE12: 209 | HF12: 210 | HG12: 211 | HH12: 212 | HI12: 213 | HJ12: 214 | HK12: 215 | HL12: 216 | HM12: 217 | HN12: 218 | HO12: 219 | HP12: 220 | HQ12: 221 | HR12: 222 | HS12: 223 | HT12: 224 | HU12: 225 | HV12: 226 | HW12: 227 | HX12: 228 | HY12: 229 | HZ12: 230 | IA12: 231 | IB12: 232 | IC12: 233 | ID12: 234 | IE12: 235 | IF12: 236 | IG12: 237 | IH12: 238 | II12: 239 | IJ12: 240 | IK12: 241 | IL12: 242 | IM12: 243 | IN12: 244 | IO12: 245 | IP12: 246 | IQ12: 247 | IR12: 248 | IS12: 249 | IT12: 250 | IU12: 251 | IV12: 252 | IW12: 253 | IX12: 254 | IY12: 255 | IZ12: 256 | JA12: 257 | JB12: =JA12+1 -> 258 | JC12: 259 | JD12: 260 | JE12: 261 | JF12: 262 | JG12: 263 | JH12: 264 | JI12: 265 | JJ12: 266 | JK12: 267 | JL12: 268 | JM12: 269 | JN12: 270 | JO12: 271 | JP12: 272 | JQ12: 273 | JR12: 274 | JS12: 275 | JT12: 276 | JU12: 277 | JV12: 278 | JW12: 279 | JX12: 280 | JY12: 281 | JZ12: 282 | KA12: 283 | KB12: 284 | KC12: 285 | KD12: 286 | KE12: 287 | KF12: 288 | KG12: 289 | KH12: 290 | KI12: 291 | KJ12: 292 | KK12: 293 | KL12: 294 | KM12: 295 | KN12: 296 | KO12: 297 | KP12: 298 | KQ12: 299 | KR12: 300
C14: GDP | D14: 1000 | E14: =D14*(1+$D$6) -> 1025.1 | F14: =E14*(1+$D$6) -> 1050.83001 | G14: 1077.205843 | H14: 1104.24371 | I14: 1131.960227 | J14: 1160.372429 | K14: 1189.497777 | L14: 1219.354171 | M14: 1249.959961 | N14: 1281.333956 | O14: 1313.495438 | P14: 1346.464173 | Q14: 1380.260424 | R14: 1414.904961 | S14: 1450.419075 | T14: 1486.824594 | U14: 1524.143891 | V14: 1562.399903 | W14: 1601.616141 | X14: 1641.816706 | Y14: 1683.026305 | Z14: 1725.270265 | AA14: 1768.574549 | AB14: 1812.96577 | AC14: 1858.471211 | AD14: 1905.118838 | AE14: 1952.937321 | AF14: 2001.956048 | AG14: 2052.205145 | AH14: 2103.715494 | AI14: 2156.518753 | AJ14: 2210.647374 | AK14: 2266.134623 | AL14: 2323.014602 | AM14: 2381.322268 | AN14: 2441.093457 | AO14: 2502.364903 | AP14: 2565.174262 | AQ14: 2629.560136 | AR14: 2695.562095 | AS14: 2763.220704 | AT14: 2832.577544 | AU14: 2903.67524 | AV14: 2976.557488 | AW14: 3051.269081 | AX14: 3127.855935 | AY14: 3206.365119 | AZ14: 3286.844884 | BA14: 3369.34469 | BB14: 3453.915242 | BC14: 3540.608515 | BD14: 3629.477788 | BE14: 3720.577681 | BF14: 3813.964181 | BG14: 3909.694682 | BH14: 4007.828018 | BI14: 4108.424501 | BJ14: 4211.545956 | BK14: 4317.25576 | BL14: 4425.618879 | BM14: 4536.701913 | BN14: 4650.573131 | BO14: 4767.302517 | BP14: 4886.96181 | BQ14: 5009.624552 | BR14: =BQ14*(1+$D$6) -> 5135.366128 | BS14: 5264.263818 | BT14: 5396.396839 | BU14: 5531.8464 | BV14: 5670.695745 | BW14: 5813.030208 | BX14: 5958.937266 | BY14: 6108.506591 | BZ14: 6261.830107 | CA14: 6419.002043 | CB14: 6580.118994 | CC14: 6745.279981 | CD14: 6914.586508 | CE14: 7088.142629 | CF14: 7266.055009 | CG14: 7448.43299 | CH14: 7635.388658 | CI14: 7827.036914 | CJ14: 8023.49554 | CK14: 8224.885278 | CL14: 8431.329899 | CM14: 8642.956279 | CN14: 8859.894482 | CO14: 9082.277833 | CP14: 9310.243007 | CQ14: 9543.930106 | CR14: 9783.482752 | CS14: 10029.04817 | CT14: 10280.77728 | CU14: 10538.82479 | CV14: 10803.34929 | CW14: 11074.51336 | CX14: 11352.48364 | CY14: 11637.43098 | CZ14: 11929.5305 | DA14: 12228.96171 | DB14: 12535.90865 | DC14: 12850.55996 | DD14: 13173.10902 | DE14: 13503.75405 | DF14: 13842.69828 | DG14: 14190.15001 | DH14: 14546.32277 | DI14: 14911.43547 | DJ14: 15285.7125 | DK14: 15669.38389 | DL14: 16062.68542 | DM14: 16465.85883 | DN14: 16879.15188 | DO14: 17302.8186 | DP14: 17737.11934 | DQ14: 18182.32104 | DR14: 18638.6973 | DS14: 19106.5286 | DT14: 19586.10247 | DU14: 20077.71364 | DV14: 20581.66425 | DW14: 21098.26402 | DX14: 21627.83045 | DY14: 22170.68899 | DZ14: 22727.17329 | EA14: 23297.62534 | EB14: 23882.39573 | EC14: 24481.84387 | ED14: =EC14*(1+$D$6) -> 25096.33815 | EE14: 25726.25623 | EF14: 26371.98527 | EG14: 27033.9221 | EH14: 27712.47354 | EI14: 28408.05663 | EJ14: 29121.09885 | EK14: 29852.03843 | EL14: 30601.32459 | EM14: 31369.41784 | EN14: 32156.79023 | EO14: 32963.92566 | EP14: 33791.3202 | EQ14: 34639.48233 | ER14: 35508.93334 | ES14: 36400.20757 | ET14: 37313.85278 | EU14: 38250.43048 | EV14: 39210.51629 | EW14: 40194.70025 | EX14: 41203.58722 | EY14: 42237.79726 | EZ14: 43297.96597 | FA14: 44384.74492 | FB14: 45498.80202 | FC14: 46640.82195 | FD14: 47811.50658 | FE14: 49011.57539 | FF14: 50241.76594 | FG14: 51502.83426 | FH14: 52795.5554 | FI14: 54120.72384 | FJ14: 55479.15401 | FK14: 56871.68078 | FL14: 58299.15996 | FM14: 59762.46888 | FN14: 61262.50685 | FO14: 62800.19577 | FP14: 64376.48068 | FQ14: 65992.33035 | FR14: 67648.73784 | FS14: 69346.72116 | FT14: 71087.32386 | FU14: 72871.61569 | FV14: 74700.69324 | FW14: 76575.68064 | FX14: 78497.73023 | FY14: 80468.02326 | FZ14: 82487.77064 | GA14: 84558.21368 | GB14: 86680.62485 | GC14: 88856.30853 | GD14: 91086.60187 | GE14: 93372.87558 | GF14: 95716.53476 | GG14: 98119.01978 | GH14: 100581.8072 | GI14: 103106.4105 | GJ14: 105694.3814 | GK14: 108347.3104 | GL14: 111066.8279 | GM14: 113854.6053 | GN14: 116712.3559 | GO14: 119641.836 | GP14: =GO14*(1+$D$6) -> 122644.8461 | GQ14: 125723.2317 | GR14: 128878.8849 | GS14: 132113.7449 | GT14: 135429.7999 | GU14: 138829.0878 | GV14: 142313.6979 | GW14: 145885.7718 | GX14: 149547.5046 | GY14: 153301.147 | GZ14: 157149.0058 | HA14: 161093.4458 | HB14: 165136.8913 | HC14: 169281.8273 | HD14: 173530.8012 | HE14: 177886.4243 | HF14: 182351.3735 | HG14: 186928.393 | HH14: 191620.2957 | HI14: 196429.9651 | HJ14: 201360.3572 | HK14: 206414.5022 | HL14: 211595.5062 | HM14: 216906.5534 | HN14: 222350.9079 | HO14: 227931.9156 | HP14: 233653.0067 | HQ14: 239517.6972 | HR14: 245529.5914 | HS14: 251692.3841 | HT14: 258009.863 | HU14: 264485.9105 | HV14: 271124.5069 | HW14: 277929.732 | HX14: 284905.7683 | HY14: 292056.9031 | HZ14: 299387.5313 | IA14: 306902.1584 | IB14: 314605.4026 | IC14: 322501.9982 | ID14: 330596.7983 | IE14: 338894.778 | IF14: 347401.0369 | IG14: 356120.8029 | IH14: 365059.4351 | II14: 374222.4269 | IJ14: 383615.4098 | IK14: 393244.1566 | IL14: 403114.5849 | IM14: 413232.761 | IN14: 423604.9033 | IO14: 434237.3864 | IP14: 445136.7448 | IQ14: 456309.6771 | IR14: 467763.05 | IS14: 479503.9025 | IT14: 491539.4505 | IU14: 503877.0907 | IV14: 516524.4056 | IW14: 529489.1682 | IX14: 542779.3463 | IY14: 556403.1079 | IZ14: 570368.826 | JA14: 584685.0835 | JB14: =JA14*(1+$D$6) -> 599360.6791 | JC14: 614404.6321 | JD14: 629826.1884 | JE14: 645634.8257 | JF14: 661840.2598 | JG14: 678452.4504 | JH14: 695481.6069 | JI14: 712938.1952 | JJ14: 730832.9439 | JK14: 749176.8508 | JL14: 767981.1897 | JM14: 787257.5176 | JN14: 807017.6813 | JO14: 827273.8251 | JP14: 848038.3981 | JQ14: 869324.1619 | JR14: 891144.1984 | JS14: 913511.9178 | JT14: 936441.0669 | JU14: 959945.7377 | JV14: 984040.3757 | JW14: 1008739.789 | JX14: 1034059.158 | JY14: 1060014.043 | JZ14: 1086620.395 | KA14: 1113894.567 | KB14: 1141853.321 | KC14: 1170513.839 | KD14: 1199893.736 | KE14: 1230011.069 | KF14: 1260884.347 | KG14: 1292532.544 | KH14: 1324975.111 | KI14: 1358231.986 | KJ14: 1392323.609 | KK14: 1427270.932 | KL14: 1463095.432 | KM14: 1499819.127 | KN14: 1537464.588 | KO14: 1576054.949 | KP14: 1615613.928 | KQ14: 1656165.838 | KR14: 1697735.6
C16: Mining Industry | D16: =D14*D9 -> 40 | E16: =D16*(1+$D$10) -> 46 | F16: =E16*(1+$D$10) -> 52.9 | G16: 60.835 | H16: 69.96025 | I16: 80.4542875 | J16: 92.52243062 | K16: 106.4007952 | L16: 122.3609145 | M16: 140.7150517 | N16: 161.8223094 | O16: 186.0956558 | P16: 214.0100042 | Q16: 246.1115049 | R16: 283.0282306 | S16: 325.4824652 | T16: 374.3048349 | U16: 430.4505602 | V16: 495.0181442 | W16: 569.2708658 | X16: 654.6614957 | Y16: 752.8607201 | Z16: 865.7898281 | AA16: 995.6583023 | AB16: 1145.007048 | AC16: 1316.758105 | AD16: 1514.271821 | AE16: 1741.412594 | AF16: 2002.624483 | AG16: 2303.018155 | AH16: 2648.470878 | AI16: 3045.74151 | AJ16: 3502.602737 | AK16: 4027.993147 | AL16: 4632.192119 | AM16: 5327.020937 | AN16: 6126.074077 | AO16: 7044.985189 | AP16: 8101.732967 | AQ16: 9316.992913 | AR16: 10714.54185 | AS16: 12321.72313 | AT16: 14169.9816 | AU16: 16295.47884 | AV16: 18739.80066 | AW16: 21550.77076 | AX16: 24783.38637 | AY16: 28500.89433 | AZ16: 32776.02848 | BA16: 37692.43275 | BB16: 43346.29766 | BC16: 49848.24231 | BD16: 57325.47866 | BE16: 65924.30046 | BF16: 75812.94553 | BG16: 87184.88736 | BH16: 100262.6205 | BI16: 115302.0135 | BJ16: 132597.3156 | BK16: 152486.9129 | BL16: 175359.9498 | BM16: 201663.9423 | BN16: 231913.5336 | BO16: 266700.5637 | BP16: 306705.6482 | BQ16: 352711.4955 | BR16: =BQ16*(1+$D$10) -> 405618.2198 | BS16: 466460.9528 | BT16: 536430.0957 | BU16: 616894.61 | BV16: 709428.8016 | BW16: 815843.1218 | BX16: 938219.5901 | BY16: 1078952.529 | BZ16: 1240795.408 | CA16: 1426914.719 | CB16: 1640951.927 | CC16: 1887094.716 | CD16: 2170158.923 | CE16: 2495682.762 | CF16: 2870035.176 | CG16: 3300540.452 | CH16: 3795621.52 | CI16: 4364964.748 | CJ16: 5019709.461 | CK16: 5772665.88 | CL16: 6638565.762 | CM16: 7634350.626 | CN16: 8779503.22 | CO16: 10096428.7 | CP16: 11610893.01 | CQ16: 13352526.96 | CR16: 15355406 | CS16: 17658716.9 | CT16: 20307524.44 | CU16: 23353653.11 | CV16: 26856701.07 | CW16: 30885206.23 | CX16: 35517987.17 | CY16: 40845685.24 | CZ16: 46972538.03 | DA16: 54018418.73 | DB16: 62121181.54 | DC16: 71439358.77 | DD16: 82155262.59 | DE16: 94478551.98 | DF16: 108650334.8 | DG16: 124947885 | DH16: 143690067.7 | DI16: 165243577.9 | DJ16: 190030114.6 | DK16: 218534631.8 | DL16: 251314826.5 | DM16: 289012050.5 | DN16: 332363858.1 | DO16: 382218436.8 | DP16: 439551202.3 | DQ16: 505483882.7 | DR16: 581306465.1 | DS16: 668502434.8 | DT16: 768777800.1 | DU16: 884094470.1 | DV16: 1016708641 | DW16: 1169214937 | DX16: 1344597177 | DY16: 1546286754 | DZ16: 1778229767 | EA16: 2044964232 | EB16: 2351708867 | EC16: 2704465197 | ED16: =EC16*(1+$D$10) -> 3110134976 | EE16: 3576655223 | EF16: 4113153506 | EG16: 4730126532 | EH16: 5439645512 | EI16: 6255592338 | EJ16: 7193931189 | EK16: 8273020867 | EL16: 9513973998 | EM16: 1.09410701e+10 | EN16: 1.258223061e+10 | EO16: 1.44695652e+10 | EP16: 1.663999998e+10 | EQ16: 1.913599998e+10 | ER16: 2.200639998e+10 | ES16: 2.530735998e+10 | ET16: 2.910346397e+10 | EU16: 3.346898357e+10 | EV16: 3.84893311e+10 | EW16: 4.426273077e+10 | EX16: 5.090214038e+10 | EY16: 5.853746144e+10 | EZ16: 6.731808066e+10 | FA16: 7.741579276e+10 | FB16: 8.902816167e+10 | FC16: 1.023823859e+11 | FD16: 1.177397438e+11 | FE16: 1.354007054e+11 | FF16: 1.557108112e+11 | FG16: 1.790674329e+11 | FH16: 2.059275478e+11 | FI16: 2.3681668e+11 | FJ16: 2.72339182e+11 | FK16: 3.131900593e+11 | FL16: 3.601685681e+11 | FM16: 4.141938534e+11 | FN16: 4.763229314e+11 | FO16: 5.477713711e+11 | FP16: 6.299370767e+11 | FQ16: 7.244276382e+11 | FR16: 8.33091784e+11 | FS16: 9.580555516e+11 | FT16: 1.101763884e+12 | FU16: 1.267028467e+12 | FV16: 1.457082737e+12 | FW16: 1.675645148e+12 | FX16: 1.92699192e+12 | FY16: 2.216040708e+12 | FZ16: 2.548446814e+12 | GA16: 2.930713836e+12 | GB16: 3.370320911e+12 | GC16: 3.875869048e+12 | GD16: 4.457249405e+12 | GE16: 5.125836816e+12 | GF16: 5.894712338e+12 | GG16: 6.778919189e+12 | GH16: 7.795757067e+12 | GI16: 8.965120627e+12 | GJ16: 1.030988872e+13 | GK16: 1.185637203e+13 | GL16: 1.363482783e+13 | GM16: 1.568005201e+13 | GN16: 1.803205981e+13 | GO16: 2.073686878e+13 | GP16: =GO16*(1+$D$10) -> 2.38473991e+13 | GQ16: 2.742450896e+13 | GR16: 3.153818531e+13 | GS16: 3.626891311e+13 | GT16: 4.170925007e+13 | GU16: 4.796563758e+13 | GV16: 5.516048322e+13 | GW16: 6.34345557e+13 | GX16: 7.294973906e+13 | GY16: 8.389219992e+13 | GZ16: 9.64760299e+13 | HA16: 1.109474344e+14 | HB16: 1.275895495e+14 | HC16: 1.46727982e+14 | HD16: 1.687371793e+14 | HE16: 1.940477562e+14 | HF16: 2.231549196e+14 | HG16: 2.566281575e+14 | HH16: 2.951223812e+14 | HI16: 3.393907383e+14 | HJ16: 3.902993491e+14 | HK16: 4.488442515e+14 | HL16: 5.161708892e+14 | HM16: 5.935965225e+14 | HN16: 682636000930226 | HO16: 7.850314011e+14 | HP16: 9.027861112e+14 | HQ16: 1.038204028e+15 | HR16: 1.193934632e+15 | HS16: 1.373024827e+15 | HT16: 1578978550954856 | HU16: 1.815825334e+15 | HV16: 2.088199134e+15 | HW16: 2401429003683466 | HX16: 2.761643354e+15 | HY16: 3175889857371383 | HZ16: 3652273335977090 | IA16: 4200114336373653 | IB16: 4830131486829701 | IC16: 5554651209854156 | ID16: 6387848891332279 | IE16: 7346026225032120 | IF16: 8447930158786937 | IG16: 9715119682604976 | IH16: 1.117238763e+16 | II16: 1.284824578e+16 | IJ16: 1.477548265e+16 | IK16: 1.699180504e+16 | IL16: 1.95405758e+16 | IM16: 2.247166217e+16 | IN16: 2.58424115e+16 | IO16: 2.971877322e+16 | IP16: 3.41765892e+16 | IQ16: 3.930307759e+16 | IR16: 4.519853922e+16 | IS16: 5.197832011e+16 | IT16: 5.977506812e+16 | IU16: 6.874132834e+16 | IV16: 7.905252759e+16 | IW16: 9.091040673e+16 | IX16: 1.045469677e+17 | IY16: 1.202290129e+17 | IZ16: 1.382633648e+17 | JA16: 1.590028696e+17 | JB16: =JA16*(1+$D$10) -> 1.828533e+17 | JC16: 2.10281295e+17 | JD16: 2.418234892e+17 | JE16: 2.780970126e+17 | JF16: 3.198115645e+17 | JG16: 3.677832992e+17 | JH16: 4.229507941e+17 | JI16: 4.863934132e+17 | JJ16: 5.593524252e+17 | JK16: 6.43255289e+17 | JL16: 7.397435823e+17 | JM16: 8.507051196e+17 | JN16: 9.783108876e+17 | JO16: 1.125057521e+18 | JP16: 1.293816149e+18 | JQ16: 1.487888571e+18 | JR16: 1.711071857e+18 | JS16: 1.967732635e+18 | JT16: 2.262892531e+18 | JU16: 2.60232641e+18 | JV16: 2.992675372e+18 | JW16: 3.441576678e+18 | JX16: 3.957813179e+18 | JY16: 4.551485156e+18 | JZ16: 5.23420793e+18 | KA16: 6.019339119e+18 | KB16: 6.922239987e+18 | KC16: 7.960575985e+18 | KD16: 9.154662383e+18 | KE16: 1.052786174e+19 | KF16: 1.2107041e+19 | KG16: 1.392309715e+19 | KH16: 1.601156172e+19 | KI16: 1.841329598e+19 | KJ16: 2.117529038e+19 | KK16: 2.435158394e+19 | KL16: 2.800432153e+19 | KM16: 3.220496976e+19 | KN16: 3.703571522e+19 | KO16: 4.25910725e+19 | KP16: 4.897973338e+19 | KQ16: 5.632669338e+19 | KR16: 6.477569739e+19
C18: Mining as Pct of GDP | D18: =D16/D14 -> 0.04 | E18: =E16/E14 -> 0.04487367086 | F18: 0.05034115841 | G18: 0.05647481434 | H18: 0.06335580576 | I18: 0.07107518937 | J18: 0.07973511636 | K18: 0.08945018419 | L18: 0.1003489531 | M18: 0.1125756473 | N18: 0.1262920636 | O18: 0.1416797124 | P18: 0.1589422195 | Q18: 0.1783080211 | R18: 0.2000333863 | S18: 0.2244058084 | T18: 0.2517478097 | U18: 0.2824212088 | V18: 0.3168319092 | W18: 0.3554352703 | X18: 0.3987421333 | Y18: 0.4473255812 | Z18: 0.5018285225 | AA18: 0.5629721986 | AB18: 0.6315657286 | AC18: 0.7085168159 | AD18: 0.7948437599 | AE18: 0.8916889317 | AF18: 1.000333891 | AG18: 1.122216344 | AH18: 1.258949172 | AI18: 1.412341769 | AJ18: 1.584423992 | AK18: 1.777473018 | AL18: 1.994043479 | AM18: 2.23700127 | AN18: 2.509561467 | AO18: 2.815330882 | AP18: 3.158355784 | AQ18: 3.543175448 | AR18: 3.974882221 | AS18: 4.459188913 | AT18: 5.00250439 | AU18: 5.612018387 | AV18: 6.295796649 | AW18: 7.062887666 | AX18: 7.923442411 | AY18: 8.888848671 | AZ18: 9.97188174 | BA18: 11.18687348 | BB18: 12.54990196 | BC18: 14.07900425 | BD18: 15.79441507 | BE18: 17.71883458 | BF18: 19.87772877 | BG18: 22.29966646 | BH18: 25.01669733 | BI18: 28.06477605 | BJ18: 31.48423808 | BK18: 35.32033342 | BL18: 39.62382541 | BM18: 44.4516625 | BN18: 49.8677318 | BO18: 55.94370459 | BP18: 62.75998466 | BQ18: =BQ16/BQ14 -> 70.40677238 | BR18: 78.98525825 | BS18: 88.60896204 | BT18: 99.40523495 | BU18: 111.5169449 | BV18: 125.104367 | BW18: 140.3473047 | BX18: 157.4474689 | BY18: 176.6311475 | BZ18: 198.1521994 | CA18: 222.2954144 | CB18: 249.3802815 | CC18: 279.7652168 | CD18: 313.8523064 | CE18: 352.0926274 | CF18: 394.9922169 | CG18: 443.1187683 | CH18: 497.109144 | CI18: 557.6778028 | CJ18: 625.6262542 | CK18: 701.8536654 | CL18: 787.3687593 | CM18: 883.3031638 | CN18: 990.9263861 | CO18: 1111.662612 | CP18: 1247.109554 | CQ18: 1399.059592 | CR18: 1569.523491 | CS18: 1760.757014 | CT18: 1975.290767 | CU18: 2215.963694 | CV18: 2485.960636 | CW18: 2788.854484 | CX18: 3128.653455 | CY18: 3509.854134 | CZ18: 3937.50098 | DA18: 4417.253074 | DB18: 4955.459014 | DC18: 5559.240919 | DD18: 6236.588681 | DE18: 6996.465695 | DF18: 7848.927469 | DG18: 8805.254697 | DH18: 9878.102528 | DI18: 11081.66804 | DJ18: 12431.8781 | DK18: 13946.60016 | DL18: 15645.87863 | DM18: 17552.2002 | DN18: 19690.79136 | DO18: 22089.95226 | DP18: 24781.43118 | DQ18: 27800.84466 | DR18: 31188.14882 | DS18: 34988.16812 | DT18: 39251.18851 | DU18: 44033.62285 | DV18: 49398.75747 | DW18: 55417.58959 | DX18: 62169.76688 | DY18: 69744.64141 | DZ18: 78242.45208 | EA18: 87775.65105 | EB18: 98470.39187 | EC18: =EC16/EC14 -> 110468.1989 | ED18: 123927.8399 | EE18: 139027.4275 | EF18: 155966.7755 | EG18: 174970.0437 | EH18: 196288.7038 | EI18: 220204.8673 | EJ18: 247035.0184 | EK18: 277134.2026 | EL18: 310900.7249 | EM18: 348781.4199 | EN18: 391277.566 | EO18: 438951.5178 | EP18: 492434.1484 | EQ18: 552433.1974 | ER18: 619742.6368 | ES18: 695253.1776 | ET18: 779964.0564 | EU18: 874996.2588 | EV18: 981607.353 | EW18: 1101208.132 | EX18: 1235381.281 | EY18: 1385902.325 | EZ18: 1554763.12 | FA18: 1744198.213 | FB18: 1956714.413 | FC18: 2195123.963 | FD18: 2462581.756 | FE18: 2762627.079 | FF18: 3099230.457 | FG18: 3476846.186 | FH18: 3900471.285 | FI18: 4375711.616 | FJ18: 4908856.071 | FK18: 5506959.791 | FL18: 6177937.527 | FM18: 6930668.38 | FN18: 7775113.293 | FO18: 8722446.871 | FP18: 9785205.25 | FQ18: 10977451.99 | FR18: 12314964.19 | FS18: 13815441.24 | FT18: 15498739.08 | FU18: 17387132.9 | FV18: 19505611.98 | FW18: 21882210.3 | FX18: 24548377.57 | FY18: 27539395.38 | FZ18: 30894844.1 | GA18: 34659126.63 | GB18: 38882056.02 | GC18: 43619514.61 | GD18: 48934193.54 | GE18: 54896422.37 | GF18: 61585099.72 | GG18: 69088737.37 | GH18: 77506631.53 | GI18: 86950176.82 | GJ18: 97544340.4 | GK18: 109429315.6 | GL18: 122762377.3 | GM18: 137719962.8 | GN18: 154500007.1 | GO18: =GO16/GO14 -> 173324561.7 | GP18: 194442733.3 | GQ18: 218133980.4 | GR18: 244711811 | GS18: 274527931.5 | GT18: 307976901.1 | GU18: 345501352.3 | GV18: 387597849.1 | GW18: 434823457.7 | GX18: 487803118.1 | GY18: 547237914.1 | GZ18: 613914351.1 | HA18: 688714763.2 | HB18: 772628990 | HC18: 866767474.9 | HD18: 972375959.5 | HE18: 1090851969 | HF18: 1223763305 | HG18: 1372868794 | HH18: 1540141560 | HI18: 1727795137 | HJ18: 1938312757 | HK18: 2174480217 | HL18: 2439422739 | HM18: 2736646327 | HN18: 3070084163 | HO18: 3444148657 | HP18: 3863789830 | HQ18: 4334560828 | HR18: 4862691398 | HS18: 5455170333 | HT18: 6119837950 | HU18: 6865489847 | HV18: 7701993293 | HW18: 8640417800 | HX18: 9693181611 | HY18: 1.087421603e+10 | HZ18: 1.219914978e+10 | IA18: 1.36855158e+10 | IB18: 1.535298328e+10 | IC18: 1.722361797e+10 | ID18: 1.932217409e+10 | IE18: 2.167642201e+10 | IF18: 2.431751567e+10 | IG18: 2.728040486e+10 | IH18: 3.060429772e+10 | II18: 3.433317957e+10 | IJ18: 3.851639499e+10 | IK18: 4.320930079e+10 | IL18: 4.847399854e+10 | IM18: 5.43801564e+10 | IN18: 6.100593099e+10 | IO18: 6.843900169e+10 | IP18: 7.67777309e+10 | IQ18: 8.613246565e+10 | IR18: 9.662699785e+10 | IS18: 1.084002024e+11 | IT18: 1.216078751e+11 | IU18: 1.364247941e+11 | IV18: 1.530470327e+11 | IW18: 1.716945543e+11 | IX18: 1.926141229e+11 | IY18: 2.160825689e+11 | IZ18: 2.424104519e+11 | JA18: =JA16/JA14 -> 2.719461708e+11 | JB18: 3.05080574e+11 | JC18: 3.422521316e+11 | JD18: 3.839527376e+11 | JE18: 4.307342193e+11 | JF18: 4.832156397e+11 | JG18: 5.420914893e+11 | JH18: 6.081408766e+11 | JI18: 6.822378384e+11 | JJ18: 7.653629052e+11 | JK18: 8.586160775e+11 | JL18: 9.632313814e+11 | JM18: 1.080593199e+12 | JN18: 1.212254589e+12 | JO18: 1.359957836e+12 | JP18: 1.525657508e+12 | JQ18: 1.711546321e+12 | JR18: 1.920084157e+12 | JS18: 2.154030612e+12 | JT18: 2.416481518e+12 | JU18: 2.710909907e+12 | JV18: 3.041211972e+12 | JW18: 3.411758627e+12 | JX18: 3.827453342e+12 | JY18: 4.293797037e+12 | JZ18: 4.816960875e+12 | KA18: 5.403867922e+12 | KB18: 6.062284762e+12 | KC18: 6.800924277e+12 | KD18: 7.629560939e+12 | KE18: 8.55916016e+12 | KF18: 9.602023397e+12 | KG18: 1.077195094e+13 | KH18: 1.208442452e+13 | KI18: 1.355681221e+13 | KJ18: 1.520859823e+13 | KK18: 1.706164078e+13 | KL18: 1.914046132e+13 | KM18: 2.147256904e+13 | KN18: 2.408882489e+13 | KO18: 2.702384999e+13 | KP18: 3.031648374e+13 | KQ18: 3.401029783e+13 | KR18: 3.815417276e+13
A20: Proof of terminal value formula -- cf x (1+g)/(wacc-g)
C22: Growth Rate | D22: 0.03
C23: WACC | D23: 0.1
C25: Cash Flow | D25: 100 | E25: =D25*(1+$D$22) -> 103 | F25: =E25*(1+$D$22) -> 106.09 | G25: 109.2727 | H25: 112.550881 | I25: 115.9274074 | J25: 119.4052297 | K25: 122.9873865 | L25: 126.6770081 | M25: 130.4773184 | N25: 134.3916379 | O25: 138.4233871 | P25: 142.5760887 | Q25: 146.8533713 | R25: 151.2589725 | S25: 155.7967417 | T25: 160.4706439 | U25: 165.2847632 | V25: 170.2433061 | W25: 175.3506053 | X25: 180.6111235 | Y25: 186.0294572 | Z25: 191.6103409 | AA25: 197.3586511 | AB25: 203.2794106 | AC25: 209.377793 | AD25: 215.6591268 | AE25: 222.1289006 | AF25: 228.7927676 | AG25: 235.6565506 | AH25: 242.7262471 | AI25: 250.0080345 | AJ25: 257.5082756 | AK25: 265.2335238 | AL25: 273.1905296 | AM25: 281.3862454 | AN25: 289.8278328 | AO25: 298.5226678 | AP25: 307.4783478 | AQ25: 316.7026983 | AR25: 326.2037792 | AS25: 335.9898926 | AT25: 346.0695894 | AU25: 356.451677 | AV25: 367.1452273 | AW25: 378.1595842 | AX25: 389.5043717 | AY25: 401.1895028 | AZ25: 413.2251879 | BA25: 425.6219436 | BB25: 438.3906019 | BC25: 451.5423199 | BD25: 465.0885895 | BE25: 479.0412472 | BF25: 493.4124846 | BG25: 508.2148592 | BH25: 523.4613049 | BI25: 539.1651441 | BJ25: 555.3400984 | BK25: 572.0003014 | BL25: 589.1603104 | BM25: 606.8351197 | BN25: 625.0401733 | BO25: 643.7913785 | BP25: 663.1051199 | BQ25: 682.9982735 | BR25: =BQ25*(1+$D$22) -> 703.4882217 | BS25: 724.5928683 | BT25: 746.3306544 | BU25: 768.720574 | BV25: 791.7821912 | BW25: 815.5356569 | BX25: 840.0017267 | BY25: 865.2017785 | BZ25: 891.1578318 | CA25: 917.8925668 | CB25: 945.4293438 | CC25: 973.7922241 | CD25: 1003.005991 | CE25: 1033.096171 | CF25: 1064.089056 | CG25: 1096.011727 | CH25: 1128.892079 | CI25: 1162.758842 | CJ25: 1197.641607 | CK25: 1233.570855 | CL25: 1270.577981 | CM25: 1308.69532 | CN25: 1347.95618 | CO25: 1388.394865 | CP25: 1430.046711 | CQ25: 1472.948112 | CR25: 1517.136556 | CS25: 1562.650652 | CT25: 1609.530172 | CU25: 1657.816077 | CV25: 1707.550559 | CW25: 1758.777076 | CX25: 1811.540388 | CY25: 1865.8866 | CZ25: 1921.863198 | DA25: 1979.519094 | DB25: 2038.904667 | DC25: 2100.071807 | DD25: 2163.073961 | DE25: 2227.96618 | DF25: 2294.805165 | DG25: 2363.64932 | DH25: 2434.5588 | DI25: 2507.595564 | DJ25: 2582.823431 | DK25: 2660.308134 | DL25: 2740.117378 | DM25: 2822.320899 | DN25: 2906.990526 | DO25: 2994.200242 | DP25: 3084.026249 | DQ25: 3176.547037 | DR25: 3271.843448 | DS25: 3369.998751 | DT25: 3471.098714 | DU25: 3575.231675 | DV25: 3682.488625 | DW25: 3792.963284 | DX25: 3906.752182 | DY25: 4023.954748 | DZ25: 4144.67339 | EA25: 4269.013592 | EB25: 4397.084 | EC25: 4528.99652 | ED25: =EC25*(1+$D$22) -> 4664.866415 | EE25: 4804.812408 | EF25: 4948.95678 | EG25: 5097.425484 | EH25: 5250.348248 | EI25: 5407.858696 | EJ25: 5570.094456 | EK25: 5737.19729 | EL25: 5909.313209 | EM25: 6086.592605 | EN25: 6269.190383 | EO25: 6457.266095 | EP25: 6650.984078 | EQ25: 6850.5136 | ER25: 7056.029008 | ES25: 7267.709878 | ET25: 7485.741174 | EU25: 7710.31341 | EV25: 7941.622812 | EW25: 8179.871496 | EX25: 8425.267641 | EY25: 8678.02567 | EZ25: 8938.366441 | FA25: 9206.517434 | FB25: 9482.712957 | FC25: 9767.194346 | FD25: 10060.21018 | FE25: 10362.01648 | FF25: 10672.87698 | FG25: 10993.06328 | FH25: 11322.85518 | FI25: 11662.54084 | FJ25: 12012.41706 | FK25: 12372.78958 | FL25: 12743.97326 | FM25: 13126.29246 | FN25: 13520.08123 | FO25: 13925.68367 | FP25: 14343.45418 | FQ25: 14773.75781 | FR25: 15216.97054 | FS25: 15673.47966 | FT25: 16143.68405 | FU25: 16627.99457 | FV25: 17126.83441 | FW25: 17640.63944 | FX25: 18169.85862 | FY25: 18714.95438 | FZ25: 19276.40301 | GA25: 19854.6951 | GB25: 20450.33596 | GC25: 21063.84603 | GD25: 21695.76141 | GE25: 22346.63426 | GF25: 23017.03329 | GG25: 23707.54428 | GH25: 24418.77061 | GI25: 25151.33373 | GJ25: 25905.87374 | GK25: 26683.04995 | GL25: 27483.54145 | GM25: 28308.0477 | GN25: 29157.28913 | GO25: 30032.0078 | GP25: =GO25*(1+$D$22) -> 30932.96804 | GQ25: 31860.95708 | GR25: 32816.78579 | GS25: 33801.28936 | GT25: 34815.32804 | GU25: 35859.78789 | GV25: 36935.58152 | GW25: 38043.64897 | GX25: 39184.95844 | GY25: 40360.50719 | GZ25: 41571.3224 | HA25: 42818.46208 | HB25: 44103.01594 | HC25: 45426.10642 | HD25: 46788.88961 | HE25: 48192.5563 | HF25: 49638.33299 | HG25: 51127.48298 | HH25: 52661.30747 | HI25: 54241.14669 | HJ25: 55868.38109 | HK25: 57544.43252 | HL25: 59270.7655 | HM25: 61048.88846 | HN25: 62880.35512 | HO25: 64766.76577 | HP25: 66709.76875 | HQ25: 68711.06181 | HR25: 70772.39366 | HS25: 72895.56547 | HT25: 75082.43244 | HU25: 77334.90541 | HV25: 79654.95257 | HW25: 82044.60115 | HX25: 84505.93918 | HY25: 87041.11736 | HZ25: 89652.35088 | IA25: 92341.92141 | IB25: 95112.17905 | IC25: 97965.54442 | ID25: 100904.5108 | IE25: 103931.6461 | IF25: 107049.5955 | IG25: 110261.0833 | IH25: 113568.9158 | II25: 116975.9833 | IJ25: 120485.2628 | IK25: 124099.8207 | IL25: 127822.8153 | IM25: 131657.4998 | IN25: 135607.2247 | IO25: 139675.4415 | IP25: 143865.7047 | IQ25: 148181.6759 | IR25: 152627.1262 | IS25: 157205.9399 | IT25: 161922.1181 | IU25: 166779.7817 | IV25: 171783.1751 | IW25: 176936.6704 | IX25: 182244.7705 | IY25: 187712.1136 | IZ25: 193343.477 | JA25: 199143.7813 | JB25: =JA25*(1+$D$22) -> 205118.0948 | JC25: 211271.6376 | JD25: 217609.7867 | JE25: 224138.0803 | JF25: 230862.2228 | JG25: 237788.0894 | JH25: 244921.7321 | JI25: 252269.3841 | JJ25: 259837.4656 | JK25: 267632.5896 | JL25: 275661.5673 | JM25: 283931.4143 | JN25: 292449.3567 | JO25: 301222.8374 | JP25: 310259.5225 | JQ25: 319567.3082 | JR25: 329154.3275 | JS25: 339028.9573 | JT25: 349199.826 | JU25: 359675.8208 | JV25: 370466.0954 | JW25: 381580.0783 | JX25: 393027.4806 | JY25: 404818.305 | JZ25: 416962.8542 | KA25: 429471.7398 | KB25: 442355.892 | KC25: 455626.5688 | KD25: 469295.3658 | KE25: 483374.2268 | KF25: 497875.4536 | KG25: 512811.7172 | KH25: 528196.0687 | KI25: 544041.9508 | KJ25: 560363.2093 | KK25: 577174.1056 | KL25: 594489.3288 | KM25: 612324.0086 | KN25: 630693.7289 | KO25: 649614.5407 | KP25: 669102.977 | KQ25: 689176.0663 | KR25: 709851.3483
C27: Value of Cash Flow | D27: =NPV(D23,E25:KR25) -> 1471.428567
C29: Gordon's Formula | D29: =D25*(1+D22)/(D23-D22) -> 1471.428571
A31: P/E Analysis
C33: Short-term Period | D33: 15
C34: Transition Period | D34: 7 | F34: P/E Ratio | G34: =D67 -> 10.30575644
C35: Short-term ROE | D35: 0.15
C36: Long-term ROE | D36: 0.1
C37: CAGR for ROE | D37: =(D36/D35)^(1/(D34+1))-1 -> -0.04942017505
C39: Cost of Equity | D39: 0.112
C41: Short-term Growth Rate | D41: 0.15
C42: Long-term Growth Rate | D42: 0.04
C43: CAGR for Growth Rate | D43: =(D42/D41)^(1/(D34+1))-1 -> -0.1522923712
C45: Dividend Payout | D45: =1-D41/D35 -> 0 | E45: =f(D45) -> =1-D41/D35
B47: P/E Ratio
C49: Period | D49: 0 | E49: 1 | F49: 2 | G49: 3 | H49: 4 | I49: 5 | J49: 6 | K49: 7 | L49: 8 | M49: 9 | N49: 10 | O49: 11 | P49: 12 | Q49: 13 | R49: 14 | S49: 15 | T49: 16 | U49: 17 | V49: 18 | W49: 19 | X49: 20 | Y49: 21 | Z49: 22 | AA49: 23 | AB49: 24 | AC49: 25 | AD49: 26 | AE49: 27 | AF49: 28 | AG49: 29 | AH49: 30 | AI49: 31 | AJ49: 32 | AK49: 33 | AL49: 34 | AM49: 35 | AN49: 36 | AO49: 37 | AP49: 38 | AQ49: 39 | AR49: 40 | AS49: 41 | AT49: 42 | AU49: 43 | AV49: 44 | AW49: 45 | AX49: 46 | AY49: 47 | AZ49: 48 | BA49: 49 | BB49: 50 | BC49: 51 | BD49: 52 | BE49: 53 | BF49: 54 | BG49: 55 | BH49: 56 | BI49: 57 | BJ49: 58 | BK49: 59 | BL49: 60 | BM49: 61 | BN49: 62 | BO49: 63 | BP49: 64 | BQ49: 65 | BR49: 66 | BS49: 67 | BT49: 68 | BU49: 69 | BV49: 70 | BW49: 71 | BX49: 72 | BY49: 73 | BZ49: 74 | CA49: 75 | CB49: 76 | CC49: 77 | CD49: 78 | CE49: 79 | CF49: 80 | CG49: 81 | CH49: 82 | CI49: 83 | CJ49: 84 | CK49: 85 | CL49: 86 | CM49: 87 | CN49: 88 | CO49: 89 | CP49: 90 | CQ49: 91 | CR49: 92 | CS49: 93 | CT49: 94 | CU49: 95 | CV49: 96 | CW49: 97 | CX49: 98 | CY49: 99 | CZ49: 100 | DA49: 101 | DB49: 102 | DC49: 103 | DD49: 104 | DE49: 105 | DF49: 106 | DG49: 107 | DH49: 108 | DI49: 109 | DJ49: 110 | DK49: 111 | DL49: 112 | DM49: 113 | DN49: 114 | DO49: 115 | DP49: 116 | DQ49: 117 | DR49: 118 | DS49: 119 | DT49: 120 | DU49: 121 | DV49: 122 | DW49: 123 | DX49: 124 | DY49: 125 | DZ49: 126 | EA49: 127 | EB49: 128 | EC49: 129 | ED49: 130 | EE49: 131 | EF49: 132 | EG49: 133 | EH49: 134 | EI49: 135 | EJ49: 136 | EK49: 137 | EL49: 138 | EM49: 139 | EN49: 140 | EO49: 141 | EP49: 142 | EQ49: 143 | ER49: 144 | ES49: 145 | ET49: 146 | EU49: 147 | EV49: 148 | EW49: 149 | EX49: 150 | EY49: 151 | EZ49: 152 | FA49: 153 | FB49: 154 | FC49: 155 | FD49: 156 | FE49: 157 | FF49: 158 | FG49: 159 | FH49: 160 | FI49: 161 | FJ49: 162 | FK49: 163 | FL49: 164 | FM49: 165 | FN49: 166 | FO49: 167 | FP49: 168 | FQ49: 169 | FR49: 170 | FS49: 171 | FT49: 172 | FU49: 173 | FV49: 174 | FW49: 175 | FX49: 176 | FY49: 177 | FZ49: 178 | GA49: 179 | GB49: 180 | GC49: 181 | GD49: 182 | GE49: 183 | GF49: 184 | GG49: 185 | GH49: 186 | GI49: 187 | GJ49: 188 | GK49: 189 | GL49: 190 | GM49: 191 | GN49: 192 | GO49: 193 | GP49: 194 | GQ49: 195 | GR49: 196 | GS49: 197 | GT49: 198 | GU49: 199 | GV49: 200 | GW49: 201 | GX49: 202 | GY49: 203 | GZ49: 204 | HA49: 205 | HB49: 206 | HC49: 207 | HD49: 208 | HE49: 209 | HF49: 210 | HG49: 211 | HH49: 212 | HI49: 213 | HJ49: 214 | HK49: 215 | HL49: 216 | HM49: 217 | HN49: 218 | HO49: 219 | HP49: 220 | HQ49: 221 | HR49: 222 | HS49: 223 | HT49: 224 | HU49: 225 | HV49: 226 | HW49: 227 | HX49: 228 | HY49: 229 | HZ49: 230 | IA49: 231 | IB49: 232 | IC49: 233 | ID49: 234 | IE49: 235 | IF49: 236 | IG49: 237 | IH49: 238 | II49: 239 | IJ49: 240 | IK49: 241 | IL49: 242 | IM49: 243 | IN49: 244 | IO49: 245 | IP49: 246 | IQ49: 247 | IR49: 248 | IS49: 249 | IT49: 250 | IU49: 251 | IV49: 252 | IW49: 253 | IX49: 254 | IY49: 255 | IZ49: 256 | JA49: 257 | JB49: 258 | JC49: 259 | JD49: 260 | JE49: 261 | JF49: 262 | JG49: 263 | JH49: 264 | JI49: 265 | JJ49: 266 | JK49: 267 | JL49: 268 | JM49: 269 | JN49: 270 | JO49: 271 | JP49: 272 | JQ49: 273 | JR49: 274 | JS49: 275 | JT49: 276 | JU49: 277 | JV49: 278 | JW49: 279 | JX49: 280 | JY49: 281 | JZ49: 282 | KA49: 283 | KB49: 284 | KC49: 285 | KD49: 286 | KE49: 287 | KF49: 288 | KG49: 289 | KH49: 290 | KI49: 291 | KJ49: 292 | KK49: 293 | KL49: 294 | KM49: 295 | KN49: 296 | KO49: 297 | KP49: 298 | KQ49: 299 | KR49: 300
C50: Short-term Period | E50: =E49<=$D$33 -> TRUE | F50: =F49<=$D$33 -> TRUE | G50: TRUE | H50: TRUE | I50: TRUE | J50: TRUE | K50: TRUE | L50: TRUE | M50: TRUE | N50: TRUE | O50: TRUE | P50: TRUE | Q50: TRUE | R50: TRUE | S50: TRUE | T50: FALSE | U50: FALSE | V50: FALSE | W50: FALSE | X50: FALSE | Y50: FALSE | Z50: FALSE | AA50: FALSE | AB50: FALSE | AC50: FALSE | AD50: FALSE | AE50: FALSE | AF50: FALSE | AG50: FALSE | AH50: FALSE | AI50: FALSE | AJ50: FALSE | AK50: FALSE | AL50: FALSE | AM50: FALSE | AN50: FALSE | AO50: FALSE | AP50: FALSE | AQ50: FALSE | AR50: FALSE | AS50: FALSE | AT50: FALSE | AU50: FALSE | AV50: FALSE | AW50: FALSE | AX50: FALSE | AY50: FALSE | AZ50: FALSE | BA50: FALSE | BB50: FALSE | BC50: FALSE | BD50: FALSE | BE50: FALSE | BF50: FALSE | BG50: FALSE | BH50: FALSE | BI50: FALSE | BJ50: FALSE | BK50: FALSE | BL50: FALSE | BM50: FALSE | BN50: FALSE | BO50: FALSE | BP50: FALSE | BQ50: FALSE | BR50: =BR49<=$D$33 -> FALSE | BS50: FALSE | BT50: FALSE | BU50: FALSE | BV50: FALSE | BW50: FALSE | BX50: FALSE | BY50: FALSE | BZ50: FALSE | CA50: FALSE | CB50: FALSE | CC50: FALSE | CD50: FALSE | CE50: FALSE | CF50: FALSE | CG50: FALSE | CH50: FALSE | CI50: FALSE | CJ50: FALSE | CK50: FALSE | CL50: FALSE | CM50: FALSE | CN50: FALSE | CO50: FALSE | CP50: FALSE | CQ50: FALSE | CR50: FALSE | CS50: FALSE | CT50: FALSE | CU50: FALSE | CV50: FALSE | CW50: FALSE | CX50: FALSE | CY50: FALSE | CZ50: FALSE | DA50: FALSE | DB50: FALSE | DC50: FALSE | DD50: FALSE | DE50: FALSE | DF50: FALSE | DG50: FALSE | DH50: FALSE | DI50: FALSE | DJ50: FALSE | DK50: FALSE | DL50: FALSE | DM50: FALSE | DN50: FALSE | DO50: FALSE | DP50: FALSE | DQ50: FALSE | DR50: FALSE | DS50: FALSE | DT50: FALSE | DU50: FALSE | DV50: FALSE | DW50: FALSE | DX50: FALSE | DY50: FALSE | DZ50: FALSE | EA50: FALSE | EB50: FALSE | EC50: FALSE | ED50: =ED49<=$D$33 -> FALSE | EE50: FALSE | EF50: FALSE | EG50: FALSE | EH50: FALSE | EI50: FALSE | EJ50: FALSE | EK50: FALSE | EL50: FALSE | EM50: FALSE | EN50: FALSE | EO50: FALSE | EP50: FALSE | EQ50: FALSE | ER50: FALSE | ES50: FALSE | ET50: FALSE | EU50: FALSE | EV50: FALSE | EW50: FALSE | EX50: FALSE | EY50: FALSE | EZ50: FALSE | FA50: FALSE | FB50: FALSE | FC50: FALSE | FD50: FALSE | FE50: FALSE | FF50: FALSE | FG50: FALSE | FH50: FALSE | FI50: FALSE | FJ50: FALSE | FK50: FALSE | FL50: FALSE | FM50: FALSE | FN50: FALSE | FO50: FALSE | FP50: FALSE | FQ50: FALSE | FR50: FALSE | FS50: FALSE | FT50: FALSE | FU50: FALSE | FV50: FALSE | FW50: FALSE | FX50: FALSE | FY50: FALSE | FZ50: FALSE | GA50: FALSE | GB50: FALSE | GC50: FALSE | GD50: FALSE | GE50: FALSE | GF50: FALSE | GG50: FALSE | GH50: FALSE | GI50: FALSE | GJ50: FALSE | GK50: FALSE | GL50: FALSE | GM50: FALSE | GN50: FALSE | GO50: FALSE | GP50: =GP49<=$D$33 -> FALSE | GQ50: FALSE | GR50: FALSE | GS50: FALSE | GT50: FALSE | GU50: FALSE | GV50: FALSE | GW50: FALSE | GX50: FALSE | GY50: FALSE | GZ50: FALSE | HA50: FALSE | HB50: FALSE | HC50: FALSE | HD50: FALSE | HE50: FALSE | HF50: FALSE | HG50: FALSE | HH50: FALSE | HI50: FALSE | HJ50: FALSE | HK50: FALSE | HL50: FALSE | HM50: FALSE | HN50: FALSE | HO50: FALSE | HP50: FALSE | HQ50: FALSE | HR50: FALSE | HS50: FALSE | HT50: FALSE | HU50: FALSE | HV50: FALSE | HW50: FALSE | HX50: FALSE | HY50: FALSE | HZ50: FALSE | IA50: FALSE | IB50: FALSE | IC50: FALSE | ID50: FALSE | IE50: FALSE | IF50: FALSE | IG50: FALSE | IH50: FALSE | II50: FALSE | IJ50: FALSE | IK50: FALSE | IL50: FALSE | IM50: FALSE | IN50: FALSE | IO50: FALSE | IP50: FALSE | IQ50: FALSE | IR50: FALSE | IS50: FALSE | IT50: FALSE | IU50: FALSE | IV50: FALSE | IW50: FALSE | IX50: FALSE | IY50: FALSE | IZ50: FALSE | JA50: FALSE | JB50: =JB49<=$D$33 -> FALSE | JC50: FALSE | JD50: FALSE | JE50: FALSE | JF50: FALSE | JG50: FALSE | JH50: FALSE | JI50: FALSE | JJ50: FALSE | JK50: FALSE | JL50: FALSE | JM50: FALSE | JN50: FALSE | JO50: FALSE | JP50: FALSE | JQ50: FALSE | JR50: FALSE | JS50: FALSE | JT50: FALSE | JU50: FALSE | JV50: FALSE | JW50: FALSE | JX50: FALSE | JY50: FALSE | JZ50: FALSE | KA50: FALSE | KB50: FALSE | KC50: FALSE | KD50: FALSE | KE50: FALSE | KF50: FALSE | KG50: FALSE | KH50: FALSE | KI50: FALSE | KJ50: FALSE | KK50: FALSE | KL50: FALSE | KM50: FALSE | KN50: FALSE | KO50: FALSE | KP50: FALSE | KQ50: FALSE | KR50: FALSE
C51: Long-term Period | E51: =E49>$D$33+$D$34 -> FALSE | F51: =F49>$D$33+$D$34 -> FALSE | G51: FALSE | H51: FALSE | I51: FALSE | J51: FALSE | K51: FALSE | L51: FALSE | M51: FALSE | N51: FALSE | O51: FALSE | P51: FALSE | Q51: FALSE | R51: FALSE | S51: FALSE | T51: FALSE | U51: FALSE | V51: FALSE | W51: FALSE | X51: FALSE | Y51: FALSE | Z51: FALSE | AA51: TRUE | AB51: TRUE | AC51: TRUE | AD51: TRUE | AE51: TRUE | AF51: TRUE | AG51: TRUE | AH51: TRUE | AI51: TRUE | AJ51: TRUE | AK51: TRUE | AL51: TRUE | AM51: TRUE | AN51: TRUE | AO51: TRUE | AP51: TRUE | AQ51: TRUE | AR51: TRUE | AS51: TRUE | AT51: TRUE | AU51: TRUE | AV51: TRUE | AW51: TRUE | AX51: TRUE | AY51: TRUE | AZ51: TRUE | BA51: TRUE | BB51: TRUE | BC51: TRUE | BD51: TRUE | BE51: TRUE | BF51: TRUE | BG51: TRUE | BH51: TRUE | BI51: TRUE | BJ51: TRUE | BK51: TRUE | BL51: TRUE | BM51: TRUE | BN51: TRUE | BO51: TRUE | BP51: TRUE | BQ51: TRUE | BR51: =BR49>$D$33+$D$34 -> TRUE | BS51: TRUE | BT51: TRUE | BU51: TRUE | BV51: TRUE | BW51: TRUE | BX51: TRUE | BY51: TRUE | BZ51: TRUE | CA51: TRUE | CB51: TRUE | CC51: TRUE | CD51: TRUE | CE51: TRUE | CF51: TRUE | CG51: TRUE | CH51: TRUE | CI51: TRUE | CJ51: TRUE | CK51: TRUE | CL51: TRUE | CM51: TRUE | CN51: TRUE | CO51: TRUE | CP51: TRUE | CQ51: TRUE | CR51: TRUE | CS51: TRUE | CT51: TRUE | CU51: TRUE | CV51: TRUE | CW51: TRUE | CX51: TRUE | CY51: TRUE | CZ51: TRUE | DA51: TRUE | DB51: TRUE | DC51: TRUE | DD51: TRUE | DE51: TRUE | DF51: TRUE | DG51: TRUE | DH51: TRUE | DI51: TRUE | DJ51: TRUE | DK51: TRUE | DL51: TRUE | DM51: TRUE | DN51: TRUE | DO51: TRUE | DP51: TRUE | DQ51: TRUE | DR51: TRUE | DS51: TRUE | DT51: TRUE | DU51: TRUE | DV51: TRUE | DW51: TRUE | DX51: TRUE | DY51: TRUE | DZ51: TRUE | EA51: TRUE | EB51: TRUE | EC51: TRUE | ED51: =ED49>$D$33+$D$34 -> TRUE | EE51: TRUE | EF51: TRUE | EG51: TRUE | EH51: TRUE | EI51: TRUE | EJ51: TRUE | EK51: TRUE | EL51: TRUE | EM51: TRUE | EN51: TRUE | EO51: TRUE | EP51: TRUE | EQ51: TRUE | ER51: TRUE | ES51: TRUE | ET51: TRUE | EU51: TRUE | EV51: TRUE | EW51: TRUE | EX51: TRUE | EY51: TRUE | EZ51: TRUE | FA51: TRUE | FB51: TRUE | FC51: TRUE | FD51: TRUE | FE51: TRUE | FF51: TRUE | FG51: TRUE | FH51: TRUE | FI51: TRUE | FJ51: TRUE | FK51: TRUE | FL51: TRUE | FM51: TRUE | FN51: TRUE | FO51: TRUE | FP51: TRUE | FQ51: TRUE | FR51: TRUE | FS51: TRUE | FT51: TRUE | FU51: TRUE | FV51: TRUE | FW51: TRUE | FX51: TRUE | FY51: TRUE | FZ51: TRUE | GA51: TRUE | GB51: TRUE | GC51: TRUE | GD51: TRUE | GE51: TRUE | GF51: TRUE | GG51: TRUE | GH51: TRUE | GI51: TRUE | GJ51: TRUE | GK51: TRUE | GL51: TRUE | GM51: TRUE | GN51: TRUE | GO51: TRUE | GP51: =GP49>$D$33+$D$34 -> TRUE | GQ51: TRUE | GR51: TRUE | GS51: TRUE | GT51: TRUE | GU51: TRUE | GV51: TRUE | GW51: TRUE | GX51: TRUE | GY51: TRUE | GZ51: TRUE | HA51: TRUE | HB51: TRUE | HC51: TRUE | HD51: TRUE | HE51: TRUE | HF51: TRUE | HG51: TRUE | HH51: TRUE | HI51: TRUE | HJ51: TRUE | HK51: TRUE | HL51: TRUE | HM51: TRUE | HN51: TRUE | HO51: TRUE | HP51: TRUE | HQ51: TRUE | HR51: TRUE | HS51: TRUE | HT51: TRUE | HU51: TRUE | HV51: TRUE | HW51: TRUE | HX51: TRUE | HY51: TRUE | HZ51: TRUE | IA51: TRUE | IB51: TRUE | IC51: TRUE | ID51: TRUE | IE51: TRUE | IF51: TRUE | IG51: TRUE | IH51: TRUE | II51: TRUE | IJ51: TRUE | IK51: TRUE | IL51: TRUE | IM51: TRUE | IN51: TRUE | IO51: TRUE | IP51: TRUE | IQ51: TRUE | IR51: TRUE | IS51: TRUE | IT51: TRUE | IU51: TRUE | IV51: TRUE | IW51: TRUE | IX51: TRUE | IY51: TRUE | IZ51: TRUE | JA51: TRUE | JB51: =JB49>$D$33+$D$34 -> TRUE | JC51: TRUE | JD51: TRUE | JE51: TRUE | JF51: TRUE | JG51: TRUE | JH51: TRUE | JI51: TRUE | JJ51: TRUE | JK51: TRUE | JL51: TRUE | JM51: TRUE | JN51: TRUE | JO51: TRUE | JP51: TRUE | JQ51: TRUE | JR51: TRUE | JS51: TRUE | JT51: TRUE | JU51: TRUE | JV51: TRUE | JW51: TRUE | JX51: TRUE | JY51: TRUE | JZ51: TRUE | KA51: TRUE | KB51: TRUE | KC51: TRUE | KD51: TRUE | KE51: TRUE | KF51: TRUE | KG51: TRUE | KH51: TRUE | KI51: TRUE | KJ51: TRUE | KK51: TRUE | KL51: TRUE | KM51: TRUE | KN51: TRUE | KO51: TRUE | KP51: TRUE | KQ51: TRUE | KR51: TRUE
C52: Transition Period | E52: =E51=E50 -> FALSE | F52: =F51=F50 -> FALSE | G52: FALSE | H52: FALSE | I52: FALSE | J52: FALSE | K52: FALSE | L52: FALSE | M52: FALSE | N52: FALSE | O52: FALSE | P52: FALSE | Q52: FALSE | R52: FALSE | S52: FALSE | T52: TRUE | U52: TRUE | V52: TRUE | W52: TRUE | X52: TRUE | Y52: TRUE | Z52: TRUE | AA52: FALSE | AB52: FALSE | AC52: FALSE | AD52: FALSE | AE52: FALSE | AF52: FALSE | AG52: FALSE | AH52: FALSE | AI52: FALSE | AJ52: FALSE | AK52: FALSE | AL52: FALSE | AM52: FALSE | AN52: FALSE | AO52: FALSE | AP52: FALSE | AQ52: FALSE | AR52: FALSE | AS52: FALSE | AT52: FALSE | AU52: FALSE | AV52: FALSE | AW52: FALSE | AX52: FALSE | AY52: FALSE | AZ52: FALSE | BA52: FALSE | BB52: FALSE | BC52: FALSE | BD52: FALSE | BE52: FALSE | BF52: FALSE | BG52: FALSE | BH52: FALSE | BI52: FALSE | BJ52: FALSE | BK52: FALSE | BL52: FALSE | BM52: FALSE | BN52: FALSE | BO52: FALSE | BP52: FALSE | BQ52: FALSE | BR52: =BR51=BR50 -> FALSE | BS52: FALSE | BT52: FALSE | BU52: FALSE | BV52: FALSE | BW52: FALSE | BX52: FALSE | BY52: FALSE | BZ52: FALSE | CA52: FALSE | CB52: FALSE | CC52: FALSE | CD52: FALSE | CE52: FALSE | CF52: FALSE | CG52: FALSE | CH52: FALSE | CI52: FALSE | CJ52: FALSE | CK52: FALSE | CL52: FALSE | CM52: FALSE | CN52: FALSE | CO52: FALSE | CP52: FALSE | CQ52: FALSE | CR52: FALSE | CS52: FALSE | CT52: FALSE | CU52: FALSE | CV52: FALSE | CW52: FALSE | CX52: FALSE | CY52: FALSE | CZ52: FALSE | DA52: FALSE | DB52: FALSE | DC52: FALSE | DD52: FALSE | DE52: FALSE | DF52: FALSE | DG52: FALSE | DH52: FALSE | DI52: FALSE | DJ52: FALSE | DK52: FALSE | DL52: FALSE | DM52: FALSE | DN52: FALSE | DO52: FALSE | DP52: FALSE | DQ52: FALSE | DR52: FALSE | DS52: FALSE | DT52: FALSE | DU52: FALSE | DV52: FALSE | DW52: FALSE | DX52: FALSE | DY52: FALSE | DZ52: FALSE | EA52: FALSE | EB52: FALSE | EC52: FALSE | ED52: =ED51=ED50 -> FALSE | EE52: FALSE | EF52: FALSE | EG52: FALSE | EH52: FALSE | EI52: FALSE | EJ52: FALSE | EK52: FALSE | EL52: FALSE | EM52: FALSE | EN52: FALSE | EO52: FALSE | EP52: FALSE | EQ52: FALSE | ER52: FALSE | ES52: FALSE | ET52: FALSE | EU52: FALSE | EV52: FALSE | EW52: FALSE | EX52: FALSE | EY52: FALSE | EZ52: FALSE | FA52: FALSE | FB52: FALSE | FC52: FALSE | FD52: FALSE | FE52: FALSE | FF52: FALSE | FG52: FALSE | FH52: FALSE | FI52: FALSE | FJ52: FALSE | FK52: FALSE | FL52: FALSE | FM52: FALSE | FN52: FALSE | FO52: FALSE | FP52: FALSE | FQ52: FALSE | FR52: FALSE | FS52: FALSE | FT52: FALSE | FU52: FALSE | FV52: FALSE | FW52: FALSE | FX52: FALSE | FY52: FALSE | FZ52: FALSE | GA52: FALSE | GB52: FALSE | GC52: FALSE | GD52: FALSE | GE52: FALSE | GF52: FALSE | GG52: FALSE | GH52: FALSE | GI52: FALSE | GJ52: FALSE | GK52: FALSE | GL52: FALSE | GM52: FALSE | GN52: FALSE | GO52: FALSE | GP52: =GP51=GP50 -> FALSE | GQ52: FALSE | GR52: FALSE | GS52: FALSE | GT52: FALSE | GU52: FALSE | GV52: FALSE | GW52: FALSE | GX52: FALSE | GY52: FALSE | GZ52: FALSE | HA52: FALSE | HB52: FALSE | HC52: FALSE | HD52: FALSE | HE52: FALSE | HF52: FALSE | HG52: FALSE | HH52: FALSE | HI52: FALSE | HJ52: FALSE | HK52: FALSE | HL52: FALSE | HM52: FALSE | HN52: FALSE | HO52: FALSE | HP52: FALSE | HQ52: FALSE | HR52: FALSE | HS52: FALSE | HT52: FALSE | HU52: FALSE | HV52: FALSE | HW52: FALSE | HX52: FALSE | HY52: FALSE | HZ52: FALSE | IA52: FALSE | IB52: FALSE | IC52: FALSE | ID52: FALSE | IE52: FALSE | IF52: FALSE | IG52: FALSE | IH52: FALSE | II52: FALSE | IJ52: FALSE | IK52: FALSE | IL52: FALSE | IM52: FALSE | IN52: FALSE | IO52: FALSE | IP52: FALSE | IQ52: FALSE | IR52: FALSE | IS52: FALSE | IT52: FALSE | IU52: FALSE | IV52: FALSE | IW52: FALSE | IX52: FALSE | IY52: FALSE | IZ52: FALSE | JA52: FALSE | JB52: =JB51=JB50 -> FALSE | JC52: FALSE | JD52: FALSE | JE52: FALSE | JF52: FALSE | JG52: FALSE | JH52: FALSE | JI52: FALSE | JJ52: FALSE | JK52: FALSE | JL52: FALSE | JM52: FALSE | JN52: FALSE | JO52: FALSE | JP52: FALSE | JQ52: FALSE | JR52: FALSE | JS52: FALSE | JT52: FALSE | JU52: FALSE | JV52: FALSE | JW52: FALSE | JX52: FALSE | JY52: FALSE | JZ52: FALSE | KA52: FALSE | KB52: FALSE | KC52: FALSE | KD52: FALSE | KE52: FALSE | KF52: FALSE | KG52: FALSE | KH52: FALSE | KI52: FALSE | KJ52: FALSE | KK52: FALSE | KL52: FALSE | KM52: FALSE | KN52: FALSE | KO52: FALSE | KP52: FALSE | KQ52: FALSE | KR52: FALSE
C54: ROE | E54: =E50*$D$35+E51*$D$36+D54*(1+$D$37)*E52 -> 0.15 | F54: =F50*$D$35+F51*$D$36+E54*(1+$D$37)*F52 -> 0.15 | G54: 0.15 | H54: 0.15 | I54: 0.15 | J54: 0.15 | K54: 0.15 | L54: 0.15 | M54: 0.15 | N54: 0.15 | O54: 0.15 | P54: 0.15 | Q54: 0.15 | R54: 0.15 | S54: 0.15 | T54: 0.1425869737 | U54: 0.1355403005 | V54: 0.1288418752 | W54: 0.1224744871 | X54: 0.1164217765 | Y54: 0.110668192 | Z54: 0.1051989506 | AA54: 0.1 | AB54: 0.1 | AC54: 0.1 | AD54: 0.1 | AE54: 0.1 | AF54: 0.1 | AG54: 0.1 | AH54: 0.1 | AI54: 0.1 | AJ54: 0.1 | AK54: 0.1 | AL54: 0.1 | AM54: 0.1 | AN54: 0.1 | AO54: 0.1 | AP54: 0.1 | AQ54: 0.1 | AR54: 0.1 | AS54: 0.1 | AT54: 0.1 | AU54: 0.1 | AV54: 0.1 | AW54: 0.1 | AX54: 0.1 | AY54: 0.1 | AZ54: 0.1 | BA54: 0.1 | BB54: 0.1 | BC54: 0.1 | BD54: 0.1 | BE54: 0.1 | BF54: 0.1 | BG54: 0.1 | BH54: 0.1 | BI54: 0.1 | BJ54: 0.1 | BK54: 0.1 | BL54: 0.1 | BM54: 0.1 | BN54: 0.1 | BO54: 0.1 | BP54: 0.1 | BQ54: 0.1 | BR54: =BR50*$D$35+BR51*$D$36+BQ54*(1+$D$37)*BR52 -> 0.1 | BS54: 0.1 | BT54: 0.1 | BU54: 0.1 | BV54: 0.1 | BW54: 0.1 | BX54: 0.1 | BY54: 0.1 | BZ54: 0.1 | CA54: 0.1 | CB54: 0.1 | CC54: 0.1 | CD54: 0.1 | CE54: 0.1 | CF54: 0.1 | CG54: 0.1 | CH54: 0.1 | CI54: 0.1 | CJ54: 0.1 | CK54: 0.1 | CL54: 0.1 | CM54: 0.1 | CN54: 0.1 | CO54: 0.1 | CP54: 0.1 | CQ54: 0.1 | CR54: 0.1 | CS54: 0.1 | CT54: 0.1 | CU54: 0.1 | CV54: 0.1 | CW54: 0.1 | CX54: 0.1 | CY54: 0.1 | CZ54: 0.1 | DA54: 0.1 | DB54: 0.1 | DC54: 0.1 | DD54: 0.1 | DE54: 0.1 | DF54: 0.1 | DG54: 0.1 | DH54: 0.1 | DI54: 0.1 | DJ54: 0.1 | DK54: 0.1 | DL54: 0.1 | DM54: 0.1 | DN54: 0.1 | DO54: 0.1 | DP54: 0.1 | DQ54: 0.1 | DR54: 0.1 | DS54: 0.1 | DT54: 0.1 | DU54: 0.1 | DV54: 0.1 | DW54: 0.1 | DX54: 0.1 | DY54: 0.1 | DZ54: 0.1 | EA54: 0.1 | EB54: 0.1 | EC54: 0.1 | ED54: =ED50*$D$35+ED51*$D$36+EC54*(1+$D$37)*ED52 -> 0.1 | EE54: 0.1 | EF54: 0.1 | EG54: 0.1 | EH54: 0.1 | EI54: 0.1 | EJ54: 0.1 | EK54: 0.1 | EL54: 0.1 | EM54: 0.1 | EN54: 0.1 | EO54: 0.1 | EP54: 0.1 | EQ54: 0.1 | ER54: 0.1 | ES54: 0.1 | ET54: 0.1 | EU54: 0.1 | EV54: 0.1 | EW54: 0.1 | EX54: 0.1 | EY54: 0.1 | EZ54: 0.1 | FA54: 0.1 | FB54: 0.1 | FC54: 0.1 | FD54: 0.1 | FE54: 0.1 | FF54: 0.1 | FG54: 0.1 | FH54: 0.1 | FI54: 0.1 | FJ54: 0.1 | FK54: 0.1 | FL54: 0.1 | FM54: 0.1 | FN54: 0.1 | FO54: 0.1 | FP54: 0.1 | FQ54: 0.1 | FR54: 0.1 | FS54: 0.1 | FT54: 0.1 | FU54: 0.1 | FV54: 0.1 | FW54: 0.1 | FX54: 0.1 | FY54: 0.1 | FZ54: 0.1 | GA54: 0.1 | GB54: 0.1 | GC54: 0.1 | GD54: 0.1 | GE54: 0.1 | GF54: 0.1 | GG54: 0.1 | GH54: 0.1 | GI54: 0.1 | GJ54: 0.1 | GK54: 0.1 | GL54: 0.1 | GM54: 0.1 | GN54: 0.1 | GO54: 0.1 | GP54: =GP50*$D$35+GP51*$D$36+GO54*(1+$D$37)*GP52 -> 0.1 | GQ54: 0.1 | GR54: 0.1 | GS54: 0.1 | GT54: 0.1 | GU54: 0.1 | GV54: 0.1 | GW54: 0.1 | GX54: 0.1 | GY54: 0.1 | GZ54: 0.1 | HA54: 0.1 | HB54: 0.1 | HC54: 0.1 | HD54: 0.1 | HE54: 0.1 | HF54: 0.1 | HG54: 0.1 | HH54: 0.1 | HI54: 0.1 | HJ54: 0.1 | HK54: 0.1 | HL54: 0.1 | HM54: 0.1 | HN54: 0.1 | HO54: 0.1 | HP54: 0.1 | HQ54: 0.1 | HR54: 0.1 | HS54: 0.1 | HT54: 0.1 | HU54: 0.1 | HV54: 0.1 | HW54: 0.1 | HX54: 0.1 | HY54: 0.1 | HZ54: 0.1 | IA54: 0.1 | IB54: 0.1 | IC54: 0.1 | ID54: 0.1 | IE54: 0.1 | IF54: 0.1 | IG54: 0.1 | IH54: 0.1 | II54: 0.1 | IJ54: 0.1 | IK54: 0.1 | IL54: 0.1 | IM54: 0.1 | IN54: 0.1 | IO54: 0.1 | IP54: 0.1 | IQ54: 0.1 | IR54: 0.1 | IS54: 0.1 | IT54: 0.1 | IU54: 0.1 | IV54: 0.1 | IW54: 0.1 | IX54: 0.1 | IY54: 0.1 | IZ54: 0.1 | JA54: 0.1 | JB54: =JB50*$D$35+JB51*$D$36+JA54*(1+$D$37)*JB52 -> 0.1 | JC54: 0.1 | JD54: 0.1 | JE54: 0.1 | JF54: 0.1 | JG54: 0.1 | JH54: 0.1 | JI54: 0.1 | JJ54: 0.1 | JK54: 0.1 | JL54: 0.1 | JM54: 0.1 | JN54: 0.1 | JO54: 0.1 | JP54: 0.1 | JQ54: 0.1 | JR54: 0.1 | JS54: 0.1 | JT54: 0.1 | JU54: 0.1 | JV54: 0.1 | JW54: 0.1 | JX54: 0.1 | JY54: 0.1 | JZ54: 0.1 | KA54: 0.1 | KB54: 0.1 | KC54: 0.1 | KD54: 0.1 | KE54: 0.1 | KF54: 0.1 | KG54: 0.1 | KH54: 0.1 | KI54: 0.1 | KJ54: 0.1 | KK54: 0.1 | KL54: 0.1 | KM54: 0.1 | KN54: 0.1 | KO54: 0.1 | KP54: 0.1 | KQ54: 0.1 | KR54: 0.1
C55: Growth Rate | E55: =E50*$D$41+E51*$D$42+D55*(1+$D$43)*E52 -> 0.15 | F55: =F50*$D$41+F51*$D$42+E55*(1+$D$43)*F52 -> 0.15 | G55: 0.15 | H55: 0.15 | I55: 0.15 | J55: 0.15 | K55: 0.15 | L55: 0.15 | M55: 0.15 | N55: 0.15 | O55: 0.15 | P55: 0.15 | Q55: 0.15 | R55: 0.15 | S55: 0.15 | T55: 0.1271561443 | U55: 0.1077912336 | V55: 0.09137545103 | W55: 0.07745966692 | X55: 0.06566315058 | Y55: 0.05566315367 | Z55: 0.04718608001 | AA55: 0.04 | AB55: 0.04 | AC55: 0.04 | AD55: 0.04 | AE55: 0.04 | AF55: 0.04 | AG55: 0.04 | AH55: 0.04 | AI55: 0.04 | AJ55: 0.04 | AK55: 0.04 | AL55: 0.04 | AM55: 0.04 | AN55: 0.04 | AO55: 0.04 | AP55: 0.04 | AQ55: 0.04 | AR55: 0.04 | AS55: 0.04 | AT55: 0.04 | AU55: 0.04 | AV55: 0.04 | AW55: 0.04 | AX55: 0.04 | AY55: 0.04 | AZ55: 0.04 | BA55: 0.04 | BB55: 0.04 | BC55: 0.04 | BD55: 0.04 | BE55: 0.04 | BF55: 0.04 | BG55: 0.04 | BH55: 0.04 | BI55: 0.04 | BJ55: 0.04 | BK55: 0.04 | BL55: 0.04 | BM55: 0.04 | BN55: 0.04 | BO55: 0.04 | BP55: 0.04 | BQ55: 0.04 | BR55: =BR50*$D$41+BR51*$D$42+BQ55*(1+$D$43)*BR52 -> 0.04 | BS55: 0.04 | BT55: 0.04 | BU55: 0.04 | BV55: 0.04 | BW55: 0.04 | BX55: 0.04 | BY55: 0.04 | BZ55: 0.04 | CA55: 0.04 | CB55: 0.04 | CC55: 0.04 | CD55: 0.04 | CE55: 0.04 | CF55: 0.04 | CG55: 0.04 | CH55: 0.04 | CI55: 0.04 | CJ55: 0.04 | CK55: 0.04 | CL55: 0.04 | CM55: 0.04 | CN55: 0.04 | CO55: 0.04 | CP55: 0.04 | CQ55: 0.04 | CR55: 0.04 | CS55: 0.04 | CT55: 0.04 | CU55: 0.04 | CV55: 0.04 | CW55: 0.04 | CX55: 0.04 | CY55: 0.04 | CZ55: 0.04 | DA55: 0.04 | DB55: 0.04 | DC55: 0.04 | DD55: 0.04 | DE55: 0.04 | DF55: 0.04 | DG55: 0.04 | DH55: 0.04 | DI55: 0.04 | DJ55: 0.04 | DK55: 0.04 | DL55: 0.04 | DM55: 0.04 | DN55: 0.04 | DO55: 0.04 | DP55: 0.04 | DQ55: 0.04 | DR55: 0.04 | DS55: 0.04 | DT55: 0.04 | DU55: 0.04 | DV55: 0.04 | DW55: 0.04 | DX55: 0.04 | DY55: 0.04 | DZ55: 0.04 | EA55: 0.04 | EB55: 0.04 | EC55: 0.04 | ED55: =ED50*$D$41+ED51*$D$42+EC55*(1+$D$43)*ED52 -> 0.04 | EE55: 0.04 | EF55: 0.04 | EG55: 0.04 | EH55: 0.04 | EI55: 0.04 | EJ55: 0.04 | EK55: 0.04 | EL55: 0.04 | EM55: 0.04 | EN55: 0.04 | EO55: 0.04 | EP55: 0.04 | EQ55: 0.04 | ER55: 0.04 | ES55: 0.04 | ET55: 0.04 | EU55: 0.04 | EV55: 0.04 | EW55: 0.04 | EX55: 0.04 | EY55: 0.04 | EZ55: 0.04 | FA55: 0.04 | FB55: 0.04 | FC55: 0.04 | FD55: 0.04 | FE55: 0.04 | FF55: 0.04 | FG55: 0.04 | FH55: 0.04 | FI55: 0.04 | FJ55: 0.04 | FK55: 0.04 | FL55: 0.04 | FM55: 0.04 | FN55: 0.04 | FO55: 0.04 | FP55: 0.04 | FQ55: 0.04 | FR55: 0.04 | FS55: 0.04 | FT55: 0.04 | FU55: 0.04 | FV55: 0.04 | FW55: 0.04 | FX55: 0.04 | FY55: 0.04 | FZ55: 0.04 | GA55: 0.04 | GB55: 0.04 | GC55: 0.04 | GD55: 0.04 | GE55: 0.04 | GF55: 0.04 | GG55: 0.04 | GH55: 0.04 | GI55: 0.04 | GJ55: 0.04 | GK55: 0.04 | GL55: 0.04 | GM55: 0.04 | GN55: 0.04 | GO55: 0.04 | GP55: =GP50*$D$41+GP51*$D$42+GO55*(1+$D$43)*GP52 -> 0.04 | GQ55: 0.04 | GR55: 0.04 | GS55: 0.04 | GT55: 0.04 | GU55: 0.04 | GV55: 0.04 | GW55: 0.04 | GX55: 0.04 | GY55: 0.04 | GZ55: 0.04 | HA55: 0.04 | HB55: 0.04 | HC55: 0.04 | HD55: 0.04 | HE55: 0.04 | HF55: 0.04 | HG55: 0.04 | HH55: 0.04 | HI55: 0.04 | HJ55: 0.04 | HK55: 0.04 | HL55: 0.04 | HM55: 0.04 | HN55: 0.04 | HO55: 0.04 | HP55: 0.04 | HQ55: 0.04 | HR55: 0.04 | HS55: 0.04 | HT55: 0.04 | HU55: 0.04 | HV55: 0.04 | HW55: 0.04 | HX55: 0.04 | HY55: 0.04 | HZ55: 0.04 | IA55: 0.04 | IB55: 0.04 | IC55: 0.04 | ID55: 0.04 | IE55: 0.04 | IF55: 0.04 | IG55: 0.04 | IH55: 0.04 | II55: 0.04 | IJ55: 0.04 | IK55: 0.04 | IL55: 0.04 | IM55: 0.04 | IN55: 0.04 | IO55: 0.04 | IP55: 0.04 | IQ55: 0.04 | IR55: 0.04 | IS55: 0.04 | IT55: 0.04 | IU55: 0.04 | IV55: 0.04 | IW55: 0.04 | IX55: 0.04 | IY55: 0.04 | IZ55: 0.04 | JA55: 0.04 | JB55: =JB50*$D$41+JB51*$D$42+JA55*(1+$D$43)*JB52 -> 0.04 | JC55: 0.04 | JD55: 0.04 | JE55: 0.04 | JF55: 0.04 | JG55: 0.04 | JH55: 0.04 | JI55: 0.04 | JJ55: 0.04 | JK55: 0.04 | JL55: 0.04 | JM55: 0.04 | JN55: 0.04 | JO55: 0.04 | JP55: 0.04 | JQ55: 0.04 | JR55: 0.04 | JS55: 0.04 | JT55: 0.04 | JU55: 0.04 | JV55: 0.04 | JW55: 0.04 | JX55: 0.04 | JY55: 0.04 | JZ55: 0.04 | KA55: 0.04 | KB55: 0.04 | KC55: 0.04 | KD55: 0.04 | KE55: 0.04 | KF55: 0.04 | KG55: 0.04 | KH55: 0.04 | KI55: 0.04 | KJ55: 0.04 | KK55: 0.04 | KL55: 0.04 | KM55: 0.04 | KN55: 0.04 | KO55: 0.04 | KP55: 0.04 | KQ55: 0.04 | KR55: 0.04
C56: Dividend Payout Ratio | E56: =1-E55/E54 -> 0 | F56: =1-F55/F54 -> 0 | G56: 0 | H56: 0 | I56: 0 | J56: 0 | K56: 0 | L56: 0 | M56: 0 | N56: 0 | O56: 0 | P56: 0 | Q56: 0 | R56: 0 | S56: 0 | T56: 0.1082204708 | U56: 0.2047292712 | V56: 0.2907938439 | W56: 0.367544468 | X56: 0.4359891034 | Y56: 0.4970266281 | Z56: 0.5514586432 | AA56: 0.6 | AB56: 0.6 | AC56: 0.6 | AD56: 0.6 | AE56: 0.6 | AF56: 0.6 | AG56: 0.6 | AH56: 0.6 | AI56: 0.6 | AJ56: 0.6 | AK56: 0.6 | AL56: 0.6 | AM56: 0.6 | AN56: 0.6 | AO56: 0.6 | AP56: 0.6 | AQ56: 0.6 | AR56: 0.6 | AS56: 0.6 | AT56: 0.6 | AU56: 0.6 | AV56: 0.6 | AW56: 0.6 | AX56: 0.6 | AY56: 0.6 | AZ56: 0.6 | BA56: 0.6 | BB56: 0.6 | BC56: 0.6 | BD56: 0.6 | BE56: 0.6 | BF56: 0.6 | BG56: 0.6 | BH56: 0.6 | BI56: 0.6 | BJ56: 0.6 | BK56: 0.6 | BL56: 0.6 | BM56: 0.6 | BN56: 0.6 | BO56: 0.6 | BP56: 0.6 | BQ56: 0.6 | BR56: =1-BR55/BR54 -> 0.6 | BS56: 0.6 | BT56: 0.6 | BU56: 0.6 | BV56: 0.6 | BW56: 0.6 | BX56: 0.6 | BY56: 0.6 | BZ56: 0.6 | CA56: 0.6 | CB56: 0.6 | CC56: 0.6 | CD56: 0.6 | CE56: 0.6 | CF56: 0.6 | CG56: 0.6 | CH56: 0.6 | CI56: 0.6 | CJ56: 0.6 | CK56: 0.6 | CL56: 0.6 | CM56: 0.6 | CN56: 0.6 | CO56: 0.6 | CP56: 0.6 | CQ56: 0.6 | CR56: 0.6 | CS56: 0.6 | CT56: 0.6 | CU56: 0.6 | CV56: 0.6 | CW56: 0.6 | CX56: 0.6 | CY56: 0.6 | CZ56: 0.6 | DA56: 0.6 | DB56: 0.6 | DC56: 0.6 | DD56: 0.6 | DE56: 0.6 | DF56: 0.6 | DG56: 0.6 | DH56: 0.6 | DI56: 0.6 | DJ56: 0.6 | DK56: 0.6 | DL56: 0.6 | DM56: 0.6 | DN56: 0.6 | DO56: 0.6 | DP56: 0.6 | DQ56: 0.6 | DR56: 0.6 | DS56: 0.6 | DT56: 0.6 | DU56: 0.6 | DV56: 0.6 | DW56: 0.6 | DX56: 0.6 | DY56: 0.6 | DZ56: 0.6 | EA56: 0.6 | EB56: 0.6 | EC56: 0.6 | ED56: =1-ED55/ED54 -> 0.6 | EE56: 0.6 | EF56: 0.6 | EG56: 0.6 | EH56: 0.6 | EI56: 0.6 | EJ56: 0.6 | EK56: 0.6 | EL56: 0.6 | EM56: 0.6 | EN56: 0.6 | EO56: 0.6 | EP56: 0.6 | EQ56: 0.6 | ER56: 0.6 | ES56: 0.6 | ET56: 0.6 | EU56: 0.6 | EV56: 0.6 | EW56: 0.6 | EX56: 0.6 | EY56: 0.6 | EZ56: 0.6 | FA56: 0.6 | FB56: 0.6 | FC56: 0.6 | FD56: 0.6 | FE56: 0.6 | FF56: 0.6 | FG56: 0.6 | FH56: 0.6 | FI56: 0.6 | FJ56: 0.6 | FK56: 0.6 | FL56: 0.6 | FM56: 0.6 | FN56: 0.6 | FO56: 0.6 | FP56: 0.6 | FQ56: 0.6 | FR56: 0.6 | FS56: 0.6 | FT56: 0.6 | FU56: 0.6 | FV56: 0.6 | FW56: 0.6 | FX56: 0.6 | FY56: 0.6 | FZ56: 0.6 | GA56: 0.6 | GB56: 0.6 | GC56: 0.6 | GD56: 0.6 | GE56: 0.6 | GF56: 0.6 | GG56: 0.6 | GH56: 0.6 | GI56: 0.6 | GJ56: 0.6 | GK56: 0.6 | GL56: 0.6 | GM56: 0.6 | GN56: 0.6 | GO56: 0.6 | GP56: =1-GP55/GP54 -> 0.6 | GQ56: 0.6 | GR56: 0.6 | GS56: 0.6 | GT56: 0.6 | GU56: 0.6 | GV56: 0.6 | GW56: 0.6 | GX56: 0.6 | GY56: 0.6 | GZ56: 0.6 | HA56: 0.6 | HB56: 0.6 | HC56: 0.6 | HD56: 0.6 | HE56: 0.6 | HF56: 0.6 | HG56: 0.6 | HH56: 0.6 | HI56: 0.6 | HJ56: 0.6 | HK56: 0.6 | HL56: 0.6 | HM56: 0.6 | HN56: 0.6 | HO56: 0.6 | HP56: 0.6 | HQ56: 0.6 | HR56: 0.6 | HS56: 0.6 | HT56: 0.6 | HU56: 0.6 | HV56: 0.6 | HW56: 0.6 | HX56: 0.6 | HY56: 0.6 | HZ56: 0.6 | IA56: 0.6 | IB56: 0.6 | IC56: 0.6 | ID56: 0.6 | IE56: 0.6 | IF56: 0.6 | IG56: 0.6 | IH56: 0.6 | II56: 0.6 | IJ56: 0.6 | IK56: 0.6 | IL56: 0.6 | IM56: 0.6 | IN56: 0.6 | IO56: 0.6 | IP56: 0.6 | IQ56: 0.6 | IR56: 0.6 | IS56: 0.6 | IT56: 0.6 | IU56: 0.6 | IV56: 0.6 | IW56: 0.6 | IX56: 0.6 | IY56: 0.6 | IZ56: 0.6 | JA56: 0.6 | JB56: =1-JB55/JB54 -> 0.6 | JC56: 0.6 | JD56: 0.6 | JE56: 0.6 | JF56: 0.6 | JG56: 0.6 | JH56: 0.6 | JI56: 0.6 | JJ56: 0.6 | JK56: 0.6 | JL56: 0.6 | JM56: 0.6 | JN56: 0.6 | JO56: 0.6 | JP56: 0.6 | JQ56: 0.6 | JR56: 0.6 | JS56: 0.6 | JT56: 0.6 | JU56: 0.6 | JV56: 0.6 | JW56: 0.6 | JX56: 0.6 | JY56: 0.6 | JZ56: 0.6 | KA56: 0.6 | KB56: 0.6 | KC56: 0.6 | KD56: 0.6 | KE56: 0.6 | KF56: 0.6 | KG56: 0.6 | KH56: 0.6 | KI56: 0.6 | KJ56: 0.6 | KK56: 0.6 | KL56: 0.6 | KM56: 0.6 | KN56: 0.6 | KO56: 0.6 | KP56: 0.6 | KQ56: 0.6 | KR56: 0.6
B58: Book Value per Share
C59: Opening Balance | E59: =D62 -> 11.55 | F59: =E62 -> 13.2825 | G59: 15.274875 | H59: 17.56610625 | I59: 20.20102219 | J59: 23.23117552 | K59: 26.71585184 | L59: 30.72322962 | M59: 35.33171406 | N59: 40.63147117 | O59: 46.72619185 | P59: 53.73512062 | Q59: 61.79538872 | R59: 71.06469703 | S59: 81.72440158 | T59: 93.98306182 | U59: 105.9335856 | V59: 117.3522975 | W59: 128.0754166 | X59: 137.9960957 | Y59: 147.0573541 | Z59: 155.2430302 | AA59: 162.5683402 | AB59: 169.0710738 | AC59: 175.8339168 | AD59: 182.8672735 | AE59: 190.1819644 | AF59: 197.789243 | AG59: 205.7008127 | AH59: 213.9288452 | AI59: 222.485999 | AJ59: 231.385439 | AK59: 240.6408565 | AL59: 250.2664908 | AM59: 260.2771504 | AN59: 270.6882364 | AO59: 281.5157659 | AP59: 292.7763965 | AQ59: 304.4874524 | AR59: 316.6669505 | AS59: 329.3336285 | AT59: 342.5069737 | AU59: 356.2072526 | AV59: 370.4555427 | AW59: 385.2737644 | AX59: 400.684715 | AY59: 416.7121036 | AZ59: 433.3805877 | BA59: 450.7158112 | BB59: 468.7444437 | BC59: 487.4942214 | BD59: 506.9939903 | BE59: 527.2737499 | BF59: 548.3646999 | BG59: 570.2992879 | BH59: 593.1112594 | BI59: 616.8357098 | BJ59: 641.5091382 | BK59: 667.1695037 | BL59: 693.8562839 | BM59: 721.6105352 | BN59: 750.4749566 | BO59: 780.4939549 | BP59: 811.7137131 | BQ59: 844.1822616 | BR59: =BQ62 -> 877.9495521 | BS59: 913.0675342 | BT59: 949.5902355 | BU59: 987.5738449 | BV59: 1027.076799 | BW59: 1068.159871 | BX59: 1110.886266 | BY59: 1155.321716 | BZ59: 1201.534585 | CA59: 1249.595968 | CB59: 1299.579807 | CC59: 1351.562999 | CD59: 1405.625519 | CE59: 1461.85054 | CF59: 1520.324562 | CG59: 1581.137544 | CH59: 1644.383046 | CI59: 1710.158368 | CJ59: 1778.564702 | CK59: 1849.70729 | CL59: 1923.695582 | CM59: 2000.643405 | CN59: 2080.669141 | CO59: 2163.895907 | CP59: 2250.451743 | CQ59: 2340.469813 | CR59: 2434.088606 | CS59: 2531.45215 | CT59: 2632.710236 | CU59: 2738.018645 | CV59: 2847.539391 | CW59: 2961.440967 | CX59: 3079.898605 | CY59: 3203.09455 | CZ59: 3331.218332 | DA59: 3464.467065 | DB59: 3603.045747 | DC59: 3747.167577 | DD59: 3897.05428 | DE59: 4052.936452 | DF59: 4215.05391 | DG59: 4383.656066 | DH59: 4559.002309 | DI59: 4741.362401 | DJ59: 4931.016897 | DK59: 5128.257573 | DL59: 5333.387876 | DM59: 5546.723391 | DN59: 5768.592327 | DO59: 5999.33602 | DP59: 6239.309461 | DQ59: 6488.881839 | DR59: 6748.437113 | DS59: 7018.374597 | DT59: 7299.109581 | DU59: 7591.073964 | DV59: 7894.716923 | DW59: 8210.5056 | DX59: 8538.925824 | DY59: 8880.482857 | DZ59: 9235.702171 | EA59: 9605.130258 | EB59: 9989.335468 | EC59: 10388.90889 | ED59: =EC62 -> 10804.46524 | EE59: 11236.64385 | EF59: 11686.10961 | EG59: 12153.55399 | EH59: 12639.69615 | EI59: 13145.284 | EJ59: 13671.09536 | EK59: 14217.93917 | EL59: 14786.65674 | EM59: 15378.12301 | EN59: 15993.24793 | EO59: 16632.97784 | EP59: 17298.29696 | EQ59: 17990.22884 | ER59: 18709.83799 | ES59: 19458.23151 | ET59: 20236.56077 | EU59: 21046.0232 | EV59: 21887.86413 | EW59: 22763.37869 | EX59: 23673.91384 | EY59: 24620.87039 | EZ59: 25605.70521 | FA59: 26629.93342 | FB59: 27695.13075 | FC59: 28802.93598 | FD59: 29955.05342 | FE59: 31153.25556 | FF59: 32399.38578 | FG59: 33695.36122 | FH59: 35043.17566 | FI59: 36444.90269 | FJ59: 37902.6988 | FK59: 39418.80675 | FL59: 40995.55902 | FM59: 42635.38138 | FN59: 44340.79664 | FO59: 46114.4285 | FP59: 47959.00564 | FQ59: 49877.36587 | FR59: 51872.4605 | FS59: 53947.35892 | FT59: 56105.25328 | FU59: 58349.46341 | FV59: 60683.44195 | FW59: 63110.77962 | FX59: 65635.21081 | FY59: 68260.61924 | FZ59: 70991.04401 | GA59: 73830.68577 | GB59: 76783.9132 | GC59: 79855.26973 | GD59: 83049.48052 | GE59: 86371.45974 | GF59: 89826.31813 | GG59: 93419.37085 | GH59: 97156.14569 | GI59: 101042.3915 | GJ59: 105084.0872 | GK59: 109287.4507 | GL59: 113658.9487 | GM59: 118205.3066 | GN59: 122933.5189 | GO59: 127850.8597 | GP59: =GO62 -> 132964.894 | GQ59: 138283.4898 | GR59: 143814.8294 | GS59: 149567.4226 | GT59: 155550.1195 | GU59: 161772.1243 | GV59: 168243.0092 | GW59: 174972.7296 | GX59: 181971.6388 | GY59: 189250.5043 | GZ59: 196820.5245 | HA59: 204693.3455 | HB59: 212881.0793 | HC59: 221396.3225 | HD59: 230252.1754 | HE59: 239462.2624 | HF59: 249040.7529 | HG59: 259002.383 | HH59: 269362.4783 | HI59: 280136.9775 | HJ59: 291342.4566 | HK59: 302996.1548 | HL59: 315116.001 | HM59: 327720.6411 | HN59: 340829.4667 | HO59: 354462.6454 | HP59: 368641.1512 | HQ59: 383386.7972 | HR59: 398722.2691 | HS59: 414671.1599 | HT59: 431258.0063 | HU59: 448508.3265 | HV59: 466448.6596 | HW59: 485106.606 | HX59: 504510.8702 | HY59: 524691.305 | HZ59: 545678.9572 | IA59: 567506.1155 | IB59: 590206.3601 | IC59: 613814.6145 | ID59: 638367.1991 | IE59: 663901.8871 | IF59: 690457.9626 | IG59: 718076.2811 | IH59: 746799.3323 | II59: 776671.3056 | IJ59: 807738.1578 | IK59: 840047.6841 | IL59: 873649.5915 | IM59: 908595.5752 | IN59: 944939.3982 | IO59: 982736.9741 | IP59: 1022046.453 | IQ59: 1062928.311 | IR59: 1105445.444 | IS59: 1149663.261 | IT59: 1195649.792 | IU59: 1243475.783 | IV59: 1293214.815 | IW59: 1344943.407 | IX59: 1398741.144 | IY59: 1454690.789 | IZ59: 1512878.421 | JA59: 1573393.558 | JB59: =JA62 -> 1636329.3 | JC59: 1701782.472 | JD59: 1769853.771 | JE59: 1840647.922 | JF59: 1914273.839 | JG59: 1990844.792 | JH59: 2070478.584 | JI59: 2153297.727 | JJ59: 2239429.637 | JK59: 2329006.822 | JL59: 2422167.095 | JM59: 2519053.779 | JN59: 2619815.93 | JO59: 2724608.567 | JP59: 2833592.91 | JQ59: 2946936.626 | JR59: 3064814.091 | JS59: 3187406.655 | JT59: 3314902.921 | JU59: 3447499.038 | JV59: 3585398.999 | JW59: 3728814.959 | JX59: 3877967.558 | JY59: 4033086.26 | JZ59: 4194409.71 | KA59: 4362186.099 | KB59: 4536673.543 | KC59: 4718140.484 | KD59: 4906866.104 | KE59: 5103140.748 | KF59: 5307266.378 | KG59: 5519557.033 | KH59: 5740339.314 | KI59: 5969952.887 | KJ59: 6208751.002 | KK59: 6457101.042 | KL59: 6715385.084 | KM59: 6984000.488 | KN59: 7263360.507 | KO59: 7553894.927 | KP59: 7856050.724 | KQ59: 8170292.753 | KR59: 8497104.464
C60: Add: EPS | E60: =E59*E54 -> 1.7325 | F60: =F59*F54 -> 1.992375 | G60: 2.29123125 | H60: 2.634915938 | I60: 3.030153328 | J60: 3.484676327 | K60: 4.007377776 | L60: 4.608484443 | M60: 5.299757109 | N60: 6.094720676 | O60: 7.008928777 | P60: 8.060268094 | Q60: 9.269308308 | R60: 10.65970455 | S60: 12.25866024 | T60: 13.40076037 | U60: 14.35827003 | V60: 15.11989006 | W60: 15.68597096 | X60: 16.06575062 | Y60: 16.27457149 | Z60: 16.33140386 | AA60: 16.25683402 | AB60: 16.90710738 | AC60: 17.58339168 | AD60: 18.28672735 | AE60: 19.01819644 | AF60: 19.7789243 | AG60: 20.57008127 | AH60: 21.39288452 | AI60: 22.2485999 | AJ60: 23.1385439 | AK60: 24.06408565 | AL60: 25.02664908 | AM60: 26.02771504 | AN60: 27.06882364 | AO60: 28.15157659 | AP60: 29.27763965 | AQ60: 30.44874524 | AR60: 31.66669505 | AS60: 32.93336285 | AT60: 34.25069737 | AU60: 35.62072526 | AV60: 37.04555427 | AW60: 38.52737644 | AX60: 40.0684715 | AY60: 41.67121036 | AZ60: 43.33805877 | BA60: 45.07158112 | BB60: 46.87444437 | BC60: 48.74942214 | BD60: 50.69939903 | BE60: 52.72737499 | BF60: 54.83646999 | BG60: 57.02992879 | BH60: 59.31112594 | BI60: 61.68357098 | BJ60: 64.15091382 | BK60: 66.71695037 | BL60: 69.38562839 | BM60: 72.16105352 | BN60: 75.04749566 | BO60: 78.04939549 | BP60: 81.17137131 | BQ60: 84.41822616 | BR60: =BR59*BR54 -> 87.79495521 | BS60: 91.30675342 | BT60: 94.95902355 | BU60: 98.75738449 | BV60: 102.7076799 | BW60: 106.8159871 | BX60: 111.0886266 | BY60: 115.5321716 | BZ60: 120.1534585 | CA60: 124.9595968 | CB60: 129.9579807 | CC60: 135.1562999 | CD60: 140.5625519 | CE60: 146.185054 | CF60: 152.0324562 | CG60: 158.1137544 | CH60: 164.4383046 | CI60: 171.0158368 | CJ60: 177.8564702 | CK60: 184.970729 | CL60: 192.3695582 | CM60: 200.0643405 | CN60: 208.0669141 | CO60: 216.3895907 | CP60: 225.0451743 | CQ60: 234.0469813 | CR60: 243.4088606 | CS60: 253.145215 | CT60: 263.2710236 | CU60: 273.8018645 | CV60: 284.7539391 | CW60: 296.1440967 | CX60: 307.9898605 | CY60: 320.309455 | CZ60: 333.1218332 | DA60: 346.4467065 | DB60: 360.3045747 | DC60: 374.7167577 | DD60: 389.705428 | DE60: 405.2936452 | DF60: 421.505391 | DG60: 438.3656066 | DH60: 455.9002309 | DI60: 474.1362401 | DJ60: 493.1016897 | DK60: 512.8257573 | DL60: 533.3387876 | DM60: 554.6723391 | DN60: 576.8592327 | DO60: 599.933602 | DP60: 623.9309461 | DQ60: 648.8881839 | DR60: 674.8437113 | DS60: 701.8374597 | DT60: 729.9109581 | DU60: 759.1073964 | DV60: 789.4716923 | DW60: 821.05056 | DX60: 853.8925824 | DY60: 888.0482857 | DZ60: 923.5702171 | EA60: 960.5130258 | EB60: 998.9335468 | EC60: 1038.890889 | ED60: =ED59*ED54 -> 1080.446524 | EE60: 1123.664385 | EF60: 1168.610961 | EG60: 1215.355399 | EH60: 1263.969615 | EI60: 1314.5284 | EJ60: 1367.109536 | EK60: 1421.793917 | EL60: 1478.665674 | EM60: 1537.812301 | EN60: 1599.324793 | EO60: 1663.297784 | EP60: 1729.829696 | EQ60: 1799.022884 | ER60: 1870.983799 | ES60: 1945.823151 | ET60: 2023.656077 | EU60: 2104.60232 | EV60: 2188.786413 | EW60: 2276.337869 | EX60: 2367.391384 | EY60: 2462.087039 | EZ60: 2560.570521 | FA60: 2662.993342 | FB60: 2769.513075 | FC60: 2880.293598 | FD60: 2995.505342 | FE60: 3115.325556 | FF60: 3239.938578 | FG60: 3369.536122 | FH60: 3504.317566 | FI60: 3644.490269 | FJ60: 3790.26988 | FK60: 3941.880675 | FL60: 4099.555902 | FM60: 4263.538138 | FN60: 4434.079664 | FO60: 4611.44285 | FP60: 4795.900564 | FQ60: 4987.736587 | FR60: 5187.24605 | FS60: 5394.735892 | FT60: 5610.525328 | FU60: 5834.946341 | FV60: 6068.344195 | FW60: 6311.077962 | FX60: 6563.521081 | FY60: 6826.061924 | FZ60: 7099.104401 | GA60: 7383.068577 | GB60: 7678.39132 | GC60: 7985.526973 | GD60: 8304.948052 | GE60: 8637.145974 | GF60: 8982.631813 | GG60: 9341.937085 | GH60: 9715.614569 | GI60: 10104.23915 | GJ60: 10508.40872 | GK60: 10928.74507 | GL60: 11365.89487 | GM60: 11820.53066 | GN60: 12293.35189 | GO60: 12785.08597 | GP60: =GP59*GP54 -> 13296.4894 | GQ60: 13828.34898 | GR60: 14381.48294 | GS60: 14956.74226 | GT60: 15555.01195 | GU60: 16177.21243 | GV60: 16824.30092 | GW60: 17497.27296 | GX60: 18197.16388 | GY60: 18925.05043 | GZ60: 19682.05245 | HA60: 20469.33455 | HB60: 21288.10793 | HC60: 22139.63225 | HD60: 23025.21754 | HE60: 23946.22624 | HF60: 24904.07529 | HG60: 25900.2383 | HH60: 26936.24783 | HI60: 28013.69775 | HJ60: 29134.24566 | HK60: 30299.61548 | HL60: 31511.6001 | HM60: 32772.06411 | HN60: 34082.94667 | HO60: 35446.26454 | HP60: 36864.11512 | HQ60: 38338.67972 | HR60: 39872.22691 | HS60: 41467.11599 | HT60: 43125.80063 | HU60: 44850.83265 | HV60: 46644.86596 | HW60: 48510.6606 | HX60: 50451.08702 | HY60: 52469.1305 | HZ60: 54567.89572 | IA60: 56750.61155 | IB60: 59020.63601 | IC60: 61381.46145 | ID60: 63836.71991 | IE60: 66390.18871 | IF60: 69045.79626 | IG60: 71807.62811 | IH60: 74679.93323 | II60: 77667.13056 | IJ60: 80773.81578 | IK60: 84004.76841 | IL60: 87364.95915 | IM60: 90859.55752 | IN60: 94493.93982 | IO60: 98273.69741 | IP60: 102204.6453 | IQ60: 106292.8311 | IR60: 110544.5444 | IS60: 114966.3261 | IT60: 119564.9792 | IU60: 124347.5783 | IV60: 129321.4815 | IW60: 134494.3407 | IX60: 139874.1144 | IY60: 145469.0789 | IZ60: 151287.8421 | JA60: 157339.3558 | JB60: =JB59*JB54 -> 163632.93 | JC60: 170178.2472 | JD60: 176985.3771 | JE60: 184064.7922 | JF60: 191427.3839 | JG60: 199084.4792 | JH60: 207047.8584 | JI60: 215329.7727 | JJ60: 223942.9637 | JK60: 232900.6822 | JL60: 242216.7095 | JM60: 251905.3779 | JN60: 261981.593 | JO60: 272460.8567 | JP60: 283359.291 | JQ60: 294693.6626 | JR60: 306481.4091 | JS60: 318740.6655 | JT60: 331490.2921 | JU60: 344749.9038 | JV60: 358539.8999 | JW60: 372881.4959 | JX60: 387796.7558 | JY60: 403308.626 | JZ60: 419440.971 | KA60: 436218.6099 | KB60: 453667.3543 | KC60: 471814.0484 | KD60: 490686.6104 | KE60: 510314.0748 | KF60: 530726.6378 | KG60: 551955.7033 | KH60: 574033.9314 | KI60: 596995.2887 | KJ60: 620875.1002 | KK60: 645710.1042 | KL60: 671538.5084 | KM60: 698400.0488 | KN60: 726336.0507 | KO60: 755389.4927 | KP60: 785605.0724 | KQ60: 817029.2753 | KR60: 849710.4464
C61: Less: DPS | E61: =E60*E56 -> 0 | F61: =F60*F56 -> 0 | G61: 0 | H61: 0 | I61: 0 | J61: 0 | K61: 0 | L61: 0 | M61: 0 | N61: 0 | O61: 0 | P61: 0 | Q61: 0 | R61: 0 | S61: 0 | T61: 1.450236596 | U61: 2.939558159 | V61: 4.396770949 | W61: 5.765291851 | X61: 7.004492206 | Y61: 8.088895393 | Z61: 9.006093812 | AA61: 9.754100414 | AB61: 10.14426443 | AC61: 10.55003501 | AD61: 10.97203641 | AE61: 11.41091786 | AF61: 11.86735458 | AG61: 12.34204876 | AH61: 12.83573071 | AI61: 13.34915994 | AJ61: 13.88312634 | AK61: 14.43845139 | AL61: 15.01598945 | AM61: 15.61662903 | AN61: 16.24129419 | AO61: 16.89094595 | AP61: 17.56658379 | AQ61: 18.26924714 | AR61: 19.00001703 | AS61: 19.76001771 | AT61: 20.55041842 | AU61: 21.37243516 | AV61: 22.22733256 | AW61: 23.11642586 | AX61: 24.0410829 | AY61: 25.00272622 | AZ61: 26.00283526 | BA61: 27.04294867 | BB61: 28.12466662 | BC61: 29.24965329 | BD61: 30.41963942 | BE61: 31.63642499 | BF61: 32.90188199 | BG61: 34.21795727 | BH61: 35.58667556 | BI61: 37.01014259 | BJ61: 38.49054829 | BK61: 40.03017022 | BL61: 41.63137703 | BM61: 43.29663211 | BN61: 45.0284974 | BO61: 46.82963729 | BP61: 48.70282278 | BQ61: 50.6509357 | BR61: =BR60*BR56 -> 52.67697312 | BS61: 54.78405205 | BT61: 56.97541413 | BU61: 59.2544307 | BV61: 61.62460792 | BW61: 64.08959224 | BX61: 66.65317593 | BY61: 69.31930297 | BZ61: 72.09207509 | CA61: 74.97575809 | CB61: 77.97478841 | CC61: 81.09377995 | CD61: 84.33753115 | CE61: 87.71103239 | CF61: 91.21947369 | CG61: 94.86825264 | CH61: 98.66298274 | CI61: 102.6095021 | CJ61: 106.7138821 | CK61: 110.9824374 | CL61: 115.4217349 | CM61: 120.0386043 | CN61: 124.8401485 | CO61: 129.8337544 | CP61: 135.0271046 | CQ61: 140.4281888 | CR61: 146.0453163 | CS61: 151.887129 | CT61: 157.9626142 | CU61: 164.2811187 | CV61: 170.8523635 | CW61: 177.686458 | CX61: 184.7939163 | CY61: 192.185673 | CZ61: 199.8730999 | DA61: 207.8680239 | DB61: 216.1827448 | DC61: 224.8300546 | DD61: 233.8232568 | DE61: 243.1761871 | DF61: 252.9032346 | DG61: 263.019364 | DH61: 273.5401385 | DI61: 284.4817441 | DJ61: 295.8610138 | DK61: 307.6954544 | DL61: 320.0032726 | DM61: 332.8034035 | DN61: 346.1155396 | DO61: 359.9601612 | DP61: 374.3585676 | DQ61: 389.3329103 | DR61: 404.9062268 | DS61: 421.1024758 | DT61: 437.9465749 | DU61: 455.4644379 | DV61: 473.6830154 | DW61: 492.630336 | DX61: 512.3355494 | DY61: 532.8289714 | DZ61: 554.1421303 | EA61: 576.3078155 | EB61: 599.3601281 | EC61: 623.3345332 | ED61: =ED60*ED56 -> 648.2679145 | EE61: 674.1986311 | EF61: 701.1665764 | EG61: 729.2132394 | EH61: 758.381769 | EI61: 788.7170397 | EJ61: 820.2657213 | EK61: 853.0763502 | EL61: 887.1994042 | EM61: 922.6873804 | EN61: 959.5948756 | EO61: 997.9786706 | EP61: 1037.897817 | EQ61: 1079.41373 | ER61: 1122.590279 | ES61: 1167.493891 | ET61: 1214.193646 | EU61: 1262.761392 | EV61: 1313.271848 | EW61: 1365.802722 | EX61: 1420.43483 | EY61: 1477.252224 | EZ61: 1536.342313 | FA61: 1597.796005 | FB61: 1661.707845 | FC61: 1728.176159 | FD61: 1797.303205 | FE61: 1869.195334 | FF61: 1943.963147 | FG61: 2021.721673 | FH61: 2102.59054 | FI61: 2186.694161 | FJ61: 2274.161928 | FK61: 2365.128405 | FL61: 2459.733541 | FM61: 2558.122883 | FN61: 2660.447798 | FO61: 2766.86571 | FP61: 2877.540338 | FQ61: 2992.641952 | FR61: 3112.34763 | FS61: 3236.841535 | FT61: 3366.315197 | FU61: 3500.967805 | FV61: 3641.006517 | FW61: 3786.646777 | FX61: 3938.112649 | FY61: 4095.637154 | FZ61: 4259.462641 | GA61: 4429.841146 | GB61: 4607.034792 | GC61: 4791.316184 | GD61: 4982.968831 | GE61: 5182.287584 | GF61: 5389.579088 | GG61: 5605.162251 | GH61: 5829.368741 | GI61: 6062.543491 | GJ61: 6305.045231 | GK61: 6557.24704 | GL61: 6819.536921 | GM61: 7092.318398 | GN61: 7376.011134 | GO61: 7671.05158 | GP61: =GP60*GP56 -> 7977.893643 | GQ61: 8297.009389 | GR61: 8628.889764 | GS61: 8974.045355 | GT61: 9333.007169 | GU61: 9706.327456 | GV61: 10094.58055 | GW61: 10498.36378 | GX61: 10918.29833 | GY61: 11355.03026 | GZ61: 11809.23147 | HA61: 12281.60073 | HB61: 12772.86476 | HC61: 13283.77935 | HD61: 13815.13052 | HE61: 14367.73574 | HF61: 14942.44517 | HG61: 15540.14298 | HH61: 16161.7487 | HI61: 16808.21865 | HJ61: 17480.54739 | HK61: 18179.76929 | HL61: 18906.96006 | HM61: 19663.23846 | HN61: 20449.768 | HO61: 21267.75872 | HP61: 22118.46907 | HQ61: 23003.20783 | HR61: 23923.33615 | HS61: 24880.26959 | HT61: 25875.48038 | HU61: 26910.49959 | HV61: 27986.91958 | HW61: 29106.39636 | HX61: 30270.65221 | HY61: 31481.4783 | HZ61: 32740.73743 | IA61: 34050.36693 | IB61: 35412.38161 | IC61: 36828.87687 | ID61: 38302.03195 | IE61: 39834.11322 | IF61: 41427.47775 | IG61: 43084.57686 | IH61: 44807.95994 | II61: 46600.27834 | IJ61: 48464.28947 | IK61: 50402.86105 | IL61: 52418.97549 | IM61: 54515.73451 | IN61: 56696.36389 | IO61: 58964.21845 | IP61: 61322.78718 | IQ61: 63775.69867 | IR61: 66326.72662 | IS61: 68979.79568 | IT61: 71738.98751 | IU61: 74608.54701 | IV61: 77592.88889 | IW61: 80696.60445 | IX61: 83924.46862 | IY61: 87281.44737 | IZ61: 90772.70526 | JA61: 94403.61347 | JB61: =JB60*JB56 -> 98179.75801 | JC61: 102106.9483 | JD61: 106191.2263 | JE61: 110438.8753 | JF61: 114856.4303 | JG61: 119450.6875 | JH61: 124228.715 | JI61: 129197.8636 | JJ61: 134365.7782 | JK61: 139740.4093 | JL61: 145330.0257 | JM61: 151143.2267 | JN61: 157188.9558 | JO61: 163476.514 | JP61: 170015.5746 | JQ61: 176816.1976 | JR61: 183888.8455 | JS61: 191244.3993 | JT61: 198894.1753 | JU61: 206849.9423 | JV61: 215123.94 | JW61: 223728.8976 | JX61: 232678.0535 | JY61: 241985.1756 | JZ61: 251664.5826 | KA61: 261731.1659 | KB61: 272200.4126 | KC61: 283088.4291 | KD61: 294411.9662 | KE61: 306188.4449 | KF61: 318435.9827 | KG61: 331173.422 | KH61: 344420.3589 | KI61: 358197.1732 | KJ61: 372525.0601 | KK61: 387426.0625 | KL61: 402923.105 | KM61: 419040.0293 | KN61: 435801.6304 | KO61: 453233.6956 | KP61: 471363.0435 | KQ61: 490217.5652 | KR61: 509826.2678
C62: Closing Balance | D62: 11.55 | E62: =E59+E60-E61 -> 13.2825 | F62: =F59+F60-F61 -> 15.274875 | G62: 17.56610625 | H62: 20.20102219 | I62: 23.23117552 | J62: 26.71585184 | K62: 30.72322962 | L62: 35.33171406 | M62: 40.63147117 | N62: 46.72619185 | O62: 53.73512062 | P62: 61.79538872 | Q62: 71.06469703 | R62: 81.72440158 | S62: 93.98306182 | T62: 105.9335856 | U62: 117.3522975 | V62: 128.0754166 | W62: 137.9960957 | X62: 147.0573541 | Y62: 155.2430302 | Z62: 162.5683402 | AA62: 169.0710738 | AB62: 175.8339168 | AC62: 182.8672735 | AD62: 190.1819644 | AE62: 197.789243 | AF62: 205.7008127 | AG62: 213.9288452 | AH62: 222.485999 | AI62: 231.385439 | AJ62: 240.6408565 | AK62: 250.2664908 | AL62: 260.2771504 | AM62: 270.6882364 | AN62: 281.5157659 | AO62: 292.7763965 | AP62: 304.4874524 | AQ62: 316.6669505 | AR62: 329.3336285 | AS62: 342.5069737 | AT62: 356.2072526 | AU62: 370.4555427 | AV62: 385.2737644 | AW62: 400.684715 | AX62: 416.7121036 | AY62: 433.3805877 | AZ62: 450.7158112 | BA62: 468.7444437 | BB62: 487.4942214 | BC62: 506.9939903 | BD62: 527.2737499 | BE62: 548.3646999 | BF62: 570.2992879 | BG62: 593.1112594 | BH62: 616.8357098 | BI62: 641.5091382 | BJ62: 667.1695037 | BK62: 693.8562839 | BL62: 721.6105352 | BM62: 750.4749566 | BN62: 780.4939549 | BO62: 811.7137131 | BP62: 844.1822616 | BQ62: 877.9495521 | BR62: =BR59+BR60-BR61 -> 913.0675342 | BS62: 949.5902355 | BT62: 987.5738449 | BU62: 1027.076799 | BV62: 1068.159871 | BW62: 1110.886266 | BX62: 1155.321716 | BY62: 1201.534585 | BZ62: 1249.595968 | CA62: 1299.579807 | CB62: 1351.562999 | CC62: 1405.625519 | CD62: 1461.85054 | CE62: 1520.324562 | CF62: 1581.137544 | CG62: 1644.383046 | CH62: 1710.158368 | CI62: 1778.564702 | CJ62: 1849.70729 | CK62: 1923.695582 | CL62: 2000.643405 | CM62: 2080.669141 | CN62: 2163.895907 | CO62: 2250.451743 | CP62: 2340.469813 | CQ62: 2434.088606 | CR62: 2531.45215 | CS62: 2632.710236 | CT62: 2738.018645 | CU62: 2847.539391 | CV62: 2961.440967 | CW62: 3079.898605 | CX62: 3203.09455 | CY62: 3331.218332 | CZ62: 3464.467065 | DA62: 3603.045747 | DB62: 3747.167577 | DC62: 3897.05428 | DD62: 4052.936452 | DE62: 4215.05391 | DF62: 4383.656066 | DG62: 4559.002309 | DH62: 4741.362401 | DI62: 4931.016897 | DJ62: 5128.257573 | DK62: 5333.387876 | DL62: 5546.723391 | DM62: 5768.592327 | DN62: 5999.33602 | DO62: 6239.309461 | DP62: 6488.881839 | DQ62: 6748.437113 | DR62: 7018.374597 | DS62: 7299.109581 | DT62: 7591.073964 | DU62: 7894.716923 | DV62: 8210.5056 | DW62: 8538.925824 | DX62: 8880.482857 | DY62: 9235.702171 | DZ62: 9605.130258 | EA62: 9989.335468 | EB62: 10388.90889 | EC62: 10804.46524 | ED62: =ED59+ED60-ED61 -> 11236.64385 | EE62: 11686.10961 | EF62: 12153.55399 | EG62: 12639.69615 | EH62: 13145.284 | EI62: 13671.09536 | EJ62: 14217.93917 | EK62: 14786.65674 | EL62: 15378.12301 | EM62: 15993.24793 | EN62: 16632.97784 | EO62: 17298.29696 | EP62: 17990.22884 | EQ62: 18709.83799 | ER62: 19458.23151 | ES62: 20236.56077 | ET62: 21046.0232 | EU62: 21887.86413 | EV62: 22763.37869 | EW62: 23673.91384 | EX62: 24620.87039 | EY62: 25605.70521 | EZ62: 26629.93342 | FA62: 27695.13075 | FB62: 28802.93598 | FC62: 29955.05342 | FD62: 31153.25556 | FE62: 32399.38578 | FF62: 33695.36122 | FG62: 35043.17566 | FH62: 36444.90269 | FI62: 37902.6988 | FJ62: 39418.80675 | FK62: 40995.55902 | FL62: 42635.38138 | FM62: 44340.79664 | FN62: 46114.4285 | FO62: 47959.00564 | FP62: 49877.36587 | FQ62: 51872.4605 | FR62: 53947.35892 | FS62: 56105.25328 | FT62: 58349.46341 | FU62: 60683.44195 | FV62: 63110.77962 | FW62: 65635.21081 | FX62: 68260.61924 | FY62: 70991.04401 | FZ62: 73830.68577 | GA62: 76783.9132 | GB62: 79855.26973 | GC62: 83049.48052 | GD62: 86371.45974 | GE62: 89826.31813 | GF62: 93419.37085 | GG62: 97156.14569 | GH62: 101042.3915 | GI62: 105084.0872 | GJ62: 109287.4507 | GK62: 113658.9487 | GL62: 118205.3066 | GM62: 122933.5189 | GN62: 127850.8597 | GO62: 132964.894 | GP62: =GP59+GP60-GP61 -> 138283.4898 | GQ62: 143814.8294 | GR62: 149567.4226 | GS62: 155550.1195 | GT62: 161772.1243 | GU62: 168243.0092 | GV62: 174972.7296 | GW62: 181971.6388 | GX62: 189250.5043 | GY62: 196820.5245 | GZ62: 204693.3455 | HA62: 212881.0793 | HB62: 221396.3225 | HC62: 230252.1754 | HD62: 239462.2624 | HE62: 249040.7529 | HF62: 259002.383 | HG62: 269362.4783 | HH62: 280136.9775 | HI62: 291342.4566 | HJ62: 302996.1548 | HK62: 315116.001 | HL62: 327720.6411 | HM62: 340829.4667 | HN62: 354462.6454 | HO62: 368641.1512 | HP62: 383386.7972 | HQ62: 398722.2691 | HR62: 414671.1599 | HS62: 431258.0063 | HT62: 448508.3265 | HU62: 466448.6596 | HV62: 485106.606 | HW62: 504510.8702 | HX62: 524691.305 | HY62: 545678.9572 | HZ62: 567506.1155 | IA62: 590206.3601 | IB62: 613814.6145 | IC62: 638367.1991 | ID62: 663901.8871 | IE62: 690457.9626 | IF62: 718076.2811 | IG62: 746799.3323 | IH62: 776671.3056 | II62: 807738.1578 | IJ62: 840047.6841 | IK62: 873649.5915 | IL62: 908595.5752 | IM62: 944939.3982 | IN62: 982736.9741 | IO62: 1022046.453 | IP62: 1062928.311 | IQ62: 1105445.444 | IR62: 1149663.261 | IS62: 1195649.792 | IT62: 1243475.783 | IU62: 1293214.815 | IV62: 1344943.407 | IW62: 1398741.144 | IX62: 1454690.789 | IY62: 1512878.421 | IZ62: 1573393.558 | JA62: 1636329.3 | JB62: =JB59+JB60-JB61 -> 1701782.472 | JC62: 1769853.771 | JD62: 1840647.922 | JE62: 1914273.839 | JF62: 1990844.792 | JG62: 2070478.584 | JH62: 2153297.727 | JI62: 2239429.637 | JJ62: 2329006.822 | JK62: 2422167.095 | JL62: 2519053.779 | JM62: 2619815.93 | JN62: 2724608.567 | JO62: 2833592.91 | JP62: 2946936.626 | JQ62: 3064814.091 | JR62: 3187406.655 | JS62: 3314902.921 | JT62: 3447499.038 | JU62: 3585398.999 | JV62: 3728814.959 | JW62: 3877967.558 | JX62: 4033086.26 | JY62: 4194409.71 | JZ62: 4362186.099 | KA62: 4536673.543 | KB62: 4718140.484 | KC62: 4906866.104 | KD62: 5103140.748 | KE62: 5307266.378 | KF62: 5519557.033 | KG62: 5740339.314 | KH62: 5969952.887 | KI62: 6208751.002 | KJ62: 6457101.042 | KK62: 6715385.084 | KL62: 6984000.488 | KM62: 7263360.507 | KN62: 7553894.927 | KO62: 7856050.724 | KP62: 8170292.753 | KQ62: 8497104.464 | KR62: 8836988.642
C64: Growth Rate | F64: =F60/E60-1 -> 0.15 | G64: =G60/F60-1 -> 0.15 | H64: 0.15 | I64: 0.15 | J64: 0.15 | K64: 0.15 | L64: 0.15 | M64: 0.15 | N64: 0.15 | O64: 0.15 | P64: 0.15 | Q64: 0.15 | R64: 0.15 | S64: 0.15 | T64: 0.0931667987 | U64: 0.07145189036 | V64: 0.05304399691 | W64: 0.0374394852 | X64: 0.02421142158 | Y64: 0.01299789113 | Z64: 0.00349209583 | AA64: -0.004566039367 | AB64: 0.04 | AC64: 0.04 | AD64: 0.04 | AE64: 0.04 | AF64: 0.04 | AG64: 0.04 | AH64: 0.04 | AI64: 0.04 | AJ64: 0.04 | AK64: 0.04 | AL64: 0.04 | AM64: 0.04 | AN64: 0.04 | AO64: 0.04 | AP64: 0.04 | AQ64: 0.04 | AR64: 0.04 | AS64: 0.04 | AT64: 0.04 | AU64: 0.04 | AV64: 0.04 | AW64: 0.04 | AX64: 0.04 | AY64: 0.04 | AZ64: 0.04 | BA64: 0.04 | BB64: 0.04 | BC64: 0.04 | BD64: 0.04 | BE64: 0.04 | BF64: 0.04 | BG64: 0.04 | BH64: 0.04 | BI64: 0.04 | BJ64: 0.04 | BK64: 0.04 | BL64: 0.04 | BM64: 0.04 | BN64: 0.04 | BO64: 0.04 | BP64: 0.04 | BQ64: 0.04 | BR64: 0.04 | BS64: =BS60/BR60-1 -> 0.04 | BT64: 0.04 | BU64: 0.04 | BV64: 0.04 | BW64: 0.04 | BX64: 0.04 | BY64: 0.04 | BZ64: 0.04 | CA64: 0.04 | CB64: 0.04 | CC64: 0.04 | CD64: 0.04 | CE64: 0.04 | CF64: 0.04 | CG64: 0.04 | CH64: 0.04 | CI64: 0.04 | CJ64: 0.04 | CK64: 0.04 | CL64: 0.04 | CM64: 0.04 | CN64: 0.04 | CO64: 0.04 | CP64: 0.04 | CQ64: 0.04 | CR64: 0.04 | CS64: 0.04 | CT64: 0.04 | CU64: 0.04 | CV64: 0.04 | CW64: 0.04 | CX64: 0.04 | CY64: 0.04 | CZ64: 0.04 | DA64: 0.04 | DB64: 0.04 | DC64: 0.04 | DD64: 0.04 | DE64: 0.04 | DF64: 0.04 | DG64: 0.04 | DH64: 0.04 | DI64: 0.04 | DJ64: 0.04 | DK64: 0.04 | DL64: 0.04 | DM64: 0.04 | DN64: 0.04 | DO64: 0.04 | DP64: 0.04 | DQ64: 0.04 | DR64: 0.04 | DS64: 0.04 | DT64: 0.04 | DU64: 0.04 | DV64: 0.04 | DW64: 0.04 | DX64: 0.04 | DY64: 0.04 | DZ64: 0.04 | EA64: 0.04 | EB64: 0.04 | EC64: 0.04 | ED64: 0.04 | EE64: =EE60/ED60-1 -> 0.04 | EF64: 0.04 | EG64: 0.04 | EH64: 0.04 | EI64: 0.04 | EJ64: 0.04 | EK64: 0.04 | EL64: 0.04 | EM64: 0.04 | EN64: 0.04 | EO64: 0.04 | EP64: 0.04 | EQ64: 0.04 | ER64: 0.04 | ES64: 0.04 | ET64: 0.04 | EU64: 0.04 | EV64: 0.04 | EW64: 0.04 | EX64: 0.04 | EY64: 0.04 | EZ64: 0.04 | FA64: 0.04 | FB64: 0.04 | FC64: 0.04 | FD64: 0.04 | FE64: 0.04 | FF64: 0.04 | FG64: 0.04 | FH64: 0.04 | FI64: 0.04 | FJ64: 0.04 | FK64: 0.04 | FL64: 0.04 | FM64: 0.04 | FN64: 0.04 | FO64: 0.04 | FP64: 0.04 | FQ64: 0.04 | FR64: 0.04 | FS64: 0.04 | FT64: 0.04 | FU64: 0.04 | FV64: 0.04 | FW64: 0.04 | FX64: 0.04 | FY64: 0.04 | FZ64: 0.04 | GA64: 0.04 | GB64: 0.04 | GC64: 0.04 | GD64: 0.04 | GE64: 0.04 | GF64: 0.04 | GG64: 0.04 | GH64: 0.04 | GI64: 0.04 | GJ64: 0.04 | GK64: 0.04 | GL64: 0.04 | GM64: 0.04 | GN64: 0.04 | GO64: 0.04 | GP64: 0.04 | GQ64: =GQ60/GP60-1 -> 0.04 | GR64: 0.04 | GS64: 0.04 | GT64: 0.04 | GU64: 0.04 | GV64: 0.04 | GW64: 0.04 | GX64: 0.04 | GY64: 0.04 | GZ64: 0.04 | HA64: 0.04 | HB64: 0.04 | HC64: 0.04 | HD64: 0.04 | HE64: 0.04 | HF64: 0.04 | HG64: 0.04 | HH64: 0.04 | HI64: 0.04 | HJ64: 0.04 | HK64: 0.04 | HL64: 0.04 | HM64: 0.04 | HN64: 0.04 | HO64: 0.04 | HP64: 0.04 | HQ64: 0.04 | HR64: 0.04 | HS64: 0.04 | HT64: 0.04 | HU64: 0.04 | HV64: 0.04 | HW64: 0.04 | HX64: 0.04 | HY64: 0.04 | HZ64: 0.04 | IA64: 0.04 | IB64: 0.04 | IC64: 0.04 | ID64: 0.04 | IE64: 0.04 | IF64: 0.04 | IG64: 0.04 | IH64: 0.04 | II64: 0.04 | IJ64: 0.04 | IK64: 0.04 | IL64: 0.04 | IM64: 0.04 | IN64: 0.04 | IO64: 0.04 | IP64: 0.04 | IQ64: 0.04 | IR64: 0.04 | IS64: 0.04 | IT64: 0.04 | IU64: 0.04 | IV64: 0.04 | IW64: 0.04 | IX64: 0.04 | IY64: 0.04 | IZ64: 0.04 | JA64: 0.04 | JB64: 0.04 | JC64: =JC60/JB60-1 -> 0.04 | JD64: 0.04 | JE64: 0.04 | JF64: 0.04 | JG64: 0.04 | JH64: 0.04 | JI64: 0.04 | JJ64: 0.04 | JK64: 0.04 | JL64: 0.04 | JM64: 0.04 | JN64: 0.04 | JO64: 0.04 | JP64: 0.04 | JQ64: 0.04 | JR64: 0.04 | JS64: 0.04 | JT64: 0.04 | JU64: 0.04 | JV64: 0.04 | JW64: 0.04 | JX64: 0.04 | JY64: 0.04 | JZ64: 0.04 | KA64: 0.04 | KB64: 0.04 | KC64: 0.04 | KD64: 0.04 | KE64: 0.04 | KF64: 0.04 | KG64: 0.04 | KH64: 0.04 | KI64: 0.04 | KJ64: 0.04 | KK64: 0.04 | KL64: 0.04 | KM64: 0.04 | KN64: 0.04 | KO64: 0.04 | KP64: 0.04 | KQ64: 0.04 | KR64: 0.04
C66: Value of Share | D66: =NPV(D39,E61:KR61) -> 17.85472304
C67: Forward P/E Ratio | D67: =D66/E60 -> 10.30575644 | E67: =(1-D41/D35)/(D39-D41) -> 0
C69: Market to Book Ratio | D69: =D66/D62 -> 1.545863467
A71: Depreciation and Capital Expenditure Analysis
B73: Outputs
C74: Ratio of Capital Exp to Depreciation | D74: =KR104 -> 1.308756526
C75: Ratio of Depreciation to Net Plant | D75: =KR102 -> 0.09433392051
C76: Ratio of Deferred Tax to Capital Exp | D76: =AW117 -> 0.008893622371
B78: Inputs
C79: Growth Rate | D79: =D125 -> 0.03
C80: Depreciation Life | D80: =D126 -> 18
C81: Tax Life | D81: 10
C82: Tax Rate | D82: =Assumptions!E74 -> 0.1
B84: Plant Balance | D84: 0 | E84: =D84+1 -> 1 | F84: =E84+1 -> 2 | G84: 3 | H84: 4 | I84: 5 | J84: 6 | K84: 7 | L84: 8 | M84: 9 | N84: 10 | O84: 11 | P84: 12 | Q84: 13 | R84: 14 | S84: 15 | T84: 16 | U84: 17 | V84: 18 | W84: 19 | X84: 20 | Y84: 21 | Z84: 22 | AA84: 23 | AB84: 24 | AC84: 25 | AD84: 26 | AE84: 27 | AF84: 28 | AG84: 29 | AH84: 30 | AI84: 31 | AJ84: 32 | AK84: 33 | AL84: 34 | AM84: 35 | AN84: 36 | AO84: 37 | AP84: 38 | AQ84: 39 | AR84: 40 | AS84: 41 | AT84: 42 | AU84: 43 | AV84: 44 | AW84: 45 | AX84: 46 | AY84: 47 | AZ84: 48 | BA84: 49 | BB84: 50 | BC84: 51 | BD84: 52 | BE84: 53 | BF84: 54 | BG84: 55 | BH84: 56 | BI84: 57 | BJ84: 58 | BK84: 59 | BL84: 60 | BM84: 61 | BN84: 62 | BO84: 63 | BP84: 64 | BQ84: 65 | BR84: =BQ84+1 -> 66 | BS84: 67 | BT84: 68 | BU84: 69 | BV84: 70 | BW84: 71 | BX84: 72 | BY84: 73 | BZ84: 74 | CA84: 75 | CB84: 76 | CC84: 77 | CD84: 78 | CE84: 79 | CF84: 80 | CG84: 81 | CH84: 82 | CI84: 83 | CJ84: 84 | CK84: 85 | CL84: 86 | CM84: 87 | CN84: 88 | CO84: 89 | CP84: 90 | CQ84: 91 | CR84: 92 | CS84: 93 | CT84: 94 | CU84: 95 | CV84: 96 | CW84: 97 | CX84: 98 | CY84: 99 | CZ84: 100 | DA84: 101 | DB84: 102 | DC84: 103 | DD84: 104 | DE84: 105 | DF84: 106 | DG84: 107 | DH84: 108 | DI84: 109 | DJ84: 110 | DK84: 111 | DL84: 112 | DM84: 113 | DN84: 114 | DO84: 115 | DP84: 116 | DQ84: 117 | DR84: 118 | DS84: 119 | DT84: 120 | DU84: 121 | DV84: 122 | DW84: 123 | DX84: 124 | DY84: 125 | DZ84: 126 | EA84: 127 | EB84: 128 | EC84: 129 | ED84: =EC84+1 -> 130 | EE84: 131 | EF84: 132 | EG84: 133 | EH84: 134 | EI84: 135 | EJ84: 136 | EK84: 137 | EL84: 138 | EM84: 139 | EN84: 140 | EO84: 141 | EP84: 142 | EQ84: 143 | ER84: 144 | ES84: 145 | ET84: 146 | EU84: 147 | EV84: 148 | EW84: 149 | EX84: 150 | EY84: 151 | EZ84: 152 | FA84: 153 | FB84: 154 | FC84: 155 | FD84: 156 | FE84: 157 | FF84: 158 | FG84: 159 | FH84: 160 | FI84: 161 | FJ84: 162 | FK84: 163 | FL84: 164 | FM84: 165 | FN84: 166 | FO84: 167 | FP84: 168 | FQ84: 169 | FR84: 170 | FS84: 171 | FT84: 172 | FU84: 173 | FV84: 174 | FW84: 175 | FX84: 176 | FY84: 177 | FZ84: 178 | GA84: 179 | GB84: 180 | GC84: 181 | GD84: 182 | GE84: 183 | GF84: 184 | GG84: 185 | GH84: 186 | GI84: 187 | GJ84: 188 | GK84: 189 | GL84: 190 | GM84: 191 | GN84: 192 | GO84: 193 | GP84: =GO84+1 -> 194 | GQ84: 195 | GR84: 196 | GS84: 197 | GT84: 198 | GU84: 199 | GV84: 200 | GW84: 201 | GX84: 202 | GY84: 203 | GZ84: 204 | HA84: 205 | HB84: 206 | HC84: 207 | HD84: 208 | HE84: 209 | HF84: 210 | HG84: 211 | HH84: 212 | HI84: 213 | HJ84: 214 | HK84: 215 | HL84: 216 | HM84: 217 | HN84: 218 | HO84: 219 | HP84: 220 | HQ84: 221 | HR84: 222 | HS84: 223 | HT84: 224 | HU84: 225 | HV84: 226 | HW84: 227 | HX84: 228 | HY84: 229 | HZ84: 230 | IA84: 231 | IB84: 232 | IC84: 233 | ID84: 234 | IE84: 235 | IF84: 236 | IG84: 237 | IH84: 238 | II84: 239 | IJ84: 240 | IK84: 241 | IL84: 242 | IM84: 243 | IN84: 244 | IO84: 245 | IP84: 246 | IQ84: 247 | IR84: 248 | IS84: 249 | IT84: 250 | IU84: 251 | IV84: 252 | IW84: 253 | IX84: 254 | IY84: 255 | IZ84: 256 | JA84: 257 | JB84: =JA84+1 -> 258 | JC84: 259 | JD84: 260 | JE84: 261 | JF84: 262 | JG84: 263 | JH84: 264 | JI84: 265 | JJ84: 266 | JK84: 267 | JL84: 268 | JM84: 269 | JN84: 270 | JO84: 271 | JP84: 272 | JQ84: 273 | JR84: 274 | JS84: 275 | JT84: 276 | JU84: 277 | JV84: 278 | JW84: 279 | JX84: 280 | JY84: 281 | JZ84: 282 | KA84: 283 | KB84: 284 | KC84: 285 | KD84: 286 | KE84: 287 | KF84: 288 | KG84: 289 | KH84: 290 | KI84: 291 | KJ84: 292 | KK84: 293 | KL84: 294 | KM84: 295 | KN84: 296 | KO84: 297 | KP84: 298 | KQ84: 299 | KR84: 300
